Workbook

Sheet Navigation
D3: Northwest Power System Database
C5: Data and Documentation
C6: Existing Projects | E6: Abbreviation Key
C7: New Projects | E7: Abbreviation Key
C10: Installed Capacity | E10: Historical Energy
C11: New Project Status | D11: Capacity Additions/Retirements
D13: See the Power Supply webpage
C14: Questions? Contact Gillian Charles, gcharles@nwcouncil.org

Sheet RPM Documentation - 2021P
A1: Existing Resouce Base - Documentation for input into the System Analysis Models for the 2021 Plan | B1: 2020-04-13
A3: System Analysis Model Input (RPM Input Workbook) | B3: Fraction Dedicated to Region | C3: Existing Resource (Mwa)
A4: Project Database | B4: RPM % Rate Based to Region | C4: Capability Available to Region
A6: Resources that are operating, or are under construction, by March 31, 2020:
A7: Resources that are planned or proposed, but not yet under construction, are not included (will be treated in narrative, see new projects tab of project database)
A9: Thermal
A10: IPP NG/Coal (Region) - 100% PPA to region | B10: 1 | C10: 1
A11: IPP NG/Coal (Region) - 100% uncommitted (market) | B11: 0 | C11: 1
A12: IPP NG/Coal (Region) - XX% PPA to region, remainder to market | B12: XX% | C12: 1
A13: IPP NG/Coal (Region) - XX% PPA to region, remainder PPA to out of region | B13: XX% | C13: XX%
A14: Utility-owned NG/Coal (Region) - 100% in-region | B14: 1 | C14: 1
A15: Northwestern (100% owned/contracted) | B15: 0.31 | C15: 0.31
A16: PacifiCorp (located in region) (100% owned/contracted) | B16: 0.38 | C16: 1
A17: Joint ownership (see note for example) | B17: XX% | C17: XX%
A18: Colstrip 3 (30% Talen, 25% PSE, 20% PGE, 15% Avista, 10% PAC) | B18: 0.7 | C18: 1
A19: Colstrip 4 (30% NWE, 25% PSE, 20% PGE, 15% Avista, 10% PAC) | B19: 1 | C19: 1
A20: Bridger (66.7% PAC and 33.3% IPC joint-owned) | B20: 1 | C20: 1
A21: North Valmy 1 (IPC ended "participation" at EOY 2019, so now fully operated by NV Energy) | B21: 0 | C21: 0
A22: North Valmy 2 (IPC to end participation at EOY 2025) | B22: 0.5 | C22: 0.5
A24: Non-hydro Renewables
A25: IPP Wind/Solar - 100% PPA to region | B25: 1 | C25: 1
A26: IPP Wind/Solar - 100% PPA out of region (e.g. wind PPA to California) | B26: 0 | C26: 0
A27: IPP Wind/Solar - XX% PPA to region, remainder to market | B27: XX% | C27: 1
A28: IPP Wind/Solar - 100% uncommitted (market) | B28: 0 | C28: 1
A29: Utility-owned Renewable - 100% in-region | B29: 1 | C29: 1
A30: PacifiCorp bundled renewables (located anywhere - includes wind, solar and geothermal) | B30: 1 | C30: 1
A31: PacifiCorp unbundled renewables (located in-region) | B31: 1 | C31: 1
A32: PacifiCorp unbundled renewables (located out-of-region - WY) | B32: 0.38 | C32: 0.38
A33: PacifiCorp unbundled renewables (located out-of-region - CA, CO, NM) | B33: 0 | C33: 0
A34: NorthWestern Energy projects (or projects with QFs w/ NWE) | B34: 0.31 | C34: 0.31
A35: Green Tariff Programs (PPA betw. Developer and Utility on behalf of Customer) - In-region | B35: 1 | C35: 1
A36: Direct Access Projects (PPA betw. Developer and Customer - no utility) - In-region | B36: 1 | C36: 1
A38: Hydro
A39: All in-region hydro (Fed owned, utility/muni-owned, market-owned) | B39: 1 | C39: 1
A40: NWE-owned hydro (located inside and outside of region) | B40: 0.31 | C40: 0.31 | P40: 1.4 | Q40: =P40/SUM(P40:P45) -> 0.04388714734
A41: PAC-owned hydro (in-region) | B41: 1 | C41: 1
A42: PAC-owned hydro (OOR) | B42: 0.38 | C42: 0.38 | P42: 23.3 | Q42: =P42/SUM(P40:P45) -> 0.7304075235
A44: Energy Storage
A45: Batteries and pumped storage | B45: 1 | C45: 1 | P45: 7.2 | Q45: =P45/SUM(P40:P45) -> 0.2257053292
A47: Other Operating Status - All Resources
A48: Self-generation (e.g. some on-site university generators) | B48: 1 | C48: 0
A49: Self gen + sell surplus energy under PPA | B49: 1 | C49: 0.5
A50: Idle/Out of service/suspended resources (not officially retired, mothballed, currently out of service) | B50: 0 | C50: 0
A51: Retired | B51: 0 | C51: 0
A52: Standby resources (e.g. some petroleum or designated back-up generators) | B52: 1 | C52: 0

Sheet lkpLatLong
A1: Lat/long lookup values (last updated from Access 9/11/19)
A2: Use in vlookups in Project!Lat and Project!Long columns
A3: When adding rows, make sure range lkpLatLong extends to last row
A5: NWPCCID | B5: Project | C5: Latitude | D5: Longitude | E5: AdminNote | F5: URL
A6: 1001 | B6: Meyers Falls Two | C6: 48.5953 | D6: -118.0603
A7: 1003 | B7: Albeni Falls 1- 3 | C7: 48.18 | D7: -116.997 | F7: http://en.wikipedia.org/wiki/Albeni_Falls_Dam
A8: 1004 | B8: Alden Bailey (Wauna Peaking/Loki) | C8: 46.155595 | D8: -123.407887
A9: 1005 | B9: Alder 1 & 2 | C9: 46.801 | D9: -122.308 | F9: http://www.ci.tacoma.wa.us/power/parksandpower/hydro_power/nisqually/alder_dam.htm
A10: 1006 | B10: Amalgamated Sugar (TASCO) (Nampa) 1 - 3 | C10: 43.605063 | D10: -116.573758
A11: 1009 | B11: Amalgamated Sugar (TASCO) (Twin Falls) 1-3 | C11: 42.53061 | D11: -114.429584
A12: 1010 | B12: American Falls 1 - 3 | C12: 42.779 | D12: -112.875 | F12: http://www.idwr.state.id.us/Water/stream_dam/dams/AmericanFalls.htm
A13: 1012 | B13: Anderson Ranch 1 - 2 | C13: 43.357 | D13: -115.451 | F13: http://www.usbr.gov/projects/Facility.jsp?fac_Name=Anderson+Ranch+Dam
A14: 1013 | B14: Ashton 1 - 3 | C14: 44.2234 | D14: -111.4755
A15: 1017 | B15: Barber Dam | C15: 43.561001 | D15: -116.121269
A16: 1019 | B16: Basin Creek 1 - 9 | C16: 45.93 | D16: -112.524
A17: 1020 | B17: Beaver 1 - 7 | C17: 46.174 | D17: -123.178
A18: 1021 | B18: Beaver 8 | C18: 46.174 | D18: -123.178
A19: 1022 | B19: Bend Power 1 - 3 | C19: 44.062326 | D19: -121.313331
A20: 1023 | B20: Bennett Mountain | C20: 43.118 | D20: -115.686 | F20: http://www.idahopower.com/energycenter/electricitybasics/generation/thermal.htm#bennetMt
A21: 1026 | B21: Big Cliff | C21: 44.7506775 | D21: -122.28313 | F21: http://www.bpa.gov/corporate/bpanews/library/images/dams/descriptions/BigCliff.cfm
A22: 1027 | B22: Big Fork 1 - 3 | C22: 48.0592 | D22: -114.0708
A23: 1028 | B23: Big Hanaford (Transalta Centralia 30-70) | C23: 46.75 | D23: -122.863 | F23: http://www.transalta.com/transalta/webcms.nsf/AllDoc/8E2BA08371EE79B187257157004FC335?OpenDocument
A24: 1029 | B24: Big Horn I | C24: 45.89842 | D24: -120.288483 | F24: http://www.facebook.com/pages/Big-Horn-Wind-Farm/136744476362272
A25: 1030 | B25: Big Sheep Creek | C25: 48.947741 | D25: -117.795376
A26: 1031 | B26: Biglow Canyon I | C26: 45.694343 | D26: -120.626478 | F26: http://en.wikipedia.org/wiki/Biglow_Canyon_Wind_Farm
A27: 1033 | B27: Biomass One 1 & 2 | C27: 42.436 | D27: -122.85 | F27: http://www.biomassone.com/
A28: 1034 | B28: Birch Creek | C28: 44.027444 | D28: -112.719439
A29: 1036 | B29: Black Canyon 1 - 2 | C29: 43.9304438 | D29: -116.4365228 | F29: http://www.usbr.gov/projects/Facility.jsp?fac_Name=Black+Canyon+Diversion+Dam
A30: 1038 | B30: Black Creek | C30: 47.534465 | D30: -121.702596 | E30: Search for Rachor Creek (Black Creek was renamed)
A31: 1039 | B31: Black Eagle 1 - 3 | C31: 47.52027 | D31: -111.26248 | F31: http://www.northwesternenergy.com/our-company/hydroelectric-facilities
A32: 1040 | B32: Blind Canyon | C32: 42.69984 | D32: -114.822603
A33: 1041 | B33: Bliss 1 - 3 | C33: 42.913 | D33: -115.07
A34: 1042 | B34: Blue Heron Paper | C34: 45.355 | D34: -122.6128
A35: 1044 | B35: Boardman | C35: 45.6964 | D35: -119.808 | F35: http://en.wikipedia.org/wiki/Boardman_Coal_Plant
A36: 1046 | B36: Boise 1 & 2 (Medford) | C36: 42.355075 | D36: -122.900775
A37: 1047 | B37: Boise River Diversion 1- 3 | C37: 43.5375 | D37: -116.09333 | F37: http://www.usbr.gov/projects/Powerplant.jsp?fac_Name=Boise+River+Diversion+Powerplant
A38: 1051 | B38: Bonneville 1 - 18 | C38: 45.638 | D38: -121.942 | F38: http://www.nwcouncil.org/energy/powersupply/dams/dam.asp?id=1
A39: 1052 | B39: Bonneville Fishway F1 & F2 | C39: 45.638 | D39: -121.942
A40: 1054 | B40: Boulder Park 1-6 | C40: 47.696410 | D40: -117.147488
A41: 1055 | B41: Boundary 1 - 6 | C41: 48.992 | D41: -117.348 | F41: http://www.nwcouncil.org/energy/powersupply/dams/dam.asp?id=21
A42: 1058 | B42: Box Canyon 1 - 4 | C42: 48.781215 | D42: -117.412244 | F42: http://www.popud.com/Box%20Canyon%20Hydro.htm
A43: 1059 | B43: Box Canyon 1 & 2 | C43: 41.2792 | D43: -122.3292
A44: 1061 | B44: Bremerton WWTP | C44: 47.550221 | D44: -122.671981 | F44: http://www.cityofbremerton.com/content/wastewater.html
A45: 1064 | B45: Broadwater Toston Dam | C45: 46.119722 | D45: -111.408333 | F45: http://en.wikipedia.org/wiki/Toston_Dam
A46: 1065 | B46: Brownlee 1- 5 | C46: 44.841 | D46: -116.896 | F46: http://www.nwcouncil.org/energy/powersupply/dams/dam.asp?id=20
A47: 1068 | B47: Bull Run 1 - 4 | C47: 45.42901 | D47: -122.23395 | F47: http://en.wikipedia.org/wiki/Bull_Run_Hydroelectric_Project
A48: 1069 | B48: Bull Run No. 1 (Portland Hydro) | C48: 45.42901 | D48: -122.23395 | F48: http://en.wikipedia.org/wiki/Bull_Run_Hydroelectric_Project
A49: 1070 | B49: Bull Run No. 2 (Portland Hydro) | C49: 45.42901 | D49: -122.23395 | F49: http://en.wikipedia.org/wiki/Bull_Run_Hydroelectric_Project
A50: 1074 | B50: Bypass | C50: 42.5596337 | D50: -114.055861 | F50: http://www.enelgreenpower.com/en-GB/ena/power_plants/wm/bypass/index.aspx
A51: 1075 | B51: C.J. Strike 1- 3 | C51: 42.946 | D51: -115.975 | F51: http://www.idahopower.com/riversrec/parksrec/swanfalls.htm
A52: 1076 | B52: Cabinet Gorge 1 - 4 | C52: 48.087 | D52: -116.057 | F52: http://www.avistautilities.com/resources/hydro/clarkfork/project/proj_cg.asp
A53: 1079 | B53: Canyon Ferry 1- 3 | C53: 46.649 | D53: -111.728 | F53: http://goldwest.visitmt.com/listings/97.htm
A54: 1080 | B54: Carmen-Smith 1-3 | C54: 44.279 | D54: -122.049 | F54: http://www.eweb.org/content.aspx/1f46b0f5-8c35-4fbc-9a22-1eadb1553e92
A55: 1081 | B55: Cascade 1 & 2 | C55: 44.7578 | D55: -115.561
A56: 1083 | B56: Cedar Draw Creek (Crystal Springs) | C56: 42.622513 | D56: -114.50093
A57: 1084 | B57: Cedar Falls (Masonry Dam) 1 & 2 | C57: 47.419 | D57: -121.781 | F57: http://www.ci.seattle.wa.us/light/environment/fish/ev5ff_cf.htm
A58: 1085 | B58: Central Oregon Siphon | C58: 44.065925 | D58: -121.311962 | F58: http://www.coid.org/powerplant.htm
A59: 1086 | B59: Centralia 1 | C59: 46.756 | D59: -122.857 | F59: http://www.transalta.com/transalta/webcms.nsf/AllDoc/D7E5E521CBB488BF87257226006EEC84?OpenDocument
A60: 1087 | B60: Centralia 2 | C60: 46.756 | D60: -122.857 | F60: http://www.transalta.com/transalta/webcms.nsf/AllDoc/D7E5E521CBB488BF87257226006EEC84?OpenDocument
A61: 1088 | B61: Chandler 1 - 2 | C61: 46.212742 | D61: -119.77222 | F61: http://www.bpa.gov/corporate/bpanews/library/images/dams/descriptions/Chandler.cfm
A62: 1089 | B62: Chehalis Generating Facility | C62: 46.622 | D62: -122.917
A63: 1090 | B63: Chelan A1 & A2 | C63: 47.808 | D63: -119.985 | F63: http://www.chelanpud.org/relicense/process/facts.htm
A64: 1091 | B64: Chief Joseph 1 - 27 | C64: 47.999 | D64: -119.634 | F64: http://www.nwcouncil.org/energy/powersupply/dams/dam.asp?id=10
A65: 1094 | B65: City of Great Falls WWTP | C65: 47.490047 | D65: -111.3138
A66: 1095 | B66: City of Gresham WWTP | C66: 45.546652 | D66: -122.45893 | F66: http://greshamoregon.gov/city/city-departments/environmental-services/wastewater-division/template.aspx?id=4330
A67: 1096 | B67: City of Helena WWTP | C67: 46.620298 | D67: -112.002433 | F67: http://www.ci.helena.mt.us/index.php?id=397
A68: 1097 | B68: City of Medford WWTP | C68: 42.435993 | D68: -122.904072 | F68: http://www.ci.medford.or.us/SectionIndex.asp?SectionID=32
A69: 1098 | B69: Clear Lake | C69: 42.66701 | D69: -114.78012
A70: 1099 | B70: Clearwater 1 | C70: 43.335612 | D70: -122.783589 | E70: 90% certain, from this map http://www.energyjustice.net/map/displayfacility-65395.htm
A71: 1100 | B71: Clearwater 2 | C71: 43.267 | D71: -122.409
A72: 1102 | B72: Cline Falls | C72: 44.2778 | D72: -121.2564
A73: 1103 | B73: Cochrane 1 & 2 | C73: 47.554 | D73: -111.148 | F73: http://www.northwesternenergy.com/our-company/hydroelectric-facilities
A74: 1104 | B74: Coffin Butte 1 - 5 | C74: 44.697279 | D74: -123.223496 | F74: http://www.pngc.com/future/coffin_butte.aspx
A75: 1105 | B75: Cogen II (D.R. Johnson) 1 & 2 | C75: 42.961126 | D75: -123.359138 | E75: 3/2/11 - cant locate
A76: 1107 | B76: Colstrip 1 | C76: 45.884204 | D76: -106.612002 | F76: http://www.pplmontana.com/producing+power/power+plants/Colstrip.htm
A77: 1108 | B77: Colstrip 2 | C77: 45.884204 | D77: -106.612002 | F77: http://www.pplmontana.com/producing+power/power+plants/Colstrip.htm
A78: 1109 | B78: Colstrip 3 | C78: 45.884204 | D78: -106.612002 | F78: http://www.pplmontana.com/producing+power/power+plants/Colstrip.htm
A79: 1110 | B79: Colstrip 4 | C79: 45.884204 | D79: -106.612002 | F79: http://www.pplweb.com/ppl+generation/coal+plants/colstrip.htm
A80: 1111 | B80: Columbia Blvd Wastewater Treatment Plant | C80: 45.596391 | D80: -122.720041 | F80: http://brownfield.org/bes/index.cfm?a=40645&c=31031
A81: 1112 | B81: Columbia Generating Station | C81: 46.469 | D81: -119.32 | F81: http://www.energy-northwest.com/generation/cgs/index.php
A82: 1113 | B82: Colville Indian Power & Veneer 1 & 2 | C82: 48.400525 | D82: -119.517086
A83: 1114 | B83: Colville Indian Power & Veneer GEN 2 | C83: 48.400525 | D83: -119.517086
A84: 1115 | B84: Combine Hills I | C84: 45.942 | D84: -118.498 | F84: http://www.transmission.bpa.gov/PlanProj/Wind/default.cfm?page=combine
A85: 1118 | B85: Condit 1 & 2 | C85: 45.7673415 | D85: -121.5378 | F85: http://en.wikipedia.org/wiki/Condit_Hydroelectric_Project#Decommissioning
A86: 1119 | B86: Condon | C86: 45.276 | D86: -120.287 | F86: http://www.transmission.bpa.gov/PlanProj/Wind/completed.cfm?page=condon
A87: 1121 | B87: COPCO 1 (1 & 2) | C87: 41.9798639 | D87: -122.3344629
A88: 1122 | B88: COPCO 2 (1 & 2) | C88: 41.981 | D88: -122.336
A89: 1124 | B89: Corrette (J.E. Corette) | C89: 45.768 | D89: -108.5 | F89: http://www.pplmontana.com/producing+power/power+plants/J.E.+Corette.htm
A90: 1125 | B90: Cougar 1 & 2 | C90: 44.128 | D90: -122.24 | F90: http://www.nwp.usace.army.mil/op/v/proj_cougar.asp
A91: 1126 | B91: Covanta Marion | C91: 45.048 | D91: -122.963 | F91: http://www.covantaholding.com/site/marion/covanta-marion.html
A92: 1127 | B92: Cove | C92: 42.531586 | D92: -111.79578
A93: 1128 | B93: Cowiche Hydroelectric Project | C93: 46.692628 | D93: -120.737194
A94: 1129 | B94: Cowlitz Falls 1 & 2 | C94: 46.466 | D94: -122.109 | F94: http://www.lcpud.org/cowlitz_falls_project.htm
A95: 1130 | B95: Coyote Springs 1 | C95: 45.8496 | D95: -119.674 | F95: http://www.oregon.gov/ENERGY/SITING/COY.shtml
A96: 1131 | B96: Coyote Springs 2 | C96: 45.8496 | D96: -119.674 | F96: http://www.oregon.gov/ENERGY/SITING/COY.shtml
A97: 1132 | B97: Crystal Mountain | C97: 46.953468 | D97: -121.475198
A98: 1134 | B98: Cushman 1 (1 & 2) | C98: 47.423 | D98: -123.221 | F98: http://www.ci.tacoma.wa.us/power/parksandpower/hydro_power/cushman_hydro_project.htm
A99: 1135 | B99: Cushman 2 (1 - 3) | C99: 47.37 | D99: -123.159 | F99: http://www.ci.tacoma.wa.us/power/parksandpower/hydro_power/cushman_hydro_project.htm
A100: 1136 | B100: Danskin (Evander Andrews) CT1 | C100: 43.179 | D100: -115.734 | F100: http://www.idahopower.com/energycenter/electricitybasics/generation/thermal.htm#evanderAndrews
A101: 1137 | B101: Danskin (Evander Andrews) CT2 (ex. Danskin 1) | C101: 43.179 | D101: -115.734 | F101: http://www.idahopower.com/energycenter/electricitybasics/generation/thermal.htm#evanderAndrews
A102: 1138 | B102: Danskin (Evander Andrews) CT3 (ex. Danskin 2) | C102: 43.179 | D102: -115.734 | F102: http://www.idahopower.com/energycenter/electricitybasics/generation/thermal.htm#evanderAndrews
A103: 1143 | B103: DeRuyter Dairy | C103: 46.407021 | D103: -120.122464 | F103: http://www.terrapass.com/projects/details/george-deruyter-and-sons-dairy.html
A104: 1144 | B104: Detroit 1 & 2 | C104: 44.722 | D104: -122.251 | F104: http://www.nwp.usace.army.mil/op/v/proj_detbc.asp
A105: 1145 | B105: Dexter | C105: 43.92151 | D105: -122.814517 | F105: http://www.bpa.gov/corporate/bpanews/library/images/dams/descriptions/dexter.cfm
A106: 1146 | B106: Diablo 1 - 4 | C106: 48.716 | D106: -121.14 | F106: http://en.wikipedia.org/wiki/Ross_Dam
A107: 1147 | B107: Diamond Willow | C107: 46.262505 | D107: -104.254582 | F107: http://en.openei.org/wiki/Diamond_Willow_Wind_(07)_Wind_Farm
A108: 1148 | B108: Dietrich Drop | C108: 42.836046 | D108: -114.267952
A109: 1149 | B109: Don Plant (Simplot Pocatello) | C109: 42.911839 | D109: -112.5315 | F109: http://www.simplot.com/agricultural/simphos_feed/dist_pocatello.cfm
A110: 1151 | B110: Douglas County Forest Products | C110: 43.289910 | D110: -123.361267 | F110: http://www.dcfp.com/index.php
A111: 1152 | B111: Dry Creek | C111: 44.027444 | D111: -112.719439
A112: 1153 | B112: Dry Creek Landfill | C112: 42.432265 | D112: -122.889452 | F112: http://roguedisposal.com/about-the-landfill/
A113: 1154 | B113: Durham WWTP | C113: 45.403787 | D113: -122.764526 | F113: http://www.cleanwaterservices.org/AboutUs/WastewaterAndStormwater/TreatmentFacilities/DurhamFacility.aspx
A114: 1155 | B114: Dworshak 1 - 3 | C114: 46.52 | D114: -116.299 | F114: http://www.nwcouncil.org/energy/powersupply/dams/dam.asp?id=22
A115: 1156 | B115: Eagle Point | C115: 42.514575 | D115: -122.757062
A116: 1157 | B116: Eagle Stud | C116: 46.584768 | D116: -113.18576 | F116: http://www.prenticelumber.com/eagle_posts_and_poles.html
A117: 1159 | B117: East Side | C117: 42.224847 | D117: -121.795496
A118: 1162 | B118: Electron 1 - 4 | C118: 46.993 | D118: -122.173
A119: 1163 | B119: Elk Creek (El Dorado Hydro Elk Creek) | C119: 45.217784 | D119: -116.31577
A120: 1164 | B120: Elkhorn Valley | C120: 45.101449 | D120: -117.829110 | F120: http://elkhornvalleywindfarm.com/
A121: 1166 | B121: Eltopia Branch Canal 4.6 | C121: 46.378381 | D121: -119.254522
A122: 1167 | B122: Elwha Dam | C122: 48.095 | D122: -123.555 | F122: http://en.wikipedia.org/wiki/Elwha_Dam
A123: 1169 | B123: Encogen 1-4 | C123: 48.748 | D123: -122.487
A124: 1170 | B124: Eugene/Springfield Regional Water Pollution Control Facility | C124: 44.095088 | D124: -123.117062 | F124: http://www.mwmcpartners.org/treatmentplant.html
A125: 1171 | B125: Everett Cogeneration Project | C125: 47.986 | D125: -122.216 | F125: http://www.snopud.com/energy/pwrsource/green.ashx?p=1927
A126: 1172 | B126: Evergreen Forest Products (Tamarack) | C126: 44.957171 | D126: -116.386590
A127: 1173 | B127: Fall Creek 1 - 3 | C127: 41.985605 | D127: -122.360455
A128: 1174 | B128: Falls River | C128: 44.016987 | D128: -111.582490 | E128: 80% certain; below Ashton Dam where Fall River mouth meets? | F128: http://02e5106.netsolhost.com/fallsriver.htm
A129: 1175 | B129: Falls Creek | C129: 44.396815 | D129: -122.350246
A130: 1177 | B130: Faraday 1 - 6 | C130: 45.268 | D130: -122.318 | F130: http://www.portlandgeneral.com/community_and_env/hydropower_and_fish/phototour/clackamas/faraday_dam.aspx
A131: 1178 | B131: Farmers Irr. Dist. No. 2 (Copper Dam) | C131: 45.665 | D131: -121.5
A132: 1179 | B132: Farmers Irr. Dist. No. 3 (Peters Drive) | C132: 45.66764 | D132: -121.548455
A133: 1182 | B133: Finley Combustion Turbine Plant | C133: 46.174 | D133: -119.023
A134: 1183 | B134: Fish Creek | C134: 43.229844 | D134: -122.446153
A135: 1185 | B135: Foote Creek I | C135: 41.719667 | D135: -106.102330 | F135: http://www.rnp.org/projects/foote.html
A136: 1186 | B136: Foote Creek II | C136: 41.635896 | D136: -106.203156 | F136: http://www.rnp.org/projects/foote.html
A137: 1187 | B137: Foote Creek III | C137: 41.640287 | D137: -106.200736 | F137: http://www.rnp.org/projects/foote.html
A138: 1188 | B138: Foote Creek IV | C138: 41.642990 | D138: -106.178600 | F138: http://www.rnp.org/projects/foote.html
A139: 1191 | B139: Fort Peck 1 - 2 | C139: 48.013 | D139: -106.411 | F139: http://www.fortpeckdam.com/
A140: 1192 | B140: Fort Peck 3 | C140: 48.013 | D140: -106.411 | F140: http://www.fortpeckdam.com/
A141: 1193 | B141: Fort Peck 4 - 5 | C141: 48.013 | D141: -106.411 | F141: http://www.fortpeckdam.com/
A142: 1195 | B142: Fossil Gulch | C142: 42.892 | D142: -114.95
A143: 1196 | B143: Foster 1 & 2 | C143: 44.415791 | D143: -122.670563 | F143: http://en.wikipedia.org/wiki/Foster_Dam
A144: 1198 | B144: Frederickson 1 | C144: 47.08 | D144: -122.366 | F144: http://www.primaryenergy.com/plants/frederickson.asp
A145: 1199 | B145: Frederickson 2 | C145: 47.08 | D145: -122.366 | F145: http://www.primaryenergy.com/plants/frederickson.asp
A146: 1200 | B146: Frederickson Power 1 | C146: 47.086 | D146: -122.366 | F146: http://www.epcor.ca/About/Media+Room/Backgrounders/FredericksonPowerBackgrounder.htm
A147: 1201 | B147: Fredonia 1 | C147: 48.446 | D147: -122.444
A148: 1202 | B148: Fredonia 2 | C148: 48.446 | D148: -122.444
A149: 1203 | B149: Fredonia 3 | C149: 48.446 | D149: -122.444
A150: 1204 | B150: Fredonia 4 | C150: 48.446 | D150: -122.444
A151: 1205 | B151: Freres Lumber (Evergreen BioPower) | C151: 44.77193 | D151: -122.607254
A152: 1206 | B152: Galesville | C152: 42.8489 | D152: -123.1778
A153: 1207 | B153: Gem State | C153: 43.420833 | D153: -112.101944 | F153: http://en.wikipedia.org/wiki/Gem_State_Dam
A154: 1208 | B154: Geo-Bon No. 2 (Notch Butte) | C154: 42.954384 | D154: -114.462563
A155: 1211 | B155: Georgia-Pacific Consumer Products (Camas) | C155: 45.581 | D155: -122.413
A156: 1212 | B156: Georgia-Pacific (Wauna) | C156: 46.16 | D156: -123.412 | F156: http://www.eweb.org/content.aspx/64802755-7fb4-49c9-967c-9a54ac58f27c
A157: 1213 | B157: Glacier Wind Energy I | C157: 48.52328 | D157: -112.11155 | F157: http://www.naturener.net/glacierwind1
A158: 1214 | B158: Glendive GT1 | C158: 47.0539 | D158: -104.74 | E158: 3/2/11 - can't find
A159: 1215 | B159: Glendive GT2 | C159: 47.0539 | D159: -104.74 | E159: 3/2/11 - can't find
A160: 1217 | B160: Glenns Ferry Cogeneration | C160: 42.954339 | D160: -115.29106
A161: 1218 | B161: Glines Canyon | C161: 48.002 | D161: -123.56
A162: 1219 | B162: Goldendale CC 1A & 1B | C162: 45.812 | D162: -120.833 | F162: http://phx.corporate-ir.net/phoenix.zhtml?c=103361&p=irol-newsArticle&ID=641606&highlight=
A163: 1220 | B163: Goodnoe Hills | C163: 45.782709 | D163: -120.548279 | F163: http://www.edf-re.com/projects/detail/goodnoe_hills/
A164: 1221 | B164: Goodnoe Hills Small Windpark | C164: 45.78 | D164: -120.51 | E164: from rnp.org
A165: 1223 | B165: Gorge 1 - 4 | C165: 48.698 | D165: -121.207 | F165: http://en.wikipedia.org/wiki/Ross_Dam
A166: 1224 | B166: Grace 3 - 5 | C166: 42.588056 | D166: -111.728889
A167: 1225 | B167: Grand Coulee 1 - 24, SS 1 - 3 | C167: 47.967 | D167: -118.977 | F167: http://www.nwcouncil.org/energy/powersupply/dams/dam.asp?id=11
A168: 1226 | B168: John W. Keys III Pumped Generation Plant (Grand Coulee) PG 7 -12 | C168: 47.967 | D168: -118.977
A169: 1228 | B169: Grays Harbor Energy Facility (Satsop) | C169: 47.005813 | D169: -123.399690 | F169: http://www.duke-energy.com/news/releases/2001/Oct/2001101001.html
A170: 1229 | B170: Grays Harbor Paper | C170: 46.971622 | D170: -123.871093 | F170: http://www.ghplp.com/planet.html
A171: 1231 | B171: Green Peter 1 & 2 | C171: 44.45 | D171: -122.548 | F171: http://www.nwp.usace.army.mil/op/v/proj_gpfoster.asp
A172: 1232 | B172: Green Springs | C172: 42.3775 | D172: -122.3475 | F172: http://www.usbr.gov/projects/Project.jsp?proj_Name=Rogue+River+Basin+Project
A173: 1233 | B173: Ground Water Pumping Station | C173: 45.555833 | D173: -122.494722
A174: 1234 | B174: H.W. Hill (Roosevelt Biogas) 1 - 5 | C174: 45.81 | D174: -120.182 | F174: http://www.klickpud.com/power/lfgtour.asp
A175: 1236 | B175: Hampton Lumber (Darrington) | C175: 48.261819 | D175: -121.598179
A176: 1238 | B176: Hardin Generating Station | C176: 45.755337 | D176: -107.599945 | F176: http://www.coloradoenergy.com/hardin.htm
A177: 1239 | B177: Hauser 1 - 6 | C177: 46.766341 | D177: -111.887048 | F177: http://www.northwesternenergy.com/our-company/hydroelectric-facilities
A178: 1240 | B178: Hazelton A | C178: 42.587264 | D178: -114.067554
A179: 1241 | B179: Hazelton B | C179: 42.60412 | D179: -114.084580 | F179: http://02e5106.netsolhost.com/hazelton.htm
A180: 1243 | B180: Hell's Canyon 1 - 3 | C180: 45.245 | D180: -116.702 | F180: http://www.nwcouncil.org/energy/powersupply/dams/dam.asp?id=18
A181: 1244 | B181: Henry M. Jackson (Culmback) 1 - 4 | C181: 47.976 | D181: -121.685 | F181: http://www.snopud.com/water/jhp.ashx?p=1819
A182: 1245 | B182: Heppner | C182: 45.376694 | D182: -119.585777 | F182: http://www.pes-world.com/Heppner%20Summary.htm
A183: 1246 | B183: Hermiston Generating Project CC 1A & 1B | C183: 45.804 | D183: -119.369 | F183: http://www.calpine.com/power/plant.asp?plant=62
A184: 1247 | B184: Hermiston Generating Project CC 2A & 2B | C184: 45.804 | D184: -119.369 | F184: http://www.calpine.com/power/plant.asp?plant=62
A185: 1248 | B185: Hermiston Power Project | C185: 45.795 | D185: -119.311 | F185: http://www.calpine.com/power/plant.asp?plant=62
A186: 1249 | B186: Hidden Hollow | C186: 43.70263 | D186: -116.281243 | F186: http://www.adaweb.net/SolidWasteManagement.aspx
A187: 1250 | B187: Hills Creek 1 & 2 | C187: 43.711 | D187: -122.425 | F187: http://www.nwp.usace.army.mil/op/v/proj_hillscreek.asp
A188: 1251 | B188: Holter 1 - 4 | C188: 46.991 | D188: -112.004 | F188: http://www.northwesternenergy.com/our-company/hydroelectric-facilities
A189: 1253 | B189: Hopkins Ridge | C189: 46.43 | D189: -117.829652 | F189: http://www.transmission.bpa.gov/PlanProj/Wind/completed.cfm?page=hopkins
A190: 1255 | B190: Horseshoe Bend Wind Park | C190: 47.4 | D190: -111.468 | F190: http://greatfalls.aroundmontana.com/Landmarks/HorseshoeBendWindPark/tabid/152/Default.aspx
A191: 1256 | B191: Horseshoe Bend Hydroelectric | C191: 43.909096 | D191: -116.192183
A192: 1257 | B192: Hungry Horse 1 - 4 | C192: 48.341 | D192: -114.015 | F192: http://www.nwcouncil.org/energy/powersupply/dams/dam.asp?id=13
A193: 1258 | B193: Ice Harbor 1 - 6 | C193: 46.253 | D193: -118.893 | F193: http://www.nwcouncil.org/energy/powersupply/dams/dam.asp?id=14
A194: 1259 | B194: Idaho Falls City Plant 3 | C194: 43.491619 | D194: -112.045062 | F194: http://www.idahofallsidaho.gov/city/city-departments/idaho-falls-power/power-portfolio/ifp-electric-project.html
A195: 1260 | B195: Idaho Falls Lower No. 1 (Unit 2) | C195: 43.468218 | D195: -112.062253 | F195: http://www.idahofallsidaho.gov/city/city-departments/idaho-falls-power/power-portfolio/ifp-electric-project.html
A196: 1261 | B196: Idaho Falls Lower No. 2 (Unit 1) | C196: 43.468398 | D196: -112.062499
A197: 1262 | B197: Idaho Falls Upper Plant 4 | C197: 43.552754 | D197: -112.050641 | F197: http://www.idahofallsidaho.gov/city/city-departments/idaho-falls-power/power-portfolio/ifp-electric-project.html
A198: 1265 | B198: Interfor Pacific Gilchrist | C198: 43.477887 | D198: -121.690387
A199: 1267 | B199: Iron Gate | C199: 41.93389 | D199: -122.434267
A200: 1268 | B200: Island Park 1 & 2 | C200: 44.418293 | D200: -111.395971
A201: 1271 | B201: Jim Bridger 1 | C201: 41.729 | D201: -108.777 | F201: http://www.idahopower.com/energycenter/electricitybasics/generation/thermal.htm#bridger
... 603 more rows

Sheet Projects
A1: Home
A2: Northwest Power and Conservation Council | H2: ="Auto documentation feature is "&IF(AutoDocOn,"on","off") -> Auto documentation feature is on
A3: POWER PLANTS IN THE PACIFIC NORTHWEST & SYSTEM PLANNING ASSUMPTIONS | H3: TRUE
E4: =MAX(BY9:BY8252) -> 2021-09-09T10:22:55 | G4: ="Next Project ID #= "&NextID!B7 -> Next Project ID #= 2385
A5: Notes (dropdown) >> | J5: 1 | Y5: 1
A6: PROJECT DATA | AN6: 2021 Plan | AO6: 2021 Plan | BZ6: NPCC PLANNING ASSUMPTIONS
A7: Name | B7: NWPCC Unit ID | C7: EIA (ORIS) Plant Code | D7: EIA Generator Unit ID | E7: FERC Project ID | F7: Technology | G7: Primary Fuel | H7: Alternate Fuel | I7: Resource Type | J7: Nameplate Capacity (MW) | K7: EIA Nameplate Capacity (MW) | L7: White Book Jan 1-hr Cap (MW) | M7: 2018 White Book Jan 120-hr Cap (MW) | N7: WECC Summer Capacity (MW) | O7: WECC Winter Capacity (MW) | P7: EIA Summer Capacity (MW) | Q7: EIA Winter Capacity (MW) | R7: EIA Minimum Load (MW) | S7: EIA Power Factor (%) | T7: Average Energy (MWa) | U7: Energy Storage MWh | V7: Firm Hydro Energy (MWa) | W7: Status | X7: Service Month | Y7: Initial Service Year | Z7: Retirement/Idled Year | AA7: Site | AB7: County | AC7: State | AD7: Power Act Region (Y/N) | AE7: Basin | AF7: NERC Reliability Region | AG7: Owner | AH7: Owner Type | AI7: Electrical Load | AJ7: Renewable Energy Credits *IN PROGRESS* | AK7: Wind Load | AL7: Upgrades/Repowering *IN PROGRESS* | AM7: PPA/QF Expiration Date | AN7: RPM % Rate Based to Region | AO7: RPM % Capability Available to Region | AP7: Capacity to Region (MW) | AQ7: Energy to Region (MWa) | AR7: Thermal Host (Cogeneration) | AS7: Thermal Load (Cogeneration) | AT7: Gas Pipeline Interconnection | AU7: Main Grid Interconnection | AV7: PURPA Qualifying Facility | AW7: Wind Turbine Manufacturer and Model | AX7: Wind Turbine Hub Height (feet) | AY7: Wind Turbine Rotor Diameter (meters) | AZ7: Wind Quality Class | BA7: Solar PV Tracking | BB7: Balancing Authority | BC7: 2002 Energy (MWa) | BD7: 2003 Energy (MWa) | BE7: 2004 Energy (MWa) | BF7: 2005 Energy (MWa) | BG7: 2006 Energy (MWa) | BH7: 2007 Energy (MWa) | BI7: 2008 Energy (MWa) | BJ7: 2009 Energy (Mwa) | BK7: 2010 Energy (Mwa) | BL7: 2011 Energy (Mwa) | BM7: 2012 Energy (Mwa) | BN7: 2013 Energy (Mwa) | BO7: 2014 Energy (Mwa) | BP7: 2015 Energy (Mwa) | BQ7: 2016 Energy (Mwa) | BR7: 2017 Energy (Mwa) | BS7: 2018 Energy (Mwa) | BT7: 2019 Energy (Mwa) | BU7: Notes | BV7: Latitude | BW7: Longitude | BX7: ProjectUrl | BY7: 2020-11-06T08:56:20 | BZ7: Net Winter Capacity (MW) | CA7: Net Summer Capacity (MW) | CB7: Availability (%) | CC7: Capability (MWa)
A8: Namem | B8: NWPCCID | C8: EIAGC | D8: EIA_UI | E8: PID | F8: TECH | G8: PriFuel | H8: AltFuel | I8: RES | J8: NCap | K8: EIA_MW | L8: BPAJanMW | M8: White_Bk_120 | N8: WECC_SMW | O8: WECC_WMW | P8: EIA_SMW | Q8: EIA_WMW | R8: EIA_MinLoad | S8: EIA_PF | T8: MWa | U8: MWh_Storage | V8: CMWa | W8: CSTAT | X8: SMO | Y8: SYEAR | Z8: RDATE | AA8: LOC | AB8: COUNTY | AC8: STATE | AD8: RCODE | AE8: Basin | AF8: NERC | AG8: ONAME | AH8: OTYPE | AI8: LOAD | AJ8: REC | AK8: WindLoad | AL8: Repower | AM8: PPA_EXP | AN8: RPM_RATE | AO8: RPM_Cap | AP8: Cap_Reg | AQ8: Energy_Reg | AR8: HOST | AS8: THRM_LOAD | AT8: Gas_Intercon | AU8: Elec_Intercon | AV8: QF_Status | AW8: Wnd_Turbine_Mfr | AX8: Wnd_Turbine_Hub | AY8: Wnd_Turbine_Rotor | AZ8: Wnd_Class | BA8: Solar_PV_Track | BB8: BA | BC8: 2002MWa | BD8: 2003MWa | BE8: 2004MWa | BF8: 2005MWa | BG8: 2006MWa | BH8: 2007MWa | BI8: 2008MWa | BJ8: 2009MWa | BK8: 2010MWa | BL8: 2011MWa | BM8: 2012MWa | BN8: 2013MWa | BO8: 2014MWa | BP8: 2015MWa | BQ8: 2016MWa | BR8: 2017MWa | BS8: 2018MWa | BT8: 2019MWa | BU8: NOTES | BV8: Latitude | BW8: Longitude | BX8: ProjectUrl | BY8: 2020-03-18T11:53:54 | BZ8: DefCFW | CA8: DefCFS | CB8: DefAvail | CC8: DefMWa
A9: 18th Street (Springfield ICs, Springfield Gen Farm) | B9: 1000 | F9: IC | G9: NG | I9: Natural gas | J9: 9.5 | L9: 0 | W9: Retired | Y9: 2001 | Z9: Unknown | AA9: Springfield | AB9: Lane | AC9: OR | AD9: Y | AE9: Columbia | AF9: WECC | AG9: Springfield Utility Board | AH9: Municipal | AI9: Retired | AN9: 0 | AO9: 0 | AP9: =AN9*J9 -> 0 | AQ9: =IF(ISNUMBER(T9),T9,CC9)*AN9 -> 0 | BB9: BPA | BU9: (5) 1.9 MW spark-ignition Jennbacher units. | BV9: =IF(ISNA(VLOOKUP($B9,lkpLatLong,3,FALSE)),"",VLOOKUP($B9,lkpLatLong,3,FALSE)) ->  | BW9: =IF(ISNA(VLOOKUP($B9,lkpLatLong,4,FALSE)),"",VLOOKUP($B9,lkpLatLong,4,FALSE)) ->  | BX9: 0 | BY9: 2021-01-05T16:27:27 | BZ9: =IF(OR(I9="Wind",I9="Solar",I9="Hydro"),J9,IF(ISNUMBER(L9),L9,IF(ISNUMBER(O9), O9, IF(ISNUMBER(Q9),Q9,J9)))) -> 0 | CA9: =IF(OR(J9="Wind",J9="Solar",J9="Hydro"),J9,IF(ISNUMBER(N9),N9,IF(ISNUMBER(P9), P9, IF(ISNUMBER(L9),L9,J9)))) -> 0 | CB9: =IF(OR(ISBLANK(J9),ISBLANK(T9),J9=0),VLOOKUP(IF(G9="WAT","HY",IF(G9="LFG","LFG",F9)),Acapability,4,FALSE),T9/J9) -> 0.93 | CC9: =IF(ISNUMBER(T9),T9,AVERAGE(BZ9,CA9)*CB9) -> 0
A10: 45-Mile Hydroelectric Project | B10: 2095 | C10: 58455 | D10: 0001,0002,0003 | E10: P-13817 | F10: HY | G10: WAT | I10: Hydro | J10: 3 | K10: 3 | P10: 3 | Q10: 3 | W10: Operating | X10: May | Y10: 2015 | AA10: Haystack Reservoir, North Unit Irrigation District | AB10: Jefferson | AC10: OR | AD10: Y | AE10: Columbia | AF10: WECC | AG10: Apple, Inc. | AH10: Independent | AI10: Self-gen for Prineville data center | AN10: 1 | AO10: 0 | AP10: =AN10*J10 -> 3 | AQ10: =IF(ISNUMBER(T10),T10,CC10)*AN10 -> 1.281 | AV10: SPP | BB10: PACW | BP10: 0.63 | BQ10: 0.836986 | BR10: 0.7 | BS10: 0.9 | BT10: 0.6 | BU10: (3) 1 MW in-pipe generating turbines. | BV10: 44.528056 | BW10: -121.152778 | BY10: 2017-10-16T14:44:31 | BZ10: 3 | CA10: 3 | CB10: 0.427 | CC10: 1.281
A11: Adams Solar Center | B11: 2159 | C11: 61496 | D11: ADAMS | F11: PV | G11: SOL | I11: Solar | J11: 10 | K11: 10 | P11: 10 | W11: Operating | X11: Jun | Y11: 2018 | AA11: Madras | AB11: Jefferson | AC11: OR | AD11: Y | AE11: Columbia | AF11: WECC | AG11: GCL New Energy Holdings | AH11: Independent | AI11: PacifiCorp (20yr QF PPA) | AJ11: PacifiCorp (bunded RECs) | AM11: 2038 | AN11: 1 | AO11: 1 | AP11: =AN11*J11 -> 10 | AQ11: =IF(ISNUMBER(T11),T11,CC11)*AN11 -> 2.54 | AV11: SPP | BA11: Single-axis | BB11: PACE | BS11: 1.4 | BT11: 2.4 | BU11: Crystalline silicone. 13.1MWdc. Single-axis tracker. RECs to PAC | BV11: 44.677103 | BW11: -121.122461 | BY11: 2019-11-22T12:14:50 | BZ11: 10 | CA11: 10 | CB11: 0.254 | CC11: 2.54
A12: Adams-Nielson Solar Farm | B12: 2272 | C12: 61933 | D12: ADAMS | F12: PV | G12: SOL | I12: Solar | J12: 20 | K12: 20 | W12: Operating | X12: Dec | Y12: 2018 | AA12: Lind, WA | AB12: Adams | AC12: WA | AD12: Y | AE12: Columbia | AF12: WECC | AG12: Strata Solar | AH12: Independent | AI12: Avista | AN12: 1 | AO12: 1 | AP12: =AN12*J12 -> 20 | AQ12: =IF(ISNUMBER(T12),T12,CC12)*AN12 -> 5.08 | BA12: Dual-axis | BB12: Avista | BS12: 0.1 | BT12: 4.9 | BU12: Thin-film. 28MWdc. Dual-axis tracking. Project is Avista's winning bid for its new Solar Select program for commercial customers. Project commercially operating as of December 5, 2018. | BV12: 46.983415 | BW12: -118.61464 | BY12: 2020-10-24T21:27:04 | BZ12: 20 | CA12: 20 | CB12: 0.254 | CC12: 5.08
A13: Afton Generating Co. 1 | B13: 1002 | F13: STCG | G13: WW | I13: Biomass | J13: 7.5 | W13: Retired | Y13: 1983 | Z13: 2005 | AA13: Afton | AB13: Lincoln | AC13: WY | AD13: Y | AE13: Unknown | AF13: WECC | AG13: Afton Energy, Inc. | AH13: Independent | AI13: Retired | AN13: 0 | AO13: 0 | AP13: =AN13*J13 -> 0 | AQ13: =IF(ISNUMBER(T13),T13,CC13)*AN13 -> 0 | BF13: n/a | BG13: n/a | BU13: Dismantled 2005. | BX13: 0 | BY13: 2005-10-25 | BZ13: 7.5 | CA13: 7.5 | CB13: 0.8 | CC13: 6
A14: Agate Bay Solar (OR Solar 2) | B14: 2160 | C14: 61200 | D14: ORSR2 | F14: PV | G14: SOL | I14: Solar | J14: 10 | K14: 10 | P14: 10 | W14: Operating | X14: Oct | Y14: 2020 | AA14: Eagle Point | AB14: Jackson | AC14: OR | AD14: Y | AF14: WECC | AG14: Origis Energy | AH14: Independent | AI14: PacifiCorp (20yr QF PPA) | AM14: 2040 | AN14: 1 | AO14: 1 | AV14: SPP | BV14: 42.52 | BW14: -122.82001 | BY14: 2021-01-05T16:27:50 | BZ14: 10 | CA14: 10 | CB14: 0.254 | CC14: 2.54
A15: Airport Solar Project | B15: 2297 | C15: 62560 | D15: APS | F15: PV | G15: SOL | I15: Solar | J15: 47.3 | W15: Operating | X15: Dec | Y15: 2019 | AA15: Lake County airport | AB15: Lake | AC15: OR | AD15: Y | AE15: Klamath | AF15: WECC | AG15: D.E. Shaw Renewable | AH15: Independent | AI15: Portland General Electric | AN15: 1 | AO15: 1 | AP15: =AN15*J15 -> 47.3 | AQ15: =IF(ISNUMBER(T15),T15,CC15)*AN15 -> 12.0142 | BB15: PACW | BT15: 0.1 | BV15: 42.170176 | BW15: -120.4023 | BY15: 2020-10-23T19:50:50 | BZ15: 47.3 | CA15: 47.3 | CB15: 0.254 | CC15: 12.0142
A16: Albeni Falls 1- 3 | B16: 1003 | C16: 851 | D16: 1,2,3 | E16: FCRPS | F16: Storage | G16: WAT | I16: Hydro | J16: 42.6 | K16: 42 | M16: 21.8 | N16: 42.6 | O16: 42.6 | P16: 42 | Q16: 42 | T16: 31 | V16: 30 | W16: Operating | X16: May | Y16: 1955 | AA16: Pend Oreille R. | AB16: Bonner | AC16: ID | AD16: Y | AE16: Columbia | AF16: WECC | AG16: USCE | AH16: Federal | AI16: BPA | AN16: 1 | AO16: 1 | AP16: =AN16*J16 -> 42.6 | AQ16: =IF(ISNUMBER(T16),T16,CC16)*AN16 -> 31 | BB16: BPA | BC16: 22.6 | BD16: 24 | BE16: 29.8 | BF16: 13.2890411 | BG16: 14.42808219 | BH16: 24.8 | BI16: 11.62 | BJ16: 23.55 | BK16: 23.3 | BL16: 20.06 | BM16: 22 | BN16: 26.31 | BO16: 18.33 | BP16: 20.64 | BQ16: 23 | BR16: 17.6 | BS16: 19.1 | BT16: 20.9 | BU16: Critical energy from PNUCC 2005 NRF | BV16: 48.18 | BW16: -116.997 | BX16: http://en.wikipedia.org/wiki/Albeni_Falls_Dam | BY16: 2020-03-29T21:24:44 | BZ16: 42.6 | CA16: 42.6 | CB16: 0.7276995305 | CC16: 31
A17: Alden Bailey (Wauna Peaking/Loki) | B17: 1004 | C17: 56223 | D17: LOKI | F17: GT | G17: NG | I17: Natural gas | J17: 10.9 | K17: 10.9 | L17: 11 | N17: 8.9 | O17: 11 | P17: 9.8 | Q17: 11 | R17: 0 | S17: 0.8 | W17: Idle | X17: Dec | Y17: 2001 | Z17: 2017 | AA17: Wauna | AB17: Clatskanie | AC17: OR | AD17: Y | AE17: Columbia | AF17: WECC | AG17: Clatskanie PUD | AH17: PUD | AI17: Clatskanie | AN17: 0 | AO17: 0 | AP17: =AN17*J17 -> 0 | AQ17: =IF(ISNUMBER(T17),T17,CC17)*AN17 -> 0 | AT17: Williams Northwest | BB17: BPA | BI17: 0 | BJ17: 0.1 | BK17: 0.1 | BL17: 0.06 | BM17: 0 | BN17: 0 | BO17: 0.02 | BP17: 0.04 | BQ17: 0 | BR17: 0 | BS17: 0 | BT17: 0 | BU17: (1) GE10 GT unit. | BV17: 46.155595 | BW17: -123.407887 | BX17: 0 | BY17: 2020-07-15T14:33:10 | BZ17: 11 | CA17: 8.9 | CB17: 0.91 | CC17: 9.0545
A18: Alder 1 & 2 | B18: 1005 | C18: 3913 | D18: 11,12 | E18: 1862B | F18: Storage w/Div | G18: WAT | I18: Hydro | J18: 50 | K18: 50 | M18: 39.1 | N18: 50 | O18: 42 | P18: 50.4 | Q18: 42 | T18: 27 | V18: 21 | W18: Operating | X18: Dec | Y18: 1945 | AA18: Nisqually R. | AB18: Pierce | AC18: WA | AD18: Y | AE18: Puget Sound & Coastal | AF18: WECC | AG18: City of Tacoma | AH18: Municipal | AI18: City of Tacoma | AN18: 1 | AO18: 1 | AP18: =AN18*J18 -> 50 | AQ18: =IF(ISNUMBER(T18),T18,CC18)*AN18 -> 27 | BB18: Tacoma | BC18: 24.3 | BD18: 19.8 | BE18: 9.5 | BF18: 10.5510274 | BG18: 26.00239726 | BH18: 23 | BI18: 9.38 | BJ18: 2.86 | BK18: 25.9 | BL18: 29.45 | BM18: 31.3 | BN18: 25.35 | BO18: 28.26 | BP18: 21.83 | BQ18: 28.7 | BR18: 26.5 | BS18: 23.6 | BT18: 16.3 | BU18: License granted March 1997; expires February 2037. 01/016 Critical energy from PNUCC 2005 NRF. Certified Low-impact. | BV18: 46.801 | BW18: -122.308 | BX18: http://www.ci.tacoma.wa.us/power/parksandpower/hydro_power/nisqually/alder_dam.htm | BY18: 2020-03-25T10:45:30 | BZ18: 50 | CA18: 50 | CB18: 0.54 | CC18: 27
A19: Alkali Solar | B19: 2338 | C19: 63795 | D19: 2 | F19: PV | G19: SOL | I19: Solar | J19: 10 | K19: 10 | P19: 10 | Q19: 10 | W19: Operating | X19: Jun | Y19: 2020 | AA19: Lake Cty | AB19: Lake | AC19: OR | AD19: Y | AE19: Columbia | AF19: WECC | AG19: Evans Dixon/US Solar Fund | AH19: Independent | AI19: PURPA QF w/ PGE | AV19: SPP | BV19: 43.31942 | BW19: -121.0035 | BY19: 2020-10-26 | BZ19: 10 | CA19: 10 | CB19: 0.254 | CC19: 2.54
A20: Amalgamated Sugar (TASCO) (Nampa) 1 - 3 | B20: 1006 | C20: 54690 | D20: 2250,500,6500 | F20: STCG | G20: NG | H20: COL | I20: Natural gas | J20: 8.2 | K20: 8.23 | L20: 0.2 | N20: 0 | O20: 0 | P20: 8.2 | Q20: 8.2 | R20: 4 | S20: 0.9 | W20: Operating | X20: Oct | Y20: 1948 | AA20: Nampa | AB20: Canyon | AC20: ID | AD20: Y | AE20: Columbia | AF20: WECC | AG20: The Amalgamated Sugar Co. | AH20: Independent | AI20: Self gen; surplus power to Idaho Power Co. (QF) | AN20: 1 | AO20: 0.5 | AP20: =AN20*J20 -> 8.2 | AQ20: =IF(ISNUMBER(T20),T20,CC20)*AN20 -> 0.08 | AR20: The Amalgamated Sugar Company | AS20: Food processing | BB20: IPC | BI20: 5.14 | BJ20: 4.83 | BK20: 4.7 | BL20: 4.33 | BM20: 4.7 | BN20: 5.93 | BO20: 4.56 | BP20: 5.675 | BQ20: 6.1 | BR20: 5.7 | BS20: 3.6 | BT20: 4.2 | BU20: (3) STG @ 2.3, 0.5 & 6.5 MW. Proposed NG-fired repowering under study (Nov 2009). | BV20: 43.605063 | BW20: -116.573758 | BX20: 0 | BY20: 2020-07-15T14:39:28 | BZ20: 0.2 | CA20: 0 | CB20: 0.8 | CC20: 0.08
A21: Amalgamated Sugar (TASCO) (Nyassa) 1 - 3 | B21: 1007 | C21: 54612 | D21: 1,2,3 | F21: STCG | G21: COL | I21: Coal | J21: 14 | P21: 9.8 | Q21: 9.8 | W21: Retired | X21: Sep | Y21: 1942 | Z21: 2005 | AA21: Nyassa | AB21: Malheur | AC21: OR | AD21: Y | AE21: Columbia | AF21: WECC | AG21: The Amalgamated Sugar Co. | AH21: Independent | AI21: Retired | AN21: 0 | AO21: 0 | AP21: 0 | AQ21: 0 | AR21: The Amalgamated Sugar Company | AS21: Food processing | BU21: Units 1, 2 and 3 are 12, 1.5 MW and 5.5 MW respectively. | BX21: 0 | BY21: 2008-10-06 | BZ21: 9.8 | CA21: 9.8 | CB21: 0.8 | CC21: 7.84
A22: Amalgamated Sugar (TASCO) (Paul) | B22: 1008 | F22: STCG | G22: NG | H22: COL | I22: Natural gas | J22: 5.06 | W22: Operating | Y22: 1952 | AA22: Paul | AB22: Minidoka | AC22: ID | AD22: Y | AE22: Columbia | AF22: WECC | AG22: The Amalgamated Sugar Co. | AH22: Independent | AI22: Self gen; surplus power to Idaho Power Co. (QF) | AN22: 1 | AO22: 0.5 | AP22: 5.06 | AQ22: 4.048 | AR22: The Amalgamated Sugar Company | AS22: Food processing | BG22: 0 | BX22: 0 | BY22: 2020-03-26T09:53:06 | BZ22: 5.06 | CA22: 5.06 | CB22: 0.8 | CC22: 4.048
A23: Amalgamated Sugar (TASCO) (Twin Falls) 1-3 | B23: 1009 | C23: 10504 | D23: 1500,2500,4000 | F23: STCG | G23: COL | H23: NG | I23: Coal | J23: 10.2 | K23: 10.2 | L23: 0.1 | N23: 0 | O23: 0 | P23: 8.5 | Q23: 8.5 | R23: 0.8 | S23: 0.8 | W23: Operating | X23: Dec | Y23: 1948 | AA23: Twin Falls | AB23: Twin Falls | AC23: ID | AD23: Y | AE23: Columbia | AF23: WECC | AG23: The Amalgamated Sugar Co. | AH23: Independent | AI23: Self gen; surplus power to Idaho Power Co. (QF) | AN23: 1 | AO23: 0.5 | AP23: 10.2 | AQ23: 0.04 | AR23: The Amalgamated Sugar Company | AS23: Food processing | AV23: cogen | BB23: IPC | BI23: 5.35 | BJ23: 4.81 | BK23: 5.7 | BL23: 5.55 | BM23: 5.8 | BN23: 5.62 | BO23: 5.25 | BP23: 5.25 | BQ23: 5.9 | BR23: 6.2 | BS23: 5.4 | BT23: 6 | BU23: (3) STG @ 1.5, 2.5 & 4 MW. 4 MW unit reported to operate. | BV23: 42.53061 | BW23: -114.429584 | BX23: 0 | BY23: 2020-07-15T16:14:33 | BZ23: 0.1 | CA23: 0 | CB23: 0.8 | CC23: 0.04
A24: American Falls 1 - 3 | B24: 1010 | C24: 809 | D24: 1,2,3 | E24: 2736 | F24: Storage w/Div | G24: WAT | I24: Hydro | J24: 92.3 | K24: 92.4 | M24: 36.3 | N24: 82 | O24: 0 | P24: 110.4 | Q24: 60.9 | W24: Operating | X24: Mar | Y24: 1978 | AA24: Snake R. | AB24: Power | AC24: ID | AD24: Y | AE24: Columbia | AF24: WECC | AG24: Idaho Power Co. | AH24: IOU | AI24: Idaho Power Co. | AN24: 1 | AO24: 1 | AP24: 92.3 | AQ24: 37.21305 | BB24: IPC | BC24: 24 | BD24: 23.6 | BE24: 22.8 | BF24: 25.77283105 | BG24: 39.97442922 | BH24: 30 | BI24: 30.23 | BJ24: 43.93 | BK24: 36.4 | BL24: 66.9 | BM24: 40.2 | BN24: 27.83 | BO24: 30.16 | BP24: 33.59 | BQ24: 27.8 | BR24: 55.1 | BS24: 55.9 | BT24: 43.7 | BU24: License granted March 1975; expires February 2025. | BV24: 42.779 | BW24: -112.875 | BX24: http://www.idwr.state.id.us/Water/stream_dam/dams/AmericanFalls.htm | BY24: 2020-04-13T10:13:03 | BZ24: 92.3 | CA24: 82 | CB24: 0.427 | CC24: 37.21305
A25: American Falls Solar | B25: 2101 | C25: 60011 | D25: IPAF | F25: PV | G25: SOL | I25: Solar | J25: 20 | K25: 20 | P25: 20 | Q25: 20 | T25: 5.08 | W25: Operating | X25: Jan | Y25: 2017 | AA25: American Falls | AB25: Power | AC25: ID | AD25: Y | AE25: Columbia | AF25: WECC | AG25: First Wind | AH25: Independent | AI25: Idaho Power Co. (20 yr ESA) | AM25: 2036 | AN25: 1 | AO25: 1 | AP25: 20 | AQ25: 5.08 | AV25: SPP | BA25: Single-axis | BB25: IPC | BR25: 3.9 | BS25: 4.9 | BT25: 5 | BU25: Crystalline silicone. 26MWdc. Azimuth 180, tilt angle 60. Project expected to use (10) 2.0 MW ac SMA inverters and (85,880) JA 305w DC panels and utilize a single axis tracking system (from ESA IPUC filing). RECs to be split 50/50 between IPC and developer. Expected CF 25.4% AC. | BV25: 42.826959 | BW25: -112.743943 | BY25: 2017-11-07T10:56:02 | BZ25: 20 | CA25: 20 | CB25: 0.254 | CC25: 5.08
A26: American Falls Solar II | B26: 2102 | C26: 60012 | D26: IPAF2 | F26: PV | G26: SOL | I26: Solar | J26: 20 | K26: 20 | P26: 20 | Q26: 20 | T26: 5.08 | W26: Operating | X26: Jan | Y26: 2017 | AA26: American Falls | AB26: Power | AC26: ID | AD26: Y | AE26: Columbia | AF26: WECC | AG26: First Wind | AH26: Independent | AI26: Idaho Power Co. (20 yr ESA) | AM26: 2036 | AN26: 1 | AO26: 1 | AP26: 20 | AQ26: 5.08 | AV26: SPP | BA26: Single-axis | BB26: IPC | BR26: 4 | BS26: 5 | BT26: 5 | BU26: Crystalline silicone. 26MWdc. Azimuth 180, tilt angle 60. Project expected to use (10) 2.0 MW ac SMA inverters and (85,880) JA 305w DC panels and utilize a single axis tracking system (from ESA IPUC filing). RECs to be split 50/50 between IPC and developer. Expected CF 25.4% AC. | BV26: 42.826959 | BW26: -112.743943 | BY26: 2017-11-07T10:56:07 | BZ26: 20 | CA26: 20 | CB26: 0.254 | CC26: 5.08
A27: Amy Ranch | B27: 1011 | E27: 8700 | F27: Conduit | G27: WAT | I27: Hydro | J27: 0.65 | M27: 0.65 | N27: 0.7 | O27: 0.7 | T27: 0.42 | W27: Operating | Y27: 1986 | AA27: Deep Cr. | AB27: Butte | AC27: ID | AD27: Y | AE27: Columbia | AF27: WECC | AG27: A.J. Amy | AH27: Independent | AI27: PacifiCorp (QF) | AN27: 1 | AO27: 1 | AP27: 0.65 | AQ27: 0.42 | BU27: Exemption granted October 1985. | BX27: 0 | BY27: 2020-03-22T20:35:18 | BZ27: 0.65 | CA27: 0.7 | CB27: 0.6461538462 | CC27: 0.42
A28: Anderson Ranch 1 - 2 | B28: 1012 | C28: 6395 | D28: 1,2 | E28: FCRPS | F28: Storage | G28: WAT | I28: Hydro | J28: 40 | K28: 40 | M28: 4.31 | N28: 34 | O28: 6.4 | P28: 40 | Q28: 40 | T28: 16 | V28: 16 | W28: Operating | X28: Dec | Y28: 1950 | AA28: Boise R. | AB28: Elmore | AC28: ID | AD28: Y | AE28: Columbia | AF28: WECC | AG28: USBR | AH28: Federal | AI28: BPA | AL28: Units rewound. | AN28: 1 | AO28: 1 | AP28: 40 | AQ28: 16 | BB28: IPC | BC28: 10.4 | BD28: 9.5 | BE28: 12.2 | BF28: 3.95 | BG28: 8.436073059 | BH28: 13.9 | BI28: 3.99 | BJ28: 14.05 | BK28: 13.9 | BL28: 15.97 | BM28: 21.1 | BN28: 12.89 | BO28: 9.85 | BP28: 13.96 | BQ28: 16.6 | BR28: 18.6 | BS28: 16.7 | BT28: 14.4 | BU28: Critical energy from PNUCC 2005 NRF | BV28: 43.357 | BW28: -115.451 | BX28: http://www.usbr.gov/projects/Facility.jsp?fac_Name=Anderson+Ranch+Dam | BY28: 2020-03-29T21:57:30 | BZ28: 40 | CA28: 34 | CB28: 0.4 | CC28: 16
A29: Arrowrock 1 - 2 | B29: 1688 | C29: 56997 | D29: 1,2 | E29: 4656 | F29: Storage | G29: WAT | I29: Hydro | J29: 18 | K29: 15 | M29: 2.3 | N29: 16 | O29: 16 | P29: 16 | Q29: 16 | T29: 9.2 | W29: Operating | X29: April | Y29: 2010 | AA29: Boise R. | AB29: Ada | AC29: ID | AD29: Y | AE29: Columbia | AF29: WECC | AG29: Boise-Kuna Irrigation District | AH29: Independent | AI29: Clatskanie PUD (Apr 2010 - Dec 2015) | AM29: 2015 | AN29: 1 | AO29: 1 | AP29: 18 | AQ29: 9.2 | BB29: IPC | BK29: 8.9 | BL29: 9.69 | BM29: 8.7 | BN29: 5.59 | BO29: 8.29 | BP29: 7.46 | BQ29: 7.6 | BR29: 9.2 | BS29: 8.8 | BT29: 6.8 | BU29: Powerhouse w/(2) 9 MW units at existing dam. | BV29: 43.595556 | BW29: -115.922222 | BX29: http://en.wikipedia.org/wiki/Arrowrock_Dam | BY29: 2020-03-21T21:10:58 | BZ29: 18 | CA29: 16 | CB29: 0.5111111111 | CC29: 9.2
A30: Ashton 1 - 3 | B30: 1013 | C30: 825 | D30: 1,2,3 | E30: 2381B | F30: ROR | G30: WAT | I30: Hydro | J30: 6.7 | K30: 6.7 | M30: 7.5 | N30: 7.2 | O30: 7.2 | P30: 7.1 | Q30: 7.1 | T30: 4.75 | W30: Operating | X30: Aug | Y30: 1917 | AA30: Henrys Fk. | AB30: Fremont | AC30: ID | AD30: Y | AE30: Columbia | AF30: WECC | AG30: PacifiCorp | AH30: IOU | AI30: PacifiCorp | AN30: 1 | AO30: 1 | AP30: 6.7 | AQ30: 4.75 | BB30: PACE | BC30: 3.5 | BD30: 3.3 | BE30: 1.2 | BF30: 1.263584475 | BG30: 1.430593607 | BH30: 1.1 | BI30: 1.08 | BJ30: 3.85 | BK30: 2.6 | BL30: 2.06 | BM30: 0.2 | BN30: 3.94 | BO30: 3.75 | BP30: 3.42 | BQ30: 3.3 | BR30: 4.2 | BS30: 4.3 | BT30: 4.5 | BU30: Original License granted January 1938; expired December 1987. New license gtd. 08/01/87 Exp. 12/31/27. Unit 1 rated 2.85MW, Unit 2 and 3 are both rated 2.5 MW. Reconstruction to repair and improve completed in 2012. | BV30: 44.2234 | BW30: -111.4755 | BX30: 0 | BY30: 2020-04-09T22:15:08 | BZ30: 6.7 | CA30: 7.2 | CB30: 0.7089552239 | CC30: 4.75
A31: Atlanta Power Station (Kirby) | B31: 1014 | C31: 6700 | E31: 11541 | F31: ROR R w/Div | G31: WAT | I31: Hydro | J31: 0.15 | N31: 0.2 | O31: 0.2 | T31: 0.15 | W31: Operating | Y31: 1910 | AA31: Boise R, M Fk | AB31: Elmore | AC31: ID | AD31: Y | AE31: Columbia | AF31: WECC | AG31: Atlanta Power Co. Inc. | AH31: Independent | AI31: Atlanta Power Co. | AN31: 1 | AO31: 1 | AP31: 0.15 | AQ31: 0.15 | BU31: License granted May 2002; expires April 2032. | BX31: 0 | BY31: 2015-03-27T16:07:45 | BZ31: 0.15 | CA31: 0.2 | CB31: 1 | CC31: 0.15
A32: Baker City Solar Center | B32: 2265 | C32: 61854 | D32: BAKER | F32: PV | G32: SOL | I32: Solar | J32: 15 | W32: Operating | X32: Dec | Y32: 2019 | AA32: Baker City, OR | AB32: Baker | AC32: OR | AD32: Y | AE32: Columbia | AF32: WECC | AG32: Enerparc Solar Development | AH32: Independent | AI32: Idaho Power (20 year PPA) | AM32: 2039 | AN32: 1 | AO32: 1 | AP32: 15 | AV32: SPP | BB32: IPC | BV32: 44.70242 | BW32: -117.76348 | BY32: 2020-01-13T15:13:34 | BZ32: 15 | CA32: 15 | CB32: 0.254 | CC32: 3.81
A33: Baker River (Lower) Unit 3 | B33: 1332 | C33: 3855 | D33: 3 | E33: 2150A | F33: Storage w/Div | G33: WAT | I33: Hydro | J33: 80.8 | K33: 80.8 | M33: 63.5 | N33: 86.7 | O33: 86.7 | P33: 80.8 | Q33: 80.8 | T33: 43 | V33: 36 | W33: Operating | Y33: 1925 | AA33: Baker R. | AB33: Skagit | AC33: WA | AD33: Y | AE33: Puget Sound & Coastal | AF33: WECC | AG33: Puget Sound Energy | AH33: IOU | AI33: Puget Sound Energy | AJ33: PSE (bundled RECs) from efficiency upgrades | AN33: 1 | AO33: 1 | AP33: 80.8 | AQ33: =IF(ISNUMBER(T33),T33,CC33)*AN33 -> 43 | BB33: PSE | BC33: 45.8 | BD33: 44.5 | BE33: 40.5 | BF33: 31.07009132 | BG33: 38.14440639 | BH33: 49.3 | BI33: 36.19 | BJ33: 39.37 | BK33: 41.8 | BL33: 37.99 | BM33: 39.9 | BN33: 40.25 | BO33: 49.04 | BP33: 35.23 | BQ33: 41 | BR33: 35.7 | BS33: 44 | BT33: 30.1 | BU33: Original license granted May 1956. New 50-yr licence granted Oct 2008. Critical energy from PNUCC 2005 NRF | BV33: 48.544 | BW33: -121.741 | BX33: http://www.pse.com/energyEnvironment/energysupply/Pages/EnergySupply_ElectricityHydro.aspx | BY33: 2020-03-20T22:33:36 | BZ33: 80.8 | CA33: 86.7 | CB33: 0.5321782178 | CC33: 43
A34: Baker River (Lower) Unit 4 | B34: 1989 | C34: 3855 | D34: 4 | F34: Storage w/Div | G34: WAT | I34: Hydro | J34: 30.4 | K34: 30.4 | P34: 30.4 | Q34: 30.4 | W34: Operating | X34: Dec | Y34: 2014 | AA34: Baker R. | AB34: Skagit | AC34: WA | AD34: Y | AE34: Puget Sound & Coastal | AF34: WECC | AG34: Puget Sound Energy | AH34: IOU | AI34: Puget Sound Energy | AJ34: PSE (bundled RECs) from efficiency upgrades | AN34: 1 | AO34: 1 | AP34: 30.4 | AQ34: =IF(ISNUMBER(T34),T34,CC34)*AN34 -> 12.9808 | BB34: PSE | BU34: Construction of new powerhouse begain December 2010. | BV34: 48.544 | BW34: -121.741 | BX34: http://www.pse.com/energyEnvironment/energysupply/Pages/EnergySupply_ElectricityHydro.aspx | BY34: 2020-03-19T12:15:16 | BZ34: 30.4 | CA34: 30.4 | CB34: 0.427 | CC34: 12.9808
A35: Baker River (Upper) 1 & 2 | B35: 1599 | C35: 3861 | D35: 1,2 | E35: 2150B | F35: Storage | G35: WAT | I35: Hydro | J35: 104.8 | K35: 104.8 | M35: 83.3 | N35: 111.4 | O35: 111.4 | P35: 105 | Q35: 105 | T35: 42 | V35: 35 | W35: Operating | X35: Jan | Y35: 1959 | AA35: Baker R. | AB35: Whatcom | AC35: WA | AD35: Y | AE35: Puget Sound & Coastal | AF35: WECC | AG35: Puget Sound Energy | AH35: IOU | AI35: Puget Sound Energy | AJ35: PSE (bundled RECs) from efficiency upgrades | AN35: 1 | AO35: 1 | AP35: 104.8 | AQ35: =IF(ISNUMBER(T35),T35,CC35)*AN35 -> 42 | BB35: PSE | BC35: 40.3 | BD35: 37.9 | BE35: 40.8 | BF35: 33.70136986 | BG35: 38.64760274 | BH35: 45.3 | BI35: 35.75 | BJ35: 38.51 | BK35: 41.2 | BL35: 34.4 | BM35: 39.9 | BN35: 40.7 | BO35: 38.82 | BP35: 31.82 | BQ35: 42.1 | BR35: 40.6 | BS35: 38.1 | BT35: 30 | BU35: Original license granted May 1956. New 50-yr licence granted Oct 2008. Critical energy from PNUCC 2005 NRF | BV35: 48.65 | BW35: -121.69 | BX35: http://www.pse.com/energyEnvironment/energysupply/Pages/EnergySupply_ElectricityHydro.aspx | BY35: 2020-03-20T22:44:48 | BZ35: 104.8 | CA35: 111.4 | CB35: 0.4007633588 | CC35: 42
A36: Baldock Solar Highway Project | B36: 2087 | C36: 57882 | D36: BSH1 | F36: PV | G36: SOL | I36: Solar | J36: 1.5 | K36: 1.7 | N36: 1.7 | O36: 1.7 | P36: 1.7 | Q36: 1.7 | T36: 0.2 | W36: Operating | X36: Jan | Y36: 2012 | AA36: Wilsonville (NB off I-5) | AB36: Clackamas | AC36: OR | AD36: Y | AE36: Columbia | AF36: WECC | AG36: Bank of America financed and owns project; PGE operates and maintains | AH36: Independent | AI36: Portland General Electric | AM36: n/a | AN36: 1 | AO36: 1 | AP36: 1.5 | AQ36: =IF(ISNUMBER(T36),T36,CC36)*AN36 -> 0.2 | BA36: Fixed tilt | BB36: PGE | BM36: 0.2 | BN36: 0.22 | BO36: 0.24 | BP36: 0.226 | BQ36: 0.2 | BR36: 0.2 | BS36: 0.2 | BT36: 0.2 | BU36: Crystalline silicone. 1.7MWdc, Azimuth angle 180, tilt 21. 6,994 panel array on ~7 acres; solar highway project | BV36: 45.269 | BW36: -122.771 | BX36: http://live.deckmonitoring.com/?id=baldock_solar_highway | BY36: 2017-10-16T15:03:47 | BZ36: 1.5 | CA36: 1.7 | CB36: 0.1333333333 | CC36: 0.2
A37: Ballston Solar | B37: 2276 | C37: 62170 | D37: BSPV1 | F37: PV | G37: SOL | I37: Solar | J37: 2.2 | K37: 2.2 | P37: 2.2 | Q37: 2.2 | W37: Operating | X37: Dec | Y37: 2018 | AA37: McMinnville, OR | AB37: Yamhill | AC37: OR | AD37: Y | AE37: Columbia | AF37: WECC | AG37: BNRG Renewables | AH37: Independent | AI37: Portland General Electric (20yr QF) | AM37: 2038 | AN37: 1 | AO37: 1 | AP37: 2.2 | AV37: SPP | BA37: Fixed tilt | BB37: PGE | BS37: 0 | BT37: 0.4 | BU37: Crystalline silicone. 2.9MWdc, azimuth angle 180, tilt 20. | BV37: 45.07688889 | BW37: -123.39472222 | BX37: 0 | BY37: 2019-11-22T12:15:40 | BZ37: 2.2 | CA37: 2.2 | CB37: 0.254 | CC37: 0.5588
A38: Bannock County LFG to Energy 1 | B38: 2092 | C38: 59529 | D38: GEN1 | F38: IC | G38: LFG | I38: Biomass | J38: 1.6 | K38: 1.6 | M38: 3.2 | P38: 1.4 | Q38: 1.4 | W38: Operating | X38: Apr | Y38: 2014 | AA38: Fort Hall Mine Landfill | AB38: Bannock | AC38: ID | AD38: Y | AE38: Columbia | AF38: WECC | AG38: Bannock County | AH38: Independent | AI38: Idaho Power (Apr 2014 - Apr 2034) | AM38: 2034 | AN38: 1 | AO38: 1 | AP38: 1.6 | AQ38: =IF(ISNUMBER(T38),T38,CC38)*AN38 -> 1.05 | AV38: SPP | BB38: IPC | BO38: 0.55 | BP38: 0.98 | BQ38: 1.2 | BR38: 1.3 | BS38: 1.2 | BT38: 1 | BU38: (1) 1.6 MW Caterpillar V-20; second unit expected to be constructed within five years. $4.5MM project. | BV38: 42.782 | BW38: -112.375 | BX38: http://www.bannockcountylandfill.us/gas-to-energy.html | BY38: 2020-03-23T13:30:49 | BZ38: 1.4 | CA38: 1.4 | CB38: 0.75 | CC38: 1.05
A39: Bannock County LFG to Energy 2 | B39: 2295 | C39: 59529 | D39: GEN2 | F39: IC | G39: LFG | I39: Biomass | J39: 1.6 | K39: 1.6 | P39: 1.4 | Q39: 1.4 | W39: Operating | X39: May | Y39: 2019 | AA39: Fort Hall Mine Landfill | AB39: Bannock | AC39: ID | AD39: Y | AE39: Columbia | AF39: WECC | AG39: Bannock County | AH39: Independent | AI39: Idaho Power (Apr 2014 - Apr 2034) | AM39: 2034 | AN39: 1 | AO39: 1 | AP39: 1.6 | AV39: SPP | BB39: IPC | BU39: (1) 1.6 MW unit, second phase | BV39: 42.787778 | BW39: -112.3656 | BY39: 2019-09-09T09:43:04 | BZ39: 1.4 | CA39: 1.4 | CB39: 0.75 | CC39: 1.05
A40: Barber Dam | B40: 1017 | C40: 10735 | D40: GEN1 | E40: 4881 | F40: ROR | G40: WAT | I40: Hydro | J40: 4.1 | K40: 4.1 | L40: 2.7 | M40: 2.73 | N40: 4 | O40: 4 | P40: 4 | Q40: 4 | T40: 2 | V40: 2 | W40: Operating | X40: Aug | Y40: 1990 | AA40: Boise R. | AB40: Ada | AC40: ID | AD40: Y | AE40: Columbia | AF40: WECC | AG40: Ada Co. & Fulcrum Inc. | AH40: Independent | AI40: Idaho Power Co. (QF thru Apr 2024) | AM40: 2024 | AN40: 1 | AO40: 1 | AP40: 4.1 | AQ40: =IF(ISNUMBER(T40),T40,CC40)*AN40 -> 2 | BB40: IPC | BI40: 1.27 | BJ40: 1.33 | BK40: 1.3 | BL40: 1.61 | BM40: 1.7 | BN40: 1.02 | BO40: 1.18 | BP40: 1.075 | BQ40: 1.4 | BR40: 1.5 | BS40: 1.4 | BT40: 1.5 | BU40: License granted December 1983; expires November 2023. Critical energy from PNUCC 2005 NRF | BV40: 43.561001 | BW40: -116.121269 | BX40: 0 | BY40: 2020-03-22T20:35:50 | BZ40: 4.1 | CA40: 4 | CB40: 0.487804878 | CC40: 2
A41: Barney Creek | B41: 1018 | E41: 7754 | F41: Diversion | G41: WAT | I41: Hydro | J41: 0.07 | L41: 0 | M41: 0.02 | N41: 0.1 | O41: 0.1 | T41: 0.04 | W41: Operating | Y41: 1986 | AA41: Barney Cr. | AB41: Park | AC41: MT | AD41: N | AE41: Missouri | AF41: WECC | AG41: T.K. & J.L. Budde | AH41: Independent | AI41: NorthWestern (QF thru Nov 2019) | AM41: 2019 | AN41: 0.31 | AO41: 0.31 | AP41: 0.0217 | AQ41: =IF(ISNUMBER(T41),T41,CC41)*AN41 -> 0.0124 | BU41: Exemption granted April 1984. | BX41: 0 | BY41: 2020-03-22T20:39:21 | BZ41: 0.07 | CA41: =IF(OR(J41="Wind",J41="Solar",J41="Hydro"),J41,IF(ISNUMBER(N41),N41,IF(ISNUMBER(P41), P41, IF(ISNUMBER(L41),L41,J41)))) -> 0.1 | CB41: 0.5714285714 | CC41: 0.04
A42: Basin Creek 1 - 9 | B42: 1019 | C42: 55866 | D42: 1,2,3,4,5,6,7,8,9 | F42: IC | G42: NG | I42: Natural gas | J42: 54.9 | K42: 54.9 | L42: 50 | M42: 50 | N42: 51.75 | O42: 51.75 | P42: 54 | Q42: 54 | R42: 18 | S42: 0.8 | W42: Operating | X42: Jun | Y42: 2006 | AA42: Butte | AB42: Silver Bow | AC42: MT | AD42: Y | AE42: Unknown | AF42: WECC | AG42: Basin Creek Power | AH42: Independent | AI42: NorthWestern (PPA to July 2026) | AM42: 2026 | AN42: 0.31 | AO42: 0.31 | AP42: 17.019 | AQ42: =IF(ISNUMBER(T42),T42,CC42)*AN42 -> 14.6672625 | AT42: Northwestern Energy LLC | BB42: NorthWestern | BI42: 5.61 | BJ42: 7.55 | BK42: 2.1 | BL42: 1.18 | BM42: 2.7 | BN42: 3.87 | BO42: 4.7 | BP42: 7.168 | BQ42: 10.5 | BR42: 12.4 | BS42: 14.8 | BT42: 17.8 | BU42: (9) 6 MW Caterpillar reciprocating engines. | BV42: 45.93 | BW42: -112.524 | BX42: 0 | BY42: 2020-07-15T16:16:42 | BZ42: 50 | CA42: 51.75 | CB42: 0.93 | CC42: 47.31375
A43: Bear Creek Solar Center | B43: 2161 | C43: 61281 | D43: BCRSC | F43: PV | G43: SOL | I43: Solar | J43: 10 | K43: 10 | P43: 10 | Q43: 10 | W43: Operating | X43: Sep | Y43: 2018 | AA43: Bend | AB43: Deschutes | AC43: OR | AD43: Y | AE43: Columbia | AF43: WECC | AG43: GCL New Energy Holdings | AH43: Independent | AI43: PacifiCorp (20yr PURPA); RECs to PAC | AJ43: PacifiCorp (bunded RECs) | AM43: 2038 | AN43: 1 | AO43: 1 | AP43: 10 | AV43: SPP | BA43: Single-axis | BB43: PACW | BS43: 0.7 | BT43: 2.6 | BU43: Crystalline silicone. 13.1MWdc. Azimuth angle 180. (39,976) Tina Solar modules, (5) inverters, NEXTracker single-axis | BV43: 44.060814 | BW43: -121.237203 | BY43: 2019-07-09T13:47:59 | BZ43: 10 | CA43: 10 | CB43: 0.254 | CC43: 2.54
A44: Beaver 1 - 7 | B44: 1020 | C44: 8073 | D44: 1,2,3,4,5,6,7 | F44: CC | G44: NG | H44: FO | I44: Natural gas | J44: 586.2 | K44: 586.2 | L44: 521 | M44: 529 | N44: 473.03 | O44: 504.2 | P44: 461 | Q44: 517 | R44: 40 | S44: 0.9 | W44: Operating | X44: Aug | Y44: 1974 | AA44: Clatskanie | AB44: Columbia | AC44: OR | AD44: Y | AE44: Columbia | AF44: WECC | AG44: Portland General Electric | AH44: IOU | AI44: Portland General Electric | AN44: 1 | AO44: 1 | AP44: 586.2 | AQ44: =IF(ISNUMBER(T44),T44,CC44)*AN44 -> 442.34335 | AT44: Williams Northwest | BB44: PGE | BC44: 62.2 | BD44: 35 | BE44: 43 | BF44: 19.05993151 | BG44: 40.60445205 | BH44: 41.6 | BI44: 16.57 | BJ44: 51.39 | BK44: 17.9 | BL44: 5.36 | BM44: 2.9 | BN44: 31.7 | BO44: 23.53 | BP44: 35.75 | BQ44: 52.2 | BR44: 42.2 | BS44: 56.6 | BT44: 57.1 | BU44: (6) 68.9 MW (baseload)/75.9 (peak) GE 7B GT units + one 176.4 MW STG. | BV44: 46.174 | BW44: -123.178 | BX44: 0 | BY44: 2020-07-15T16:19:52 | BZ44: 521 | CA44: 473.03 | CB44: 0.89 | CC44: 442.34335
A45: Beaver 8 | B45: 1021 | C45: 8073 | D45: 8 | F45: GT | G45: NG | I45: Natural gas | J45: 24.5 | K45: 24.5 | L45: 24 | N45: 24 | O45: 24 | P45: 24 | Q45: 24 | R45: 17 | S45: 0.9 | W45: Operating | X45: Sep | Y45: 1999 | AA45: Clatskanie | AB45: Columbia | AC45: OR | AD45: Y | AE45: Columbia | AF45: WECC | AG45: Portland General Electric | AH45: IOU | AI45: Portland General Electric | AN45: 1 | AO45: 1 | AP45: 24.5 | AQ45: =IF(ISNUMBER(T45),T45,CC45)*AN45 -> 21.84 | AT45: Williams Northwest | BB45: PGE | BU45: (1) Alstom GT10B. | BV45: 46.174 | BW45: -123.178 | BX45: 0 | BY45: 2020-07-15T16:20:47 | BZ45: 24 | CA45: 24 | CB45: 0.91 | CC45: 21.84
A46: Bell Mountain | B46: 1978 | F46: Conduit | G46: WAT | I46: Hydro | J46: 0.29 | L46: 0.1 | M46: 0.1 | N46: 0.3 | O46: 0.3 | T46: 0.125859589 | W46: Operating | X46: Dec | Y46: 2009 | AA46: Bell Mt Cr. & Mahogany Cr. | AB46: Butte/Lemhi | AC46: ID | AD46: Y | AE46: Columbia | AF46: WECC | AG46: Bell Mountain Power | AH46: Independent | AI46: PacifiCorp (QF) | AN46: 1 | AO46: 1 | AP46: 0.29 | AQ46: =IF(ISNUMBER(T46),T46,CC46)*AN46 -> 0.125859589 | BB46: PACE | BU46: Canal, penstock and Pelton wheel. | BX46: 0 | BY46: 2020-03-22T20:39:39 | BZ46: 0.29 | CA46: 0.3 | CB46: 0.4339985829 | CC46: 0.125859589
A47: Bellevue Solar | B47: 2009 | C47: 57372 | D47: INV-1 | F47: PV | G47: SOL | I47: Solar | J47: 1.4 | K47: 1.6 | N47: 1.6 | O47: 1.6 | P47: 1.6 | Q47: 1.6 | W47: Operating | X47: Oct | Y47: 2011 | AA47: Yamhill, OR | AB47: Yamhill | AC47: OR | AD47: Y | AE47: Columbia | AF47: WECC | AG47: enXco | AH47: Independent | AI47: Portland General Electric (25yr PPA, signed in 2010) | AM47: 2031 | AN47: 1 | AO47: 1 | AP47: 1.4 | AQ47: =IF(ISNUMBER(T47),T47,CC47)*AN47 -> 0.381 | BA47: Fixed tilt | BB47: PGE | BL47: 0.01 | BM47: 0.2 | BN47: 0.21 | BO47: 0.19 | BP47: 0.215 | BQ47: 0.2 | BR47: 0.2 | BS47: 0.2 | BT47: 0.2 | BU47: Crystalline silicone. 1.7MWdc. Azimuth angle 97, tilt 43. 8,316 Nanosolar, Ground-mount thin-film PV | BV47: 45.112421 | BW47: -123.234399 | BX47: http://www.edf-re.com/projects/detail/bellevue_solar_project/ | BY47: 2017-10-16T15:14:57 | BZ47: 1.4 | CA47: 1.6 | CB47: 0.254 | CC47: 0.381
A48: Bend Power 1 - 3 | B48: 1022 | C48: 6484 | D48: 1,2,3 | E48: None | F48: ROR | G48: WAT | I48: Hydro | J48: 1.11 | K48: 1.1 | M48: 0.32 | N48: 1 | O48: 1 | P48: 1 | Q48: 1 | W48: Operating | Y48: 1913 | AA48: Deschutes R. | AB48: Deschutes | AC48: OR | AD48: Y | AE48: Columbia | AF48: WECC | AG48: PacifiCorp | AH48: IOU | AI48: PacifiCorp | AN48: 1 | AO48: 1 | AP48: 1.11 | AQ48: =IF(ISNUMBER(T48),T48,CC48)*AN48 -> 0.450485 | BB48: PACW | BC48: 0.4 | BD48: 0.3 | BE48: 0.1 | BF48: 0.07385844749 | BG48: 0.07659817352 | BH48: 0.1 | BI48: 0.09 | BJ48: 0.36 | BK48: 0.3 | BL48: 0.24 | BM48: 0.4 | BN48: 0.22 | BO48: 0.29 | BP48: 0.273 | BQ48: 0.2 | BR48: 0.3 | BS48: 0.2 | BT48: 0.2 | BU48: PAC minor | BV48: 44.062326 | BW48: -121.313331 | BX48: 0 | BY48: 2020-03-21T21:11:26 | BZ48: 1.11 | CA48: 1 | CB48: 0.427 | CC48: 0.450485
A49: Bennett Creek | B49: 1692 | C49: 56637 | D49: 1 | F49: WT | G49: WND | I49: Wind | J49: 21 | K49: 21 | P49: 21 | Q49: 21 | W49: Operating | X49: Dec | Y49: 2008 | AA49: Mountain Home | AB49: Elmore | AC49: ID | AD49: Y | AE49: Columbia | AF49: WECC | AG49: Exelon (John Deere Renewables) | AH49: Independent | AI49: Idaho Power Co. (QF Dec 2008 - Dec 2028) | AK49: PNW IOU | AM49: 2028 | AN49: 1 | AO49: 1 | AP49: 21 | AQ49: =IF(ISNUMBER(T49),T49,CC49)*AO49 -> 6.72 | AU49: MtnHome Junction/Upper Salmon 138 kV | AV49: SPP | AW49: (10) Suzlon S88-2100 | AX49: 80 | AY49: 88 | AZ49: 2 | BB49: IPC | BI49: 0.59 | BJ49: 4.7 | BK49: 3.4 | BL49: 5.16 | BM49: 5.5 | BN49: 4.84 | BO49: 5.1 | BP49: 3.95 | BQ49: 5.1 | BR49: 4.4 | BS49: 5 | BT49: 4.5 | BU49: (10) Suzlon S88-2.1 MW WTG. Design wind speed 14.5mph. | BV49: 43.046640 | BW49: -115.48548 | BX49: https://www.pacificpower.net/env/bsre/bses/bcwf.html | BY49: 2021-01-07T11:20:05 | BZ49: 21 | CA49: 21 | CB49: 0.32 | CC49: 6.72
A50: Bennett Mountain | B50: 1023 | C50: 55733 | D50: 1 | F50: GT | G50: NG | I50: Natural gas | J50: 172.8 | K50: 172.8 | L50: 180 | M50: 178 | N50: 161 | O50: 178 | P50: 164 | Q50: 196.9 | R50: 120.9 | S50: 0.9 | W50: Operating | X50: Apr | Y50: 2005 | AA50: Mountain Home | AB50: Elmore | AC50: ID | AD50: Y | AE50: Columbia | AF50: WECC | AG50: Idaho Power Co. | AH50: IOU | AI50: Idaho Power Co. | AN50: 1 | AO50: 1 | AP50: 172.8 | AQ50: =IF(ISNUMBER(T50),T50,CC50)*AN50 -> 155.155 | AT50: Williams Northwest | BB50: IPC | BI50: 5.61 | BJ50: 11.27 | BK50: 4.8 | BL50: 5.53 | BM50: 6.1 | BN50: 9.15 | BO50: 8.05 | BP50: 18.02 | BQ50: 11.8 | BR50: 9.9 | BS50: 17 | BT50: 36.3 | BU50: (1) 162 MW Siemens-Westinghouse 501FD3 GT unit. Primarily for peaking - for use in meeting short-duration demands for electricity during summer peak. | BV50: 43.118 | BW50: -115.686 | BX50: http://www.idahopower.com/energycenter/electricitybasics/generation/thermal.htm#bennetMt | BY50: 2020-07-15T16:23:13 | BZ50: 180 | CA50: 161 | CB50: 0.91 | CC50: 155.155
A51: Benson Creek Wind (Huntington Wind) | B51: 2080 | C51: 59491 | D51: BCW | F51: WT | G51: WND | I51: Wind | J51: 10 | K51: 10 | P51: 10 | Q51: 10 | W51: Operating | X51: Mar | Y51: 2017 | AA51: Huntington | AB51: Baker | AC51: OR | AD51: Y | AE51: Columbia | AF51: WECC | AG51: Oregon International Holdings (99%), D.E. Shaw Renewable (1%) | AH51: Independent | AI51: Idaho Power (20yr PPA - 2036) | AK51: PNW IOU | AM51: 2036 | AN51: 1 | AO51: 1 | AP51: 10 | AV51: SPP | AW51: (5) GE 2.0-116 | AX51: 80 | AY51: 116 | AZ51: 3 | BB51: IPC | BR51: 2.7 | BS51: 3.5 | BT51: 3.2 | BU51: Per PPA, all RECs go to owner of wind farm. Design wind speed 14.7mph. | BV51: 44.366944 | BW51: -117.343889 | BY51: 2017-11-07T11:43:27 | BZ51: 10 | CA51: 10 | CB51: 0.32 | CC51: 3.2
A52: Bethel 1 | B52: 1024 | F52: GT | G52: FO | I52: Petroleum | J52: 56.7 | W52: Retired | Y52: 1973 | Z52: 1998 | AA52: Salem | AB52: Marion | AC52: OR | AD52: Y | AE52: Columbia | AF52: WECC | AG52: Portland General Electric | AH52: IOU | AI52: Retired | AN52: 0 | AO52: 0 | AP52: 0 | AQ52: =IF(ISNUMBER(T52),T52,CC52)*AN52 -> 0 | BF52: n/a | BG52: n/a | BX52: 0 | BY52: 2001-01-19 | BZ52: 56.7 | CA52: 56.7 | CB52: 0.91 | CC52: 51.597
A53: Bethel 2 | B53: 1025 | F53: GT | G53: FO | I53: Petroleum | J53: 56.7 | W53: Retired | Y53: 1973 | Z53: 1998 | AA53: Salem | AB53: Marion | AC53: OR | AD53: Y | AE53: Columbia | AF53: WECC | AG53: Portland General Electric | AH53: IOU | AI53: Retired | AN53: 0 | AO53: 0 | AP53: 0 | AQ53: 0 | BF53: n/a | BG53: n/a | BX53: 0 | BY53: 2001-01-19 | BZ53: 56.7 | CA53: 56.7 | CB53: 0.91 | CC53: 51.597
A54: Bettencourt B6 Dairy (Cargill) | B54: 1937 | C54: 57343 | D54: 1,2 | F54: BGICCG | G54: AW | I54: Biomass | J54: 2.25 | K54: 2.2 | M54: 2.1 | N54: 2.2 | O54: 2.2 | P54: 2.2 | Q54: 2.2 | W54: Operating | X54: Jun | Y54: 2009 | AA54: Jerome | AB54: Gooding | AC54: ID | AD54: Y | AE54: Columbia | AF54: WECC | AG54: Cargill Environmental Finance | AH54: Independent | AI54: Idaho Power (QF Dec 2009 - Dec 2019) | AM54: 2019 | AN54: 1 | AO54: 1 | AP54: 2.25 | AQ54: 1.65 | AR54: Internal thermal load | AS54: Waste digester | AV54: SPP | BB54: IPC | BK54: 0.2 | BL54: 0.22 | BM54: 1.1 | BN54: 1.04 | BO54: 1.08 | BP54: 0.93 | BQ54: 1 | BR54: 1.4 | BS54: 1.2 | BT54: 1.6 | BV54: 42.717204 | BW54: -114.616717 | BX54: http://www.epa.gov/agstar/projects/profiles/bettencourtdairyb6farm.html | BY54: 2020-03-23T13:34:37 | BZ54: 2.2 | CA54: 2.2 | CB54: 0.75 | CC54: 1.65
A55: Bettencourt Dry Creek Biofactory (Cargill) | B55: 1678 | C55: 57344 | D55: GS1,GS2,GS3 | F55: BGICCG | G55: AW | I55: Biomass | J55: 2.25 | K55: 2.4 | L55: 2.3 | N55: 2.4 | O55: 2.4 | P55: 2.4 | Q55: 2.4 | W55: Operating | X55: Sep | Y55: 2008 | AA55: Twin Falls | AB55: Wendell | AC55: ID | AD55: Y | AE55: Columbia | AF55: WECC | AG55: Cargill Environmental Finance | AH55: Independent | AI55: Idaho Power (QF Jan 2010 - Jan 2020) | AM55: 2020 | AN55: 1 | AO55: 1 | AP55: 2.25 | AQ55: 1.7625 | AR55: Internal thermal load | AS55: Waste digester | AV55: SPP | BB55: IPC | BK55: 1.4 | BL55: 1.1 | BM55: 0.6 | BN55: 1.35 | BO55: 1.54 | BP55: 1.21 | BQ55: 1.2 | BR55: 1.2 | BS55: 1.2 | BU55: Anaerobic digestor and (3) Guascor SFGLD 560 750 kW nameplate reciprocating engines. QF contract converted to firm Apr 2010. | BV55: 42.788344 | BW55: -114.635735 | BX55: http://bettencourtdairy.com/dry_creek_dairy_video | BY55: 2017-10-17T14:36:38 | BZ55: 2.3 | CA55: 2.4 | CB55: 0.75 | CC55: 1.7625
A56: Big Cliff | B56: 1026 | C56: 3074 | D56: 1 | E56: FCRPS | F56: Storage w/Div | G56: WAT | I56: Hydro | J56: 18 | K56: 18 | M56: 3.86 | N56: 21 | O56: 21 | P56: 21 | Q56: 21 | T56: 11 | V56: 11 | W56: Operating | Y56: 1954 | AA56: N. Fk. Santiam R. | AB56: Linn | AC56: OR | AD56: Y | AE56: Columbia | AF56: WECC | AG56: USCE | AH56: Federal | AI56: BPA | AN56: 1 | AO56: 1 | AP56: 18 | AQ56: 11 | BB56: BPA | BC56: 10.8 | BD56: 11.3 | BE56: 9.9 | BF56: 2.95696347 | BG56: 5.192009132 | BH56: 9.3 | BI56: 5.89 | BJ56: -0.02 | BK56: 4.1 | BL56: 8.9 | BM56: 8.2 | BN56: 7.31 | BO56: 8.22 | BP56: 6.27 | BQ56: 7.9 | BR56: 10.6 | BS56: 9.9 | BT56: 8 | BU56: Critical energy from PNUCC 2005 NRF | BV56: 44.7506775 | BW56: -122.28313 | BX56: http://www.bpa.gov/corporate/bpanews/library/images/dams/descriptions/BigCliff.cfm | BY56: 2020-03-29T21:40:02 | BZ56: 18 | CA56: 21 | CB56: 0.6111111111 | CC56: 11
A57: Big Fork 1 - 3 | B57: 1027 | C57: 6459 | D57: 1,2,3 | E57: 2652 | F57: Diversion | G57: WAT | I57: Hydro | J57: 4.1 | K57: 4.1 | M57: 2.4 | N57: 4.15 | O57: 4.15 | P57: 4.6 | Q57: 4.6 | T57: 16 | W57: Operating | Y57: 1910 | AA57: Swan R. | AB57: Flathead | AC57: MT | AD57: Y | AE57: Columbia | AF57: WECC | AG57: PacifiCorp | AH57: IOU | AI57: PacifiCorp | AN57: 1 | AO57: 1 | AP57: 4.1 | AQ57: 16 | BB57: PACE | BC57: 2.2 | BD57: 3 | BE57: 1.2 | BF57: 1.231164384 | BG57: 1.187100457 | BH57: 0.9 | BI57: 0.93 | BJ57: 3.31 | BK57: 3.7 | BL57: 3.96 | BM57: 3.8 | BN57: 3.44 | BO57: 3.57 | BP57: 3.02 | BQ57: 3.4 | BR57: 2.4 | BS57: 3 | BT57: 3.1 | BU57: Units 1 & 2 1.7 MW, Unit 3 0.7 MW. PAC minor. Original license granted September 1976; expired August 2002. | BV57: 48.0592 | BW57: -114.0708 | BX57: 0 | BY57: 2020-03-21T21:11:51 | BZ57: 4.1 | CA57: 4.15 | CB57: 3.902439024 | CC57: 16
A58: Big Hanaford (Transalta Centralia 30-70) | B58: 1028 | C58: 3845 | D58: 30,40,50,60,70 | F58: CC | G58: NG | I58: Natural gas | J58: 322 | K58: 322 | L58: 248 | N58: 244 | O58: 256 | P58: 256 | Q58: 268 | W58: Retired | X58: Aug | Y58: 2002 | Z58: 2014 | AA58: Big Hanaford Valley | AB58: Lewis | AC58: WA | AD58: Y | AE58: Puget Sound & Coastal | AF58: WECC | AG58: TransAlta | AH58: Independent | AI58: Retired | AN58: 0 | AO58: 0 | AP58: 0 | AQ58: 0 | AT58: Williams Northwest | BB58: BPA | BC58: 25.9 | BD58: 44.7 | BE58: 22.8 | BF58: 29.2 | BG58: 67 | BH58: 40.4 | BI58: 35.64 | BJ58: 43.23 | BK58: 31.1 | BL58: 0 | BM58: 0 | BU58: (4) GE LM6000 units in 4x1 CC configuration. aka TransAlta Centralia 30, 40, 50, 60, 70. TransAlta confirmed w/ BPA that plant is no longer in service; and no longer interconnected to the transmission grid. | BV58: 46.75 | BW58: -122.863 | BX58: http://www.transalta.com/transalta/webcms.nsf/AllDoc/8E2BA08371EE79B187257157004FC335?OpenDocument | BY58: 2020-03-25T22:09:23 | BZ58: 248 | CA58: 244 | CB58: 0.89 | CC58: 218.94
A59: Big Horn I | B59: 1029 | C59: 56361 | D59: 1 | F59: WT | G59: WND | I59: Wind | J59: 199.5 | K59: 199 | N59: 67 | O59: 67 | P59: 199 | Q59: 199 | W59: Operating | X59: Oct | Y59: 2006 | AA59: Bickleton | AB59: Klickitat | AC59: WA | AD59: Y | AE59: Columbia | AF59: WECC | AG59: Iberdrola Renewables | AH59: Independent | AI59: M-S-R Public Power Agency (Modesto, Santa Clara, Redding) (Oct 2006 - Oct 2031) | AK59: CA Public | AM59: 2031 | AN59: 0 | AO59: 0 | AP59: 0 | AQ59: 0 | AW59: (133) GE 1.5 SLE | AX59: 80 | AY59: 77 | AZ59: 2 | BB59: BPA | BF59: n/a | BG59: 8.911187215 | BH59: 62.8 | BI59: 65.83 | BJ59: 58.5 | BK59: 55.32 | BL59: 64.65 | BM59: 59.3 | BN59: 57.47 | BO59: 59.05 | BP59: 49.3 | BQ59: 57.4 | BR59: 53.4 | BS59: 58.3 | BT59: 51 | BU59: (133) GE 1.5 MW WTG. Design wind speed 12.5 mph. | BV59: 45.89842 | BW59: -120.288483 | BX59: http://www.facebook.com/pages/Big-Horn-Wind-Farm/136744476362272 | BY59: 2017-10-17T12:54:55 | BZ59: 199.5 | CA59: 67 | CB59: 0.32 | CC59: 42.64
A60: Big Horn II | B60: 1901 | C60: 57319 | D60: 1 | F60: WT | G60: WND | I60: Wind | J60: 50 | K60: 50 | P60: 50 | Q60: 50 | W60: Operating | X60: Oct | Y60: 2010 | AA60: Bickleton | AB60: Klickitat | AC60: WA | AD60: Y | AE60: Columbia | AF60: WECC | AG60: Iberdrola Renewables | AH60: Independent | AI60: M-S-R Public Power Agency (Modesto, Santa Clara, Redding) (25 yr PPA - Jan 2011 - Jan 2036) | AK60: CA Public | AM60: 2036 | AN60: 0 | AO60: 0 | AP60: 0 | AQ60: 0 | AU60: BPA Rock Creek substation | AW60: (25) Gamesa G90-2.0 | AX60: 78 | AY60: 90 | AZ60: 2 | BB60: BPA | BK60: 2.9 | BL60: 13.54 | BM60: 13.8 | BN60: 13.12 | BO60: 14.42 | BP60: 11.85 | BQ60: 14 | BR60: 13.5 | BS60: 13.6 | BT60: 12.5 | BU60: RECs to PG&E through EOY 2010. Design wind speed 14.7mph. | BV60: 45.840524 | BW60: -120.326519 | BX60: http://www.facebook.com/pages/Big-Horn-Wind-Farm/136744476362272 | BY60: 2017-10-17T12:54:42 | BZ60: 50 | CB60: 0.32 | CC60: 16
A61: Big Sheep Creek | B61: 1030 | C61: 50091 | D61: TB1,TB2 | E61: 5118 | F61: Diversion | G61: WAT | I61: Hydro | J61: 1.6 | K61: 1.6 | L61: 1.6 | M61: 1.6 | N61: 1.6 | O61: 2 | P61: 1.6 | Q61: 1 | T61: 0.51 | W61: Operating | X61: Jun | Y61: 1986 | AA61: Big Sheep Cr. | AB61: Stevens | AC61: WA | AD61: Y | AE61: Columbia | AF61: WECC | AG61: G.M. Phillips | AH61: Independent | AI61: Avista Utilities (QF thru Jun 2021) | AM61: 2021 | AN61: 1 | AO61: 1 | AP61: 1.6 | AQ61: 0.51 | AV61: SPP | BB61: BPA | BI61: 0.36 | BJ61: 0.65 | BK61: 0.9 | BL61: 0.85 | BM61: 0.9 | BN61: 0.99 | BO61: 0.89 | BP61: 0.94 | BQ61: 1.2 | BR61: 0.8 | BS61: 0.7 | BT61: 0.8 | BU61: Exemption granted August 1983. | BV61: 48.947741 | BW61: -117.795376 | BX61: 0 | BY61: 2020-03-22T20:41:20 | BZ61: 1.6 | CA61: =IF(OR(J61="Wind",J61="Solar",J61="Hydro"),J61,IF(ISNUMBER(N61),N61,IF(ISNUMBER(P61), P61, IF(ISNUMBER(L61),L61,J61)))) -> 1.6 | CB61: 0.31875 | CC61: 0.51
A62: Big Sky West Dairy Digester | B62: 1693 | C62: 57393 | D62: GEN1,GEN2 | F62: BGICCG | G62: AW | I62: Biomass | J62: 1.5 | K62: 1.6 | L62: 1.4 | M62: 1.5 | N62: 1.4 | O62: 1.4 | P62: 1.4 | Q62: 1.4 | T62: 1.1 | W62: Operating | Y62: 2009 | AA62: Gooding | AB62: Gooding | AC62: ID | AD62: Y | AE62: Columbia | AF62: WECC | AG62: Dean Foods Co./AgPower Partners | AH62: Independent | AI62: Idaho Power (QF Jan 2009 - Jan 2029) | AM62: 2029 | AN62: 1 | AO62: 1 | AP62: 1.5 | AQ62: 1.1 | AR62: Internal thermal load | AS62: Waste digester | AV62: SPP | BB62: IPC | BK62: 1.1 | BL62: 1.03 | BM62: 1 | BN62: 0.92 | BO62: 1 | BP62: 1 | BQ62: 1 | BR62: 1.1 | BS62: 1 | BT62: 1.1 | BU62: Gasification of cattle waste. Anaerobic digestor and (2) Guascor SFGLD 560 750 kW nameplate reciprocating engines. | BV62: 42.846975 | BW62: -114.800487 | BX62: http://www.andgar.com/specialty-general-contracting-digester-projects-in-progress-big-sky-dairy.php | BY62: 2020-03-23T13:34:47 | BZ62: 1.4 | CA62: 1.4 | CB62: 0.7333333333 | CC62: 1.1
A63: Big Timber Wind Energy (Greycliff Wind) | B63: 2124 | C63: 61155 | D63: BT-MT | F63: WT | G63: WND | I63: Wind | J63: 25 | K63: 25 | P63: 25 | Q63: 25 | W63: Operating | X63: Feb | Y63: 2018 | AA63: Greycliff | AB63: Sweet Grass | AC63: MT | AD63: N | AE63: Missouri | AF63: WECC | AG63: BayWa r.e. | AH63: Independent | AI63: NorthWestern PPA (25yr PURPA) | AK63: PNW IOU | AM63: 2043 | AN63: 1 | AO63: 1 | AV63: SPP | AW63: (14) GE 1.7-100 | AX63: 80 | AY63: 100 | AZ63: 3 | BB63: NorthWestern | BS63: 7.5 | BT63: 9 | BU63: (14) GE Energy 1.79-1.00 WTG. Design wind speed 16mph. | BV63: 45.855428 | BW63: -109.649167 | BX63: 0 | BY63: 2018-10-22T11:07:43 | BZ63: 25 | CA63: 25 | CB63: 0.32 | CC63: 8
A64: Big Top (Echo Wind Farm) | B64: 1980 | C64: 56968 | D64: 1 | F64: WT | G64: WND | I64: Wind | J64: 1.65 | K64: 1.7 | N64: 1.7 | O64: 1.7 | P64: 1.7 | Q64: 1.7 | W64: Operating | X64: Jul | Y64: 2009 | AA64: Echo vicinity | AB64: Morrow/Umatilla | AC64: OR | AD64: Y | AE64: Columbia | AF64: WECC | AG64: Exelon (John Deere Renwables) | AH64: Independent | AI64: PacifiCorp | AK64: PNW IOU | AN64: 1 | AO64: 1 | AP64: =AN64*J64 -> 1.65 | AU64: PacifiCorp Irrigon Substation | AW64: (1) Vestas V82-1.65 | AX64: 80 | AY64: 82 | AZ64: 2 | BB64: PACW | BJ64: 0.09 | BK64: 0.3 | BL64: 0.44 | BM64: 0.4 | BN64: 0.43 | BO64: 0.44 | BP64: 0.394 | BQ64: 0.4 | BR64: 0.3 | BS64: 0.5 | BT64: 0.4 | BU64: Big Top Wind Farm is a part of Echo Wind Farm (1-9). Echo Wind Farm (1-9) is powered by (10) RePower MM92 turbines and (27) Vestas V82 turbines. Echo Wind Farm has a capacity of 64.5 MW. Design wind speed 12.2mph. | BV64: 45.724 | BW64: -119.436 | BX64: 0 | BY64: 2018-07-24T08:56:06 | BZ64: 1.65 | CA64: 1.7 | CB64: 0.32 | CC64: 0.536
A65: Bighorn Solar | B65: 2327 | C65: 63647 | D65: PGR16 | F65: PV | G65: SOL | I65: Solar | J65: 2.2 | K65: 2.2 | W65: Operating | X65: Dec | Y65: 2020 | AA65: Salem | AB65: Marion | AC65: OR | AD65: Y | AF65: WECC | AG65: Pine Gate Renewables | AH65: Independent | AI65: PGE QF | AN65: 1 | AO65: 1 | AV65: SPP | BU65: Per EIA, project is under construction, with est COD June 2020. | BV65: 44.9657 | BW65: -122.95423 | BY65: 2021-05-19T12:52:22 | BZ65: 2.2 | CA65: 2.2 | CB65: 0.254 | CC65: 0.5588
A66: Biglow Canyon I | B66: 1031 | C66: 56485 | D66: 1 | F66: WT | G66: WND | I66: Wind | J66: 125.4 | K66: 125.4 | P66: 125.4 | Q66: 125.4 | T66: 41.8 | W66: Operating | X66: Dec | Y66: 2007 | AA66: Wasco | AB66: Sherman | AC66: OR | AD66: Y | AE66: Columbia | AF66: WECC | AG66: Portland General Electric | AH66: IOU | AI66: Portland General Electric | AK66: PNW IOU | AN66: 1 | AO66: 1 | AP66: =AN66*J66 -> 125.4 | AQ66: =IF(ISNUMBER(T66),T66,CC66)*AN66 -> 41.8 | AU66: BPA John Day | AW66: (76) Vestas V82-1.65 | AX66: 79 | AY66: 82 | AZ66: 2 | BB66: BPA | BH66: 3.2 | BI66: 43.87 | BJ66: 39.25 | BK66: 35.61 | BL66: 55.51 | BM66: 126.5 | BN66: 135.94 | BO66: 130.42 | BP66: 119.32 | BQ66: 120.8 | BR66: 102.2 | BS66: 118.9 | BT66: 112.2 | BU66: (76) Vestas V82 1.65 MW WTG. Design wind speed 19mph. | BV66: 45.694343 | BW66: -120.626478 | BX66: http://en.wikipedia.org/wiki/Biglow_Canyon_Wind_Farm | BY66: 2017-10-17T13:00:30 | BZ66: 125.4 | CA66: 125.4 | CB66: 0.3333333333 | CC66: 41.8
A67: Biglow Canyon II | B67: 1679 | C67: 56485 | D67: 2 | F67: WT | G67: WND | I67: Wind | J67: 149.5 | K67: 163.3 | P67: 163.3 | Q67: 163.3 | T67: 49.83333333 | W67: Operating | X67: Aug | Y67: 2009 | AA67: Wasco | AB67: Sherman | AC67: OR | AD67: Y | AE67: Columbia | AF67: WECC | AG67: Portland General Electric | AH67: IOU | AI67: Portland General Electric | AK67: PNW IOU | AN67: 1 | AO67: 1 | AP67: 149.5 | AQ67: 49.83333333 | AU67: BPA John Day | AW67: (71) Siemens SWT-2.3-93 | AX67: 80 | AY67: 93 | AZ67: 2 | BB67: BPA | BU67: (65) Siemens SWT-2.3-93 WTG. Design wind speed 19mph. | BV67: 45.694343 | BW67: -120.626478 | BX67: http://en.wikipedia.org/wiki/Biglow_Canyon_Wind_Farm | BY67: 2017-10-17T13:00:33 | BZ67: 149.5 | CA67: 163.3 | CB67: 0.3333333333 | CC67: 49.83333333
A68: Biglow Canyon III | B68: 1695 | C68: 56485 | D68: 3 | F68: WT | G68: WND | I68: Wind | J68: 174.8 | K68: 161 | P68: 161 | Q68: 161 | T68: 60.9 | W68: Operating | X68: Aug | Y68: 2010 | AA68: Wasco | AB68: Sherman | AC68: OR | AD68: Y | AE68: Columbia | AF68: WECC | AG68: Portland General Electric | AH68: IOU | AI68: Portland General Electric | AK68: PNW IOU | AN68: 1 | AO68: 1 | AP68: 174.8 | AQ68: 60.9 | AU68: BPA John Day | AW68: (70) Siemens SWT-2.3-93 | AX68: 80 | AY68: 93 | AZ68: 2 | BB68: BPA | BU68: (76) Siemens SWT-2.3-93 WTG. Design wind speed 19mph. | BV68: 45.694343 | BW68: -120.626478 | BX68: http://en.wikipedia.org/wiki/Biglow_Canyon_Wind_Farm | BY68: 2017-10-17T13:00:36 | BZ68: 174.8 | CA68: 161 | CB68: 0.3483981693 | CC68: 60.9
A69: Billingsley Creek | B69: 1032 | E69: 6208 | F69: Diversion | G69: WAT | I69: Hydro | J69: 0.28 | L69: 0.2 | M69: 0.28 | T69: 0.13 | W69: Operating | Y69: 1986 | AA69: Billlingsley Cr. | AB69: Gooding | AC69: ID | AD69: Y | AE69: Columbia | AF69: WECC | AG69: Trout-Co. Inc. | AH69: Independent | AI69: Idaho Power Co. (QF thru Nov 2021) | AM69: 2021 | AN69: 1 | AO69: 1 | AP69: 0.28 | AQ69: 0.13 | BU69: Exemption granted September 1982. | BX69: 0 | BY69: 2020-03-22T20:42:07 | BZ69: 0.28 | CA69: 0.2 | CB69: 0.4642857143 | CC69: 0.13
A70: Biofuels Washington Renewable Energy Facility | B70: 2084 | C70: 58688 | D70: A,B,C | F70: IC | G70: LFG | I70: Biomass | J70: 4.5 | K70: 4.5 | P70: 4.5 | Q70: 4.5 | W70: Operating | X70: Dec | Y70: 2013 | AA70: Graham Landfill | AB70: Pierce | AC70: WA | AD70: Y | AE70: Columbia | AF70: WECC | AG70: BioFuels Washington, LLC | AH70: Municipal | AI70: Puget Sound Energy (RECs to be split between PSE and Benton Co. PUD) | AJ70: PSE and Benton Co. PUD | AN70: 1 | AO70: 1 | AP70: 4.5 | AQ70: 3.375 | AV70: SPP | BB70: PSE | BN70: 0.18 | BO70: 4.19 | BP70: 3.89 | BQ70: 4.2 | BR70: 4.1 | BS70: 3.9 | BT70: 3.6 | BU70: (3) 1.5 MW 3520 Caterpillar generators. DG so REC's count double. RECs split between PSE and Benton Cty PUD. | BV70: 46.975556 | BW70: -122.290556 | BX70: http://www.tpchd.org/environment/waste-management/lri-landfill/biofuels/ | BY70: 2017-10-24T09:48:24 | BZ70: 4.5 | CA70: 4.5 | CB70: 0.75 | CC70: 3.375
A71: Biomass One 1 & 2 | B71: 1033 | C71: 10869 | D71: BBC,GE,GE-2 | F71: STCG | G71: WW | I71: Biomass | J71: 30 | K71: 40 | L71: 25 | M71: 25 | N71: 29 | O71: 29 | P71: 36.5 | Q71: 36.5 | W71: Operating | X71: Dec | Y71: 1985 | AA71: White City | AB71: Jackson | AC71: OR | AD71: Y | AE71: Puget Sound & Coastal | AF71: WECC | AG71: Biomass 1, L.P. | AH71: Independent | AI71: PacifiCorp (QF Dec 1985 - Dec 2011) | AM71: 2011 | AN71: 1 | AO71: 1 | AP71: 30 | AQ71: 21.6 | AS71: Lumber & wood products | AV71: SPP | BB71: PACW | BG71: 5.413812785 | BH71: 4.4 | BI71: 4.31 | BJ71: 14.5 | BK71: 17.3 | BL71: 13.41 | BM71: 14.6 | BN71: 19.64 | BO71: 22.28 | BP71: 17.42 | BQ71: 17.7 | BR71: 13.4 | BS71: 18.9 | BT71: 18.6 | BU71: Unit 1 (10 MW) operating; Unit 2 (15 MW) idle, DOE/EIA-0095(99)/2 | BV71: 42.436 | BW71: -122.85 | BX71: http://www.biomassone.com/ | BY71: 2020-04-02T15:34:49 | BZ71: 25 | CA71: 29 | CB71: 0.8 | CC71: 21.6
A72: Biotech/Life Sciences Building Generator 836 | B72: 1993 | C72: 56932 | D72: BLS1 | F72: IC | G72: FO2 | I72: Petroleum | J72: 1 | K72: 1 | N72: 1 | O72: 1 | P72: 1 | Q72: 1 | W72: Operating | X72: May | Y72: 2009 | AA72: Pullman | AB72: Whitman | AC72: WA | AD72: Y | AE72: Columbia | AF72: WECC | AG72: State of Washington | AH72: Independent | AI72: Load-side emrg. | AN72: 1 | AO72: 0 | AP72: 1 | AQ72: 0.93 | BB72: Avista | BK72: 0 | BL72: 0 | BM72: 0 | BN72: 0 | BO72: 0 | BP72: 0 | BQ72: 0 | BR72: 0 | BS72: 0 | BT72: 0 | BU72: (1) 1MW FO IC unit | BV72: 46.7331 | BW72: -117.1583 | BX72: 0 | BY72: 2017-10-17T13:03:01 | BZ72: 1 | CA72: 1 | CB72: 0.93 | CC72: 0.93
A73: Birch Creek | B73: 1034 | C73: 10140 | D73: GEN1 | E73: 7194 | F73: Canal | G73: WAT | I73: Hydro | J73: 2.6 | K73: 2.6 | L73: 0 | M73: 0.31 | N73: 2.6 | O73: 2.6 | P73: 2.6 | Q73: 2.6 | V73: 0 | W73: Operating | X73: Apr | Y73: 1986 | AA73: Birch Cr. | AB73: Clark | AC73: ID | AD73: Y | AE73: Columbia | AF73: WECC | AG73: Birch Power Co. & T.S. Sorenson | AH73: Independent | AI73: Idaho Power Co. (QF thru Oct 2019) | AM73: 2019 | AN73: 1 | AO73: 1 | AP73: 2.6 | AQ73: 1.1102 | AV73: SPP | BB73: PACE | BG73: 0.5530821918 | BH73: 0.4 | BI73: 0.46 | BJ73: 1.29 | BK73: 1.2 | BL73: 1.49 | BM73: 1.8 | BN73: 1.4 | BO73: 1.51 | BP73: 1.4 | BQ73: 1.3 | BR73: 1.1 | BS73: 1.5 | BT73: 1.5 | BU73: License granted May 1986; expires April 2036. Critical energy from PNUCC 2005 NRF | BV73: =IF(ISNA(VLOOKUP($B73,lkpLatLong,3,FALSE)),"",VLOOKUP($B73,lkpLatLong,3,FALSE)) -> 44.027444 | BW73: =IF(ISNA(VLOOKUP($B73,lkpLatLong,4,FALSE)),"",VLOOKUP($B73,lkpLatLong,4,FALSE)) -> -112.719439 | BX73: 0 | BY73: 2020-03-22T20:42:35 | BZ73: =IF(OR(I73="Wind",I73="Solar",I73="Hydro"),J73,IF(ISNUMBER(L73),L73,IF(ISNUMBER(O73), O73, IF(ISNUMBER(Q73),Q73,J73)))) -> 2.6 | CA73: 2.6 | CB73: =IF(OR(ISBLANK(J73),ISBLANK(T73),J73=0),VLOOKUP(IF(G73="WAT","HY",IF(G73="LFG","LFG",F73)),Acapability,4,FALSE),T73/J73) -> 0.427 | CC73: =IF(ISNUMBER(T73),T73,AVERAGE(BZ73,CA73)*CB73) -> 1.1102
A74: Birch Creek B | B74: 1035 | E74: 6458B | F74: Conduit | G74: WAT | I74: Hydro | J74: 0.05 | L74: 0.3 | M74: 0.04 | N74: 0.05 | O74: 0.05 | V74: 1 | W74: Operating | Y74: 1984 | AA74: Birch Cr. | AB74: Gooding | AC74: ID | AD74: Y | AE74: Columbia | AF74: WECC | AG74: E. Jensen | AH74: Independent | AI74: PacifiCorp (QF thru Mar 2021) | AM74: 2021 | AN74: 1 | AO74: 1 | AP74: 0.05 | AQ74: 0.02135 | BU74: Exemption granted December 1982. Critical energy from PNUCC 2005 NRF | BX74: 0 | BY74: 2020-03-22T20:42:42 | BZ74: 0.05 | CA74: 0.05 | CB74: 0.427 | CC74: 0.02135
A75: Black Canyon 1 - 2 | B75: 1036 | C75: 6396 | D75: 1,2 | E75: FCRPS | F75: Storage | G75: WAT | I75: Hydro | J75: 10.2 | K75: 10.2 | M75: 3.27 | N75: 12 | O75: 6 | P75: 10.2 | Q75: 10.2 | T75: 8 | W75: Operating | Y75: 1986 | AA75: Payette R. | AB75: Gem | AC75: ID | AD75: Y | AE75: Columbia | AF75: WECC | AG75: USBR | AH75: Federal | AI75: BPA | AL75: Rewound units. | AN75: 1 | AO75: 1 | AP75: 10.2 | AQ75: 8 | BB75: IPC | BC75: 6.6 | BD75: 7.6 | BE75: 5 | BF75: 1.516210046 | BG75: 2.571803653 | BH75: 5.1 | BI75: 1.51 | BJ75: 7.08 | BK75: 6.5 | BL75: 7.66 | BM75: 7 | BN75: 6.35 | BO75: 7.27 | BP75: 7.01 | BQ75: 7.1 | BR75: 7.4 | BS75: 7.1 | BT75: 6.2 | BV75: 43.9304438 | BW75: -116.4365228 | BX75: http://www.usbr.gov/projects/Facility.jsp?fac_Name=Black+Canyon+Diversion+Dam | BY75: 2020-03-29T22:02:56 | BZ75: 10.2 | CA75: 12 | CB75: 0.7843137255 | CC75: 8
A76: Black Canyon No. 3 | B76: 1037 | E76: 6137 | F76: Canal | G76: WAT | I76: Hydro | J76: 0.1 | M76: 0 | N76: 0 | O76: 0 | V76: 0 | W76: Operating | Y76: 1983 | AA76: N. Gooding Main Cnl. | AB76: Gem | AC76: ID | AD76: Y | AE76: Columbia | AF76: WECC | AG76: W. & S. Brown | AH76: Independent | AI76: Idaho Power Co. (QF thru Apr 2019) | AM76: 2019 | AN76: 1 | AO76: 1 | AP76: 0.1 | AQ76: 0.02135 | BU76: Exemption granted July 1982. Critical energy from PNUCC 2005 NRF | BX76: 0 | BY76: 2020-03-22T20:42:56 | BZ76: 0.1 | CA76: 0 | CB76: 0.427 | CC76: 0.02135
A77: Black Cap Solar II (PSEG Lake County Solar Energy Center) | B77: 2162 | C77: 60616 | D77: BCSLR | F77: PV | G77: SOL | I77: Solar | J77: 8 | K77: 8 | P77: 8 | Q77: 8 | W77: Operating | X77: Dec | Y77: 2016 | AA77: Lakeview | AB77: Lake | AC77: OR | AD77: Y | AE77: Klamath | AF77: WECC | AG77: PSEG (purchased from Obsidian Nov 2016) | AH77: Independent | AI77: PacifiCorp (QF thru 2036) | AM77: 2036 | AN77: 1 | AO77: 1 | AP77: 8 | AQ77: 2.032 | AV77: SPP | BA77: Single-axis | BB77: PACW | BR77: 2 | BS77: 2.1 | BT77: 2.1 | BU77: Crystalline silicone. 10.5MWdc, azimuth angle 90. | BV77: 42.175 | BW77: -120.3598 | BY77: 2017-11-15T10:52:54 | BZ77: 8 | CA77: 8 | CB77: 0.254 | CC77: 2.032
A78: Black Cap Solar Project | B78: 2012 | C78: 58150 | D78: 1 | F78: PV | G78: SOL | I78: Solar | J78: 2 | K78: 2 | P78: 2 | Q78: 2 | W78: Operating | X78: Oct | Y78: 2012 | AA78: Near Lakeview, OR | AB78: Lake | AC78: OR | AD78: Y | AE78: Klamath | AF78: WECC | AG78: Obsidian Finance Group/ Black Cap Solar LLC; PacifiCorp owns the project's rights and land | AH78: Independent | AI78: PacifiCorp | AJ78: PacifiCorp (bundled RECs) - 2x multiplier for solar in OR | AN78: 1 | AO78: 1 | AP78: 2 | AQ78: 0.508 | BA78: Single-axis | BB78: PACW | BM78: 0.1 | BN78: 0.54 | BO78: 0.49 | BP78: 0.51 | BQ78: 0.5 | BR78: 0.5 | BS78: 0.5 | BT78: 0.4 | BU78: Crystalline silicone. 2.6MWdc, azimuth angle 90. (8,976) PV modules mounted on single-axis trackers. | BV78: 42.171 | BW78: -120.361 | BX78: http://www.pacificorp.com/blackcap | BY78: 2017-10-17T13:07:29 | BZ78: 2 | CA78: 2 | CB78: 0.254 | CC78: 0.508
A79: Black Creek | B79: 1038 | C79: 54860 | D79: GEN1 | E79: 6221 | F79: Diversion | G79: WAT | I79: Hydro | J79: 3.7 | K79: 3.7 | L79: 3.7 | M79: 3.7 | N79: 2 | O79: 0 | P79: 3.7 | Q79: 3.7 | T79: 2 | V79: 2 | W79: Operating | X79: Feb | Y79: 1994 | AA79: Black Cr. | AB79: King | AC79: WA | AD79: Y | AE79: Puget Sound & Coastal | AF79: WECC | AG79: Black Creek Hydro, Inc. | AH79: Independent | AI79: Listed NUG per 2009 White Book | AN79: 1 | AO79: 1 | AP79: 3.7 | AQ79: 2 | BB79: PSE | BI79: 0.04 | BJ79: 0.71 | BK79: 1.3 | BL79: 1.49 | BM79: 1.3 | BN79: 1.47 | BO79: 1.61 | BP79: 0.73 | BQ79: 1.4 | BR79: 1.3 | BS79: 1.3 | BT79: 0.9 | BU79: License granted July 1988; expires June 2038. Critical energy from PNUCC 2005 NRF. Certified Low-impact. | BV79: 47.534465 | BW79: -121.702596 | BX79: 0 | BY79: 2020-03-22T20:43:06 | BZ79: 3.7 | CA79: 2 | CB79: 0.5405405405 | CC79: 2
A80: Black Eagle 1 - 3 | B80: 1039 | C80: 2181 | D80: BLA1,BLA2,BLA3 | E80: 2188E | F80: ROR | G80: WAT | I80: Hydro | J80: 20.9 | K80: 24 | N80: 21 | O80: 21 | P80: 21 | Q80: 21 | T80: 15.45 | W80: Operating | X80: Sep | Y80: 1927 | AA80: Missouri R. | AB80: Cascade | AC80: MT | AD80: N | AE80: Missouri | AF80: WECC | AG80: Northwestern Energy purchased from PPL Montana, finalized Nov. 2014. | AH80: IOU | AI80: Northwestern Energy | AL80: Unit 1 planned to come offline at end of April for turbine replacement (1.5MW upgrade) - scheduled to be back online Q1 2021. | AN80: 0.31 | AO80: 0.31 | AP80: 6.479 | AQ80: 4.7895 | BB80: NorthWestern | BI80: 14.41 | BJ80: 16.28 | BK80: 16.2 | BL80: 16.79 | BM80: 13.8 | BN80: 12.56 | BO80: 13.81 | BP80: 14.53 | BQ80: 13.5 | BR80: 14.4 | BS80: 15.8 | BT80: 16.2 | BU80: Original License granted April 1956; expired November 1994. | BV80: 47.52027 | BW80: -111.26248 | BX80: http://www.northwesternenergy.com/our-company/hydroelectric-facilities | BY80: 2020-03-25T12:15:49 | BZ80: 20.9 | CA80: 21 | CB80: 0.7392344498 | CC80: 15.45
A81: Black Eagle Solar | B81: 2226 | C81: 61336 | D81: BESMT | F81: PV | G81: SOL | I81: Solar | J81: 3 | K81: 3 | P81: 3 | Q81: 3 | T81: =6520/8760 -> 0.7442922374 | W81: Operating | X81: Sep | Y81: 2017 | AA81: Black Eagle, MT | AB81: Cascade | AC81: MT | AD81: N | AE81: Missouri | AF81: WECC | AG81: Developed by Cypress Creek Renewables, owned by Enerparc. | AH81: Independent | AI81: NorthWestern Energy (25yr PPA) | AM81: 2042 | AN81: 0.31 | AO81: 0.31 | AP81: 0.93 | AQ81: 0.2307305936 | AV81: SPP | BA81: Single-axis | BB81: NorthWestern | BR81: 0.1 | BS81: 0.7 | BT81: 0.7 | BU81: Crystalline silicone. 4.1MWdc, azimuth angle 90, tilt 45. ~35 acres, 10,000-12,000 panels | BV81: 47.547466 | BW81: -111.253974 | BX81: 0 | BY81: 2018-01-06T11:14:22 | BZ81: 3 | CA81: 3 | CB81: 0.2480974125 | CC81: 0.7442922374
A82: Blind Canyon | B82: 1040 | C82: 54514 | D82: 1 | E82: 8375 | F82: Diversion | G82: WAT | I82: Hydro | J82: 1.3 | K82: 1.3 | L82: 0 | M82: 0 | N82: 0.62 | O82: 0 | P82: 1.3 | Q82: 1.3 | V82: 0 | W82: Operating | X82: Apr | Y82: 1992 | AA82: Blind Canyon Spr. | AB82: Gooding | AC82: ID | AD82: Y | AE82: Columbia | AF82: WECC | AG82: Blind Canyon Aquaranch, Inc. | AH82: Independent | AI82: Idaho Power Co. (QF thru Apr 2014; Dec 2014 - Dec 2034) | AM82: 2034 | AN82: 1 | AO82: 1 | AP82: 1.3 | AQ82: 0.40992 | AV82: SPP | BB82: IPC | BI82: 0.44 | BJ82: 0.5 | BK82: 0.5 | BL82: 0.63 | BM82: 0.5 | BN82: 0.32 | BO82: 0.38 | BP82: 0.45 | BQ82: 0.4 | BR82: 0.5 | BS82: 0.5 | BT82: 0.2 | BU82: Exemption granted October 1985 Critical energy from PNUCC 2005 NRF | BV82: 42.69984 | BW82: -114.822603 | BX82: 0 | BY82: 2020-03-22T20:43:21 | BZ82: 1.3 | CA82: 0.62 | CB82: 0.427 | CC82: 0.40992
A83: Bliss 1 - 3 | B83: 1041 | C83: 810 | D83: 1,2,3 | E83: 1975 | F83: ROR | G83: WAT | I83: Hydro | J83: 75 | K83: 75 | M83: 75 | N83: 75 | O83: 75 | P83: 81.4 | Q83: 77.9 | T83: 42 | V83: 42 | W83: Operating | X83: Nov | Y83: 1949 | AA83: Snake R. | AB83: Gooding | AC83: ID | AD83: Y | AE83: Columbia | AF83: WECC | AG83: Idaho Power Co. | AH83: IOU | AI83: Idaho Power Co. | AN83: 1 | AO83: 1 | AP83: 75 | AQ83: 42 | BB83: IPC | BI83: 36 | BJ83: 44.32 | BK83: 38.4 | BL83: 58.63 | BM83: 42 | BN83: 33.31 | BO83: 34.42 | BP83: 35.6 | BQ83: 32.8 | BR83: 39.2 | BS83: 40.4 | BT83: 44.3 | BU83: Original license granted March 1948; expired February 1998. Relicense granted Aug 2004. Critical energy from PNUCC 2005 NRF | BV83: 42.913 | BW83: -115.07 | BX83: 0 | BY83: 2020-03-21T21:12:28 | BZ83: 75 | CA83: 75 | CB83: 0.56 | CC83: 42
A84: Blue Heron Paper | B84: 1042 | F84: STCG | G84: NG | H84: FO | I84: Natural gas | J84: 15 | W84: Retired | Z84: 2011 | AA84: Oregon City | AB84: Clackamas | AC84: OR | AD84: Y | AE84: Columbia | AF84: WECC | AG84: Blue Heron Paper Co. | AH84: Independent | AI84: Retired | AN84: 0 | AO84: 0 | AP84: 0 | AQ84: 0 | AR84: Blue Heron Paper | AS84: Groundwood, deinking, newsprint mills | AT84: Williams Northwest | BU84: Was Smurfit Stone Container Corp. | BV84: 45.355 | BW84: -122.6128 | BX84: 0 | BY84: 2020-03-25T22:01:16 | BZ84: 15 | CA84: 15 | CB84: 0.8 | CC84: 12
A85: Blue Mountain Lumber Products | B85: 1043 | F85: STCG | G85: WW | I85: Biomass | J85: 3.5 | W85: Retired | Y85: 1986 | Z85: 1996 | AA85: Long Creek | AB85: Grant | AC85: OR | AD85: Y | AE85: Columbia | AF85: WECC | AG85: Blue Mtn Forest Products | AH85: Independent | AI85: Retired | AN85: 0 | AO85: 0 | AP85: 0 | AQ85: 0 | AR85: Blue Mountain Forest Products | AS85: Lumber & wood products | BF85: n/a | BG85: n/a | BU85: Sold and to be dismantled. | BX85: 0 | BY85: 2005-02-10 | BZ85: 3.5 | CA85: 3.5 | CB85: 0.8 | CC85: 2.8
A86: Blundell II | B86: 2029 | C86: 299 | D86: 2 | F86: GB | G86: GST | I86: Geothermal | J86: 14.1 | K86: 12 | P86: 11 | Q86: 9 | W86: Operating | X86: Dec | Y86: 2007 | AA86: Roosevelt Hot Springs, Milford, UT | AB86: Beaver | AC86: UT | AD86: N | AF86: WECC | AG86: PacifiCorp | AH86: IOU | AI86: PacifiCorp | AJ86: PacifiCorp (bundled RECs) | AN86: 1 | AO86: 1 | AP86: 14.1 | AQ86: 9 | BB86: PACE | BU86: Blundell II - employs "bottoming" cycle of binary heat-recovery process to extract more energy from hot geothermal brine left over from steam seperation cycle. 26.1 MW Blundell I uses "flash" technology, operating in 1984. | BV86: 38.486 | BW86: -112.852 | BX86: http://www.pacificorp.com/es/re/blundell.html | BY86: 2020-03-26T10:41:06 | BZ86: 9 | CA86: 11 | CB86: 0.9 | CC86: 9
A87: Bly Solar Center | B87: 2163 | C87: 62272 | F87: PV | G87: SOL | I87: Solar | J87: 8.5 | K87: 8.5 | W87: Operating | X87: Jun | Y87: 2018 | AA87: Bonanza | AB87: Klamath | AC87: OR | AD87: Y | AE87: Klamath | AF87: WECC | AG87: GCL Energy Holdings | AH87: Independent | AI87: Pacificorp (20yr QF PPA) | AJ87: PacifiCorp (bunded RECs) | AM87: 2038 | AN87: 1 | AO87: 1 | AP87: 8.5 | BA87: Single-axis | BB87: PACW | BS87: 0.1 | BT87: 2.1 | BU87: Crystalline silicone. Single-axis tracker. 11MWdc. | BV87: 42.379312 | BW87: -121.018481 | BX87: http://www.swinertonrenewable.com/projects/bly | BY87: 2019-11-22T12:15:37 | BZ87: 8.5 | CA87: 8.5 | CB87: 0.254 | CC87: 2.159
A88: Boardman | B88: 1044 | C88: 6106 | D88: 1 | F88: ST | G88: COL | I88: Coal | J88: 601 | K88: 642.2 | L88: 580 | M88: 570 | N88: 606 | O88: 610 | P88: 585 | Q88: 585 | R88: 90 | S88: 0.95 | W88: Retired | X88: Aug | Y88: 1980 | Z88: 2020 | AA88: Boardman | AB88: Morrow | AC88: OR | AD88: Y | AE88: Columbia | AF88: WECC | AG88: PGE (90%); IPC (10%) | AH88: Coop/IOU/Independent | AI88: PGE (90%); IPC (10%) | AM88: 2018 | AN88: 0 | AO88: 0 | AP88: 0 | AQ88: =IF(ISNUMBER(T88),T88,CC88)*AN88 -> 0 | BB88: BPA (PRC share), IPC (share), PGE (share) | BC88: 430.8 | BD88: 490.9 | BE88: 403.8 | BF88: 396.3037671 | BG88: 272.6635845 | BH88: 497.2 | BI88: 462.08 | BJ88: 365.32 | BK88: 471.43 | BL88: 381.29 | BM88: 301.4 | BN88: 429.11 | BO88: 365.56 | BP88: 272.01 | BQ88: 217.2 | BR88: 198.5 | BS88: 146.7 | BT88: 293.8 | BU88: One 560.5 MW STG. | BV88: 45.6964 | BW88: -119.808 | BX88: http://en.wikipedia.org/wiki/Boardman_Coal_Plant | BY88: 2021-04-11T21:31:20 | BZ88: 580 | CA88: 606 | CB88: 0.86 | CC88: 509.98
A89: Boise (Elgin) | B89: 1045 | F89: STCG | G89: WW | I89: Biomass | J89: 7.5 | T89: 7.5 | W89: Retired | Z89: 2000 | AA89: Elgin | AB89: Union | AC89: OR | AD89: Y | AE89: Columbia | AF89: WECC | AG89: Boise Cascade | AH89: Independent | AI89: Retired | AN89: 0 | AO89: 0 | AP89: 0 | AQ89: =IF(ISNUMBER(T89),T89,CC89)*AN89 -> 0 | AR89: Boise Cascade Elgin | AS89: Lumber & wood products | BF89: n/a | BG89: n/a | BX89: 0 | BY89: 2005-07-20 | BZ89: 7.5 | CA89: 7.5 | CB89: 1 | CC89: 7.5
A90: Boise 1 & 2 (Medford) | B90: 1046 | C90: 56193 | D90: 1,2 | F90: STCG | G90: WW | I90: Biomass | J90: 8.5 | K90: 8.5 | L90: 0 | M90: 8.5 | N90: 7.5 | O90: 7.5 | P90: 7.5 | Q90: 7.5 | W90: Idle | X90: Jun | Y90: 1956 | AA90: Medford | AB90: Jackson | AC90: OR | AD90: Y | AE90: Puget Sound & Coastal | AF90: WECC | AG90: Boise Cascade | AH90: Independent | AI90: Listed NUG per 2009 White Book | AN90: 0 | AO90: 0 | AP90: 0 | AQ90: =IF(ISNUMBER(T90),T90,CC90)*AN90 -> 0 | AR90: Boise Cascade - Medford Operations | AS90: Sawmill | AV90: SPP | BB90: PACW | BI90: 0.01 | BJ90: 0.26 | BN90: 0 | BO90: 0 | BU90: Per SNL, plant is mothballed. No EIA generation data for 2015. | BV90: 42.355075 | BW90: -122.900775 | BX90: 0 | BY90: 2020-03-31T17:03:50 | BZ90: 0 | CA90: 7.5 | CB90: 0.8 | CC90: 3
A91: Boise City Solar (ID Solar 1) | B91: 1932 | C91: 60445 | D91: INV1 | F91: PV | G91: SOL | I91: Solar | J91: 40 | K91: 40 | P91: 40 | Q91: 40 | T91: 10.48 | W91: Operating | X91: Jun | Y91: 2016 | AA91: Kuna | AB91: Ada | AC91: ID | AD91: Y | AE91: Columbia | AF91: WECC | AG91: Entropy Solar Integrators | AH91: Independent | AI91: Idaho Power Co (20 yr ESA) | AM91: 2036 | AN91: 1 | AO91: 1 | AP91: 40 | AQ91: =IF(ISNUMBER(T91),T91,CC91)*AN91 -> 10.48 | AV91: SPP | BA91: Single-axis | BB91: IPC | BQ91: 3 | BR91: 10.1 | BS91: 11.1 | BT91: 10.7 | BU91: Single axis tracking system. 563 acreage lot. (174,800) Poly c-Si Jinko modules. EPC contractor Depcom. 40MWac/54.37MWdc. Azimuth angle 180, tilt angle 20. | BV91: 43.386694 | BW91: -116.334094 | BY91: 2017-10-18T10:44:43 | BZ91: 40 | CA91: 40 | CB91: 0.262 | CC91: 10.48
A92: Boise River Diversion 1- 3 | B92: 1047 | C92: 6397 | D92: 1A,2A,3A | E92: FCRPS | F92: ROR | G92: WAT | I92: Hydro | J92: 3.4 | K92: 3.3 | M92: 0 | N92: 3.3 | O92: 3.3 | P92: 3.3 | Q92: 3.3 | T92: 2 | W92: Operating | X92: May | Y92: 1912 | AA92: Boise R. | AB92: Ada | AC92: ID | AD92: Y | AE92: Columbia | AF92: WECC | AG92: USBR | AH92: Federal | AI92: BPA | AL92: Rewound units | AN92: 1 | AO92: 1 | AP92: 3.4 | AQ92: =IF(ISNUMBER(T92),T92,CC92)*AN92 -> 2 | BB92: IPC | BE92: 0.9 | BF92: 0.575 | BG92: 0.995890411 | BH92: 1.1 | BI92: 0.41 | BJ92: 0.85 | BK92: 1 | BL92: 1.05 | BM92: 1.3 | BN92: 0.91 | BO92: 0.8 | BP92: 0.94 | BQ92: 1 | BR92: 1.3 | BS92: 1.1 | BT92: 1 | BU92: (3) turbine-generators. Idled 1982. Rehabilitation underway Nov 2002; returned to service Aug 2004. | BV92: 43.5375 | BW92: -116.09333 | BX92: http://www.usbr.gov/projects/Powerplant.jsp?fac_Name=Boise+River+Diversion+Powerplant | BY92: 2020-03-29T22:06:25 | BZ92: 3.4 | CA92: 3.3 | CB92: 0.5882352941 | CC92: 2
A93: Bonanza Solar (Norwest 4) | B93: 2210 | C93: 62268 | D93: NWE4 | F93: PV | G93: SOL | I93: Solar | J93: 6 | K93: 5.6 | W93: Operating | X93: Dec | Y93: 2018 | AA93: Bonanza | AB93: Klamath | AC93: OR | AD93: Y | AE93: Klamath | AF93: WECC | AG93: New Energy Solar Ltd. | AH93: Independent | AI93: Pacificorp (20yr QF PPA) | AM93: 2038 | AN93: 1 | AO93: 1 | AV93: SPP | BA93: Single-axis | BB93: PACW | BS93: 0 | BT93: 1.2 | BU93: Single-axis tracking. 6.8MWdc. | BV93: 42.201881 | BW93: -121.355799 | BY93: 2019-02-26T09:05:09 | BZ93: 6 | CA93: =IF(OR(J93="Wind",J93="Solar",J93="Hydro"),J93,IF(ISNUMBER(N93),N93,IF(ISNUMBER(P93), P93, IF(ISNUMBER(L93),L93,J93)))) -> 6 | CB93: 0.254 | CC93: 1.524
A94: Bonners Ferry 1 | B94: 1048 | F94: IC | G94: FO | I94: Petroleum | J94: 0.2 | O94: 0.2 | W94: Retired | Y94: 1930 | Z94: Unknown | AA94: Bonners Ferry | AB94: Boundary | AC94: ID | AD94: Y | AE94: Columbia | AF94: WECC | AG94: City of Bonners Ferry | AH94: Municipal | AI94: Retired | AN94: 0 | AO94: 0 | AP94: =AN94*J94 -> 0 | AQ94: =IF(ISNUMBER(T94),T94,CC94)*AN94 -> 0 | BX94: 0 | BY94: 2008-04-14 | BZ94: 0.2 | CA94: 0.2 | CB94: 0.93 | CC94: 0.186
A95: Bonners Ferry 2 | B95: 1049 | F95: IC | G95: FO | I95: Petroleum | J95: 1.1 | O95: 1.1 | W95: Retired | Y95: 1930 | Z95: Unknown | AA95: Bonners Ferry | AB95: Boundary | AC95: ID | AD95: Y | AE95: Columbia | AF95: WECC | AG95: City of Bonners Ferry | AH95: Municipal | AI95: Retired | AN95: 0 | AO95: 0 | AP95: 0 | AQ95: =IF(ISNUMBER(T95),T95,CC95)*AN95 -> 0 | BX95: 0 | BY95: 2008-04-14 | BZ95: 1.1 | CA95: 1.1 | CB95: 0.93 | CC95: 1.023
A96: Bonners Ferry 3 | B96: 1050 | F96: IC | G96: FO | I96: Petroleum | J96: 1.1 | O96: 1.1 | W96: Retired | Y96: 1973 | Z96: Unknown | AA96: Bonners Ferry | AB96: Boundary | AC96: ID | AD96: Y | AE96: Columbia | AF96: WECC | AG96: City of Bonners Ferry | AH96: Municipal | AI96: Retired | AN96: 0 | AO96: 0 | AP96: 0 | AQ96: =IF(ISNUMBER(T96),T96,CC96)*AN96 -> 0 | BX96: 0 | BY96: 2008-04-14 | BZ96: 1.1 | CA96: 1.1 | CB96: 0.93 | CC96: 1.023
A97: Bonneville 1 - 18 | B97: 1051 | C97: 3075 | D97: 1,2,3,4,5,6,7,8,9,10,11,12,13,14,15,16,17,18 | E97: FCRPS | F97: ROR | G97: WAT | I97: Hydro | J97: 1050.4 | K97: 1135.8 | M97: 980 | N97: 1086.7 | O97: 1086.7 | P97: 1127.7 | Q97: 1127.7 | T97: 578 | V97: 402 | W97: Operating | X97: Jul | Y97: 1938 | AA97: Columbia R. | AB97: Multnomah/Skamania | AC97: OR/WA | AD97: Y | AE97: Columbia | AF97: WECC | AG97: USCE | AH97: Federal | AI97: BPA | AN97: 1 | AO97: 1 | AP97: 1050.4 | AQ97: =IF(ISNUMBER(T97),T97,CC97)*AN97 -> 578 | BB97: BPA | BC97: 534.5 | BD97: 512.8 | BE97: 534.3 | BF97: 492.166895 | BG97: 580.2909817 | BH97: 520.4 | BI97: 515.49 | BJ97: 509.8 | BK97: 460.61 | BL97: 629.14 | BM97: 633.5 | BN97: 533.28 | BO97: 556.73 | BP97: 471.13 | BQ97: 528 | BR97: 551.9 | BS97: 554.8 | BT97: 480.3 | BU97: Nameplate, Summer & Winter from FERC 714. Critical energy from PNUCC 2005 NRF | BV97: 45.638 | BW97: -121.942 | BX97: http://www.nwcouncil.org/energy/powersupply/dams/dam.asp?id=1 | BY97: 2020-03-29T22:12:39 | BZ97: 1050.4 | CA97: 1086.7 | CB97: 0.5502665651 | CC97: 578
A98: Bonneville Fishway F1 & F2 | B98: 1052 | C98: 3075 | D98: F1,F2 | E98: FCRPS | F98: ROR | G98: WAT | I98: Hydro | J98: 26.2 | K98: 26.2 | N98: 26.2 | O98: 26.2 | P98: 26.2 | Q98: 26.2 | T98: 21 | V98: 21 | W98: Operating | X98: Nov | Y98: 1981 | AA98: Columbia R. | AB98: Multnomah/Skamania | AC98: OR/WA | AD98: Y | AE98: Columbia | AF98: WECC | AG98: USCE | AH98: Federal | AI98: BPA | AN98: 1 | AO98: 1 | AP98: 26.2 | AQ98: =IF(ISNUMBER(T98),T98,CC98)*AN98 -> 21 | BB98: BPA | BU98: Nameplate, Summer & Winter from FERC 714. Critical energy from PNUCC 2005 NRF | BV98: 45.638 | BW98: -121.942 | BX98: 0 | BY98: 2017-10-17T13:24:27 | BZ98: 26.2 | CA98: 26.2 | CB98: 0.8015267176 | CC98: 21
A99: Boring Solar | B99: 2277 | C99: 62169 | D99: BSPV2 | F99: PV | G99: SOL | I99: Solar | J99: 2.2 | K99: 2.2 | P99: 2.2 | Q99: 2.2 | W99: Operating | X99: Apr | Y99: 2019 | AA99: Boring, OR | AB99: Clackamas | AC99: OR | AD99: Y | AE99: Columbia | AF99: WECC | AG99: BNRG Renewables | AH99: Independent | AI99: PGE (20yr QF) | AM99: 2039 | AN99: 1 | AO99: 1 | AP99: 2.2 | AV99: SPP | BA99: Fixed tilt | BB99: PGE | BT99: 0.4 | BU99: Crystalline silicone. 3.4MWdc, azimuth angle 180, tilt 20. | BV99: 45.430825 | BW99: -122.28444444 | BX99: 0 | BY99: 2019-07-09T12:58:01 | BZ99: 2.2 | CA99: 2.2 | CB99: 0.254 | CC99: 0.5588
A100: Boulder Creek | B100: 1053 | E100: 7086 | F100: Diversion | G100: WAT | I100: Hydro | J100: 0.35 | L100: 0.2 | N100: 0.35 | O100: 0.35 | T100: 0.21 | W100: Operating | Y100: 1984 | AA100: Boulder Cr. | AB100: Lake | AC100: MT | AD100: Y | AE100: Columbia | AF100: WECC | AG100: Salish & Kookenai Tribes | AH100: Independent | AI100: NorthWestern QF (thru June 2022) | AM100: 2022 | AN100: 0.31 | AO100: 0.31 | AP100: 0.1085 | AQ100: =IF(ISNUMBER(T100),T100,CC100)*AN100 -> 0.0651 | BU100: Exemption granted September 1983. | BX100: 0 | BY100: 2020-04-14T12:49:26 | BZ100: 0.35 | CA100: 0.35 | CB100: 0.6 | CC100: 0.21
A101: Boulder Park 1-6 | B101: 1054 | C101: 8022 | D101: 1,2,3,4,5,6 | F101: IC | G101: NG | I101: Natural gas | J101: 24.6 | K101: 24.6 | L101: 25 | M101: 24.6 | N101: 24.6 | O101: 24.6 | P101: 24.6 | Q101: 24.6 | R101: 24.6 | S101: 0.8 | W101: Operating | X101: May | Y101: 2002 | AA101: Spokane | AB101: Spokane | AC101: WA | AD101: Y | AE101: Columbia | AF101: WECC | AG101: Avista | AH101: IOU | AI101: Avista Utilities | AN101: 1 | AO101: 1 | AP101: 24.6 | AQ101: 23.064 | AT101: TransCanada GTN/Williams Northwest | BB101: Avista | BC101: 1 | BD101: 1.8 | BE101: 0.9 | BF101: 0.775456621 | BG101: 0.8913242009 | BH101: 1.6 | BI101: 1.35 | BJ101: 3.17 | BK101: 1.2 | BL101: 1.04 | BM101: 0.6 | BN101: 2.96 | BO101: 1.69 | BP101: 2.56 | BQ101: 2.1 | BR101: 3 | BS101: 5.5 | BT101: 7.6 | BU101: (6) 4.1 MW Wartsila units. | BV101: 47.696410 | BW101: -117.147488 | BX101: 0 | BY101: 2020-07-15T16:26:00 | BZ101: 25 | CA101: 24.6 | CB101: 0.93 | CC101: 23.064
A102: Boundary 1 - 6 | B102: 1055 | C102: 6433 | D102: 51,52,53,54,55,56 | E102: 2144 | F102: Storage | G102: WAT | I102: Hydro | J102: 1039.8 | K102: 1118.6 | M102: 717 | N102: 1039.8 | O102: 1039.8 | P102: 1103.8 | Q102: 1103.8 | T102: 454 | V102: 303 | W102: Operating | X102: Aug | Y102: 1967 | AA102: Pend Oreille R. | AB102: Pend Oreille | AC102: WA | AD102: Y | AE102: Columbia | AF102: WECC | AG102: City of Seattle | AH102: Municipal | AI102: City of Seattle | AN102: 1 | AO102: 1 | AP102: 1039.8 | AQ102: 454 | BB102: SCE | BC102: 451.5 | BD102: 407.5 | BE102: 398.1 | BF102: 394.2994292 | BG102: 492.286758 | BH102: 413.8 | BI102: 441.21 | BJ102: 409.5 | BK102: 358.27 | BL102: 512.7 | BM102: 433.3 | BN102: 394.89 | BO102: 484.41 | BP102: 395.66 | BQ102: 443.4 | BR102: 436.2 | BS102: 457.1 | BT102: 376.8 | BU102: License granted April 1982; expires October 2011. Critical energy from PNUCC 2005 NRF. FERC approved 42-yr license (Mar 2013). | BV102: 48.992 | BW102: -117.348 | BX102: http://www.nwcouncil.org/energy/powersupply/dams/dam.asp?id=21 | BY102: 2020-03-20T21:47:31 | BZ102: 1039.8 | CA102: 1039.8 | CB102: 0.4366224274 | CC102: 454
A103: Boundary GT | B103: 1056 | F103: GT | G103: FO | I103: Petroleum | J103: 0.75 | L103: 1 | M103: 1 | W103: Operating | AA103: Boundary Dam | AB103: Pend Oreille | AC103: WA | AD103: Y | AE103: Columbia | AF103: WECC | AG103: City of Seattle | AH103: Municipal | AI103: City of Seattle | AN103: 1 | AO103: 1 | AP103: 0.75 | AQ103: 0.91 | BX103: 0 | BY103: 2020-03-23T12:34:26 | BZ103: 1 | CA103: 1 | CB103: 0.91 | CC103: 0.91
A104: Box Canyon | B104: 1057 | E104: 6543 | F104: ROR R w/Div (spring) | G104: WAT | I104: Hydro | J104: 0.56 | L104: 0.3 | M104: 0.31 | T104: 0.52 | W104: Operating | Y104: 1983 | AA104: Box Canyon Spr. | AB104: Twin Falls | AC104: ID | AD104: Y | AE104: Columbia | AF104: WECC | AG104: Clear Springs Trout Co. | AH104: Independent | AI104: Idaho Power Co. (QF thru Feb 2019) | AN104: 1 | AO104: 1 | AP104: 0.56 | AQ104: 0.52 | BU104: Exemption granted November 1982. | BX104: 0 | BY104: 2020-03-22T20:44:17 | BZ104: 0.56 | CA104: 0.3 | CB104: 0.9285714286 | CC104: 0.52
A105: Box Canyon 1 - 4 | B105: 1058 | C105: 3891 | D105: 1,2,3,4 | E105: 2042 | F105: ROR | G105: WAT | I105: Hydro | J105: 90 | K105: 90 | M105: 75.3 | N105: 76.8 | O105: 76.8 | P105: 90 | Q105: 90 | T105: 52 | V105: 43 | W105: Operating | X105: Jun | Y105: 1955 | AA105: Pend Oreille R. | AB105: Pend Oreille | AC105: WA | AD105: Y | AE105: Columbia | AF105: WECC | AG105: Pend Oreille Co. PUD | AH105: PUD | AI105: Pend Oreille Co. PUD | AL105: Upgrade of 4 units completed in 2015 | AN105: 1 | AO105: 1 | AP105: 90 | AQ105: 52 | BB105: Avista | BC105: 45.6 | BD105: 49.7 | BE105: 53.6 | BF105: 53.68652968 | BG105: 55.4847032 | BH105: 51.9 | BI105: 48.22 | BJ105: 50.1 | BK105: 44.8 | BL105: 46.09 | BM105: 42.9 | BN105: 47.39 | BO105: 49.66 | BP105: 57.9 | BQ105: 55.6 | BR105: 40.3 | BS105: 50.4 | BT105: 52.6 | BU105: Box Canyon Dam & reservoir and Calispell Ck diversion pumphouse, diversion, forebay channel and powerhouse w/4 Kaplan turbines. Original license Feb 1952 - Jan 2002. 50- yr relicensed granted July 2005. Critical energy from PNUCC 2005 NRF. Licensed upgrade to 90 MW + 2.4 additional aMW energy completed in Feb 2015. | BV105: 48.781215 | BW105: -117.412244 | BX105: http://www.popud.com/Box%20Canyon%20Hydro.htm | BY105: 2020-04-06T21:45:57 | BZ105: 90 | CA105: 76.8 | CB105: 0.5777777778 | CC105: 52
A106: Box Canyon 1 & 2 | B106: 1059 | C106: 50179 | D106: GEN1,GEN2 | G106: WAT | I106: Hydro | J106: 5 | K106: 5 | N106: 0.26 | O106: 0.34 | P106: 5 | Q106: 5 | W106: Operating | X106: Jun | Y106: 1986 | AA106: Mt. Shasta | AB106: Siskiyou | AC106: CA | AD106: N | AE106: Unknown | AF106: WECC | AG106: Synergics, Inc. | AH106: Independent | AI106: PacifiCorp (PPA thru 2020) | AM106: 2020 | AN106: 0.38 | AO106: 0.38 | AP106: 1.9 | AQ106: 0.4267438 | AV106: SPP | BB106: PACW | BQ106: 2.73 | BR106: 2.88 | BS106: 1 | BT106: 2.4 | BV106: 41.2792 | BW106: -122.3292 | BX106: 0 | BY106: 2017-12-04T15:08:27 | BZ106: 5 | CA106: 0.26 | CB106: 0.427 | CC106: 1.12301
A107: BP Cherry Point GTs | B107: 1060 | F107: GT | G107: NG | I107: Natural gas | J107: 72.8 | W107: Retired | Y107: 2001 | Z107: 2001 | AA107: Blaine (Cherry Point Refinery) | AB107: Whatcom | AC107: WA | AD107: Y | AE107: Puget Sound & Coastal | AF107: WECC | AG107: BP Cherry Point Refinery, Blaine, WA | AH107: Independent | AI107: Retired | AN107: 0 | AO107: 0 | AP107: 0 | AQ107: 0 | BF107: n/a | BG107: n/a | BU107: (14) leased 5.2 MW Solar Taurus units. | BX107: 0 | BY107: 2005-03-30 | BZ107: 72.8 | CA107: 72.8 | CB107: 0.91 | CC107: 66.248
A108: Bremerton WWTP | B108: 1061 | F108: ICCG | G108: WG | I108: Biomass | J108: 0.152 | N108: 0.152 | O108: 0.152 | T108: 0.07 | W108: Operating | AA108: Bremerton | AB108: Kitsap | AC108: WA | AD108: Y | AE108: Puget Sound & Coastal | AF108: WECC | AG108: City of Bremerton | AH108: Independent | AI108: Self-generation | AN108: 1 | AO108: 0.5 | AP108: 0.152 | AQ108: 0.07 | AR108: Bremerton WWTP | AS108: Wastewater treatment | BV108: 47.550221 | BW108: -122.671981 | BX108: http://www.cityofbremerton.com/content/wastewater.html | BY108: 2014-01-30T08:48:43 | BZ108: 0.152 | CA108: 0.152 | CB108: 0.4605263158 | CC108: 0.07
A109: Briggs | B109: 1062 | E109: 8083 | F109: Diversion | G109: WAT | I109: Hydro | J109: 0.3 | M109: 0.13 | T109: 0.2 | W109: Retired | Y109: 1986 | Z109: 1999 | AA109: Teton Cnl. | AB109: Fremont | AC109: ID | AD109: Y | AE109: Columbia | AF109: WECC | AG109: Briggs Hydroelectric | AH109: Independent | AI109: Retired | AN109: 0 | AO109: 0 | AP109: 0 | AQ109: 0 | BF109: n/a | BG109: n/a | BU109: Exemption surrendered June 1999. | BX109: 0 | BY109: 2020-03-25T22:09:47 | BZ109: 0.3 | CA109: 0.3 | CB109: 0.6666666667 | CC109: 0.2
A110: Briggs Creek | B110: 1063 | E110: 4360 | F110: Diversion | G110: WAT | I110: Hydro | J110: 0.75 | L110: 0.6 | M110: 0.59 | N110: 0.41 | O110: 0.41 | V110: 0 | W110: Operating | Y110: 1985 | AA110: Briggs Cr. | AB110: Gooding | AC110: ID | AD110: Y | AE110: Columbia | AF110: WECC | AG110: R. Kaster | AH110: Independent | AI110: Idaho Power Co. (QF thru Oct 2020) | AN110: 1 | AO110: 1 | AP110: 0.75 | AQ110: 0.24766 | BU110: Exemption granted February 1984. Critical energy from PNUCC 2005 NRF | BX110: 0 | BY110: 2020-03-22T20:44:50 | BZ110: 0.75 | CA110: 0.41 | CB110: 0.427 | CC110: 0.24766
A111: Bristol Solar | B111: 2363 | C111: 64009 | D111: BS | F111: PV | G111: SOL | I111: Solar | J111: 3 | K111: 3 | W111: Operating | X111: Jan | Y111: 2021 | AA111: Woodburn | AB111: Marion | AC111: OR | AD111: Y | AE111: Columbia | AF111: WECC | AG111: Bristol Solar, LLC | AH111: Independent | AI111: PGE QF | BB111: PGE | BU111: Located on private property; 12 acres of Exclusive Farm Use zone | BV111: 45.145 | BW111: -122.787 | BY111: 2021-05-19 | BZ111: 3 | CA111: 3 | CB111: 0.254 | CC111: 0.762
A112: Broadwater Toston Dam | B112: 1064 | C112: 54006 | D112: GEN1 | E112: 2853 | F112: ROR | G112: WAT | I112: Hydro | J112: 9.7 | K112: 9.7 | L112: 3.1 | M112: 2.85 | N112: 7.9 | O112: 6.7 | P112: 9.7 | Q112: 9.7 | V112: 6 | W112: Operating | X112: Jun | Y112: 1989 | AA112: Missouri R. | AB112: Broadwater | AC112: MT | AD112: N | AE112: Missouri | AF112: WECC | AG112: State of Montana (owner); Dry Creek, LLC (lessee) | AH112: Independent | AI112: NorthWestern (QF thru Jun 2024) | AM112: 2024 | AN112: 0.31 | AO112: 0.31 | AP112: =AN112*J112 -> 3.007 | AQ112: =IF(ISNUMBER(T112),T112,CC112)*AN112 -> 1.164856 | BB112: NorthWestern | BI112: 5.26 | BJ112: 6.04 | BK112: 6 | BL112: 6.11 | BM112: 6.1 | BN112: 5.15 | BO112: 5.95 | BP112: 5.4 | BQ112: 5.5 | BR112: 6 | BS112: 3.4 | BT112: 6.3 | BU112: License granted April 1984; expires June 2024. Critical energy from PNUCC 2005 NRF | BV112: 46.119722 | BW112: -111.408333 | BX112: http://en.wikipedia.org/wiki/Toston_Dam | BY112: 2020-03-22T20:45:09 | BZ112: 9.7 | CA112: 7.9 | CB112: 0.427 | CC112: 3.7576
A113: Brownlee 1- 5 | B113: 1065 | C113: 811 | D113: 1,2,3,4,5 | E113: 1971C | F113: ROR R. w/Div. | G113: WAT | I113: Hydro | J113: 675 | K113: 585.4 | M113: 675 | N113: 675.02 | O113: 491.99 | P113: 744 | Q113: 726.9 | T113: 340 | V113: 231 | W113: Operating | X113: Aug | Y113: 1958 | AA113: Snake R. | AB113: Washington | AC113: ID/OR | AD113: Y | AE113: Columbia | AF113: WECC | AG113: Idaho Power Co. | AH113: IOU | AI113: Idaho Power Co. | AN113: 1 | AO113: 1 | AP113: =AN113*J113 -> 675 | AQ113: =IF(ISNUMBER(T113),T113,CC113)*AN113 -> 340 | BB113: IPC | BC113: 209.9 | BD113: 221.9 | BE113: 214.2 | BF113: 223.3747717 | BG113: 333.9915525 | BH113: 208.6 | BI113: 239.99 | BJ113: 274.75 | BK113: 256.28 | BL113: 333.78 | BM113: 262.5 | BN113: 191.26 | BO113: 218.89 | BP113: 196.22 | BQ113: 229.8 | BR113: 273.3 | BS113: 276.1 | BT113: 289.8 | BU113: License granted August 1955; expires July 2005. Critical energy from PNUCC 2005 NRF | BV113: 44.841 | BW113: -116.896 | BX113: http://www.nwcouncil.org/energy/powersupply/dams/dam.asp?id=20 | BY113: 2020-04-13T10:22:07 | BZ113: 675 | CA113: 675.02 | CB113: 0.5037037037 | CC113: 340
A114: Brunswick Creek | B114: 1066 | E114: 6564 | F114: Storage w/Div | G114: WAT | I114: Hydro | J114: 0.0375 | N114: 0.0375 | O114: 0.0375 | T114: 0.025 | W114: Operating | Y114: 1982 | AA114: Brunswick Canyon Cr. | AB114: Washington | AC114: OR | AD114: Y | AE114: Columbia | AF114: WECC | AG114: R.L. Horning | AH114: Independent | AI114: Portland General Electric | AM114: 2039 | AN114: 1 | AO114: 1 | AP114: =AN114*J114 -> 0.0375 | AQ114: =IF(ISNUMBER(T114),T114,CC114)*AN114 -> 0.025 | BB114: IPC | BU114: (1) 37.5 kW unit. Exemption granted September 1982; surrendered April 2004. | BX114: 0 | BY114: 2014-01-30T08:50:30 | BZ114: 0.0375 | CA114: 0.0375 | CB114: 0.6666666667 | CC114: 0.025
A115: Brush Creek Solar | B115: 2328 | C115: 63464 | D115: PGR19 | F115: PV | G115: SOL | I115: Solar | J115: 2.2 | K115: 2.2 | W115: Operating | X115: May | Y115: 2020 | AB115: Marion | AC115: OR | AD115: Y | AE115: Columbia | AF115: WECC | AG115: Pine Gate Renewables | AH115: Independent | AI115: PGE QF | AN115: 1 | AO115: 1 | AV115: SPP | BU115: Per EIA, project is under construction, with est COD June 2020. | BV115: 44.985 | BW115: -122.81284 | BY115: 2020-10-26T18:15:01 | BZ115: 2.2 | CA115: 2.2 | CB115: 0.254 | CC115: 0.5588
A116: Brush Solar Center | B116: 2266 | C116: 61844 | D116: BRUSH | F116: PV | G116: SOL | I116: Solar | J116: 2.8 | W116: Operating | X116: Dec | Y116: 2019 | AA116: Unity, OR | AB116: Baker | AC116: OR | AD116: Y | AE116: Columbia | AF116: WECC | AG116: Enerparc | AH116: Independent | AI116: Idaho Power (20yr PPA) | AN116: 1 | AO116: 1 | AV116: SPP | BV116: 44.4664 | BW116: -118.20569 | BY116: 2020-01-13 | BZ116: 2.8 | CA116: 2.8 | CB116: 0.254 | CC116: 0.7112
A117: Buffalo River (Pond's Lodge) | B117: 1067 | C117: 7718 | E117: 1413 | F117: Diversion | G117: WAT | I117: Hydro | J117: 0.25 | L117: 0.3 | M117: 0.25 | N117: 0.25 | O117: 0.25 | T117: 0.217 | W117: Operating | Y117: 1936 | AA117: Buffalo R. (Henrys Fk. Snake) | AB117: Fremont | AC117: ID | AD117: Y | AE117: Columbia | AF117: WECC | AG117: Fall River REC | AH117: Coop | AI117: BPA | AL117: no planned upgrades at this time (March 2020) | AN117: 1 | AO117: 1 | AP117: =AN117*J117 -> 0.25 | AQ117: =IF(ISNUMBER(T117),T117,CC117)*AN117 -> 0.217 | BU117: (1) 250 kW Bouvier Kaplan turbine. Original license granted October 1939; expired June 1951. Relicensed Nov 2004. Low-impact certified to 2011. | BX117: 0 | BY117: 2020-03-25T14:24:49 | BZ117: 0.25 | CA117: 0.25 | CB117: 0.868 | CC117: 0.217
A118: Bull Run 1 - 4 | B118: 1068 | C118: 3044 | D118: 1,2,3,4 | E118: 477 | F118: ROR R. w/Div. | G118: WAT | I118: Hydro | J118: 20.8 | O118: 24 | P118: 22 | Q118: 22 | V118: 10 | W118: Retired | X118: Oct | Y118: 1912 | Z118: 2007 | AA118: Sandy R. | AB118: Clackamas | AC118: OR | AD118: Y | AE118: Columbia | AF118: WECC | AG118: Portland General Electric | AH118: IOU | AI118: Retired | AN118: 0 | AO118: 0 | AP118: 0 | AQ118: 0 | BB118: PGE | BC118: 10.6 | BD118: 11 | BE118: 13.4 | BF118: 8.881621005 | BG118: 11.40958904 | BH118: 9.2 | BI118: 2.6 | BU118: Original license granted November 1924; expired November 1974. App. to surrender license for project removal by 2009 approved May 2004. Decomissioning commenced 2007. Critical energy from PNUCC 2005 NRF | BV118: 45.42901 | BW118: -122.23395 | BX118: http://en.wikipedia.org/wiki/Bull_Run_Hydroelectric_Project | BY118: 2020-03-25T22:10:30 | BZ118: 20.8 | CA118: 22 | CB118: 0.427 | CC118: 9.1378
A119: Bull Run No. 1 (Portland Hydro) | B119: 1069 | C119: 4213 | D119: 1 | E119: 2821A | F119: Storage w/Div | G119: WAT | I119: Hydro | J119: 23.7 | K119: 23.7 | L119: 18 | M119: 18.4 | N119: 24 | O119: 24 | P119: 24 | Q119: 24 | T119: 6.86 | W119: Operating | X119: Feb | Y119: 1982 | AA119: Bull Run R. | AB119: Multnomah/Clackamas | AC119: OR | AD119: Y | AE119: Columbia | AF119: WECC | AG119: City of Portland | AH119: Independent | AI119: PGE (Sep 2017 thru June 2032); replaces old contract which expired Aug 2017 | AM119: 2032 | AN119: 1 | AO119: 1 | AP119: 23.7 | AQ119: 6.86 | BB119: PGE | BC119: 8.2 | BD119: 9.9 | BE119: 1.9 | BF119: 7.374200913 | BG119: 6.083105023 | BI119: 0.07 | BJ119: 5.67 | BK119: 6.3 | BL119: 6.12 | BM119: 7.4 | BN119: 6 | BO119: 6.45 | BP119: 4.38 | BQ119: 6.1 | BR119: 6.3 | BS119: 5 | BT119: 3.6 | BU119: License granted March 1979; expires February 2029. New PSA w/ PGE signed in Sep 2017, thru Jun 2032. Energy NorthWest to be new O&M operator. | BV119: 45.42901 | BW119: -122.23395 | BX119: http://en.wikipedia.org/wiki/Bull_Run_Hydroelectric_Project | BY119: 2020-03-22T21:43:15 | BZ119: 23.7 | CA119: 24 | CB119: 0.2894514768 | CC119: 6.86
A120: Bull Run No. 2 (Portland Hydro) | B120: 1070 | C120: 4214 | D120: 2 | E120: 2821B | F120: ROR R w/Div | G120: WAT | I120: Hydro | J120: 11.8 | K120: 11.8 | L120: 0 | N120: 13.5 | O120: 13.5 | P120: 13.5 | Q120: 13.5 | T120: 4.58 | W120: Operating | X120: Feb | Y120: 1982 | AA120: Bull Run R. | AB120: Multnomah/Clackamas | AC120: OR | AD120: Y | AE120: Columbia | AF120: WECC | AG120: City of Portland | AH120: Independent | AI120: Portland General Electric (PSA through Aug 2017) | AM120: 2032 | AN120: 1 | AO120: 1 | AP120: 11.8 | AQ120: 4.58 | BB120: PGE | BC120: 8.7 | BD120: 9.9 | BE120: 9.3 | BF120: 7.66826484 | BG120: 3.615410959 | BH120: 8.5 | BI120: 5.28 | BJ120: 4.08 | BK120: 5 | BL120: 4.52 | BM120: 3.9 | BN120: 0.65 | BO120: 4.1 | BP120: 3.1 | BQ120: 4.2 | BR120: 4.6 | BS120: 3.4 | BT120: 2.4 | BU120: License granted March 1979; expires February 2029. New PSA w/ PGE signed in Sep 2017, thru Jun 2032. Energy NorthWest to be new O&M operator. | BV120: 45.42901 | BW120: -122.23395 | BX120: http://en.wikipedia.org/wiki/Bull_Run_Hydroelectric_Project | BY120: 2017-12-05T15:11:35 | BZ120: 11.8 | CA120: 13.5 | CB120: 0.3881355932 | CC120: 4.58
A121: Burley Butte (Idaho Wind) | B121: 1994 | C121: 56434 | D121: BBWP | F121: WT | G121: WND | I121: Wind | J121: 19.5 | K121: 21.3 | P121: 21.3 | Q121: 21.3 | T121: 5.9 | W121: Operating | X121: Feb | Y121: 2011 | AA121: Burley | AB121: Cassia | AC121: ID | AD121: Y | AE121: Columbia | AF121: WECC | AG121: Idaho Wind Partners | AH121: Independent | AI121: QF PPA w/IPC (Feb 2011-Dec 2030) | AK121: PNW IOU | AM121: 2030 | AN121: 1 | AO121: 1 | AP121: 19.5 | AQ121: 5.9 | AV121: SPP | AW121: (13) GE 1.5 XLE | AX121: 80 | AY121: 82.5 | AZ121: 2 | BB121: IPC | BL121: 5.21 | BM121: 6.8 | BN121: 6.61 | BO121: 6.99 | BP121: 5.85 | BQ121: 6.4 | BR121: 5.5 | BS121: 7 | BT121: 6.4 | BU121: (13) GE 1.5 MW WTG. FERC ruling May 2011 allows for RECs to be unbundled via 3rd party and sold to CA - power gets sold back to ID. Design wind speed 14.9mph. | BV121: 42.4644 | BW121: -113.895 | BX121: http://www.exergydevelopment.com/projects/sites/burley-butte | BY121: 2017-10-17T14:15:38 | BZ121: 19.5 | CA121: 21.3 | CB121: 0.3025641026 | CC121: 5.9
A122: Burnham Creek | B122: 1071 | E122: 9654 | G122: WAT | I122: Hydro | J122: 0 | T122: 0 | W122: Retired | Z122: Unknown | AA122: Burnham Cr. | AC122: WA | AD122: Y | AE122: Unknown | AF122: WECC | AI122: Retired | AN122: 0 | AO122: 0 | AP122: 0 | AQ122: 0 | BX122: 0 | BY122: 2020-03-25T22:11:48 | BZ122: 0 | CA122: 0 | CB122: 0.427 | CC122: 0
A123: Burrill Lumber | B123: 1072 | F123: STCG | G123: NG | H123: WW | I123: Natural gas | J123: 1.5 | K123: 1.5 | P123: 1.4 | Q123: 1.4 | W123: Retired | Y123: 1990 | Z123: 1998 | AA123: White City | AB123: Jackson | AC123: OR | AD123: Y | AE123: Puget Sound & Coastal | AF123: WECC | AG123: Eugene F. Burrill Lumber | AH123: Independent | AI123: Retired | AN123: 0 | AO123: 0 | AP123: 0 | AQ123: 0 | AR123: Eugene F. Burrill Lumber | AS123: Lumber & wood products | BF123: 0 | BG123: 0 | BU123: Burrill closed down in 1998. | BX123: 0 | BY123: 2014-01-23T17:03:42 | BZ123: 1.4 | CA123: 1.4 | CB123: 0.8 | CC123: 1.12
A124: Burton Creek | B124: 1073 | E124: 7577 | F124: Diversion | G124: WAT | I124: Hydro | J124: 0.8 | M124: 0 | N124: 0.48 | O124: 0.48 | T124: 0.41 | W124: Operating | Y124: 1996 | AA124: Burton Cr. | AB124: Lewis | AC124: WA | AD124: Y | AE124: Columbia | AF124: WECC | AG124: G. Peters | AH124: Independent | AN124: 1 | AO124: 1 | AP124: 0.8 | AQ124: 0.41 | BC124: 0.2 | BD124: 0.2 | BE124: 0.2 | BF124: 0.1586757991 | BG124: 0.1885844749 | BH124: 0.2 | BI124: 0.17 | BU124: Exemption granted September 1985. | BX124: 0 | BY124: 2020-03-22T20:47:50 | BZ124: 0.8 | CA124: 0.48 | CB124: 0.5125 | CC124: 0.41
A125: Butler Solar | B125: 2342 | C125: 63694 | D125: 13501 | F125: PV | G125: SOL | I125: Solar | J125: 4 | K125: 4 | W125: Operating | X125: Jan | Y125: 2021 | AA125: Sheridan, OR | AB125: Yamhill | AC125: OR | AD125: Y | AE125: Columbia | AF125: WECC | AG125: Pacific Northwest Solar | AH125: Independent | AI125: PGE QF | AV125: SPP | BV125: 45.101804 | BW125: -123.410102 | BY125: 2021-05-19T11:45:18 | BZ125: 4 | CA125: =IF(OR(J125="Wind",J125="Solar",J125="Hydro"),J125,IF(ISNUMBER(N125),N125,IF(ISNUMBER(P125), P125, IF(ISNUMBER(L125),L125,J125)))) -> 4 | CB125: 0.254 | CC125: 1.016
A126: Butter Creek (Echo Wind Farm) | B126: 1981 | C126: 56967 | D126: 1 | F126: WT | G126: WND | I126: Wind | J126: 4.95 | K126: 5 | P126: 5 | Q126: 5 | W126: Operating | X126: Jul | Y126: 2009 | AA126: Echo vicinity | AB126: Morrow/Umatilla | AC126: OR | AD126: Y | AE126: Columbia | AF126: WECC | AG126: Exelon (John Deere Renwables) | AH126: Independent | AI126: PacifiCorp | AK126: PNW IOU | AN126: 1 | AO126: 1 | AP126: =AN126*J126 -> 4.95 | AQ126: =IF(ISNUMBER(T126),T126,CC126)*AN126 -> 1.592 | AU126: PacifiCorp Irrigon Substation | AV126: SPP | AW126: (3) Vestas V82-1.65 | AX126: 80 | AY126: 82 | AZ126: 2 | BB126: PACW | BJ126: 0.57 | BK126: 1.3 | BL126: 1.57 | BM126: 1.5 | BN126: 1.54 | BO126: 1.51 | BP126: 1.32 | BQ126: 1.3 | BR126: 1.2 | BS126: 1.5 | BT126: 1.3 | BU126: Butter Creek is a part of Echo Wind Farm (1-9). Echo Wind Farm (1-9) is powered by (10) RePower MM92 turbines and (27) Vestas V82 turbines. Echo Wind Farm has a capacity of 64.5 MW. Deisgn wind speed 12.2mph. | BV126: 45.724 | BW126: -119.436 | BX126: 0 | BY126: 2017-10-17T14:17:04 | BZ126: 4.95 | CA126: 5 | CB126: 0.32 | CC126: 1.592
A127: Bypass | B127: 1074 | C127: 50895 | D127: GEN1,GEN2,GEN3 | E127: 9070 | F127: Canal | G127: WAT | I127: Hydro | J127: 9.9 | K127: 9.9 | L127: 0 | M127: 0 | N127: 7.5 | O127: 0 | P127: 9.9 | Q127: 9.9 | V127: 3 | W127: Operating | X127: Mar | Y127: 1987 | AA127: N. Side Main Cnl. | AB127: Jerome | AC127: ID | AD127: Y | AE127: Columbia | AF127: WECC | AG127: Enel SpA | AH127: Independent | AI127: Idaho Power Co. (QF thru Jun 2023) | AN127: 1 | AO127: 1 | AP127: 9.9 | AQ127: 3.7149 | AV127: SPP | BB127: IPC | BI127: 3 | BJ127: 3.03 | BK127: 3.1 | BL127: 3.18 | BM127: 3.3 | BN127: 3.05 | BO127: 3.09 | BP127: 3.13 | BQ127: 3 | BR127: 2.9 | BS127: 3.2 | BT127: 2.9 | BU127: Exemption granted September 1985. Sold to ENEL Spa July 2004. Critical energy from PNUCC 2005 NRF | BV127: 42.5596337 | BW127: -114.055861 | BX127: http://www.enelgreenpower.com/en-GB/ena/power_plants/wm/bypass/index.aspx | BY127: 2020-03-22T20:48:03 | BZ127: 9.9 | CA127: 7.5 | CB127: 0.427 | CC127: 3.7149
A128: C.J. Strike 1- 3 | B128: 1075 | C128: 812 | D128: 1,2,3 | E128: 2055 | F128: ROR | G128: WAT | I128: Hydro | J128: 82.8 | K128: 82.8 | M128: 82.8 | N128: 82.8 | O128: 82.8 | P128: 94.2 | Q128: 92 | W128: Operating | X128: May | Y128: 1952 | AA128: Snake R. | AB128: Owyhee | AC128: ID | AD128: Y | AE128: Columbia | AF128: WECC | AG128: Idaho Power Co. | AH128: IOU | AI128: Idaho Power Co. | AN128: 1 | AO128: 1 | AP128: 82.8 | AQ128: 35.3556 | BB128: IPC | BC128: 41.5 | BD128: 40.1 | BE128: 40.5 | BF128: 43.72705479 | BG128: 55.11929224 | BH128: 44.5 | BI128: 44.11 | BJ128: 54.78 | BK128: 48.4 | BL128: 75.07 | BM128: 53 | BN128: 40.94 | BO128: 41.81 | BP128: 42.93 | BQ128: 43 | BR128: 62.8 | BS128: 64.9 | BT128: 56.6 | BU128: Original License granted February 1951; expired November 2000. Relicense granted Aug 2004. | BV128: 42.946 | BW128: -115.975 | BX128: http://www.idahopower.com/riversrec/parksrec/swanfalls.htm | BY128: 2020-03-21T21:14:37 | BZ128: 82.8 | CA128: 82.8 | CB128: 0.427 | CC128: 35.3556
A129: Cabinet Gorge 1 - 4 | B129: 1076 | C129: 833 | D129: 1,2,3,4 | E129: 2058 | F129: ROR R. w/Div. | G129: WAT | I129: Hydro | J129: 265 | K129: 265.2 | M129: 262 | N129: 287.3 | O129: 287.3 | P129: 254.6 | Q129: 294.8 | T129: 123.6 | V129: 84 | W129: Operating | X129: Sep | Y129: 1952 | AA129: Clark Fork R. | AB129: Bonner | AC129: ID | AD129: Y | AE129: Columbia | AF129: WECC | AG129: Avista | AH129: IOU | AI129: Avista Utilities | AL129: Upgrades 2001-2007, units 2 - removal/replacement of propellor runner w/ modern design mixed-flow runner, units 3-4 runner replacements and generator rewinds. | AN129: 1 | AO129: 1 | AP129: 265 | AQ129: 123.6 | BB129: Avista | BC129: 123.8 | BD129: 111.2 | BE129: 120.9 | BF129: 114.5920091 | BG129: 130.7993151 | BH129: 124.2 | BI129: 125.16 | BJ129: 121.05 | BK129: 107.48 | BL129: 147.53 | BM129: 136.9 | BN129: 119 | BO129: 136.36 | BP129: 113.57 | BQ129: 122.8 | BR129: 121.3 | BS129: 132.3 | BT129: 113.1 | BU129: License granted January 1951; expires February 2001. Critical energy from PNUCC 2005 NRF | BV129: 48.087 | BW129: -116.057 | BX129: http://www.avistautilities.com/resources/hydro/clarkfork/project/proj_cg.asp | BY129: 2020-04-09T21:59:41 | BZ129: 265 | CA129: 287.3 | CB129: 0.4664150943 | CC129: 123.6
A130: Calligan Creek | B130: 2128 | C130: 60418 | D130: CC6MW | E130: 13948 | F130: ROR | G130: WAT | I130: Hydro | J130: 6 | K130: 6 | M130: 6 | P130: 6 | Q130: 6 | W130: Operating | X130: Mar | Y130: 2018 | AA130: Calligan Creek, above Snoqualmie Falls; near North Bend | AB130: King | AC130: WA | AD130: Y | AE130: Puget Sound & Coastal | AF130: WECC | AG130: Snohomish Co. PUD | AH130: PUD | AI130: Snohomish PUD | AN130: 1 | AO130: 1 | AP130: 6 | AQ130: 2.562 | BB130: PSE | BS130: 1.3 | BT130: 1.3 | BU130: Final FERC license approved (6/30/15). SnoPUD issued $40M tax exempt bonds to finance construction of Calligan Creek and Hancock Creek projects (9/28/15). | BV130: 47.6008 | BW130: -121.68861 | BX130: http://www.snopud.com/PowerSupply/hydro/calliganhancock.ashx?p=1913 | BY130: 2020-03-22T20:48:14 | BZ130: 6 | CA130: 6 | CB130: 0.427 | CC130: 2.562
A131: Camp Reed (Idaho Wind) | B131: 1885 | C131: 57125 | D131: CRWP | F131: WT | G131: WND | I131: Wind | J131: 22.5 | K131: 22.5 | P131: 22.5 | Q131: 22.5 | T131: 6.8 | W131: Operating | X131: Dec | Y131: 2010 | AA131: Hagerman | AB131: Elmore | AC131: ID | AD131: Y | AE131: Columbia | AF131: WECC | AG131: Idaho Wind Partners | AH131: Independent | AI131: QF PPA w/IPC (Feb 2011 - Dec 2030). SCL to purchase environmental attributes (RECs) 2018-2030, for compliance ytars 2019-2031. | AJ131: SCL purchasing RECs 2018-2030 | AK131: PNW IOU | AM131: 2030 | AN131: 1 | AO131: 1 | AP131: 22.5 | AQ131: 6.8 | AU131: IPC King-Bliss 138kV line | AV131: SPP | AW131: (15) GE 1.5 XLE | AX131: 80 | AY131: 82.5 | AZ131: 2 | BB131: IPC | BK131: 0 | BL131: 6.93 | BM131: 4 | BN131: 7.21 | BO131: 7.63 | BP131: 6.03 | BQ131: 7.9 | BR131: 7 | BS131: 7.6 | BT131: 7.5 | BU131: (15) GE 1.5 MW WTG. FERC ruling May 2011 allows for RECs to be unbundled via 3rd party and sold to CA - power gets sold back to ID. Deseign wind speed 14.4mph. | BV131: 42.816 | BW131: -115.058 | BX131: https://www.pacificpower.net/env/bsre/bses/crwp.html | BY131: 2017-10-17T14:34:26 | BZ131: 22.5 | CA131: 22.5 | CB131: 0.3022222222 | CC131: 6.8
A132: Campbell Hill (Three Buttes) | B132: 2017 | C132: 57090 | D132: CHWF | F132: WT | G132: WND | I132: Wind | J132: 99 | K132: 99 | P132: 99 | Q132: 99 | T132: 29.7 | W132: Operating | X132: Dec | Y132: 2009 | AA132: Casper | AB132: Converse | AC132: WY | AD132: N | AE132: Missouri | AF132: WECC | AG132: Duke Energy DEGS Campbell Hill | AH132: Independent | AI132: PPA w/ PacifiCorp for 20 years (Dec 2009 - Dec 2029) | AJ132: PacifiCorp (bundled RECs) | AK132: PNW IOU | AM132: 2029 | AN132: 1 | AO132: 1 | AP132: 99 | AQ132: 29.7 | AW132: (66) GE 1.5 SLE | AX132: 83 | AY132: 77 | AZ132: 2 | BB132: PACE | BN132: 38.54 | BO132: 37.83 | BP132: 33.51 | BQ132: 37.9 | BR132: 35.57 | BS132: 35.2 | BT132: 37 | BU132: (66) 1.5 MW GE WTG. Assume 25.81% SG factor to Oregon, per PacifiCorp's 2011 OR RPS Compliance Report. Design wind speed 15mph. | BV132: 42.9989 | BW132: -106.02136 | BX132: http://en.openei.org/wiki/Campbell_Hill_Wind_Farm | BY132: 2020-01-29T09:31:20 | BZ132: 99 | CA132: 99 | CB132: 0.3 | CC132: 29.7
A133: Canal Creek | B133: 1077 | E133: 5572 | F133: Canal | G133: WAT | I133: Hydro | J133: 1.1 | T133: 0.47 | W133: Retired | Y133: 1984 | Z133: 1997 | AA133: Wallowa Valley Imp. Dist. Cnl. | AB133: Wallowa | AC133: OR | AD133: Y | AE133: Columbia | AF133: WECC | AG133: Joseph Hydro Assoc., Ltd. | AH133: Independent | AI133: Retired | AN133: 0 | AO133: 0 | AP133: 0 | AQ133: 0 | BF133: n/a | BG133: n/a | BU133: Dam remains in service. Exemption surrendered March 1982. | BX133: 0 | BY133: 2020-03-25T22:12:20 | BZ133: 1.1 | CA133: 1.1 | CB133: 0.4272727273 | CC133: 0.47
A134: Canyon Creek | B134: 1078 | C134: PLNT_19 | E134: 6414 | F134: Diversion | G134: WAT | I134: Hydro | J134: 0.08 | M134: 0.12 | N134: 0.08 | O134: 0.08 | T134: 0.06 | W134: Operating | Y134: 1985 | AA134: Canyon Cr. | AB134: Clackamas | AC134: OR | AD134: Y | AE134: Columbia | AF134: WECC | AG134: Douglas Water Power Company | AH134: Independent | AN134: 1 | AO134: 1 | AP134: 0.08 | AQ134: 0.06 | BI134: 0.05 | BU134: Exemption granted September 1982. | BX134: 0 | BY134: 2020-03-22T20:48:23 | BZ134: 0.08 | CA134: 0.08 | CB134: 0.75 | CC134: 0.06
A135: Canyon Ferry 1- 3 | B135: 1079 | C135: 6400 | D135: 1,2,3 | E135: Federal | F135: Storage | G135: WAT | I135: Hydro | J135: 49.8 | K135: 49.8 | N135: 57.6 | O135: 57.6 | P135: 57.6 | Q135: 57.6 | T135: 46.8 | V135: not reported | W135: Operating | X135: Dec | Y135: 1953 | AA135: Missouri R. | AB135: Lewis & Clark | AC135: MT | AD135: N | AE135: Missouri | AF135: WECC | AG135: USBR | AH135: Federal | AI135: WAPA | AN135: 0 | AO135: 0 | AP135: 00:00:00 | AQ135: 00:00:00 | BB135: NorthWestern | BF135: 34.0652968 | BG135: 37.63812785 | BH135: 32.6 | BI135: 37.95 | BJ135: 44.31 | BK135: 42.11 | BL135: 47.8 | BM135: 37 | BN135: 30.24 | BO135: 41.44 | BP135: 34.63 | BQ135: 35.4 | BR135: 39.6 | BS135: 42.2 | BT135: 42.1 | BV135: 46.649 | BW135: -111.728 | BX135: http://goldwest.visitmt.com/listings/97.htm | BY135: 2017-10-17T14:34:58 | BZ135: 49.8 | CA135: 57.6 | CB135: 0.9397590361 | CC135: 46.8
A136: Cargill Kettle Butte Bio Factory | B136: 2070 | C136: 57345 | D136: 1,2 | F136: BGICCG | G136: AW | I136: Biomass | J136: 1.8 | K136: 1.8 | N136: 1.8 | O136: 1.8 | P136: 1.8 | Q136: 1.8 | W136: Operating | X136: May | Y136: 2011 | AA136: Roberts, ID | AB136: Jefferson | AC136: ID | AD136: Y | AE136: Columbia | AF136: WECC | AG136: Cargill Environmental Finance | AH136: Independent | AI136: PacifiCorp (Rocky Mountain Power) - PPA June 2011 - Feb 2021 | AM136: 2021 | AN136: 1 | AO136: 1 | AP136: 1.8 | AQ136: 1.35 | AS136: Waste digestor | AV136: SPP | BB136: PACE | BL136: 0.37 | BM136: 1 | BN136: 0.82 | BO136: 0.88 | BP136: 0.61 | BQ136: 0.7 | BR136: 0.9 | BS136: 0.8 | BT136: 0.8 | BU136: Anaerobic digestor on Kettle Butte Dairy and (2) biogas-fired IC engines. | BV136: 43.630127 | BW136: -112.28169 | BX136: 0 | BY136: 2017-10-17T14:37:14 | BZ136: 1.8 | CA136: 1.8 | CB136: 0.75 | CC136: 1.35
A137: Carmen-Smith 1-3 | B137: 1080 | C137: 3067 | D137: 1,2,3 | E137: 2242B | F137: Storage w/Div | G137: WAT | I137: Hydro | J137: 114.3 | K137: 114.3 | M137: 108 | N137: 111.8 | O137: 114.5 | P137: 103.8 | Q137: 106.5 | T137: 22 | V137: 16 | W137: Operating | X137: Aug | Y137: 1963 | AA137: McKenzie R. | AB137: Linn | AC137: OR | AD137: Y | AE137: Columbia | AF137: WECC | AG137: City of Eugene (EWEB) | AH137: Municipal | AI137: EWEB | AN137: 1 | AO137: 1 | AP137: 114.3 | AQ137: 22 | BB137: BPA | BC137: 26.3 | BD137: 26.2 | BE137: 28.6 | BF137: 21.81210046 | BG137: 26.19006849 | BH137: 24.1 | BI137: 17.78 | BJ137: 24.54 | BK137: 25.2 | BL137: 31.73 | BM137: 33.6 | BN137: 28.7 | BO137: 32.01 | BP137: 22.74 | BQ137: 29.8 | BR137: 30.1 | BS137: 18.9 | BT137: 4.8 | BU137: (2) 52.2 MW units, (1) 9.9 MW unit. License granted January 1959; expired November 2008. EWEB negotiating new license - wants to revise 2008 application due to rising costs and lower project economics (Oct 2015). Critical energy from PNUCC 2005 NRF. | BV137: =IF(ISNA(VLOOKUP($B137,lkpLatLong,3,FALSE)),"",VLOOKUP($B137,lkpLatLong,3,FALSE)) -> 44.279 | BW137: =IF(ISNA(VLOOKUP($B137,lkpLatLong,4,FALSE)),"",VLOOKUP($B137,lkpLatLong,4,FALSE)) -> -122.049 | BX137: http://www.eweb.org/content.aspx/1f46b0f5-8c35-4fbc-9a22-1eadb1553e92 | BY137: 2020-03-21T21:13:34 | BZ137: =IF(OR(I137="Wind",I137="Solar",I137="Hydro"),J137,IF(ISNUMBER(L137),L137,IF(ISNUMBER(O137), O137, IF(ISNUMBER(Q137),Q137,J137)))) -> 114.3 | CA137: 111.8 | CB137: =IF(OR(ISBLANK(J137),ISBLANK(T137),J137=0),VLOOKUP(IF(G137="WAT","HY",IF(G137="LFG","LFG",F137)),Acapability,4,FALSE),T137/J137) -> 0.1924759405 | CC137: =IF(ISNUMBER(T137),T137,AVERAGE(BZ137,CA137)*CB137) -> 22
A138: Carty Generating Station | B138: 1892 | C138: 58503 | D138: GEN1,GEN2 | F138: CC | G138: NG | I138: Natural gas | J138: 440 | K138: 500 | M138: 430 | P138: 413 | Q138: 467 | R138: 168 | S138: 0.9 | W138: Operating | X138: Jul | Y138: 2016 | AA138: Boardman | AB138: Morrow | AC138: OR | AD138: Y | AE138: Columbia | AF138: WECC | AG138: Portland General Electric | AH138: IOU | AI138: Portland General Electric | AN138: 1 | AO138: 1 | AP138: 440 | AQ138: 391.6 | BB138: PGE | BQ138: 155.6 | BR138: 273.3 | BS138: 344.8 | BT138: 341.3 | BU138: (1) CC w/duct firing, wet mech draft cooling. Mitsbishi G-class turbine. | BV138: 45.6964 | BW138: -119.808 | BX138: http://www.portlandgeneral.com/our_company/energy_strategy/proposed/carty_station.aspx | BY138: 2020-07-15T16:27:46 | BZ138: 467 | CA138: 413 | CB138: 0.89 | CC138: 391.6
A139: Cascade 1 & 2 | B139: 1081 | C139: 813 | D139: 1,2 | E139: 2848 | F139: Storage w/Div | G139: WAT | I139: Hydro | J139: 12.42 | K139: 12.4 | M139: 8.67 | N139: 12.4 | O139: 1.8 | P139: 14.4 | Q139: 9.2 | T139: 12 | W139: Operating | Y139: 1926 | AA139: Payette R. N. Fk. | AB139: Valley | AC139: ID | AD139: Y | AE139: Columbia | AF139: WECC | AG139: Idaho Power Co. | AH139: IOU | AI139: Idaho Power Co. | AN139: 1 | AO139: 1 | AP139: 12.42 | AQ139: 12 | BB139: IPC | BI139: 5.4 | BJ139: 5.12 | BK139: 4.1 | BL139: 5.81 | BM139: 6 | BN139: 4.56 | BO139: 4.92 | BP139: 3.6 | BQ139: 4.8 | BR139: 5.4 | BS139: 5.4 | BT139: 4.2 | BU139: License granted February 1981; expires January 2031. | BV139: 44.7578 | BW139: -115.561 | BX139: 0 | BY139: 2020-03-21T21:13:48 | BZ139: 12.42 | CA139: 12.4 | CB139: 0.9661835749 | CC139: 12
A140: Cascade Creek | B140: 1082 | E140: 6629 | F140: Diversion | G140: WAT | I140: Hydro | J140: 0.08 | L140: 0 | M140: 0.02 | N140: 0.08 | O140: 0.08 | T140: =67/8760 -> 0.007648401826 | W140: Operating | Y140: 1983 | AA140: Cascade Cr. | AB140: Park | AC140: MT | AD140: N | AE140: Missouri | AF140: WECC | AG140: M Ranch | AH140: Independent | AI140: NorthWestern (QF thru Oct 2019) | AM140: 2019 | AN140: 0.31 | AO140: 0.31 | BU140: Exemption granted January 1983. Critical energy from PNUCC 2005 NRF | BX140: 0 | BY140: 2020-03-22T20:49:08 | BZ140: 0.08 | CA140: 0.08 | CB140: 0.09560502283 | CC140: 0.007648401826
A141: Case Creek Solar | B141: 2330 | C141: 63207 | D141: CCPV1 | F141: PV | G141: SOL | I141: Solar | J141: 2.2 | K141: 2.2 | P141: 2.2 | Q141: 2.2 | W141: Operating | X141: Oct | Y141: 2019 | AA141: Marion Cty | AB141: Marion | AC141: OR | AD141: Y | AE141: Columbia | AF141: WECC | AG141: BNRG Renewables | AH141: Independent | AI141: PGE | AV141: SPP | BA141: Fixed tilt | BB141: PGE | BT141: 0.1 | BU141: Crystalline Silicone, 3.2MWdc, Fixed-tilt. 180 azimuth angle, 20 tilt angle | BV141: 45.172 | BW141: -122.912 | BY141: 2020-10-23T20:28:09 | BZ141: 2.2 | CA141: 2.2 | CB141: 0.254 | CC141: 0.5588
A142: Cassia | B142: 1902 | C142: 56934 | D142: 1 | F142: WT | G142: WND | I142: Wind | J142: 10.5 | K142: 10.5 | P142: 10.5 | Q142: 10.5 | W142: Operating | X142: Feb | Y142: 2009 | AA142: Hagerman | AB142: Twin Falls | AC142: ID | AD142: Y | AE142: Columbia | AF142: WECC | AG142: Exelon (John Deere Renewables) | AH142: Independent | AI142: Idaho Power Co. (QF Mar 2009 - Mar 2029) | AK142: PNW IOU | AM142: 2029 | AN142: 1 | AO142: 1 | AP142: =AN142*J142 -> 10.5 | AQ142: =IF(ISNUMBER(T142),T142,CC142)*AN142 -> 3.36 | AU142: IPC Lower Malad/ Mtn Home Jct 138kV | AV142: SPP | AW142: (5) Suzlon S88-2100 | AX142: 80 | AY142: 88 | AZ142: 2 | BB142: IPC | BJ142: 2.01 | BK142: 3 | BL142: 2.75 | BM142: 2.7 | BN142: 2.83 | BO142: 3.04 | BP142: 2.35 | BQ142: 2.8 | BR142: 2.5 | BS142: 2.8 | BT142: 2.1 | BU142: (5) Suzlon S88-2.1 MW WTG. Design wind speed 14.7mph. | BV142: 42.86232 | BW142: -115.026510 | BX142: http://www.exeloncorp.com/PowerPlants/exelonwind-idaho/Pages/profile.aspx | BY142: 2017-10-17T14:41:54 | BZ142: 10.5 | CA142: 10.5 | CB142: 0.32 | CC142: 3.36
A143: Cassia Gulch | B143: 1888 | C143: 56935 | D143: 1 | F143: WT | G143: WND | I143: Wind | J143: 18.9 | K143: 18.9 | P143: 18.9 | Q143: 18.9 | W143: Operating | X143: Feb | Y143: 2009 | AA143: Hagerman | AB143: Twin Falls | AC143: ID | AD143: Y | AE143: Columbia | AF143: WECC | AG143: Exelon (John Deere Renewables) | AH143: Independent | AI143: Idaho Power Co. (QF May 2010 - May 2030) | AK143: PNW IOU | AM143: 2030 | AN143: 1 | AO143: 1 | AP143: =AN143*J143 -> 18.9 | AQ143: =IF(ISNUMBER(T143),T143,CC143)*AN143 -> 6.048 | AU143: IPC Lower Malad/ Mtn Home Jct 138kV | AV143: SPP | AW143: (9) Suzlon S88-2100 | AX143: 80 | AY143: 88 | AZ143: 2 | BB143: IPC | BJ143: 3.57 | BK143: 5.2 | BL143: 5.1 | BM143: 5.1 | BN143: 4.95 | BO143: 5.15 | BP143: 4.05 | BQ143: 4.9 | BR143: 4.4 | BS143: 4.9 | BT143: 4.6 | BU143: (9) Suzlon S88-2.1 MW WTG. Design wind speed 14.7mph. | BV143: 42.162371 | BW143: -112.380623 | BX143: 0 | BY143: 2017-10-17T14:41:36 | BZ143: 18.9 | CA143: 18.9 | CB143: 0.32 | CC143: 6.048
A144: C-Drop Hydro | B144: 2100 | C144: 58470 | D144: GEN1 | F144: Canal | G144: WAT | I144: Hydro | J144: 1.1 | K144: 1.1 | M144: 0 | P144: 1.1 | W144: Operating | X144: May | Y144: 2012 | AB144: Klamath | AC144: OR | AD144: Y | AE144: Klamath | AF144: WECC | AG144: C-Drop Hydro, LLC/Klamath Irrigation District | AH144: Municipal | AN144: 1 | AO144: 1 | AP144: =AN144*J144 -> 1.1 | AQ144: =IF(ISNUMBER(T144),T144,CC144)*AN144 -> 0.4697 | AV144: SPP | BB144: PACW | BN144: 0.22 | BO144: 0.25 | BP144: 0.26 | BQ144: 0.3 | BR144: 0.3 | BS144: 0.2 | BT144: 0.3 | BU144: Granted LOPP by Bur Rec instead of FERC license in Nov 2011. | BV144: 42.165833 | BW144: -121.685 | BY144: 2020-03-22T20:50:13 | BZ144: 1.1 | CA144: 1.1 | CB144: 0.427 | CC144: 0.4697
A145: Cedar Draw Creek (Crystal Springs) | B145: 1083 | C145: 10806 | D145: GEN1 | E145: 8278 | F145: Diversion | G145: WAT | I145: Hydro | J145: 2.3 | K145: 2.3 | L145: 0.8 | M145: 1.16 | N145: 1.08 | O145: 0.46 | P145: 2 | Q145: 2 | V145: 0 | W145: Operating | X145: Jan | Y145: 1988 | AA145: Cedar Draw Cr. | AB145: Twin Falls | AC145: ID | AD145: Y | AE145: Columbia | AF145: WECC | AG145: Crystal Springs Hydroelectric, LP | AH145: Independent | AI145: Idaho Power Co. (QF thru May 2019) | AN145: 1 | AO145: 1 | AP145: =AN145*J145 -> 2.3 | AQ145: =IF(ISNUMBER(T145),T145,CC145)*AN145 -> 0.72163 | AV145: SPP | BB145: IPC | BK145: 1.2 | BL145: 1.3 | BM145: 1.3 | BN145: 1.12 | BO145: 1.2 | BP145: 1.11 | BQ145: 1.3 | BR145: 1.4 | BS145: 1.3 | BT145: 1.4 | BU145: License granted May 1985; expires April 2035. Critical energy from PNUCC 2005 NRF | BV145: 42.622513 | BW145: -114.50093 | BX145: 0 | BY145: 2020-03-22T20:50:36 | BZ145: 2.3 | CA145: 1.08 | CB145: 0.427 | CC145: 0.72163
A146: Cedar Falls (Masonry Dam) 1 & 2 | B146: 1084 | C146: 6430 | D146: 5,6 | E146: 10647 | F146: Storage w/Div | G146: WAT | I146: Hydro | J146: 20 | K146: 30 | M146: 9.25 | N146: 30 | O146: 30 | P146: 30 | Q146: 30 | T146: 9 | V146: 12 | W146: Operating | Y146: 1905 | AA146: Cedar R. | AB146: King | AC146: WA | AD146: Y | AE146: Puget Sound & Coastal | AF146: WECC | AG146: City of Seattle | AH146: Municipal | AI146: City of Seattle | AN146: 1 | AO146: 1 | AP146: =AN146*J146 -> 20 | AQ146: =IF(ISNUMBER(T146),T146,CC146)*AN146 -> 9 | BB146: SCE | BC146: 9 | BD146: 7.2 | BE146: 6.9 | BF146: 3.452853881 | BG146: 6.048630137 | BH146: 5.6 | BI146: 7.45 | BJ146: 8.69 | BK146: 7.4 | BL146: 12.52 | BM146: 13.9 | BN146: 8.87 | BO146: 7.44 | BP146: 5.37 | BQ146: 7.8 | BR146: 9.5 | BS146: 9.9 | BT146: 4.7 | BU146: Critical energy from PNUCC 2005 NRF | BV146: 47.419 | BW146: -121.781 | BX146: http://www.ci.seattle.wa.us/light/environment/fish/ev5ff_cf.htm | BY146: 2020-03-21T21:14:01 | BZ146: 20 | CA146: 30 | CB146: 0.45 | CC146: 9
A147: Cedar Springs I | B147: 2319 | F147: WT | G147: WND | I147: Wind | J147: 200 | W147: Operating | X147: Dec | Y147: 2020 | AA147: Douglas | AB147: Converse | AC147: WY | AD147: N | AE147: Missouri | AF147: WECC | AG147: PacifiCorp | AH147: IOU | AI147: PacifiCorp | AJ147: PacifiCorp | AK147: PNW IOU | BB147: PACE | BV147: 42.95556 | BW147: -105.29565 | BY147: 2021-09-09T10:22:52 | BZ147: 200 | CA147: 200 | CB147: 0.32 | CC147: 64
A148: Cedar Springs II | B148: 2320 | F148: WT | G148: WND | I148: Wind | J148: 200 | W148: Operating | X148: Dec | Y148: 2020 | AA148: Douglas | AB148: Converse | AC148: WY | AD148: N | AE148: Missouri | AF148: WECC | AG148: PacifiCorp | AH148: IOU | AI148: PacifiCorp | AJ148: PacifiCorp | AK148: PNW IOU | BB148: PACE | BV148: 42.96453 | BW148: -105.36369 | BY148: 2021-09-09T10:22:55 | BZ148: 200 | CA148: 200 | CB148: 0.32 | CC148: 64
A149: Cedar Springs III | B149: 2321 | F149: WT | G149: WND | I149: Wind | J149: 133 | W149: Operating | X149: Dec | Y149: 2020 | AA149: Douglas | AB149: Converse | AC149: WY | AD149: N | AE149: Missouri | AF149: WECC | AG149: NextEra | AH149: IPP | AI149: PacifiCorp (long-term PPA) | AJ149: PacifiCorp | AK149: PNW IOU | BB149: PACE | BV149: 43.07572 | BW149: -105.58173 | BY149: 2021-09-09T10:22:55 | BZ149: 133 | CA149: 133 | CB149: 0.32 | CC149: 42.56
A150: Central Energy Cogen Plant (Brigham Young Univ) | B150: 2183 | C150: 59496 | D150: ST601 | F150: STCG | G150: NG | I150: Natural gas | J150: 5.6 | K150: 5.6 | P150: 4.6 | Q150: 5.2 | R150: 0.3 | S150: 0.99 | W150: Operating | X150: Jun | Y150: 2016 | AA150: BYU-Idaho in Rexburg | AB150: Madison | AC150: ID | AD150: Y | AE150: Columbia | AF150: WECC | AG150: Brigham Young University-Idaho | AH150: Independent | AI150: Self-gen, PPA w/ PAC for excess | AN150: 1 | AO150: 0.5 | AP150: =AN150*J150 -> 5.6 | AQ150: =IF(ISNUMBER(T150),T150,CC150)*AN150 -> 3.92 | AV150: cogen | BB150: PACE | BQ150: 4.5 | BR150: 4.5 | BS150: 4.5 | BT150: 4.5 | BU150: Construction begain in 2013 to replace coal-fired boilers w/ NG fired boilers. New plant utilizes cogen thru a HRSG. | BV150: 43.8181 | BW150: -111.7828 | BX150: http://big-d.com/projects/byu-idaho-central-energy-facility/ | BY150: 2020-07-15T16:28:52 | BZ150: 5.2 | CA150: 4.6 | CB150: 0.8 | CC150: 3.92
A151: Central Oregon Siphon | B151: 1085 | C151: 50980 | D151: GEN1,GEN2 | E151: 3571 | F151: Diversion | G151: WAT | I151: Hydro | J151: 5.4 | K151: 5.4 | L151: 0 | M151: 4.35 | N151: 5.4 | O151: 5.4 | P151: 5.4 | Q151: 5.4 | W151: Operating | X151: Aug | Y151: 1989 | AA151: Deschutes R. | AB151: Deschutes | AC151: OR | AD151: Y | AE151: Columbia | AF151: WECC | AG151: Central Oregon Irrigation District | AH151: Independent | AI151: PacifiCorp (QF thru Dec 2020) | AM151: 2020 | AN151: 1 | AO151: 1 | AP151: 5.4 | AQ151: 2.3058 | AV151: SPP | BB151: PACW | BG151: 0.8182648402 | BH151: 0.9 | BI151: 0.69 | BJ151: 3.25 | BK151: 2.5 | BL151: 3.27 | BM151: 4.4 | BN151: 2.97 | BO151: 2.92 | BP151: 2.9 | BQ151: 2.5 | BR151: 3 | BS151: 2.5 | BT151: 1.9 | BU151: License granted September 1987; expires August 2037. | BV151: 44.065925 | BW151: -121.311962 | BX151: http://www.coid.org/powerplant.htm | BY151: 2020-03-22T20:50:50 | BZ151: 5.4 | CA151: 5.4 | CB151: 0.427 | CC151: 2.3058
A152: Centralia 1 | B152: 1086 | C152: 3845 | D152: 1 | F152: ST | G152: COL | I152: Coal | J152: 729.99 | K152: 729.9 | L152: 670 | M152: 1340 | N152: 688 | O152: 688 | P152: 670 | Q152: 670 | R152: 235 | S152: 0.94 | W152: Retired | X152: Dec | Y152: 1972 | Z152: 2020 | AA152: Centralia | AB152: Lewis | AC152: WA | AD152: Y | AE152: Puget Sound & Coastal | AF152: WECC | AG152: TransAlta | AH152: Independent | AI152: 100 MW contract w/PGE through 2015 (Centralia 1 & 2) . 11 yr Transition agreement w/ PSE - 180MW in 2014, 300MW in 2015, 380MW 2016-2024, 300MW in 2025. | AN152: 0 | AO152: 0 | AP152: 0 | AQ152: 0 | BB152: BPA | BC152: 1058.7 | BD152: 1151.5 | BE152: 1188.8 | BF152: 1196.7 | BG152: 642.4 | BH152: 973.4 | BI152: 997.38 | BJ152: 850.5 | BK152: 968.8 | BL152: 594.65 | BM152: 425.6 | BN152: 766.14 | BO152: 762.97 | BP152: 573.4 | BQ152: 522.5 | BR152: 624.6 | BS152: 612.7 | BT152: 816.8 | BU152: One 729.999 MW STG. TransAlta considering future of Centralia site - currently evaluating option to convert boiled to natual gas production. Decision not likely until 2021. (March 2018). | BV152: 46.756 | BW152: -122.857 | BX152: http://www.transalta.com/transalta/webcms.nsf/AllDoc/D7E5E521CBB488BF87257226006EEC84?OpenDocument | BY152: 2021-01-05T21:53:02 | BZ152: 670 | CA152: 688 | CB152: 0.86 | CC152: 583.94
A153: Centralia 2 | B153: 1087 | C153: 3845 | D153: 2 | F153: ST | G153: COL | I153: Coal | J153: 729.99 | K153: 729.9 | L153: 670 | N153: 688 | O153: 688 | P153: 670 | Q153: 670 | R153: 250 | S153: 0.94 | W153: Operating | X153: Jul | Y153: 1973 | Z153: 2025 | AA153: Centralia | AB153: Lewis | AC153: WA | AD153: Y | AE153: Puget Sound & Coastal | AF153: WECC | AG153: TransAlta | AH153: Independent | AI153: PPA w/ PSE for 380 MW Dec 2016 - Dec 2024, then down to 300 MW Dec 2024- Dec 2025. | AN153: 0.46 | AO153: 1 | AP153: 335.7954 | AQ153: 268.6124 | BB153: BPA | BU153: One 729.999 MW STG | BV153: 46.756 | BW153: -122.857 | BX153: http://www.transalta.com/transalta/webcms.nsf/AllDoc/D7E5E521CBB488BF87257226006EEC84?OpenDocument | BY153: 2020-07-16T17:49:51 | BZ153: 670 | CA153: 688 | CB153: 0.86 | CC153: 583.94
A154: Chandler 1 - 2 | B154: 1088 | C154: 6406 | D154: 1,2 | E154: FCRPS | F154: ROR R. w/Div. | G154: WAT | I154: Hydro | J154: 12 | K154: 12 | M154: 5.51 | N154: 12 | O154: 12 | P154: 12 | Q154: 12 | T154: 5 | V154: 9 | W154: Operating | X154: Feb | Y154: 1956 | AA154: Yakima R. (Off-stream) | AB154: Benton | AC154: WA | AD154: Y | AE154: Columbia | AF154: WECC | AG154: USBR | AH154: Federal | AI154: BPA | AL154: Rewound units | AN154: 1 | AO154: 1 | AP154: 12 | AQ154: 5 | BB154: BPA | BC154: 6.6 | BD154: 5.3 | BE154: 4.9 | BF154: 1.419063927 | BG154: 3.443378995 | BH154: 3 | BI154: 2.47 | BJ154: 5.42 | BK154: 6.9 | BL154: 5.81 | BM154: 7.5 | BN154: 4.7 | BO154: 5.06 | BP154: 3.32 | BQ154: 6.1 | BR154: 6.3 | BS154: 6.5 | BT154: 4.8 | BU154: (2) 6.0 MW units. Critical energy from PNUCC 2005 NRF | BV154: 46.212742 | BW154: -119.77222 | BX154: http://www.bpa.gov/corporate/bpanews/library/images/dams/descriptions/Chandler.cfm | BY154: 2020-03-29T22:23:34 | BZ154: 12 | CA154: 12 | CB154: 0.4166666667 | CC154: 5
A155: Chehalis Generating Facility | B155: 1089 | C155: 55662 | D155: CA,CT1,CT2 | F155: CC | G155: NG | H155: FO | I155: Natural gas | J155: 698 | K155: 698 | L155: 514 | M155: 514 | N155: 427 | O155: 453 | P155: 477 | Q155: 507 | R155: 300 | S155: 0.85 | W155: Operating | X155: Aug | Y155: 2003 | AA155: Chehalis | AB155: Lewis | AC155: WA | AD155: Y | AE155: Puget Sound & Coastal | AF155: WECC | AG155: PacifiCorp - purchased from SUEZ in 2008. Originally operated by TNA Merchant Projects, a subsidiary of SUEZ. | AH155: IOU | AI155: PacifiCorp | AN155: 1 | AO155: 1 | AP155: 698 | AQ155: 418.745 | AT155: Williams Northwest | AU155: BPA Napavine | BB155: BPA | BE155: 306.1 | BF155: 255.8065068 | BG155: 150.2271689 | BH155: 215.5 | BI155: 243 | BJ155: 199.46 | BK155: 147.06 | BL155: 75.91 | BM155: 97 | BN155: 191.12 | BO155: 290.39 | BP155: 124.77 | BQ155: 162.1 | BR155: 200.8 | BS155: 198.9 | BT155: 277.6 | BU155: (2) 175MW GE 7FA GT x (1) 170 MW ST. Dry cooling. Purchased by PacifiCorp from SUEZ closed Sep 2008. | BV155: 46.622 | BW155: -122.917 | BX155: 0 | BY155: 2020-07-15T16:31:04 | BZ155: 514 | CA155: 427 | CB155: 0.89 | CC155: 418.745
A156: Chelan A1 & A2 | B156: 1090 | C156: 6424 | D156: A-1,A-2 | E156: 637 | F156: Storage w/Div | G156: WAT | I156: Hydro | J156: 48 | K156: 59.2 | M156: 65.4 | N156: 62 | O156: 62 | P156: 62.1 | Q156: 62.1 | T156: 44 | V156: 38 | W156: Operating | X156: Sep | Y156: 1927 | AA156: Chelan R. | AB156: Chelan | AC156: WA | AD156: Y | AE156: Columbia | AF156: WECC | AG156: Chelan Co. PUD | AH156: PUD | AI156: Chelan Co. PUD (and long-term PPAs) | AL156: Rehabilitated units in 2009-2010 resulting in efficiency upgrades. | AN156: 1 | AO156: 1 | AP156: 48 | AQ156: 44 | BB156: Chelan Co. PUD | BC156: 47.9 | BD156: 42.1 | BE156: 6.3 | BF156: 5.735273973 | BG156: 7.441666667 | BH156: 5.9 | BI156: 16.65 | BJ156: 35.23 | BK156: 44.2 | BL156: 51.76 | BM156: 45.4 | BN156: 47.46 | BO156: 45.45 | BP156: 47.086 | BQ156: 50.5 | BR156: 49.5 | BS156: 39.2 | BT156: 37.3 | BU156: Original license granted May 1926; expired May 1976. Critical energy from PNUCC 2005 NRF | BV156: 47.808 | BW156: -119.985 | BX156: http://www.chelanpud.org/relicense/process/facts.htm | BY156: 2020-03-20T22:00:30 | BZ156: 48 | CA156: 62 | CB156: 0.9166666667 | CC156: 44
A157: Chester Diversion 1-3 | B157: 1706 | C157: 56893 | D157: 1,2,3 | E157: 11879 | F157: ROR | G157: WAT | I157: Hydro | J157: 3.3 | K157: 3.6 | M157: 0.53 | N157: 3.6 | O157: 3.6 | P157: 3.6 | Q157: 3.6 | T157: 1.386 | W157: Operating | X157: Mar | Y157: 2014 | AA157: Henrys Fk. | AB157: Fremont | AC157: ID | AD157: Y | AE157: Columbia | AF157: WECC | AG157: Fall River REC | AH157: Coop | AI157: BPA | AL157: no planned upgrades at this time (March 2020) | AN157: 1 | AO157: 1 | AP157: 3.3 | AQ157: 1.386 | BB157: BPA | BO157: 0.47 | BP157: 0.423 | BQ157: 0.8 | BR157: 0.9 | BS157: 0.6 | BT157: 0.9 | BU157: (3) turbine-generators. Existing run-of-river dam w/diversion (Chester Dam). Lice gtd Jul 2008. | BV157: 44.018333 | BW157: -111.583611 | BX157: 0 | BY157: 2020-03-22T20:52:18 | BZ157: 3.3 | CA157: =IF(OR(J157="Wind",J157="Solar",J157="Hydro"),J157,IF(ISNUMBER(N157),N157,IF(ISNUMBER(P157), P157, IF(ISNUMBER(L157),L157,J157)))) -> 3.6 | CB157: 0.42 | CC157: 1.386
A158: Chevron Casper Wind Farm | B158: 2018 | C158: 57093 | D158: CWGT | F158: WT | G158: WND | I158: Wind | J158: 17 | K158: 17 | P158: 17 | Q158: 17 | W158: Operating | X158: Dec | Y158: 2009 | AA158: Casper | AB158: Natrona | AC158: WY | AD158: N | AE158: Missouri | AF158: WECC | AG158: Chevron Global Power Company | AH158: Independent | AI158: Unknown. (Short-term PPA w/ PacifiCorp for 100% of facility's output. PPA terminated June 30, 2018 per PAC's OR RPS compliance report for 2018 (and filed May 2019).) | AJ158: Unknown. Formerly bundled RECs to PAC; PPA terminated June 2018. | AK158: OOR - Unknown | AN158: 0 | AO158: 0 | AP158: 0 | AQ158: 0 | AV158: SPP | AW158: (11) GE 1.5 SLE | AX158: 80 | AY158: 77 | AZ158: 2 | BB158: PACE | BN158: 5.02 | BO158: 4.84 | BP158: 4.22 | BQ158: 4.8 | BR158: 4.7 | BS158: 3.4 | BT158: 1.3 | BU158: (11) 1.5 MW GE WTG. Assume 25.81% SG factor to Oregon, per PacifiCorp's 2011 OR RPS Compliance Report. Design wind speed 20mph. | BV158: 43.01578 | BW158: -105.993723 | BX158: http://www.chevron.com/news/currentissues/casperwind/ | BY158: 2021-07-14T11:29:38 | BZ158: 17 | CA158: 17 | CB158: 0.32 | CC158: 5.44
A159: Chief Joseph 1 - 27 | B159: 1091 | C159: 3921 | D159: 1,2,3,4,5,6,7,8,9,10,11,12,13,14,15,16,17,18,19,20,21,22,23,24,25,26,27 | E159: FCRPS | F159: ROR | G159: WAT | I159: Hydro | J159: 2457.8 | K159: 2456.2 | M159: 2221 | N159: 2456.2 | O159: 2456.2 | P159: 2456.2 | Q159: 2456.2 | T159: 1321 | V159: 996 | W159: Operating | X159: Sep | Y159: 1955 | AA159: Columbia R. | AB159: Douglas | AC159: WA | AD159: Y | AE159: Columbia | AF159: WECC | AG159: USCE | AH159: Federal | AI159: BPA | AN159: 1 | AO159: 1 | AP159: 2457.8 | AQ159: 1321 | BB159: BPA | BC159: 1321.2 | BD159: 1157.2 | BE159: 1172.5 | BF159: 1240.730137 | BG159: 1318.673174 | BH159: 1319.8 | BI159: 1213.74 | BJ159: 1116.44 | BK159: 1040.59 | BL159: 1427.29 | BM159: 1424.7 | BN159: 1391.29 | BO159: 1329.17 | BP159: 1308.48 | BQ159: 1328.6 | BR159: 1303.9 | BS159: 1410.1 | BT159: 1124.9 | BU159: Critical energy from PNUCC 2005 NRF | BV159: 47.999 | BW159: -119.634 | BX159: http://www.nwcouncil.org/energy/powersupply/dams/dam.asp?id=10 | BY159: 2020-03-29T22:23:04 | BZ159: 2457.8 | CA159: 2456.2 | CB159: 0.5374725364 | CC159: 1321
A160: Chiloquin Solar | B160: 2134 | C160: 61631 | F160: PV | G160: SOL | I160: Solar | J160: 9.9 | K160: 9.9 | P160: 9.9 | Q160: 9.9 | W160: Operating | X160: Feb | Y160: 2018 | AA160: Chiloquin, Klamath Falls | AB160: Klamath | AC160: OR | AD160: Y | AE160: Klamath | AF160: WECC | AG160: Saturn Power | AH160: Independent | AI160: PacifiCorp (20yr QF thru 2038) | AM160: 2038 | AN160: 1 | AO160: 1 | AP160: 9.9 | AV160: SPP | BA160: Fixed tilt | BB160: PACW | BS160: 2.3 | BT160: 2.2 | BU160: Crystalline silicone. 14MWdc, Azimuth angle 180, tile 28. Solar Flex Rack fixed tilt racking systems w/ Seraphim 320-325W polycrystalline modules and Sungrow 60kW string inverters. 14MW DC/9.9 MW AC. 70 acres. RECs to PAC. | BV160: 42.596 | BW160: -121.857 | BX160: http://www.saturnpower.com/content/oregon-chiloquin-99-mw-ac | BY160: 2018-02-28T15:41:41 | BZ160: 9.9 | CA160: 9.9 | CB160: 0.254 | CC160: 2.5146
A161: Chopin Wind Project | B161: 1992 | C161: 59076 | D161: WT1 | F161: WT | G161: WND | I161: Wind | J161: 10 | K161: 10 | P161: 10 | Q161: 10 | W161: Operating | X161: Sep | Y161: 2016 | AA161: Umapine and Athena, OR | AB161: Umatilla | AC161: OR | AD161: Y | AE161: Columbia | AF161: WECC | AG161: BayWa r.e. | AH161: Independent | AI161: PacifiCorp (PPA) | AK161: PNW IOU | AN161: 1 | AO161: 1 | AP161: 10 | AQ161: =IF(ISNUMBER(T161),T161,CC161)*AN161 -> 3.2 | AV161: SPP | AW161: (6) GE 1.7-103 | AX161: 80 | AY161: 103 | AZ161: 3 | BB161: PACW | BQ161: 1.1 | BR161: 3 | BS161: 3.6 | BT161: 2.9 | BU161: (6) GE 1.7MW-103 WTG, 80m hub height, 103m rotor diameter. According to PPA, PAC waives claim to ownership of RECs. Agreement signed on 4/17/18 betw. Moda Center and PAC for RECs (Clearing Up) equal to about 1/3 of the average energy (PBJ, 4/18/18). | BV161: 45.891814 | BW161: -118.4719197 | BX161: http://us.baywa-re.com/en/references/wind-projects/ | BY161: 2018-04-24 | BZ161: 10 | CA161: 10 | CB161: 0.32 | CC161: 3.2
A162: City of Albany (Vine Street WTP) | B162: 1092 | E162: 11509 | F162: Canal | G162: WAT | I162: Hydro | J162: 0.5 | L162: 0.8 | T162: 0.3196347032 | W162: Operating | X162: Feb | Y162: 2009 | AA162: Santiam - Albany Canal | AB162: Linn | AC162: OR | AD162: Y | AE162: Columbia | AF162: WECC | AG162: City of Albany | AH162: Municipal | AI162: PacifiCorp (PPA) | AN162: 1 | AO162: 1 | AP162: 0.5 | AQ162: 0.3196347032 | BF162: 0 | BG162: 0 | BU162: (1) 500kW turbine-generator. Original 1888 project retired in 1991. License to refurbish granted October 1998, expires September 2048. Renovation partly funded to the Oregon Energy Trust. | BX162: 0 | BY162: 2018-03-02 | BZ162: 0.5 | CA162: 0.8 | CB162: 0.6392694064 | CC162: 0.3196347032
A163: City of Anacortes | B163: 1093 | F163: IC | G163: FO2 | I163: Petroleum | J163: 1.75 | N163: 1.75 | O163: 1.75 | W163: Operating | AA163: Anacortes | AB163: Skagit | AC163: WA | AD163: Y | AE163: Puget Sound & Coastal | AF163: WECC | AG163: City of Anacortes | AH163: Municipal | AI163: Self-generation | AN163: 1 | AO163: 0 | AP163: 1.75 | AQ163: 1.6275 | BU163: 1.75 MW IC unit at waste water treatment plant. | BX163: 0 | BY163: 2018-03-03 | BZ163: 1.75 | CA163: 1.75 | CB163: 0.93 | CC163: 1.6275
A164: City of Great Falls WWTP | B164: 1094 | F164: ICCG | G164: WG | I164: Biomass | J164: 0.5 | N164: 0.5 | O164: 0.5 | W164: Operating | Y164: 2005 | AA164: Great Falls | AB164: Cascade | AC164: MT | AD164: N | AE164: Missouri | AF164: WECC | AG164: City of Great Falls | AH164: Independent | AN164: 0 | AO164: 0 | AP164: 0 | AQ164: 0 | AR164: City of Great Falls WWTP | AS164: Wastewater treatment | BU164: http://www.eea-inc.com/chpdata/States/MT.html. | BV164: 47.490047 | BW164: -111.3138 | BX164: 0 | BY164: 2020-04-02T15:41:13 | BZ164: 0.5 | CA164: 0.5 | CB164: 0.8 | CC164: 0.4
A165: City of Gresham WWTP | B165: 1095 | F165: ICCG | G165: WG | I165: Biomass | J165: 0.395 | N165: 0.395 | O165: 0.395 | W165: Operating | Y165: 2000 | AA165: Gresham | AB165: Multnomah | AC165: OR | AD165: Y | AE165: Columbia | AF165: WECC | AG165: City of Gresham | AH165: Independent | AN165: 1 | AO165: 0.5 | AP165: 0.395 | AQ165: 0.316 | AR165: City of Gresham WWTP | AS165: Wastewater treatment | BU165: 395 kW GE reciprocating engine | BV165: 45.546652 | BW165: -122.45893 | BX165: http://greshamoregon.gov/city/city-departments/environmental-services/wastewater-division/template.aspx?id=4330 | BY165: 2020-04-02T15:43:49 | BZ165: 0.395 | CA165: 0.395 | CB165: 0.8 | CC165: 0.316
A166: City of Helena WWTP | B166: 1096 | F166: ICCG | G166: WG | I166: Biomass | J166: 0.043 | N166: 0 | O166: 0 | W166: Operating | Y166: 1984 | AA166: Helena | AB166: Lewis & Clark | AC166: MT | AD166: Y | AE166: Missouri | AF166: WECC | AG166: City of Helena | AH166: Independent | AI166: NorthWestern | AN166: 0.31 | AO166: 0.31 | AP166: 0.01333 | AQ166: 0 | AR166: City of Helena WWTP | AS166: Wastewater treatment | BB166: NorthWestern | BU166: Repowered 2009 with 43 kW Stirling reciprocating unit. | BV166: 46.620298 | BW166: -112.002433 | BX166: http://www.ci.helena.mt.us/index.php?id=397 | BY166: 2020-04-02T15:54:57 | BZ166: 0 | CA166: 0 | CB166: 0.8 | CC166: 0
A167: City of Medford WWTP | B167: 1097 | F167: ICCG | G167: WG | I167: Biomass | J167: 0.73 | W167: Operating | Y167: 1999 | AA167: Medford | AB167: Jackson | AC167: OR | AD167: Y | AE167: Puget Sound & Coastal | AF167: WECC | AG167: City of Medford | AH167: Independent | AN167: 1 | AO167: 0.5 | AP167: 0.73 | AQ167: 0.584 | AR167: City of Medford WWTP | AS167: Wastewater treatment | BV167: 42.435993 | BW167: -122.904072 | BX167: http://www.ci.medford.or.us/SectionIndex.asp?SectionID=32 | BY167: 2020-04-02T15:55:23 | BZ167: 0.73 | CA167: 0.73 | CB167: 0.8 | CC167: 0.584
A168: Clear Lake | B168: 1098 | C168: 814 | D168: 1 | E168: None | F168: Diversion | G168: WAT | I168: Hydro | J168: 2.5 | K168: 2.5 | M168: 1.75 | N168: 2.8 | O168: 2.8 | P168: 2.1 | Q168: 2.2 | W168: Operating | X168: Dec | Y168: 1937 | AA168: Snake R. (Off-stream) | AB168: Gooding | AC168: ID | AD168: Y | AE168: Columbia | AF168: WECC | AG168: Idaho Power Co. | AH168: IOU | AI168: Idaho Power Co. | AN168: 1 | AO168: 1 | AP168: 2.5 | AQ168: 1.13155 | BB168: IPC | BI168: 1.85 | BJ168: 1.86 | BK168: 1.8 | BL168: 1.88 | BM168: 1.9 | BN168: 1.41 | BO168: 1.94 | BP168: 1.79 | BQ168: 1.9 | BR168: 1.9 | BS168: 2 | BT168: 2 | BU168: IPC Springs | BV168: 42.66701 | BW168: -114.78012 | BX168: 0 | BY168: 2020-03-21T21:14:50 | BZ168: 2.5 | CA168: 2.8 | CB168: 0.427 | CC168: 1.13155
A169: Clearwater 1 | B169: 1099 | C169: 3020 | D169: 1 | E169: 1927F | F169: Storage w/Div | G169: WAT | I169: Hydro | J169: 15 | K169: 15 | N169: 17.9 | O169: 17.9 | P169: 17.9 | Q169: 17.9 | T169: 6.95 | W169: Operating | X169: Jun | Y169: 1953 | AA169: Clearwater R. | AB169: Douglas | AC169: OR | AD169: Y | AE169: Puget Sound & Coastal | AF169: WECC | AG169: PacifiCorp | AH169: IOU | AI169: PacifiCorp | AN169: 1 | AO169: 1 | AP169: 15 | AQ169: 6.95 | BB169: PACW | BC169: 5.5 | BD169: 5.6 | BE169: 2.1 | BF169: 1.72260274 | BG169: 1.540182648 | BH169: 1.3 | BI169: 1.43 | BJ169: 4.08 | BK169: 3.6 | BL169: 4.97 | BM169: 5.8 | BN169: 4.31 | BO169: 4.71 | BP169: 3.6 | BQ169: 4.6 | BR169: 5.6 | BS169: 4.6 | BT169: 3 | BU169: (1) 15 MW vertical Francis turbine-generator. PacifiCorp North Umpqua project. Original license gtd Jan 1947; exp Jan 1997. Relicensed Nov 2003. | BV169: 43.335612 | BW169: -122.783589 | BX169: 0 | BY169: 2018-03-09 | BZ169: 15 | CA169: 17.9 | CB169: 0.4633333333 | CC169: 6.95
A170: Clearwater 2 | B170: 1100 | C170: 3021 | D170: 1 | E170: 1927E | F170: Storage w/Div | G170: WAT | I170: Hydro | J170: 26 | K170: 26 | N170: 31 | O170: 31 | P170: 31 | Q170: 31 | T170: 7.54 | W170: Operating | X170: Nov | Y170: 1953 | AA170: Clearwater R. | AB170: Douglas | AC170: OR | AD170: Y | AE170: Puget Sound & Coastal | AF170: WECC | AG170: PacifiCorp | AH170: IOU | AI170: PacifiCorp | AN170: 1 | AO170: 1 | AP170: 26 | AQ170: 7.54 | BB170: PACW | BC170: 5.3 | BD170: 5.7 | BE170: 35.1 | BF170: 1.753538813 | BG170: 1.564611872 | BH170: 1.6 | BI170: 1.46 | BJ170: 4.79 | BK170: 3.4 | BL170: 6.43 | BM170: 6.2 | BN170: 4.5 | BO170: 5.12 | BP170: 3.67 | BQ170: 5.2 | BR170: 7.7 | BS170: 4.2 | BT170: 4.1 | BU170: (1) 26 MW vertical Francis turbine-generator. PacifiCorp North Umpqua project. Original license gtd Jan 1947; exp Jan 1997. Relicensed Nov 2003. | BV170: 43.267 | BW170: -122.409 | BX170: 0 | BY170: 2018-03-10 | BZ170: 26 | CA170: 31 | CB170: 0.29 | CC170: 7.54
A171: Clearwater Hatchery (Dworshak) | B171: 1101 | E171: 10819 | F171: HY | G171: WAT | I171: Hydro | J171: 2.9 | L171: 3 | M171: 3 | N171: 3 | O171: 3 | T171: 1.81 | W171: Operating | Y171: 2000 | AA171: N.Fk. Clearwater R. | AB171: Clearwater | AC171: ID | AD171: Y | AE171: Columbia | AF171: WECC | AG171: ID Dept of Water Resources | AH171: Independent | AI171: BPA | AN171: 1 | AO171: 1 | AP171: 2.9 | AQ171: 1.81 | BB171: BPA | BC171: 2 | BE171: 2 | BF171: 0.2042237443 | BU171: 2.5 MW turbine & a 0.4 MW turbine. License granted August 1998; expires July 2048. | BX171: 0 | BY171: 2020-03-22T20:59:18 | BZ171: 2.9 | CA171: 3 | CB171: 0.624137931 | CC171: 1.81
A172: Clearwater Paper 1 - 4 (Potlatch Lewiston) | B172: 1449 | C172: 50637 | D172: GEN1,GEN2,GEN3,GEN4 | F172: RB/STCG | G172: BL | H172: WW/NG | I172: Biomass | J172: 93.8 | K172: 113.8 | L172: 75 | N172: 55 | O172: 55 | P172: 54.5 | Q172: 68.1 | W172: Operating | X172: Jan | Y172: 1950 | AA172: Lewiston | AB172: Nez Pierce | AC172: ID | AD172: Y | AE172: Columbia | AF172: WECC | AG172: Clearwater Paper | AH172: Independent | AI172: Avista Utilities (5 yr QF through December 2023) | AM172: 2023 | AN172: 1 | AO172: 1 | AP172: 93.8 | AQ172: 52 | AR172: Idaho Pulp & Paperboard Div. | AS172: Kraft pulp and paper mill | AV172: cogen | BB172: Avista | BC172: 36.2 | BD172: 49.7 | BE172: 58.5 | BF172: 57.16232877 | BG172: 54.63515982 | BH172: 51 | BI172: 47.91 | BJ172: 51.34 | BK172: 49.76 | BL172: 50.67 | BM172: 48.1 | BN172: 47.88 | BO172: 43.36 | BP172: 46.22 | BQ172: 47.6 | BR172: 39.6 | BS172: 42.1 | BT172: 47.1 | BU172: Unit 1 (1950) - 10 MW, Unit 2 (1977) - 9.2 MW, Unit 3 (1981) - 28.8 MW, Unit 4 (1991) - 65 MW. Formerly Potlatch Lewiston. Unit 1 and 2 out-of-service, per WECC. | BV172: 46.426 | BW172: -116.958 | BX172: 0 | BY172: 2020-04-02T16:36:53 | BZ172: 75 | CA172: 55 | CB172: 0.8 | CC172: 52
A173: Clif Bar Bakery of Twin Falls Solar Project | B173: 2291 | C173: 62151 | D173: PV1 | F173: PV | G173: SOL | I173: Solar | J173: 2 | K173: 2 | W173: Operating | X173: Jun | Y173: 2019 | AA173: Twin Falls, ID | AB173: Twin Falls | AC173: ID | AD173: Y | AE173: Columbia | AF173: WECC | AG173: Clif Bar, Borrego Solar | AH173: Independent | AI173: 30% self-generation | AN173: 1 | AO173: 0.7 | AP173: 2 | BA173: Fixed tilt | BB173: IPC | BT173: 0.2 | BU173: Crystalline silicone. 2MWdc. Azimuth angle 180, tilt angle 25. | BV173: 42.53913 | BW173: -114.41131 | BX173: 0 | BY173: 2019-09-09T16:19:51 | BZ173: 2 | CA173: 2 | CB173: 0.254 | CC173: 0.508
A174: Cline Falls | B174: 1102 | C174: 6482 | D174: 1 | E174: None | F174: Diversion | G174: WAT | I174: Hydro | J174: 1 | K174: 1 | N174: 1 | O174: 1 | P174: 1.1 | Q174: 1.1 | W174: Retired | X174: May | Y174: 1943 | Z174: 2013 | AA174: Deschutes R. | AB174: Deschutes | AC174: OR | AD174: Y | AE174: Columbia | AF174: WECC | AG174: PacifiCorp | AH174: IOU | AI174: Retired (formerly PacifiCorp) | AN174: 0 | AO174: 0 | AP174: 0 | AQ174: =IF(ISNUMBER(T174),T174,CC174)*AN174 -> 0 | BB174: PACW | BC174: 0.2 | BD174: 0.2 | BE174: 0.1 | BF174: 0.04589041096 | BG174: 0.04817351598 | BI174: 0 | BJ174: 0 | BK174: 0 | BL174: 0 | BM174: 0 | BN174: 0 | BO174: 0 | BU174: PAC minor | BV174: 44.2778 | BW174: -121.2564 | BX174: 0 | BY174: 2020-03-25T22:26:07 | BZ174: 1 | CA174: 1 | CB174: 0.427 | CC174: 0.427
A175: Coastal Energy | B175: 1917 | C175: 57756 | D175: 1 | F175: WT | G175: WND | I175: Wind | J175: 6 | K175: 6 | P175: 6 | Q175: 6 | T175: 1.386 | W175: Operating | X175: Jun | Y175: 2010 | AA175: Grayland | AB175: Grays Harbor | AC175: WA | AD175: Y | AE175: Puget Sound & Coastal | AF175: WECC | AG175: Coastal Community Action Program | AH175: Independent | AI175: Grays Harbor PUD (June 2010 - June 2030) | AK175: PNW Public | AM175: 2030 | AN175: 1 | AO175: 1 | AP175: 6 | AQ175: 1.386 | AW175: (4) GE 1.5 SLE | AX175: 81 | AY175: 77 | AZ175: 2 | BB175: BPA | BL175: 1.38 | BM175: 1.7 | BN175: 1.36 | BO175: 1.86 | BP175: 1.47 | BQ175: 1.6 | BS175: 1.5 | BT175: 1.4 | BU175: (4) GE 1.5 MW WTG. | BV175: 46.793272 | BW175: -124.065341 | BX175: http://en.openei.org/wiki/Coastal_Energy_(CCAP) | BY175: 2018-03-14 | BZ175: 6 | CA175: 6 | CB175: 0.231 | CC175: 1.386
A176: Cochrane 1 & 2 | B176: 1103 | C176: 2182 | D176: COC1,COC2 | E176: 2188C | F176: ROR | G176: WAT | I176: Hydro | J176: 59 | K176: 60.4 | N176: 64 | O176: 64 | P176: 64 | Q176: 64 | T176: 33.879 | W176: Operating | X176: Jul | Y176: 1958 | AA176: Missouri R. | AB176: Cascade | AC176: MT | AD176: N | AE176: Missouri | AF176: WECC | AG176: Northwestern Energy purchased from PPL Montana, finalized Nov. 2014. | AH176: IOU | AI176: Northwestern Energy | AN176: 0.31 | AO176: 0.31 | AP176: 18.29 | AQ176: 10.50249 | BB176: NorthWestern | BI176: 30.9 | BJ176: 34.06 | BK176: 33.9 | BL176: 32.53 | BM176: 26 | BN176: 26.17 | BO176: 27.91 | BP176: 29.75 | BQ176: 26.7 | BR176: 32.9 | BS176: 37.2 | BT176: 37.2 | BU176: Original License granted April 1956; expired November 1994. | BV176: 47.554 | BW176: -111.148 | BX176: http://www.northwesternenergy.com/our-company/hydroelectric-facilities | BY176: 2020-03-25T12:16:37 | BZ176: 59 | CA176: 64 | CB176: 0.574220339 | CC176: 33.879
A177: Coffin Butte 1 - 5 | B177: 1104 | C177: 7725 | D177: 1,2,3,4,5 | F177: IC | G177: LFG | I177: Biomass | J177: 5.2 | K177: 5.6 | L177: 5.3 | M177: 5.6 | N177: 5.4 | O177: 5.4 | P177: 5.4 | Q177: 5.4 | W177: Operating | X177: May | Y177: 1995 | AA177: Coffin Butte Landfill | AB177: Benton | AC177: OR | AD177: Y | AE177: Columbia | AF177: WECC | AG177: Power Resources Cooperative | AH177: Coop | AI177: Portland General Electric (15 yr PURPA agreement beg October 2012) | AM177: 2027 | AN177: 1 | AO177: 1 | AP177: 5.2 | AQ177: 4.0125 | BB177: BPA | BH177: 2.3 | BI177: 5.11 | BJ177: 4.9 | BK177: 4.8 | BL177: 5.15 | BM177: 5 | BN177: 4.84 | BO177: 4.83 | BP177: 5 | BQ177: 5.1 | BR177: 5 | BS177: 4.8 | BT177: 4.7 | BU177: Units 1 - 3 Caterpillar 3516 engines. Units 4 & 5 1.6 MW Caterpillar 3520 engines (Oct 2007 service). | BV177: 44.697279 | BW177: -123.223496 | BX177: http://www.pngc.com/future/coffin_butte.aspx | BY177: 2020-03-23T13:36:37 | BZ177: 5.3 | CA177: 5.4 | CB177: 0.75 | CC177: 4.0125
A178: Cogen II (D.R. Johnson) 1 & 2 | B178: 1105 | C178: 50993 | D178: GEN1 | F178: STCG | G178: NG | H178: WW | I178: Natural gas | J178: 7.5 | K178: 7.5 | L178: 7.5 | N178: 7.5 | O178: 7.5 | P178: 7.8 | Q178: 7.3 | W178: Operating | X178: Oct | Y178: 1987 | AA178: Riddle | AB178: Douglas | AC178: OR | AD178: Y | AE178: Puget Sound & Coastal | AF178: WECC | AG178: Cogen II, LLC | AH178: Independent | AI178: PacifiCorp (QF) | AN178: 1 | AO178: 1 | AP178: 7.5 | AQ178: 6 | AR178: D. R. Johnson Lumber Co. - Riddle | AS178: Lumber & wood products | AT178: Williams Northwest | AV178: cogen | BB178: PACW | BG178: 2.410958904 | BH178: 2.3 | BI178: 7.52 | BJ178: 6.48 | BK178: 0 | BL178: 0 | BM178: 0 | BN178: 0 | BO178: 0 | BP178: 0 | BQ178: 0 | BR178: 0 | BS178: 0 | BT178: 0 | BV178: 42.961126 | BW178: -123.359138 | BX178: 0 | BY178: 2020-04-21T14:46:29 | BZ178: 7.5 | CA178: 7.5 | CB178: 0.8 | CC178: 6
A179: Cold Springs (Mountain Air Wind Park) | B179: 2044 | C179: 57431 | D179: 1 | F179: WT | G179: WND | I179: Wind | J179: 23 | K179: 23 | P179: 23 | Q179: 23 | W179: Operating | X179: Dec | Y179: 2012 | AA179: Mountain Home | AB179: Elmore | AC179: ID | AD179: Y | AE179: Columbia | AF179: WECC | AG179: Terna Energy | AH179: Independent | AI179: QF PPA to IPC (Dec 2012 - Dec 2032) | AK179: PNW IOU | AM179: 2032 | AN179: 1 | AO179: 1 | AP179: 23 | AQ179: 7.36 | AV179: SPP | AW179: (10) Siemens SWT-2.3 101 | AX179: 80 | AY179: 101 | AZ179: 2 | BB179: IPC | BM179: 1.4 | BN179: 5.59 | BO179: 6.14 | BP179: 5.06 | BQ179: 6.1 | BR179: 5.3 | BS179: 5.5 | BT179: 5.7 | BU179: (10) Siemens SWT 2.3-101 MW. Mtn Air Wind Park (six projects for total 138 MW) started testing operation in September 2012. | BV179: 43.026 | BW179: -115.395 | BX179: http://www.rnp.org/node/mtn-air-cold-springs-windfarm | BY179: 2018-07-23T11:29:55 | BZ179: 23 | CA179: 23 | CB179: 0.32 | CC179: 7.36
A180: Collier Solar | B180: 2177 | C180: 60976 | D180: PV1 | F180: PV | G180: SOL | I180: Solar | J180: 9.9 | K180: 9.9 | P180: 9.9 | Q180: 9.9 | W180: Operating | X180: Dec | Y180: 2016 | AA180: Bend | AB180: Deschutes | AC180: OR | AD180: Y | AE180: Columbia | AF180: WECC | AG180: Pine Gate Renewables | AH180: Independent | AI180: PPA w/ PacifiCorp for 20 years | AM180: 2036 | AN180: 1 | AO180: 1 | AP180: 9.9 | AV180: SPP | BA180: Single-axis | BB180: PACE | BR180: 2.3 | BS180: 2.4 | BT180: 2.4 | BU180: Crystalline silicone. 9.9MWdc. Azimuth angle 90, tilt angle 60. http://edocs.puc.state.or.us/efdocs/RPA/re142rpa114740.pdf | BV180: 44.0607 | BW180: -121.2278 | BY180: 2018-03-19 | BZ180: 9.9 | CA180: 9.9 | CB180: 0.254 | CC180: 2.5146
A181: Collins Wood Products | B181: 1106 | F181: STCG | G181: WW | I181: Biomass | J181: 7.5 | W181: Idle | AA181: Klamath Falls | AB181: Klamath | AC181: OR | AD181: Y | AE181: Puget Sound & Coastal | AF181: WECC | AG181: Collins Wood Products | AH181: Independent | AI181: Idle | AN181: 0 | AO181: 0 | AP181: 0 | AQ181: =IF(ISNUMBER(T181),T181,CC181)*AN181 -> 0 | AR181: Collins Wood Products | AS181: Defibrated wood and board mills | BF181: 0 | BG181: 0 | BU181: Steam load by Klamath Cogen 6/2001 | BX181: 0 | BY181: 2020-03-31T17:04:16 | BZ181: 7.5 | CA181: 7.5 | CB181: 0.8 | CC181: 6
A182: Colstrip 1 | B182: 1107 | C182: 6076 | D182: 1 | F182: ST | G182: COL | I182: Coal | J182: 358.4 | K182: 358 | L182: 308 | M182: 1565 | N182: 307 | O182: 307 | P182: 307 | Q182: 307 | R182: 90 | S182: 0.95 | W182: Retired | X182: Nov | Y182: 1975 | Z182: 2020 | AA182: Colstrip | AB182: Rosebud | AC182: MT | AD182: N | AE182: Missouri | AF182: WECC | AG182: Talen Energy Corp (formerly PPL Montana) (50%); PSE (50%) | AH182: IOU/Independent | AI182: Retired (Formerly Puget Sound Energy (50%), Talen Energy system sales (50%)) | AM182: n/a | AN182: 0 | AO182: 0 | AP182: 0 | AQ182: =IF(ISNUMBER(T182),T182,CC182)*AN182 -> 0 | BB182: NorthWestern (Talen Energy share), PSE (share) | BC182: 1585.3 | BD182: 1707.3 | BE182: 1772.7 | BF182: 1853.970662 | BG182: 1685.47363 | BH182: 1808.2 | BI182: 1836.39 | BJ182: 1501.7 | BK182: 1850.67 | BL182: 1486.9 | BM182: 1398.5 | BN182: 1454.09 | BO182: 1567.34 | BP182: 1694.55 | BQ182: 1525 | BR182: 1522.6 | BS182: 1444.8 | BT182: 1530.6 | BU182: One 358.4 MW STG. Ownership per P. Cartwright 4/6/01. Talen and PSE announced effective December 31, 2019, Colstrip 1 and 2 will permanently retire - earlier than the previously scheduled 2022. | BV182: 45.884204 | BW182: -106.612002 | BX182: http://www.pplmontana.com/producing+power/power+plants/Colstrip.htm | BY182: 2020-07-15T16:32:54 | BZ182: 308 | CA182: 307 | CB182: 0.86 | CC182: 264.45
A183: Colstrip 2 | B183: 1108 | C183: 6076 | D183: 2 | F183: ST | G183: COL | I183: Coal | J183: 358.4 | K183: 358 | L183: 308 | N183: 307 | O183: 307 | P183: 307 | Q183: 307 | R183: 90 | S183: 0.95 | W183: Retired | X183: Aug | Y183: 1976 | Z183: 2020 | AA183: Colstrip | AB183: Rosebud | AC183: MT | AD183: N | AE183: Missouri | AF183: WECC | AG183: Talen Energy Corp (formerly PPL Montana) (50%); PSE (50%) | AH183: IOU/Independent | AI183: Retired (Formerly Puget Sound Energy (50%), Talen Energy system sales (50%) | AM183: n/a | AN183: 0 | AO183: 0 | AP183: 0 | AQ183: =IF(ISNUMBER(T183),T183,CC183)*AN183 -> 0 | BB183: NorthWestern (Talen Energy share), PSE (share) | BU183: One 358.4 MW STG. Ownership per P. Cartwright 4/6/01. Talen and PSE announced effective December 31, 2019, Colstrip 1 and 2 will permanently retire - earlier than the previously scheduled 2022. | BV183: 45.884204 | BW183: -106.612002 | BX183: http://www.pplmontana.com/producing+power/power+plants/Colstrip.htm | BY183: 2020-07-15T16:33:30 | BZ183: 308 | CA183: 307 | CB183: 0.86 | CC183: 264.45
A184: Colstrip 3 | B184: 1109 | C184: 6076 | D184: 3 | F184: ST | G184: COL | I184: Coal | J184: 778 | K184: 823.7 | L184: 740 | N184: 740 | O184: 740 | P184: 740 | Q184: 740 | R184: 200 | S184: 0.95 | W184: Operating | X184: Jan | Y184: 1984 | Z184: 2027 | AA184: Colstrip | AB184: Rosebud | AC184: MT | AD184: N | AE184: Missouri | AF184: WECC | AG184: Talen Energy Corp (formerly PPL Montana) (30%); PSE (25%); PGE (20%), Avista (15%); PacifiCorp (10%) | AH184: IOU/Independent | AI184: Puget Sound Energy (25%), Portland General Electric (20%), Avista (15%), PacifiCorp (10%), Talen Energy system sales (30%) | AM184: n/a | AN184: 0.7 | AO184: 1 | AP184: 544.6 | AQ184: =IF(ISNUMBER(T184),T184,CC184)*AN184 -> 445.48 | BB184: Avista, NorthWestern (Talen Energy share), PACW (share), PGE (share), PSE (share) | BU184: One 778.0 MW STG. Ownership per P. Cartwright 4/6/01. | BV184: 45.884204 | BW184: -106.612002 | BX184: http://www.pplmontana.com/producing+power/power+plants/Colstrip.htm | BY184: 2020-07-15T16:34:23 | BZ184: 740 | CA184: 740 | CB184: 0.86 | CC184: 636.4
A185: Colstrip 4 | B185: 1110 | C185: 6076 | D185: 4 | F185: ST | G185: COL | I185: Coal | J185: 778 | K185: 823.7 | L185: 740 | N185: 740 | O185: 740 | P185: 740 | Q185: 740 | R185: 200 | S185: 0.95 | W185: Operating | X185: Apr | Y185: 1986 | Z185: 2027 | AA185: Colstrip | AB185: Rosebud | AC185: MT | AD185: N | AE185: Missouri | AF185: WECC | AG185: NorthWestern (30%); PSE (25%); PGE (20%), Avista (15%); PacifiCorp (10%) | AH185: IOU/Independent | AI185: Puget Sound Energy (25%), Portland General Electric (20%), Avista (15%), PacifiCorp (10%), NorthWestern (90 MW through 2018; 21 MW through July 2014) NWE balance to 3rd parties. All NW Corp 30% to NWE ratebase Jan 2011. | AN185: 0.793 | AO185: 0.793 | AP185: 616.954 | AQ185: =IF(ISNUMBER(T185),T185,CC185)*AN185 -> 504.6652 | BB185: Avista, NorthWestern, PACW, PGE, PSE | BU185: One 778.0 MW STG. | BV185: 45.884204 | BW185: -106.612002 | BX185: http://www.pplweb.com/ppl+generation/coal+plants/colstrip.htm | BY185: 2020-07-15T16:35:39 | BZ185: 740 | CA185: 740 | CB185: 0.86 | CC185: 636.4
A186: Colton (SP Solar 6) | B186: 2278 | C186: 61831 | D186: PGRC2 | F186: PV | G186: SOL | I186: Solar | J186: 2.2 | K186: 2.2 | P186: 2.2 | Q186: 2.2 | W186: Operating | X186: Dec | Y186: 2017 | AA186: N of Hwy 211, W of Colton | AB186: Clackamas | AC186: OR | AD186: Y | AE186: Columbia | AF186: WECC | AG186: Pine Gate Renewables | AH186: Independent | AI186: Portland General Electric (20yr PURPA PPA) | AM186: 2038 | AN186: 1 | AO186: 1 | AP186: 2.2 | AV186: SPP | BA186: Fixed tilt | BB186: PGE | BR186: 0 | BS186: 0.2 | BT186: 0.4 | BU186: Crystalline silicone. 3.1MWdc. Azimuth angle 180, tilt angle 15. | BV186: 45.169808 | BW186: -122.472036 | BX186: 0 | BY186: 2018-10-22T12:11:30 | BZ186: 2.2 | CA186: 2.2 | CB186: 0.254 | CC186: 0.5588
A187: Columbia Blvd Wastewater Treatment Plant | B187: 1111 | F187: ICCG | G187: WG | I187: Biomass | J187: 1.7 | L187: 1.7 | N187: 1.7 | O187: 1.7 | W187: Operating | X187: Jun | Y187: 2008 | AA187: Portland | AB187: Multnomah | AC187: OR | AD187: Y | AE187: Columbia | AF187: WECC | AG187: City of Portland | AH187: Independent | AI187: Listed NUG per 2009 White Book | AN187: 1 | AO187: 1 | AP187: 1.7 | AQ187: =IF(ISNUMBER(T187),T187,CC187)*AN187 -> 1.36 | AR187: Columbia Blvd WWTP | AS187: WWTP digestors | BU187: (2) 850 kW reciprocating engines. Also, (4) 30kW microturbines installed in 2001. | BV187: 45.596391 | BW187: -122.720041 | BX187: http://brownfield.org/bes/index.cfm?a=40645&c=31031 | BY187: 2018-03-25 | BZ187: 1.7 | CA187: 1.7 | CB187: 0.8 | CC187: 1.36
A188: Columbia Generating Station | B188: 1112 | C188: 371 | D188: 2 | F188: NB | G188: UR | I188: Uranium | J188: 1200 | K188: 1200 | L188: 1150 | M188: 1169 | N188: 1130 | O188: 1145 | P188: 1160 | Q188: 1169 | W188: Operating | X188: Dec | Y188: 1984 | AA188: Hanford | AB188: Benton | AC188: WA | AD188: Y | AE188: Columbia | AF188: WECC | AG188: Energy Northwest | AH188: JOA | AI188: BPA | AN188: 1 | AO188: 1 | AP188: 1200 | AQ188: 1026 | BB188: BPA | BC188: 1032.9 | BD188: 869.3 | BE188: 1022.5 | BF188: 940.8987443 | BG188: 1064.871804 | BH188: 925.6 | BI188: 1056.2 | BJ188: 757.31 | BK188: 1054.92 | BL188: 548.66 | BM188: 1065.5 | BN188: 965.86 | BO188: 1084.17 | BP188: 931.61 | BQ188: 1098.8 | BR188: 927.9 | BS188: 1108.3 | BT188: 1012.2 | BU188: One 1200 MW STG. | BV188: 46.469 | BW188: -119.32 | BX188: http://www.energy-northwest.com/generation/cgs/index.php | BY188: 2020-03-23T14:01:00 | BZ188: 1150 | CA188: 1130 | CB188: 0.9 | CC188: 1026
A189: Columbia Ridge Landfill | B189: 1716 | C189: 57015 | D189: GEN1,GEN2,GEN3,GEN4,GEN5,GEN6,GEN7,GEN8 | F189: IC | G189: LFG | I189: Biomass | J189: 6.4 | K189: 6.4 | M189: 12.8 | N189: 6.4 | O189: 6.4 | P189: 6.4 | Q189: 6.4 | T189: 5.8 | W189: Operating | X189: Dec | Y189: 2009 | AA189: Arlington | AB189: Gilliam | AC189: OR | AD189: Y | AE189: Columbia | AF189: WECC | AG189: Waste Management, Inc. | AH189: Independent | AI189: Seattle City Light (Dec 2009 - Dec 2029) | AM189: 2029 | AN189: 1 | AO189: 1 | AP189: 6.4 | AQ189: 5.8 | BB189: BPA | BJ189: 0.18 | BK189: 5.9 | BL189: 5.76 | BM189: 5.7 | BN189: 5.95 | BO189: 7.97 | BQ189: 11.4 | BR189: 11 | BS189: 11.8 | BT189: 11.7 | BU189: (8) 0.8 MW reciprocating engines. | BV189: 45.616193 | BW189: -120.243065 | BX189: http://www.wmnorthwest.com/landfill/landfillcities/columbia.html | BY189: 2020-03-23T13:36:51 | BZ189: 6.4 | CA189: =IF(OR(J189="Wind",J189="Solar",J189="Hydro"),J189,IF(ISNUMBER(N189),N189,IF(ISNUMBER(P189), P189, IF(ISNUMBER(L189),L189,J189)))) -> 6.4 | CB189: 0.90625 | CC189: 5.8
A190: Columbia Ridge Landfill Expansion | B190: 2039 | C190: 57015 | D190: GEN9,GEN10,GEN11,GEN12 | F190: IC | G190: LFG | I190: Biomass | J190: 6.4 | K190: 6.4 | P190: 6.4 | Q190: 6.4 | T190: 5.8 | W190: Operating | X190: Aug | Y190: 2014 | AB190: Gilliam | AC190: OR | AD190: Y | AF190: WECC | AG190: Waste Management, Inc. | AH190: Independent | AI190: Seattle City Light | AM190: 2034 | AN190: 1 | AO190: 1 | AP190: 6.4 | AQ190: 5.8 | BB190: BPA | BU190: (4) 1.6 MW reciprocating engines. | BV190: 45.616193 | BW190: -120.243065 | BX190: http://www.wmnorthwest.com/landfill/landfillcities/columbia.html | BY190: 2018-03-28 | BZ190: 6.4 | CA190: 6.4 | CB190: 0.90625 | CC190: 5.8
A191: Colville Indian Power & Veneer 1 & 2 | B191: 1113 | C191: 56191 | D191: GEN1,GEN2 | F191: STCG | G191: WW | I191: Biomass | J191: 12.5 | K191: 15.7 | L191: 0.9 | N191: 12.5 | O191: 14 | P191: 12.5 | Q191: 14 | W191: Retired | X191: Nov | Y191: 2002 | Z191: 2013 | AA191: Omak | AB191: Okanogan | AC191: WA | AD191: Y | AE191: Columbia | AF191: WECC | AG191: Colville Tribal Enterprise Corporation | AH191: Tribal | AI191: Retired | AN191: 0 | AO191: 0 | AP191: 0 | AQ191: 0 | AR191: Colville Indian Precision Pine | AS191: Timber products | BM191: 0 | BN191: 0 | BU191: (2) boilers, Unit 1 STG 5 MW, Unit 2 STG 7.5 MW. | BV191: 48.400525 | BW191: -119.517086 | BX191: 0 | BY191: 2020-04-13T14:02:31 | BZ191: 0.9 | CA191: 12.5 | CB191: 0.8 | CC191: 5.36
A192: Combine Hills I | B192: 1115 | C192: 56195 | D192: 001 | F192: WT | G192: WND | I192: Wind | J192: 41 | K192: 41 | N192: 8 | O192: 8 | P192: 41 | Q192: 41 | T192: 14 | W192: Operating | X192: Dec | Y192: 2003 | AA192: Helix area | AB192: Umatilla | AC192: OR | AD192: Y | AE192: Columbia | AF192: WECC | AG192: Eurus Energy America, Inc. | AH192: Independent | AI192: PacifiCorp (Dec 2003 - Dec 2027) | AJ192: PacifiCorp (bundled RECs) | AK192: PNW IOU | AM192: 2027 | AN192: 1 | AO192: 1 | AP192: 41 | AQ192: 14 | AW192: (41) Mitsubishi MWT-1000A | AX192: 55 | AY192: 61.4 | AZ192: 2 | BB192: PACW | BF192: 8.05239726 | BG192: 17.9 | BH192: 14.9 | BI192: 16.84 | BJ192: 11.94 | BK192: 11.9 | BL192: 13.56 | BM192: 12.5 | BN192: 11.71 | BO192: 12.28 | BP192: 10.39 | BQ192: 13.3 | BR192: 10.7 | BS192: 13 | BT192: 10 | BU192: (41) Mitsubishi MWT 1000-A WTG. | BV192: 45.942 | BW192: -118.498 | BX192: http://www.transmission.bpa.gov/PlanProj/Wind/default.cfm?page=combine | BY192: 2020-01-29T09:56:27 | BZ192: 41 | CA192: 8 | CB192: 0.3414634146 | CC192: 14
A193: Combine Hills II | B193: 1719 | C193: 57137 | D193: 1 | F193: WT | G193: WND | I193: Wind | J193: 63 | K193: 63 | P193: 63 | Q193: 63 | T193: 18 | W193: Operating | X193: Jan | Y193: 2010 | AA193: Helix area | AB193: Umatilla | AC193: OR | AD193: Y | AE193: Columbia | AF193: WECC | AG193: Eurus Energy America, Inc. | AH193: Independent | AI193: Clark PUD (Jan 2010 - Jan 2030) | AK193: PNW Public | AM193: 2030 | AN193: 1 | AO193: 1 | AP193: 63 | AQ193: 18 | AU193: BPA 69kV Walla Walla - Pendleton line via tap | AW193: (63) Mitsubishi MWT-62/1.0 | AX193: 69 | AY193: 61.4 | AZ193: 2 | BB193: BPA | BK193: 18.1 | BL193: 20.38 | BM193: 17.5 | BN193: 17.14 | BO193: 18.48 | BP193: 15.91 | BQ193: 19.8 | BR193: 14.5 | BS193: 19.3 | BT193: 15.2 | BU193: (63) Mitsubishi MWT 1000-A turbines. Design wind speed 19mph. | BV193: 45.942 | BW193: -118.498 | BX193: http://www.transmission.bpa.gov/PlanProj/Wind/default.cfm?page=combine | BY193: 2018-03-31 | BZ193: 63 | CA193: 63 | CB193: 0.2857142857 | CC193: 18
A194: Company Creek (Stehekin) | B194: 1116 | E194: 2624 | F194: HY | G194: WAT | I194: Hydro | J194: 0.2 | M194: 0.2 | N194: 0.2 | O194: 0.2 | W194: Operating | AA194: Company Cr. | AB194: Chelan | AC194: WA | AD194: Y | AE194: Columbia | AF194: WECC | AG194: Chelan Co. PUD | AH194: PUD | AI194: Chelan Co. PUD (Off-grid) | AN194: 0 | AO194: 0 | BF194: 0.01894977169 | BG194: 0.01860730594 | BX194: 0 | BY194: 2020-03-22T20:52:37 | BZ194: 0.2 | CA194: 0.2 | CB194: 0.427 | CC194: 0.0854
A195: Conda Phosphate Plant | B195: 1117 | F195: GTCG | G195: UN | I195: Petroleum | J195: 2.8 | N195: 2.8 | O195: 2.8 | W195: Operating | Y195: 1992 | AA195: Conda | AB195: Caribou | AC195: ID | AD195: Y | AE195: Bear | AF195: WECC | AG195: Agrium (Nu-West Industries) | AH195: Independent | AI195: Self-generation | AN195: 1 | AO195: 0 | AP195: =AN195*J195 -> 2.8 | AQ195: =IF(ISNUMBER(T195),T195,CC195)*AN195 -> 2.24 | AR195: Conda Phosphate Plant | AS195: Chemicals | BX195: 0 | BY195: 2020-04-14T13:34:19 | BZ195: 2.8 | CA195: 2.8 | CB195: 0.8 | CC195: 2.24
A196: Condit 1 & 2 | B196: 1118 | C196: 3846 | D196: 1,2 | E196: 2342 | F196: Storage w/Div | G196: WAT | I196: Hydro | J196: 14.7 | N196: 14 | O196: 14 | P196: 13.7 | Q196: 15 | W196: Retired | X196: Apr | Y196: 1913 | Z196: 2012 | AA196: White Salmon R. | AB196: Klickitat | AC196: WA | AD196: Y | AE196: Columbia | AF196: WECC | AG196: PacifiCorp | AH196: IOU | AI196: Retired (formerly PacifiCorp) | AN196: 0 | AO196: 0 | AP196: 0 | AQ196: 0 | AU196: 69 kV | BB196: PACW | BC196: 9.9 | BD196: 9.2 | BE196: 3 | BF196: 2.302968037 | BG196: 3.601712329 | BH196: 2.9 | BI196: 2.94 | BJ196: 9.34 | BK196: 10.9 | BL196: 10.08 | BU196: Dam & reservoir, pipeline, surge tank & penstocks, powerhouse w/(2) horizontal Francis turbine-generators, tailrace. Original license granted May 1965; expired December 1993. 1999 Settlement Agreement provided for termination of power production and dam removal to commence in 2006; subsequently delayed. Application to surrender license and remove project works granted Dec 2010, providing for commencement of facility removal after Oct 2011 and completed by Aug 2012. Demolition to begin Spring 2012, completed 10/11. | BV196: 45.7673415 | BW196: -121.5378 | BX196: http://en.wikipedia.org/wiki/Condit_Hydroelectric_Project#Decommissioning | BY196: 2020-03-25T22:27:17 | BZ196: 14.7 | CA196: 14 | CB196: 0.427 | CC196: 6.12745
A197: Condon | B197: 1119 | C197: 55739 | D197: GEN1,GEN2 | F197: WT | G197: WND | I197: Wind | J197: 49.8 | K197: 49.8 | N197: 16 | O197: 16 | P197: 49.8 | Q197: 49.8 | T197: 12 | W197: Operating | X197: Dec | Y197: 2001 | AA197: Condon | AB197: Gilliam | AC197: OR | AD197: Y | AE197: Columbia | AF197: WECC | AG197: Goldman Sachs (75%), AES SeaWest (25%) | AH197: Independent | AI197: BPA | AJ197: PacifiCorp (unbundled RECs) | AK197: BPA | AN197: 1 | AO197: 1 | AP197: 49.8 | AQ197: 12 | AW197: (83) Mitsubishi MWT-600 | AX197: 60 | AY197: 45 | AZ197: 1 | BB197: BPA | BC197: 5.9 | BD197: 10.1 | BE197: 10.5 | BF197: 6.884018265 | BG197: 11.62625571 | BH197: 9.8 | BI197: 11.89 | BJ197: 10.95 | BK197: 9.58 | BL197: 11.29 | BM197: 11.7 | BN197: 10.18 | BO197: 11.37 | BP197: 9.61 | BQ197: 11.1 | BR197: 10.4 | BS197: 11.2 | BT197: 8.5 | BU197: Ph 1 ((41) Mitsubishi MHI 600 WTG) complete Dec 2001; Phase II (42) Mitsubishi MHI 600 WTG complete Jun 2002. | BV197: 45.276 | BW197: -120.287 | BX197: http://www.transmission.bpa.gov/PlanProj/Wind/completed.cfm?page=condon | BY197: 2020-03-16T12:12:18 | BZ197: 49.8 | CA197: 16 | CB197: 0.2409638554 | CC197: 12
A198: ConocoPhillips (Billings) | B198: 1918 | C198: 56496 | D198: 3701 | F198: STCG | G198: WO | I198: Petroleum | J198: 1.5 | K198: 1.6 | N198: 1.5 | O198: 1.5 | P198: 1.5 | Q198: 1.5 | W198: Operating | AA198: Billings | AB198: Yellowstone | AC198: MT | AD198: N | AE198: Missouri | AF198: WECC | AG198: ConocoPhillips | AH198: Independent | AI198: Self-generation | AN198: 0 | AO198: 0 | AP198: 0 | AQ198: 0 | AR198: ConocoPhillips | AS198: Refinery | BB198: NorthWestern | BK198: 0.2 | BL198: 0 | BM198: 0 | BN198: 0 | BO198: 0 | BP198: 0 | BQ198: 0 | BR198: 0 | BS198: 0 | BT198: 0 | BU198: 1.5 MW backpressure turbine substituted for pressure reduction valve. | BV198: 45.7769 | BW198: -108.4911 | BX198: 0 | BY198: 2018-04-05 | BZ198: 1.5 | CA198: 1.5 | CB198: 0.8 | CC198: 1.2
A199: COPCO 1 (1 & 2) | B199: 1121 | C199: 294 | D199: 1,2 | E199: 2082 | F199: ROR | G199: WAT | I199: Hydro | J199: 20 | K199: 20 | N199: 24 | O199: 24 | P199: 28 | Q199: 28 | W199: Operating | X199: Jan | Y199: 1918 | Z199: 2021 | AA199: Klamath R. | AB199: Siskiyou | AC199: CA | AD199: N | AE199: Klamath | AF199: WECC | AG199: PacifiCorp | AH199: IOU | AI199: PacifiCorp | AN199: 1 | AO199: 1 | AP199: 20 | AQ199: 9.394 | BB199: PACW | BC199: 8.8 | BD199: 10.5 | BE199: 8.2 | BF199: 9.250799087 | BG199: 15.28835616 | BH199: 3.3 | BI199: 3.29 | BQ199: 9.24 | BR199: 12.3 | BS199: 8.4 | BT199: 9.8 | BU199: PAC Klamath Project. Dam, diversion and powerhouse w/(2) 10 MW horizontal Francis turbine-generators. 4/6/16 agreement to remove four Klamath dams by 2020 (COPCO1&2, Iron Gate, JC Boyle). 2/17/21 - PAC has collected the $200MM in surcharges from its CA/OR customers (over 9 years) to help fund the removal of dams. Next step is for FERC to transfer license to the Klamath River Renewal Corp and states of OR and CA. | BV199: 41.9798639 | BW199: -122.3344629 | BX199: 0 | BY199: 2021-02-17 | BZ199: 20 | CA199: 24 | CB199: 0.427 | CC199: 9.394
A200: COPCO 2 (1 & 2) | B200: 1122 | C200: 295 | D200: 1,2 | E200: 2082 | F200: Storage (Rereg) | G200: WAT | I200: Hydro | J200: 27 | K200: 27 | N200: 32 | O200: 32 | P200: 34 | Q200: 34 | W200: Operating | X200: Jul | Y200: 1925 | Z200: 2021 | AA200: Klamath R. | AB200: Siskiyou | AC200: CA | AD200: N | AE200: Klamath | AF200: WECC | AG200: PacifiCorp | AH200: IOU | AI200: PacifiCorp | AN200: 1 | AO200: 1 | AP200: 27 | AQ200: 12.5965 | BB200: PACW | BC200: 11.2 | BD200: 13.1 | BE200: 10.3 | BF200: 11.47545662 | BG200: 19.70878995 | BH200: 4.2 | BI200: 4.07 | BQ200: 11.96 | BR200: 15.8 | BS200: 10.6 | BT200: 12.4 | BU200: PAC Klamath Project. Dam, diversion and powerhouse w/(2) 13.5 MW vertical Francis turbine-generators. 4/6/16 agreement to remove four Klamath dams by 2020 (COPCO1&2, Iron Gate, JC Boyle). | BV200: 41.981 | BW200: -122.336 | BX200: 0 | BY200: 2021-02-17 | BZ200: 27 | CA200: 32 | CB200: 0.427 | CC200: 12.5965
... 840 more rows

Sheet Update Log (hidden)
A1: Back to Navigation
A2: Northwest Power and Conservation Council
A3: POWER PLANTS IN THE PACIFIC NORTHWEST
A4: Update Notes (Format and formula changes, record additions or deletions)
A6: Project ID(s) | B6: Item | C6: Source | D6: Author | E6: Date
B7: Added Control Area field | C7: FERC 714 | E7: 2006-11-01
B8: "Self-gen" Customer class updated from Powerdat. | C8: Powerdat | E8: 2007-03-22
B9: Added U.S. Bankcorp IC1 - IC4 | C9: Powerdat | E9: 2007-03-22
B10: Added MacLaren IC | C10: Powerdat | E10: 2007-03-22
B11: Added Fortix | C11: Powerdat | E11: 2007-03-22
B12: Updated IPC QF projects | C12: 2006 IPC IRP | E12: 2007-05-17
B13: Added "Hydro Simulation Class" column | C13: JF - Regional Hydro Independents 051707. | E13: 2007-05-17
B14: Added Service Month column | C14: To support future GENRES revisions | E14: 2007-05-20
B15: Deleted GENRES Node column | C15: Maintain node info in GENRES | E15: 2007-05-20
B16: Updated Avista QFs | C16: Data from Clint Kalich | E16: 2007-05-31
B17: Updated Puget QFs | C17: Data from Elizabeth Hossner | E17: 2007-06-01
B18: Updated NorthWestern QFs | C18: Data from Frank Bennett | E18: 2007-06-05
B19: Updated PacifiCorp QFs | C19: Data from Sandra Shaffer | E19: 2007-06-18
B20: Updated Regulated and Independent hydro | C20: 2007 White Book | E20: 2007-06-18
B21: Reformatted chart of historical energy production | E21: 2/4//2008
B22: Added column for 2006 energy production | C22: 2006WECCplantsMMBtuMWhEmm (WA CTED) | E22: 2/4//2008
B23: Consolidated NPCC Planning Assumptions to right of worksheet. | D23: JK | E23: 2008-03-20
B24: Added Must Run column | C24: To support Risk Model | D24: JK | E24: 2008-03-20
B25: Added Non-firm Load Share column | C25: To support Risk Model | D25: JK | E25: 2008-03-20
B26: Restored GENESYS Node column | C26: To support GENESYS and Risk Model | D26: JK | E26: 2008-03-20
B27: Updated Condon ownership and Notes | D27: JK | E27: 2008-03-21
B28: Added Vansycle service month | D28: JK | E28: 2008-03-21
B29: Revised nameplate capacity and Notes for Hopkins Ridge | D29: JK | E29: 2008-03-21
B30: Revised service month for Big Horn | D30: JK | E30: 2008-03-21
B31: Updated planned commercial service month for Grays Harbor | D31: JK | E31: 2008-03-24
B32: Added Bonners Ferry 1, 2, and 3 generating projects | D32: GC | E32: 2008-04-14
B33: Added DAW Forest Products generating project | D33: GC | E33: 2008-04-14
B34: Added Great Western Malting generating project | D34: GC | E34: 2008-04-14
B35: Added Kinzua generating project | D35: GC | E35: 2008-04-14
B36: Added Lane Plywood generating project | D36: GC | E36: 2008-04-14
B37: Added Pine Products generating project | D37: GC | E37: 2008-04-14
B38: Added Trojan generating project | D38: GC | E38: 2008-04-14
B39: Added Whiskey Run generating project | D39: GC | E39: 2008-04-14
B40: Added Woodpower (Pacific Crown) generating project | D40: GC | E40: 2008-04-14
B41: dded Hanford Generating project | D41: JK | E41: 2008-04-21
B42: Updated licensing status of Priest Rapids and Wanapum. | D42: JK | E42: 2008-04-21
B43: Updated Service/Retirement dates | C43: 2006 WECC Existing Generating and Significant Additions to System Facilities | D43: GC | E43: 2008-04-21
B44: Added Salt River generating project | D44: JK | E44: 2008-04-22
B45: Updated Notes on Long Lake, Monroe Street, Mystic 1&2, Nine Mile, Oregon City, Post Falls (Middle Channel), T.W. Sullivan 1-13, Upper Falls, West Linn | D45: JK | E45: 2008-04-22
B46: evisions to NWE share of Colstrip 4 and related load | D46: JK | E46: 2008-04-23
B47: dded RPS columns to Planning Assumptions section | C47: Values from RPS Estimates 032008.xls | D47: JK | E47: 2008-04-23
B48: Corrected energy for Cascade Creek (FERC 6629) | C48: NWHS | D48: JK | E48: 2008-04-23
B49: Updated nameplate capacity and energy for N. Upqua projects (1927A - H) | C49: NWHS | D49: JK | E49: 2008-04-23
B50: Removed "4-state Region" data column. | C50: Redundant to "State" | D50: JK | E50: 2008-04-25
B51: Updated Box Canyon installed capacity, licensing information, upgrade plan. | C51: FERC order issuing new license. | D51: JK | E51: 2008-04-25
B52: Deleted Calispell Creek | C52: Pumping station adjunct to Box Canyon project. | D52: JK | E52: 2008-04-25
B53: Updated nameplate capacity, average energy and service dates for Moyie project (FERC 1991). | C53: NWHS | D53: JK | E53: 2008-04-25
B54: Updated Everett Cogeneration load. | D54: JK | E54: 2008-04-28
B55: Consolidated Two Dot projects. | D55: JK | E55: 2008-04-28
B56: Changed PPM Energy to Iberdrola Renewables | D56: JK | E56: 2008-05-07
B57: Added "Included in GENRES" column | D57: JK | E57: 2008-05-08
B58: Added "Regional Capacity" and "Peak Capacity Value" columns. | D58: JK | E58: 2008-05-08
B59: Added notice of Chehalis Generation acquisition by PacifiCorp. | D59: JK | E59: 2008-05-13
B60: Corrected Avista share of Colstrip 3 & 4. | D60: JK | E60: 2008-05-15
B61: Added technology type for Mile 28, MAgic Dam and Ross Creek. | D61: JK | E61: 2008-05-19
B62: Corrected operating status of Elwha hydro. | D62: JK | E62: 2008-05-19
B63: Revised decommissioning date for Elwha and Glines Canyon hydro. | D63: JK | E63: 2008-05-19
B64: Changed status of Willamette Steam to Idle. | D64: JK | E64: 2008-05-19
B65: Added Portland Habilitation Center | D65: JK | E65: 2008-05-21
B66: Changed status of Finley to Retired | D66: JK | E66: 2008-05-23
B67: Added peak output note to Klamath Cogen | C67: Iberadrola/PPM website. | D67: JK | E67: 2008-05-23
B68: Updated Klamath Cogen heat rate. | C68: Iberadrola/PPM website. | D68: JK | E68: 2008-05-23
B69: Updated Klamath peakers heat rate. | C69: Gas Turbine World (P&W FT8 Twin-Pak). | D69: JK | E69: 2008-05-23
B70: Added estimated heat rates for remaining GENESYS resoruces. | C70: AURORA Resources tables. Missing ICs from Change Log Heat Rate table. | D70: JK | E70: 2008-05-23
B71: Updated heat rates of PacifiCorp plants per PacifiCorp 2007 IRP. | D71: JK | E71: 2008-05-23
B72: Added Glacier Wind Project | D72: JK | E72: 2008-05-27
B73: Added forced outage derate to monthly energy output | D73: JK | E73: 2008-05-28
B74: Set FOR (capacity factor) to zero for wind | C74: Included in maintenance monthly shape factors | D74: JK | E74: 2008-05-28
B75: Revised hydro monthly shape factors to include annual capacity factor. | C75: Consistency with wind treatment | D75: JK | E75: 2008-05-28
B76: Updated Missouri hydro monthly shape factors w current AURORA annual capacity factor. | D76: JK | E76: 2008-05-28
B77: Updated EIA Plant Codes | D77: GC | E77: 2008-06-06
B78: Added Columbia Blvd | D78: JK | E78: 2008-06-09
B79: Updated City of Gresham WWTP engine info. | D79: JK | E79: 2008-06-09
B80: Added Alternate Fuel column, renamed Primary Fuel column, split fuel entries into primary and alternate fuels. | D80: JK | E80: 2008-06-10
B81: Updated Pelton - Warm Butte ownership and licensing info. | D81: JK | E81: 2008-06-12
B82: Added Plant Codes for Lake, Foote Creek, Old Failthful and Montana 1 | C82: EIA-906 & EIA-920. | D82: JK | E82: 2008-06-16
B83: Added Plant Codes for Stone Container, Tiber, Don Plant and Hazleton A | C83: EIA-906 & EIA-920. | D83: JK | E83: 2008-06-16
B84: Added Plant Codes for Lucky Peak, John H. Koyle, Evergreen/Tamarack, Little Wood River Ranch and Mora Canal Drop | C84: EIA-906 & EIA-920. | D84: JK | E84: 2008-06-16
B85: Updated EIA Plant and Unit Codes | D85: GC | E85: 2008-06-20
B86: Separated Steam Plant No. 2 Unit 1 and Unit 2 to different line items | D86: GC | E86: 2008-06-20
B87: Separated SP Newsprint ST to two line items, ST1 & ST2 | D87: GC | E87: 2008-06-20
B88: Separated Smurfit-Stone Container to three line items, 1,2,3 | D88: GC | E88: 2008-06-20
B89: Added SDS Lumber (Gorge Energy) 3 and retired 1 | D89: GC | E89: 2008-06-20
B90: Added Glendive IC1 | D90: GC | E90: 2008-06-20
B91: Entered "Unknown" for unknown retirement dates to facilitate sorting. | D91: JK | E91: 2008-06-23
B92: Changed Regional Capacity adjustment for Montana 1 and Yellowstone Energy to 40% | C92: Was 36% to reflect ratio of QF contract to nameplate. Double-counted availability factor. | D92: JK | E92: 2008-06-23
B93: Added data column indicating reason for regional capacity derate | D93: JK | E93: 2008-06-24
B94: Added data column indicating reason for regional energy derate | D94: JK | E94: 2008-06-27
B95: Added Rattlesnake Road | D95: JK | E95: 2008-07-07
B96: Changed "RM" (Rocky Mountain) wind pointer code to "HP" (High Plains) | C96: For consistency | D96: JK | E96: 2008-07-22
B97: Changed SID & MT wind seasonal pointers to point to SID & HP wind, respectively. | C97: Were pointing to PNWE wind seasonal shape | D97: JK | E97: 2008-07-22
B98: Changed seasonal pointer codes for monthly wind and Missouri hydro to "Cf" (capacity factor) | C98: For consistency | D98: JK | E98: 2008-07-22
B99: Deleted unused seasonal records. | D99: JK | E99: 2008-07-22
B100: Added "Mt" (Maintenance) code to 14 and 35 day flat & PNW seasonal maintenance pointers. | C100: For consistency | D100: JK | E100: 2008-07-22
B101: Consolidated Hopkins Ridge and Hopkins Ridge Infill | C101: Infill turbines operational Aug 2008. | D101: JK | E101: 2008-08-08
B102: Added Willow Creek | D102: JK | E102: 2008-08-08
B103: Redefined array ACapability on WS "Key" to restore default energy capability calculation. | D103: JK | E103: 2008-08-21
B104: Removed default FOR columns from array ACapability | C104: Disused. FOR is now tabulated in TechDat. | D104: JK | E104: 2008-08-25
B105: Removed FOR column from NPCC Planning Assumption section of the Project datasheet | C105: Default FOR value not used. Tabulated in TechDat for use in compiling GenRes input section. | D105: JK | E105: 2008-08-25
B106: Added Klondike III Expansion to Klondike III. | C106: Will keep expansion records separate in New Resources workbook. Will combine with existing project in Existing Resources workbook when construction of expansion begins. | D106: JK | E106: 2008-08-25
B107: Added Wheat Field | D107: JK | E107: 2009-08-29
B108: Corrected seasonal capacity value calculation for wind and hydro resources using capacity factors from SeasDist table. | C108: Added Capacity Value Normalizer column to SeasDist to normalize monthly capacity factors when calculating monthly capacity value. | D108: JK | E108: 2009-08-29
B109: Added Pebble Springs | D109: JK | E109: 2008-09-03
B110: Changed "Control Area" to "Balancing Authority" | D110: JK | E110: 2008-10-03
B111: Changed Seasonal Energy calculations to base included hydro on critical energy, if present. | D111: JK | E111: 2008-10-03
B112: Simplified Seasonal Energy calculation of IPP derate | D112: JK | E112: 2008-10-03
B113: Updated EIA codes, Nameplate Cap, Service Year | D113: GC | E113: 2008-10-08
B114: Added column for EIA Summer/Winter Capacity | D114: GC | E114: 2008-10-08
B115: Added column for NWPCC Unique Ids | D115: GC | E115: 2008-10-09
B116: Added Bettencourt Dry Creek Dairy | D116: GC | E116: 2008-10-10
B117: Changed Eastsound to retired. | D117: GC | E117: 2008-10-10
B118: Added ProLogis | D118: JK | E118: 2008-10-10
B119: Consolidated Regional Capacity and Regional Energy derate codes on Key | D119: JK | E119: 2008-10-11
B120: Corrected Resource Adequacy monthly energy calculation to eliminate compound derating of resources sold out-of-region | D120: JK | E120: 2008-10-11
B121: Adjusted Regional Energy (%) values for Boardman, Broadwater, Valmy, Colstrip, Curtis, DeRuyter, DCFP, Judith, Lowline, Marsh, PERC, Ross Cr., SPR Aberdeen and SPR Fredonia to work with revised Resoruce Adequacy monthly energy calculations. | D121: JK | E121: 2008-10-11
B122: Corrected regional energy (%) and regional capacity (%) values for Klondike and Klondike III | C122: Had not been updated. | D122: JK | E122: 2008-10-11
B123: Corrected calculation of Resource Adequacy monthly energy for GENRES hydro facilities to include regional share %, if applicable. | C123: Affected these types of projects where contracted to NorthWestern. | D123: JK | E123: 2008-10-11
B124: Updated westside share of NorthWestern resources to 33%. | C124: Was 40%. Based on 2007 EIA load data. | D124: JK | E124: 2008-10-11
B125: Added OSU Energy Center | D125: JK | E125: 2008-10-28
B126: Added Highwood | D126: JK | E126: 2008-10-31
B127: Removed Spokane WWTP | C127: Spokane WWTP methane burner does not cogenerate. Plans afoot to add cogeneration. | D127: JK | E127: 2009-01-23
B128: Added Rexville Farm Power | D128: JK | E128: 2009-02-12
B129: Added Windy Point | D129: JK | E129: 2009-02-13
B130: Changed Bettencourt NWPPC ID (duplicate) | D130: GC | E130: 2009-02-19
B131: Added 2007 energy production | C131: 2007WECCplantsMMBtuMWhEmm (WA CTED) | D131: GC | E131: 2009-02-19
B132: Added Echo Wind Farm | D132: GC | E132: 2009-02-24
B133: Added BIglow Canyon II | D133: JK | E133: 2009-03-05
B134: Added Latitude, Longitude and URL columns | D134: JK | E134: 2009-03-12
B135: Deleted Mountain Home AFB, Pepsi Cola and Kettle Foods solar projects | C135: Less than 500kW | D135: JK | E135: 2009-05-17
B136: Added Three-mile Canyon, Cassia, Mountain Home (Wind) | D136: JK | E136: 2009-05-22
B137: Restored 26-day maintenance pointer for CC and frame GTs | C137: In TechDat - Not known why pointer was changed to 17-day aero pointer | D137: JK | E137: 2009-05-22
B138: Added Flathead Landfill WTE | D138: JK | E138: 2009-06-29
B139: Added Stahlbush Island Farms | D139: JK | E139: 2009-07-20
B140: Changed Stateline average energy to 74 MWa | C140: Per Eric Hiasson | D140: JK | E140: 2009-07-20
B141: Corrected aeroderivative gas turbine availability assumptions to 5th Plan values | C141: TechDat values had never been updated. | D141: JK | E141: 2009-07-29
B142: Added Glacier Wind Energy II | D142: JK | E142: 2009-08-13
B143: Added Mill Creek | D143: JK | E143: 2009-08-26
B144: Added Harvest Wind | D144: JK | E144: 2009-09-16
B145: Separated Maintenance Rate and Capacity Monthly Shape vectors for GT technologies. | C145: CMS data from AURORA Change Log 10/16/09 | D145: JK | E145: 2009-10-18
B146: Updated thermal FOR, Maint. Rate & Mean Time to Repair values in TechDat & SeasDist | C146: 2009 GADS data from Availability Parameters 101609 | D146: JK | E146: 2009-10-18
B147: Modified monthly capacity and energy calculations to account for separate Maintenance Rate and Capacity Monthly Shape | C147: Note: Monthly capacity calculations exclude FOR derate. | D147: JK | E147: 2009-10-18
B148: Consolidated Wild Horse and Wild Horse Expansion | D148: JK | E148: 2009-11-10
B149: Added GP Toledo | C149: 2009 White Book (Jan Capacity) | D149: JK | E149: 2009-11-23
B150: Updated BPA White Book Jan capacity w?OY 2010-11 values (Small thermal, COmbustion Turbines and Cogen only) | C150: 2009 White Book (Jan Capacity) | D150: JK | E150: 2009-11-23
B151: Added Gold Ray | D151: JK | E151: 2009-12-11
B152: Added Mill Creek | D152: JK | E152: 2009-12-15
B153: Added Culbertson | D153: JK | E153: 2009-12-17
B154: Corrected maintenance outage rate for Wyoming coal | D154: JK | E154: 2009-12-31
B155: Split Mountain Home (1872) into Mountain Home (Bennett Creek) (1692) and Mountain Home (Hot Springs) (1771). | D155: JK | E155: 2010-01-05
B156: Added Cassia Gulch (1888) & Tuana Springs (1871) | D156: JK | E156: 2010-01-05
B157: Added Combine Hills II (1719) | D157: JK | E157: 2010-01-05
B158: Updated 2008 MWa | C158: 2008 WECC (WA CTED) | D158: GC | E158: 2010-02-12
B159: Added Riverbend, Finley Buttes and Columbia Ridge landfill gas recovery | D159: JK | E159: 2010-02-23
B160: Increased reciprocating engine project life to 30 years iaw 6th Plan. | D160: JK | E160: 2010-03-03
B161: Updated and consolidated SP Newsprint | D161: JK | E161: 2010-03-15
B162: Revised priority order for calculating default net capacity | C162: White Book > WECC > EIA > Installed | D162: JK | E162: 2010-03-15
B163: Added calculation of default summer net capacity | C163: WECC > EIA > Installed | D163: JK | E163: 2010-03-15
B164: Revised calculation of capability | C164: Average energy specified > def CF | D164: JK | E164: 2010-03-15
B165: Added Coastal Energy; PNWW wind technical data. | D165: JK | E165: 2010-04-05
B166: Added ConocoPhilips (Billings) | D166: JK | E166: 2010-04-14
B167: Added Vancycle II, Kittitas Valley | D167: JK | E167: 2010-04-29
B168: Added Lower Snake River Ph I | D168: JK | E168: 2010-05-24
B169: Added Youngs Creek | D169: JK | E169: 2010-06-03
B170: Corrected erroneous Hydro technical data pointers | D170: JK | E170: 2010-06-03
B171: Removed Coos County MSW (Incinerator - no power generation) | D171: JK | E171: 2010-06-03
B172: Added Planned projects: | D172: JK | E172: 2010-06-04
B173: Big Horn II
B174: Camp Reed
B175: Double B Dairy
B176: Goshen North (Goshen II) | C176: Under construction
B177: Juniper Ridge Piping & Hydro
B178: Langley Gulch
B179: Leaning Juniper IIa | C179: Under construction
B180: Leaning Juniper IIb | C180: Under construction
B181: Lower Turnbull Drop
B182: Miller Ranch (Northwest Wind)
B183: Payne's Ferry
B184: Rainbow Redevelopment
B185: Rock Creek Dairy
B186: Sawtooth
B187: Shepherds Flat Central
B188: Shepherds Flat North
B189: Shepherds Flat South
B190: Swager Farms
B191: Upper Turnbull Drop
B192: Yahoo Creek
B193: Updated headers for Cols BL - CP to match GENESYS input file headers | D193: JK | E193: 2010-06-09
B194: Consolidated Colville Indian Power & Veneer Units 1 & 2 | C194: NPCC 1113 & 1114 to 1113 | D194: JK | E194: 2010-06-16
B195: Consolidated and updated Swift Creek Upper & Lower (FERC 1651 A & B) | C195: NPCC 1654 & 1655 to 1655 | D195: JK | E195: 2010-06-16
B196: Removed Spring Creek (FERC 7214) | C196: < 100 kW, NPCC 1544 | D196: JK | E196: 2010-06-16
B197: Removed West Linn Paper | C197: Mech drive CHP, no generation, NPCC 1621 | D197: JK | E197: 2010-06-16
B198: Removed RPS PNW and RPS Out-of-Region columns | C198: Not used | D198: JK | E198: 2010-06-16
B199: Changed "Firm Capacity Derate" to "Firm Capacity Credit" | C199: To avoid confusion | D199: JK | E199: 2010-06-16
B200: Changed Seasonal capacity formulas to reflect change in firm capacity derate entry. | D200: JK | E200: 2010-06-16
B201: pct Out-of-Region (OOR) wind column; revise capacity calculation in PNW System Seasonal Capacity and Energy table. | C201: To show 100% wind in GenRes per J. Fazio request while showing available PNW wind in PNW System Seasonal Capacity and Energy table. | D201: Ad | E201: 2010-06-17
... 590 more rows

Sheet New Projects
J1: Included:
A2: ="Next Project ID #= "&NextID!B7 -> Next Project ID #= 2385 | J2: Projects announced or terminated within past five years.
A3: POWER PLANT DEVELOPMENT ACTIVITY IN THE PACIFIC NORTHWEST 2002 - Present | J3: Projects under construction or placed into service within the previous calendar year.
D4: =MAX(LUpdate) -> 2021-09-09 | J4: Projects with Notice of Intent or filed applications for FERC licenses or exemptions, or site certificates.
G5: TRUE | J5: Projects with site certificates, FERC licenses or exemptions and county permits (where known).
A6: ="Next Project ID #= "&NextID!B7 -> Next Project ID #= 2385 | J6: Incremental capacity and energy shown for upgrades to existing projects.
A8: ANewProj | AB8: Default Calculations
A9: Project | B9: NWPCCID | C9: EIA Plant Code/Unit | D9: FERC Docket No. | E9: Technology | F9: Primary Fuel | G9: Alternate Fuel | H9: Resource Type | I9: Installed Capacity (MW) | J9: Dependable Capacity | K9: Average Energy (MWa) | L9: Plot status | M9: Service Month | N9: Service Year | O9: Terminated Year | P9: Site | Q9: County | R9: State | S9: Development Notes | T9: Developer/Owner | U9: Electrical Load | V9: Thermal Host (Cogeneration) | W9: Thermal Load (Cogeneration) | X9: Gas Mainline Interconnection | Y9: Main Grid Interconnection | Z9: Notes | AA9: Last Update | AB9: Capacity Factor (%) | AC9: Capacity (MW) | AD9: Capability (MWa)
A10: PROJECT | B10: NWPCCID | C10: EIAGC | D10: PID | E10: TECH | F10: PriFuel | G10: AltFuel | H10: PRRES | I10: InstMW | J10: DepMW | K10: MWA | L10: PLSTAT | M10: SMO | N10: SYEAR | O10: TYEAR | P10: LOC | Q10: COUNTY | R10: STATE | S10: DNOTES | T10: DEVN | U10: LOAD | V10: HOST | W10: THRM_LOAD | X10: Gas_Intercon | Y10: Elec_Intercon | Z10: NOTES | AA10: UPDATE | AB10: CCF | AC10: DefMW | AD10: CMWA
A11: 45-Mile Hydroelectric Project | B11: 2095 | D11: P-13817 | E11: HY | F11: WAT | H11: Hydro | I11: 3 | L11: Operating | M11: May | N11: 2015 | P11: Haystack Reservoir, North Unit Irrigation District | Q11: Jefferson | R11: OR | S11: FERC issued EBD Hydro a conduit exemption from licensing in 2010. EBD Hydro received $1.5MM grant from DOE and DOI to install (3) 1MW in-pipe generating units. EBD also rec'd $7.2MM loan from Oregon's State Energy Loan Program for the estimated $15MM project. | T11: Apple, Inc. (April 2014 - it is announced that Apple acquired the project from EBD Hydro) | Z11: Project is planned to be taken offline in the winter months when the irrigation canal is shut. | AA11: 2016-08-08 | AB11: =IF(OR(ISBLANK(I11),ISBLANK(K11),I11=0),VLOOKUP(E11,ADftCF,4,FALSE),K11/I11) -> 0.5 | AC11: =IF(ISBLANK(J11),I11,J11) -> 3 | AD11: =AB11*AC11 -> 1.5
A12: 993 Hydroelectric | B12: 1681 | D12: P-12423 | E12: HY | F12: WAT | H12: Hydro | I12: 1.5 | K12: 0.66 | L12: Terminated | M12: =IF(ISBLANK(N12),"",LEFT(N12,3)) ->  | O12: 2009 | P12: North Gooding Main Canal | Q12: Lincoln | R12: ID | S12: License issued Sep 2003; cancelled Aug 2009. | T12: American Falls Reservoir District #2 | U12: NWHS | Z12: Existing canal. Seasonal irrigation project. | AA12: 2010-07-08 | AB12: 0.44 | AC12: 1.5 | AD12: 0.66
A13: Adage Mason County | B13: 1957 | E13: ST | F13: WW | H13: Biomass | I13: 55 | L13: Terminated | O13: 2011 | P13: Shelton | Q13: Mason | R13: WA | S13: Notice of Construction to Olympic Region Clean Air Agency Apr 2010. Project canceled according to ClearingUp 3/2011. | T13: ADAGE/Duke Energy, dba Adage Mason County | Z13: Bubbling FBC; 65 MW gross; 60 MW net. | AA13: 2011-03-21 | AB13: 0.84 | AC13: 55 | AD13: 46.2
A14: Adams Solar Center | B14: 2159 | E14: PV | F14: Solar | H14: Solar | I14: 10 | K14: 1.75 | L14: Operating | M14: Jun | N14: 2018 | P14: Madras | Q14: Jefferson | R14: OR | S14: Signed PIURPA PPA w/ PAC. Start-up testing by Oct 31, 2016, fully commercial April 2017. Per PAC press release on 9/12, RECs from project have been purchased. Expected online date Q4 2016. Assumed to be under construction, but no information to confirm so leaving as proposed. SNL says planned (1/27/18). EIA table 6.5 (Dec 2017) says "regulatory approvals received, not yet under construction." | T14: GCL New Energy Holdings | U14: PAC - PPA as PURPA QF | Z14: http://edocs.puc.state.or.us/efdocs/RPA/re142rpa15494.pdf; RECs to PAC | AA14: 2018-08-01 | AB14: 0.175 | AC14: 10 | AD14: 1.75
A15: Adams-Neilson Solar Farm | B15: 2272 | E15: PV | F15: Solar | H15: Solar | I15: 20 | L15: Operating | M15: Dec | N15: 2018 | P15: Lind, WA | Q15: Adams | R15: WA | S15: Avista announced project as the winning bid for its Solar Select program. Early estiamtes online EOY 2018. Strata Solar is the developer and they will build and own the project, selling the power to Avista. Construction expected to start May 2018. Per EM from Avista - ribbon cutting ceremony on 10/23, however project will not be commercially online until December 2018. | T15: Strata Solar | U15: Avista - 20 year PPA | Z15: ~81,000 340-watt polycrystalline silica PV tracking panels over 170 acres; single-axis tracking system | AA15: 2018-10-24 | AB15: 0.22 | AC15: 20 | AD15: 4.4
A16: Admiralty Inlet Pilot Tidal Project | B16: 1682 | D16: P-12690 | E16: TISEC | F16: Tidal current | H16: Hydrokinetic | I16: 1 | K16: 0.1 | L16: Terminated | O16: 2014 | P16: Admiralty Inlet | Q16: Island | R16: WA | S16: Preliminary permit granted Mar 2007; expired Feb 2010; renewed Jul 2010. NOI to file hydrokinetic pilot project license application Dec 2009. $10 MM USDOE grant Sep 2010. FERC issues 10-yr pilot license on 3/20/14. SnoPUD plans to construct and deploy by 2016 and run the turbines for 3-5 years. 9/30/14 - SnoPUD terminates project bc exp. cost had risen from $20M to $37M and US DOE did not wantt o contribute additional funds. | T16: Snohomish Co. PUD | U16: Snohomish Co. PUD | Y16: 12kV Puget Sound Energy distribution line | Z16: (2) 500kW 10-meter OpenHydro Open-Centre units, undersea cable and power conditioning and control building. Blades expected to spin 70% of the time on both sides, and generate 244,000 kWh annually. Project may still have life if another funder joins in - for now, project is FERC-permitted but terminated. | AA16: 2014-10-21 | AB16: 0.1 | AC16: 1 | AD16: 0.1
A17: A-Drop | B17: 1940 | D17: P-12549 | E17: Canal | F17: WAT | H17: Hydro | I17: 1 | K17: 0.3 | L17: Terminated | M17: =IF(ISBLANK(N17),"",LEFT(N17,3)) ->  | O17: 2013 | P17: Greenfield Main Canal A-Drop | Q17: Teton | R17: MT | S17: 40-year license issued Oct 2009. FERC terminated license in Nov 2013 for failure to commence construction on time | T17: Hydrodynamics, Inc. | U17: PacificCorp | Y17: Existing NorthWestern 25kV line | Z17: Existing BuRec Sun River IP canal. Inflatable wier, intake, penstock, powerhouse and tailrace. | AA17: 2016-08-08 | AB17: 0.3 | AC17: 1 | AD17: 0.3
A18: Agate Bay Solar (OR Solar 2) | B18: 2160 | C18: 61200/ORSR2 | E18: PV | F18: Solar | H18: Solar | I18: 10 | L18: Operating | M18: Oct | N18: 2020 | P18: Eagle Point | Q18: Jackson | R18: OR | S18: PPA w/ PAC. Initial testing scheduled for Nov 2016, commercially operable Dec 1, 2016. EIA table 6.5 (Dec 2017) says "planned for installation, but regulatory approvals not yet initiated" | T18: Origis Energy | U18: PAC - PPA | Z18: http://edocs.puc.state.or.us/efdocs/RPA/re142rpa125453.pdf | AA18: 2021-01-05 | AB18: 0.22 | AC18: 10 | AD18: 2.2
A19: Agate Passage | B19: 1683 | D19: P-12691 | E19: TISEC | F19: Tidal current | H19: Hydrokinetic | I19: 52 | K19: 16.7 | L19: Terminated | O19: 2008 | P19: Agate Passage | Q19: Kitsap | R19: WA | S19: Preliminary permit granted Feb 2007; surrendered Oct 2008. | T19: Snohomish Co. PUD | Z19: (130) TISEC units | AA19: 2010-07-09 | AB19: 0.3211538462 | AC19: 52 | AD19: 16.7
A20: Alkali | B20: 1684 | E20: WT | F20: WND | H20: Wind | I20: 18 | K20: 5.4 | L20: Terminated | O20: 2009 | P20: Glenns Ferry | Q20: Elmore | R20: ID | S20: QF contract approval by IPUC Mar 2007. Supplanted by Sawtooth. | T20: Pacific Winds, Inc., dba as Idaho Winds | U20: Idaho Power Co. (QF) | Z20: (12) GE 1.5 MW WTG | AA20: 2009-12-23 | AB20: 0.3 | AC20: 18 | AD20: 5.4
A21: Alkali Solar | B21: 2338 | C21: 63759/2 | E21: PV | F21: Solar | H21: Solar | I21: 10 | L21: Operating | M21: Jun | N21: 2020 | P21: Lake Cty | Q21: Lake | R21: OR | T21: Alkali Solar LLC | U21: PURPA QF w/ PGE | Z21: https://edocs.puc.state.or.us/efdocs/RPA/re143rpa162136.pdf | AA21: 2020-10-26 | AB21: =IF(OR(ISBLANK(I21),ISBLANK(K21),I21=0),VLOOKUP(E21,ADftCF,4,FALSE),K21/I21) -> 0.22 | AC21: =IF(ISBLANK(J21),I21,J21) -> 10 | AD21: =AB21*AC21 -> 2.2
A22: Airport Solar Project | B22: 2297 | C22: 62560/APS | E22: PV | F22: Solar | H22: Solar | I22: 47.3 | L22: Operating | M22: Dec | N22: 2019 | P22: Lake County airport | Q22: Lake County | R22: OR | S22: Under development by D.E. Shaw. | T22: D.E. Shaw | U22: PGE - PPA | AA22: 2020-04-14 | AB22: =IF(OR(ISBLANK(I22),ISBLANK(K22),I22=0),VLOOKUP(E22,ADftCF,4,FALSE),K22/I22) -> 0.22 | AC22: =IF(ISBLANK(J22),I22,J22) -> 47.3 | AD22: =AB22*AC22 -> 10.406
A23: American Falls Solar | B23: 2101 | C23: 60011 | E23: PV | F23: Solar | H23: Solar | I23: 20 | L23: Operating | M23: March | N23: 2017 | P23: American Falls | Q23: Power | R23: ID | S23: IPUC approved 20yr PURPA QF energy sales agreement Dec. 29, 2014. Plan to come online Dec 2016 to take adv of 30% ITC. Scheduled to produce test power 1/6/17, commercial op by 1/21/17. | T23: First Wind, Inc. | U23: Idaho Power Co. (QF) - 20 yr | Y23: Brady - Freemont 138 kV line | Z23: Project expected to use (10) 2.0 MW ac SMA inverters and (85,880) JA 305w DC panels and utilize a single axis tracking system (from ESA IPUC filing). RECs to be split 50/50 between IPC and developer. Expected CF 25.4% AC. | AA23: 2017-01-04 | AB23: 0.254 | AC23: 20 | AD23: 5.08
A24: American Falls Solar II | B24: 2102 | C24: 60012 | E24: PV | F24: Solar | H24: Solar | I24: 20 | L24: Operating | M24: March | N24: 2017 | P24: American Falls | Q24: Power | R24: ID | S24: IPUC approved 20yr PURPA QF energy sales agreement Dec. 29, 2014. Plan to come online Dec 2016 to take adv of 30% ITC. Scheduled to produce test power 1/6/17, commercial op by 1/21/17. | T24: First Wind, Inc. | U24: Idaho Power Co. (QF) - 20 yr | Y24: Brady - Freemont 138 kV line | Z24: Project expected to use (10) 2.0 MW ac SMA inverters and (85,880) JA 305w DC panels and utilize a single axis tracking system (from ESA IPUC filing). RECs to be split 50/50 between IPC and developer. Expected CF 25.4% AC. | AA24: 2017-01-04 | AB24: 0.254 | AC24: 20 | AD24: 5.08
A25: Antelope Ridge | B25: 1869 | E25: WT | F25: WND | H25: Wind | I25: 300 | K25: 100 | L25: Terminated | O25: 2013 | P25: Craig Mountain | Q25: Union | R25: OR | S25: EFSC Intent to Apply filed Apr 2009. EFSC Application for Site Certificate Dec 2010. As of Feb 2012, application still being reviewed. | T25: EDP Renewables North America, LLC | Y25: 230 kV to BPA LaGrande sub or IPC North Powder sub. | Z25: (164) WTG | AA25: 2016-07-13 | AB25: =IF(OR(ISBLANK(I25),ISBLANK(K25),I25=0),VLOOKUP(E25,ADftCF,4,FALSE),K25/I25) -> 0.3333333333 | AC25: 300 | AD25: 100
A26: Apex Solar | B26: 2349 | E26: PV | F26: Solar | H26: Solar | I26: 80 | L26: Proposed | P26: Dillon, MT | R26: MT | S26: Clenara in disputes w/ NorthWestern Energy regarding PURPA QF contract disputes. MT PSC latest order sides with developer (Dec 2020) | T26: Clenera | U26: NorthWester (QF - 20yr) | AA26: 2021-02-17 | AB26: =IF(OR(ISBLANK(I26),ISBLANK(K26),I26=0),VLOOKUP(E26,ADftCF,4,FALSE),K26/I26) -> 0.22 | AC26: =IF(ISBLANK(J26),I26,J26) -> 80 | AD26: =AB26*AC26 -> 17.6
A27: Apple Prineville Data Center Solar Farm | B27: 2091 | E27: PV | F27: Solar | H27: Solar | I27: 60 | L27: Proposed | P27: Prineville | Q27: Crook | R27: OR | S27: Apple won property tax approvals for 200 acres of land, with presumed intention of building solar farm | T27: Apple, Inc. | Z27: Very preliminary. Not much information available yet. Is this the Gala project??? | AA27: 2020-04-06 | AB27: 0.22 | AC27: 60 | AD27: 13.2
A28: Applegate | B28: 1686 | D28: P-11910 | E28: HY | F28: WAT | H28: Hydro | I28: 10 | K28: 4.34 | L28: Terminated | O28: 2014 | P28: Applegate R. | Q28: Jackson | R28: OR | S28: License granted Dec 2009. FERC terminated contract due to failure to begin construction by Dec 2013. | T28: Symbiotics, LLC | Y28: PacifiCorp | Z28: (2) TGs added to existing run-of-river dam & reservoir w/diversion. | AA28: 2016-08-08 | AB28: 0.434 | AC28: 10 | AD28: 4.34
A29: Arcadia Solar | B29: 2199 | E29: PV | F29: Solar | H29: Solar | I29: 5 | L29: Terminated | O29: 2016 | P29: Nyssa | Q29: Malheur | R29: OR | S29: Arcadia Solar signed ESA w/ IPC 9/16/15. IPC has waived rights to RECs, pursuant to OPUC order 11-505. Project has been postponed indefinitely due to transmission interconnection costs and required upgrades in the area. | T29: Arcadia Solar (Pacific Northwest Solar) | U29: ESA w/ IPC (QF) | Z29: ~21K PV panels, 6.4MW DC; 5MW AC. Lat 43.90341N, Long 116.99816W | AA29: 2017-01-05 | AB29: 0.22 | AC29: 5 | AD29: 1.1
A30: Archway Solar Energy Facility | B30: 2355 | E30: PV | F30: Solar | H30: Solar+ Storage | I30: 400 | L30: Proposed | P30: near Christmas Valley, OR | Q30: Lake | R30: OR | S30: NOI filed June 2020; OR EFSEC anticipates preliminary application for site certificate in October 2021. | T30: Invenergy | Y30: new substation, connecting to PAC 500kV Burns to Summer Lake transmission line | Z30: up to 400 MW of nominal and average generating capacity; solar + battery storage system. | AA30: 2021-02-17 | AB30: =IF(OR(ISBLANK(I30),ISBLANK(K30),I30=0),VLOOKUP(E30,ADftCF,4,FALSE),K30/I30) -> 0.22 | AC30: =IF(ISBLANK(J30),I30,J30) -> 400 | AD30: =AB30*AC30 -> 88
A31: Arlington Solar (Norwest 5) | B31: 2209 | E31: PV | F31: Solar | H31: Solar | I31: 3 | L31: Terminated | M31: Dec | N31: 2016 | P31: Arlington | Q31: Gilliam | R31: OR | S31: PPA w/ PAC (PURPA QF) signed 5/29/15. Proposed11/18/2016 test date, 12/18/16 online date. | U31: PacificCorp | Z31: http://edocs.puc.state.or.us/efdocs/RPA/re142rpa125757.pdf | AA31: 2016-11-01 | AB31: 0.22 | AC31: 3 | AD31: 0.66
A32: Arrow Rock | B32: 1687 | E32: WT | F32: WND | H32: Wind | I32: 19.5 | L32: Terminated | O32: 2008 | P32: Oka | Q32: Wheatland | R32: MT | S32: IPUC approval of pwr sales contract Oct 2005. No new information available since 2005. Estimated termination date 2008 (GC). | T32: Arrow Rock Wind, LLC | U32: QF PPA w/IPC | Z32: (13) GE 1.5 MW WTG | AA32: 2016-08-08 | AB32: 0.32 | AC32: 19.5 | AD32: 6.24
A33: Arrowrock 1 - 2 | B33: 1688 | D33: P-4656 | E33: HY | F33: WAT | H33: Hydro | I33: 18 | K33: 9.2 | L33: Operating | M33: Jun | N33: 2010 | P33: Boise R. | Q33: Elmore | R33: ID | S33: License issued Mar 1989; expires Feb 2039. PSA w/Clatskanie July 2005. Construction Oct 2008. | T33: Boise Project Board of Control | U33: Clatskanie | Z33: Addition of powerhouse w/ (2) turbine-generators to existing water control structure. | AA33: 2011-07-21 | AB33: 0.5111111111 | AC33: 18 | AD33: 9.2
A34: Badger Mountain Hydro | B34: 2288 | D34: P-14892 | E34: PS | F34: Elect. | H34: Pump Storage | I34: 300 | K34: 54 | L34: Proposed | N34: 2025 | P34: East Wenatchee | Q34: Douglas | R34: WA | S34: Gridflex/Badger Mountain Hydro LLC filed application for preliminary permit. FERC issued preliminary license May 2019, good for 4 years. Gridflex conducting studies and say that 2025/2026 is the earliest the facility would be operational. | T34: Gridflex | Y34: Puget Sound Energy Rocky Reach-Cascade transmission line, and possible a second line interconnecting w/ 230kV BPA Rocky Reach-Columbia transmission line | Z34: Closed-loop ps w/ initial fill and replenish coming from "local water rights holders" Greater Wenatchee Irrigation District. (2) 150 MW reversible pump turbines. Est annual generation 473,040 MWh, energy storage potential 2,400 MWh (per Gridflex). ~$600M facility. | AA34: 2019-10-09 | AB34: =IF(OR(ISBLANK(I34),ISBLANK(K34),I34=0),VLOOKUP(E34,ADftCF,4,FALSE),K34/I34) -> 0.18 | AC34: =IF(ISBLANK(J34),I34,J34) -> 300 | AD34: =AB34*AC34 -> 54
A35: Bakeoven Solar Project | B35: 2287 | E35: PV | F35: Solar | H35: Solar+ Storage | I35: 303 | L35: Proposed | N35: 2025 | P35: SE of Maupin, OR | Q35: Wasco | R35: OR | S35: Avangrid submitted NOI to apply for SC to ODOE EFSC Nov 2018. 303MW solar + 100MW storage. Complete application for site certificate on November 9, 2019. proposed order issued March 2020. | T35: Avangrid | U35: per CU, Avangrid not ready to announce buyer for the energy yet (11/9/18 CU) | Y35: existing 230kV BPA Big Eddy to Redmond at existing Maupin Substation | Z35: 303 MW nameplate capacity solar PV + 100 MW Li-ion or flow batteries storage; solar array located on 3,000 acres + 10 acres for storage | AA35: 2020-04-06 | AB35: =IF(OR(ISBLANK(I35),ISBLANK(K35),I35=0),VLOOKUP(E35,ADftCF,4,FALSE),K35/I35) -> 0.22 | AC35: =IF(ISBLANK(J35),I35,J35) -> 303 | AD35: =AB35*AC35 -> 66.66
A36: Baker River (Lower) - Second Powerhouse | B36: 1989 | E36: HY | F36: WAT | H36: Hydro | I36: 30 | L36: Operating | M36: Dec | N36: 2014 | P36: Baker R. | Q36: Skagit | R36: WA | S36: Began construction December 2010 | T36: Puget Sound Energy | U36: Puget Sound Energy | Z36: PSE news release; add Mwa to existing Lower Baker | AA36: 2015-01-06 | AB36: 0.5 | AC36: 30 | AD36: 15
A37: Baker City Solar Center | B37: 2265 | C37: 61854/BAKER | E37: PV | F37: Solar | H37: Solar | I37: 15 | L37: Operating | M37: Dec | N37: 2019 | P37: Baker City, OR | Q37: Baker | R37: OR | S37: 20 yr PPA w/ Idaho Power, signed in June 2017. | T37: Enerparc Solar Development | U37: Idaho Power - 20yr PURPA QF | Z37: http://edocs.puc.state.or.us/efdocs/RPA/re141rpa104444.pdf | AA37: 2020-01-13 | AB37: 0.22 | AC37: 15 | AD37: 3.3
A38: Ballston Solar | B38: 2276 | C38: 62170/BSPV1 | E38: PV | F38: Solar | H38: Solar | I38: 2.2 | K38: 0.3 | L38: Operating | M38: Dec | N38: 2018 | P38: McMinnville, OR | Q38: Yamhill | R38: OR | S38: 3J Consulting providing civil design and construction permits. Developed by Swinerton Renewables. Per BNRG press release in August 2018, 3/10 projects (total 35MW under PPA to PGE) have begun construction and all will be completed by June 2019. Unsure which three are under construction. | T38: Swinerton/BNRG Renewables | U38: PGE (20yr QF) | Z38: 8,980 solar modules with a 2.2 MW AC (3.0 MW DC) capacity | AA38: 2019-07-09 | AB38: 0.1363636364 | AC38: 2.2 | AD38: 0.3
A39: Banks Lake Pumped Storage | B39: 2203 | D39: P-14329 | E39: PS | F39: Elect. | H39: Pump Storage | I39: 500 | L39: Proposed | N39: 2026 | P39: Banks Lake/Roosevelt Lake | Q39: Douglas/Grant | R39: WA | S39: Filed a prelim permit with FERC in November 2011, permit was granted Aug 22, 2013. July 2016, filed 2-year extension of prelim permit - extension was granted. July 27, 2016 - filed NOI, request to use traditional licensing process, and pre-application document. 7/31/18 - prelim permit expired, 10/10/18 - Congress passed the America's Water Infrastructure Act of 2018 (AWIA), increasing prelim permit for max term of 8 years; 12/20/18 - FERC reinstated prelim permit through Dec 2020. | T39: Grand Coulee Project Hydroelectric Authority | Z39: https://nwcouncil.box.com/s/huqv4uevyke35llruqlmylg8pgmihu1t | AA39: 2020-04-06 | AB39: 0 | AC39: 500 | AD39: 0
A40: Bannock County LFG to Energy 1 | B40: 2092 | C40: 59529/GEN1 | E40: IC | F40: LFG | H40: Biomass | I40: 1.6 | L40: Operating | M40: April | N40: 2014 | P40: Pocatello | Q40: Bannock | R40: ID | S40: Completed construction of first 1.6MW in April 2014. Plans are to expand and double generation to 3.2MW within 5 years. | T40: PURPA ESA w/ IPC | Z40: (1) 1.6 MW generator; may build additional unit later | AA40: 2015-01-06 | AB40: 0.91 | AC40: 1.6 | AD40: 1.456
A41: Bannock County LFG to Energy 2 | B41: 2295 | C41: 59529/GEN2 | E41: IC | F41: LFG | H41: Biomass | I41: 1.6 | L41: Operating | M41: May | N41: 2019 | P41: Pocatello | Q41: Bannock | R41: ID | S41: Second phase; construction comlete but not yet in commercial operation | T41: PURPA ESA w/ IPC | Z41: (1) 1.6 MW generator | AA41: 2019-09-09 | AB41: =IF(OR(ISBLANK(I41),ISBLANK(K41),I41=0),VLOOKUP(E41,ADftCF,4,FALSE),K41/I41) -> 0.91 | AC41: =IF(ISBLANK(J41),I41,J41) -> 1.6 | AD41: =AB41*AC41 -> 1.456
A42: Baseline Power | B42: 2041 | F42: NG | H42: Natural gas | I42: 200 | L42: Suspended | P42: Olex | Q42: Gilliam | R42: OR | S42: Amendment to original NOI to include 200 MW thermal generation. Per ODOE EFSC, applicant filed "stop work order"; no new work since amended project order in Sept 2012. | T42: First Wind Holdings dba Baseline Wind, LLC | Y42: BPA Diamond Butte substation (new) | Z42: Up to 32 reciprocating engine generators located within powerhouse. | AA42: 2016-08-08 | AC42: 200
A43: Baseline Wind | B43: 1946 | E43: WT | F43: WND | H43: Wind | I43: 500 | K43: 167 | L43: Suspended | P43: Olex | Q43: Gilliam | R43: OR | S43: NOI filed Jun 2010. Amendment to NOI filed Aug 2012 to add 200 MW of firming thermal generation. ODOE issued amended PO 9/27/12. ODOE issued requests for additional info (RAI). Applicant indicated it may elect to move forward with only wind component. Per ODOE EFSC, applicant filed "stop work order"; no new work since amended project order in Sept 2012. | T43: First Wind Holdings dba Baseline Wind, LLC | Y43: BPA Diamond Butte substation (new) | Z43: Up to 219 turbines, between 1.6-3 MW | AA43: 2016-08-08 | AB43: 0.334 | AC43: 500 | AD43: 167
A44: Bear Creek Solar Center | B44: 2161 | C44: 61281/BCRSC | E44: PV | F44: Solar | H44: Solar | I44: 10 | L44: Operating | M44: Sep | N44: 2018 | P44: Bend, OR | Q44: Deschutes | R44: OR | S44: 20 yr PPA w/ PAC as PURPA QF, signed in 2014. Initial testing scheduled for Oct 2016, commercially operable Apr, 2017. Per PAC press release on 9/12, RECs from project have been purchased. Expected online date Q4 2016. Assumed under construction. SNL says May 2018. EIA table 6.5 (Dec 2017) says regulatory approvals received but not yet under construction. | T44: Coronal Group/HelioSage | U44: PAC - PPA as PURPA QF | Z44: http://edocs.puc.state.or.us/efdocs/RPA/re142rpa152345.pdf; BA is PACW, per EIA | AA44: 2019-07-09 | AB44: 0.22 | AC44: 10 | AD44: 2.2
A45: Bear River Narrows | B45: 1691 | D45: P-12486 | E45: HY | F45: WAT | H45: Hydro | I45: 10 | K45: 5.54 | L45: Terminated | O45: 2016 | P45: Bear R. | Q45: Franklin | R45: ID | S45: Preliminary permit granted Feb 2005. PacifiCorp request to dismiss license application Oct 2007. FERC rejected license application due to "unmitigable adverse effects" to the environment and current uses of the area. EIS filed w/ FERC in April 2016. | T45: Twin Lakes Canal Co./PacifiCorp | U45: PAC - Power Sales | Z45: Undeveloped run-of-river reservoir project. With FERC staff recommending rejecting license, it is fair to assume this project will be terminated soon. | AA45: 2020-04-06 | AB45: 0.554 | AC45: 10 | AD45: 5.54
A46: Beaver Creek I | B46: 2234 | E46: WT | F46: WND | H46: Wind+ Storage | I46: 80 | L46: Proposed | P46: near Billings | Q46: Stillwater | R46: MT | S46: Dec 2019 - after many legal battles and different configurations of the project and phases, the end result is (4) 60MW wind + 20MW battery projects. Terms set by the MT PSC in December 2019 have essentially stalled the projects and Caithness has called them unworkable. COD could have been Oct 2020, but unlikely now. Unsure what path forward is at this time. Projects remain proposed. | T46: Caithness | U46: QF to NorthWestern Energy | Z46: (32) 2.5MW WTG. Connection to Northwestern's transmission system w/ shared radial interconnection line. https://caithnessbeavercreek.com/project-overview/ | AA46: 2020-04-06 | AB46: 0.32 | AC46: 80 | AD46: 25.6
A47: Beaver Creek II | B47: 2235 | E47: WT | F47: WND | H47: Wind+ Storage | I47: 80 | L47: Proposed | P47: near Billings | Q47: Stillwater | R47: MT | S47: Dec 2019 - after many legal battles and different configurations of the project and phases, the end result is (4) 60MW wind + 20MW battery projects. Terms set by the MT PSC in December 2019 have essentially stalled the projects and Caithness has called them unworkable. COD could have been Oct 2020, but unlikely now. Unsure what path forward is at this time. Projects remain proposed. | T47: Beaver Creek Holdco II, LLC (50/50 partnership between Sorbrique and JACM) | U47: QF to NorthWestern Energy | Z47: Connection to Northwestern's transmission system w/ shared radial interconnection line. https://caithnessbeavercreek.com/project-overview/ | AA47: 2020-04-06 | AB47: 0.32 | AC47: 80 | AD47: 25.6
A48: Beaver Creek III | B48: 2236 | E48: WT | F48: WND | H48: Wind+ Storage | I48: 80 | L48: Proposed | P48: near Billings | Q48: Stillwater | R48: MT | S48: June 2019: After several legal battles, Caithness has redesigned its proposal: Instead of (4) 80MW wind + 10MW storage, they are now propising (2) 60MW wind + 20MW storage. Projects could be in operation by October 2020. History: Certified as QF by FERC - some controversy due to the one-mile rule calculation, in Northwestern service area. Owner plans to enter into Certification Management and Administration Management Service Agreements w/ Caithness Beaver Creek LLC. | T48: Beaver Creek Holdco II, LLC (50/50 partnership between DanKris Energy and Chanticleer) | U48: QF to NorthWestern Energy | Z48: Connection to Northwestern's transmission system w/ shared radial interconnection line. https://caithnessbeavercreek.com/project-overview/ | AA48: 2020-04-06 | AB48: 0.32 | AC48: 80 | AD48: 25.6
A49: Beaver Creek IV | B49: 2237 | E49: WT | F49: WND | H49: Wind+ Storage | I49: 80 | L49: Proposed | P49: near Billings | Q49: Stillwater | R49: MT | S49: June 2019: After several legal battles, Caithness has redesigned its proposal: Instead of (4) 80MW wind + 10MW storage, they are now propising (2) 60MW wind + 20MW storage. Projects could be in operation by October 2020. History: Approved as QF (self certified), in Northwestern service area. Owner plans to enter into Certification Management and Administration Management Service Agreements w/ Caithness Beaver Creek LLC. | T49: Caithness | U49: QF to NorthWestern Energy | Z49: (32) 2.5MW WTG. Connection to Northwestern's transmission system w/ shared radial interconnection line. https://caithnessbeavercreek.com/project-overview/ | AA49: 2020-04-06 | AB49: 0.32 | AC49: 80 | AD49: 25.6
A50: Bellevue Solar | B50: 2009 | E50: PV | F50: Solar | H50: Solar | I50: 1.66 | L50: Operating | M50: Oct | N50: 2011 | P50: Bellevue | Q50: Yamhill | R50: OR | S50: 25-yr PPA announced Sep 2010. County permits secured. | T50: enXco | U50: Portland General Electric | Z50: 8,316 Nanosolar, Ground-mount thin-film PV | AA50: 2012-08-01 | AB50: 0.22 | AC50: =IF(ISBLANK(J50),I50,J50) -> 1.66 | AD50: =AB50*AC50 -> 0.3652
A51: Benson Creek Wind (Huntington Wind) | B51: 2080 | C51: 59491 | E51: WT | F51: WND | H51: Wind | I51: 10 | L51: Operating | M51: March | N51: 2017 | P51: Huntington, OR | Q51: Baker | R51: OR | S51: Project was formerly part of 50 MW total "Oregon Wind Farms - Huntington" and "OWF - Lime." Now five, 10MW projects known as the "Huntington Wind Projects". Per 20yr PPA w/ IPC (signed Oct 2013), scheduled operation date is Dec 31, 2016. Per press release, construction began Jan 2016. All RECs go to owner | T51: Oregon Wind Farms, Inc./D.E. Shaw Renewable | U51: 20yr PPA w/ IPC thru 2036 | Z51: Longitude: 1 17.344W, Latitude: 44.367N; http://edocs.puc.state.or.us/efdocs/RPA/re141rpa163043.pdf | AA51: 2016-09-07 | AB51: 0.32 | AC51: 10 | AD51: 3.2
A52: Bevans Point Solar | B52: 2086 | E52: PV | F52: Solar | H52: Solar | I52: 1.65 | K52: 0.43 | L52: Terminated | O52: 2014 | P52: Malin | Q52: Klamath | R52: OR | S52: ETO is working with OneEnergy Renewables and PacifiCorp. PPA with PacifiCorp. CUP completed. Project expected to be complete in Dec 2014. This project will help satisfy PAC's solar pv obligation under state RPS carve out. Sept 2016 - This project was estimated to be operational in Oct 2014 - no info since then, assumed terminated. | T52: OneEnergy Renewables | Y52: PAC's Turkey Hill substation. | Z52: Single axis tracking system, polycrystalline silicon panels. Net energy production 3,817 MWh, annual energy degradation 0.6%, capacity factor 26% (from ETO). | AA52: 2016-09-05 | AB52: 0.2606060606 | AC52: 1.65 | AD52: 0.43
A53: Big Horn II | B53: 1901 | E53: WT | F53: WND | H53: Wind | I53: 50 | L53: Operating | M53: Oct | N53: 2010 | P53: Bickleton | Q53: Klickitat | R53: WA | S53: Planned construction Q2 2010, service Dec 2010. | T53: Iberdrola Renewables | U53: M-S-R Public Power Agency (Modesto, Santa Clara, Redding) - 25yr PPA | Y53: BPA Rock Creek substation | Z53: RECs to PG&E through EOY 2010 | AA53: 2010-05-07 | AB53: 0.32 | AC53: 50 | AD53: 16
A54: Bighorn Solar | B54: 2327 | C54: 63467/PGR16 | E54: PV | F54: Solar | H54: Solar | I54: 2.2 | L54: Operating | M54: Dec | N54: 2020 | P54: Salem | Q54: Marion | R54: OR | S54: Per EIA, project is under construction, with est COD June 2020. | T54: Pine Gate Renewables | U54: QF w/ PGE | Z54: GPS 44.967 -122.959 | AA54: 2021-05-19 | AB54: =IF(OR(ISBLANK(I54),ISBLANK(K54),I54=0),VLOOKUP(E54,ADftCF,4,FALSE),K54/I54) -> 0.22 | AC54: =IF(ISBLANK(J54),I54,J54) -> 2.2 | AD54: =AB54*AC54 -> 0.484
A55: Big Otter | B55: 1971 | E55: WT | F55: WND | H55: Wind | I55: 24 | L55: Terminated | O55: 2012 | P55: Belt | Q55: Cascade | R55: MT | S55: County permit filing Nov 2010. MOU with NorthWestern Energy reported in ClearingUp, 1/17/2011. Project fell through from NEW's standpoint, citing environmental concerns. | T55: Invenergy | U55: NorthWestern Energy | Z55: (16) 1.5 MW GE WTG. Energy and RECs to NorthWestern Energy. Project fell through w/ NWE due to environmental concerns. No mention of project on Invenergy's website. No new press releases/news articles since early 2012 when project was dropped from NWE CREP plans. | AA55: 2016-08-08 | AB55: 0.32 | AC55: 24 | AD55: 7.68
A56: Big Sky West Dairy Digester | B56: 1693 | E56: BGICCG | F56: AW | H56: Biomass | I56: 1.5 | K56: 1.080821918 | L56: Operating | M56: Feb | N56: 2009 | P56: Gooding | Q56: Gooding | R56: ID | S56: 2008 construction for 2009 service. SPP contract approved Aug 2008. | T56: Dean Foods Co./AgPower Partners | U56: Idaho Power (SPP through 2027) | V56: Big Sky West Dairy Digester (waste digesters) | Z56: Gasification of cattle waste. Anaerobic digestor and (2) Guascor SFGLD 560 750 kW nameplate reciprocating engines. | AA56: 2010-02-24 | AB56: 0.7205479452 | AC56: 1.5 | AD56: 1.080821918
A57: Big Timber Wind Energy (Greycliff Wind) | B57: 2124 | C57: 61155/BT-MT | E57: WT | F57: WND | H57: Wind | I57: 25 | L57: Operating | M57: Feb | N57: 2018 | P57: Greycliff | Q57: Sweet Grass | R57: MT | S57: NorthWestern asked MT PSC to preapprove PPA for project as a CREP - 2/17/15. After dispute between NorthWestern and developers over contract terms and rates, MT PSC approved 25yr QF contract on Jul 19, 2016. Hoever, developers are not satisfied with rate (too low) and say project future is uncertain. BigWA purchased project in Dec 2016 and said project construction will start immediately for an online 2017 date. | T57: BayWa renewable energy | U57: Northwestern - PPA as PURPA QF - 25 yrs | Z57: Under construction, expected by EOY 2018 or mid-2019 (per NorthWestern) | AA57: 2018-08-07 | AB57: 0.32 | AC57: 25 | AD57: 8
A58: Biglow Canyon Phase II | B58: 1694 | E58: WT | F58: WND | H58: Wind | I58: 149.5 | L58: Operating | M58: Aug | N58: 2009 | P58: Wasco | Q58: Sherman | R58: OR | S58: WTG order announced Apr 2008, delivery Mar 2009. | T58: Portland General Electric | U58: Portland General Electric | Y58: BPA John Day substation | Z58: (65) Siemens SWT-2.3-93 WTG. | AA58: 2009-08-21 | AB58: 0.32 | AC58: 149.5 | AD58: 47.84
A59: Biglow Canyon Phase III | B59: 1695 | E59: WT | F59: WND | H59: Wind | I59: 174.8 | K59: 60.9 | L59: Operating | M59: Aug | N59: 2010 | P59: Wasco | Q59: Sherman | R59: OR | S59: WTG order announced Apr 2008. | T59: Portland General Electric | U59: Portland General Electric | Y59: BPA John Day substation | Z59: (76) Siemens SWT-2.3-93 WTG. | AA59: 2011-07-21 | AB59: 0.3483981693 | AC59: 174.8 | AD59: 60.9
A60: Biofuels Washington Renewables Energy Facility | B60: 2084 | C60: 58688 | E60: IC | F60: LFG | H60: Biomass | I60: 4.5 | L60: Operating | M60: Dec | N60: 2013 | P60: Graham Landfill | Q60: Pierce | R60: WA | S60: WA Dept of Commerce issued opinion that project would fall under the state's EIA as an approved renewable and DG facility. | T60: BioFuels Washington, LLC | U60: Puget Sound Energy (RECs to be split between PSE and Benton Co. PUD) | Y60: PSE | Z60: (3) 1.5 MW 3520 Caterpillar generators. DG so REC's count double. RECs split between PSE and Benton Cty PUD. | AA60: 2015-03-16 | AB60: 0.91 | AC60: 4.5 | AD60: 4.095
A61: Black Bear Wind | B61: 2318 | E61: WT | F61: WND | H61: Wind | I61: 79.2 | L61: Proposed | M61: Dec | N61: 2021 | P61: Billings, MT | Q61: Stillwater | R61: MT | S61: Discussions w/ MT PSC. Certified QF with FERC in April 2019. In Northwestern's territory. Ongoing contract dispute with NorthWestern Energy and MT PSC over low QF contract prices for both Grizzly and Black Bear wind projects. | T61: Building Energy Holding | U61: PURPA QF w/ Northwestern; FERC Small Power Producer status
A62: Black Canyon 3 | B62: 2082 | C62: 6396/3 | E62: HY | F62: WAT | H62: Hydro | I62: 12.5 | L62: Suspended | N62: 2022 | P62: Payette R. | Q62: Gem | R62: ID | S62: Construction of third generator expected to start Sept 2014, and to take about 30 months. Also adding new powerhouse, intake, penstock, and other equipment. Bur Rec prepared Final Environmental Assessment in June 2016 w/ Finding of No Significant Impact. Majority of project to be funded by BPA. Bur REc estimates tentative construction start in 2018 and completion in 2022. Project "on hold" in 2018 due to higher construction costs outweighing energy prices. | T62: Bureau of Reclamation | Z62: Run-of-river. Two existing 5.1 MW units (Black Canyon 1-2) will become secondary and operate only when there is sufficient load and when project flow is too low to operate the new, more efficient unit. | AA62: 2020-04-06 | AB62: 0.5 | AC62: 12.5 | AD62: 6.25
A63: Black Canyon Hydro | B63: 2144 | D63: P-14110 | E63: HY | F63: Wat | H63: Hydro | I63: 25 | L63: Suspended | P63: North Fork Snoqualmie River | Q63: King County | R63: WA | S63: Developer filed draft license application in Dec 2015. Oct 2016, developer requested FERC terminate integrated licensing process and FERC granted this request. | T63: Tollhouse Energy/Black Canyon LLC | Z63: RoR project would divery water from 2.7 mile section of the North Fork. Est annual avg generation 110.7 GWh. | AA63: 2017-11-07 | AB63: 0.5 | AC63: 25 | AD63: 12.5
A64: Black Cap Solar II (PSEG Lake County Solar Energy Center) | B64: 2162 | E64: PV | F64: Solar | H64: Solar | I64: 8 | L64: Operating | M64: Dec | N64: 2016 | P64: Lakeview | Q64: Lake | R64: OR | S64: 20 yr PPA w/ PAC, signed in 2014. Initial testing scheduled for Dec 1 2016, commercially operable Dec 31, 2016. PSEG Solar Source purchased project, along with Black Cap I (and possibly the Lakeview projects as well?) from Obsidian Renewables in Nov 2016. 35-year land lease w/ private landowner. | T64: PSEG Solar Source (purchased from Obsidian Renewables) | U64: PPA w/ PacifiCorp (PURPA QF) | Z64: Grount mounted. http://edocs.puc.state.or.us/efdocs/RPA/re142rpa91646.pdf; https://www.solarworld-usa.com/newsroom/news-releases/news/2016/solar-panels-for-south-central-oregon; https://www.pseg.com/info/media/newsreleases/2016/2016-11-02.jsp#.WG2QIVUrK3w | AA64: 2017-01-05 | AB64: =IF(OR(ISBLANK(I64),ISBLANK(K64),I64=0),VLOOKUP(E64,ADftCF,4,FALSE),K64/I64) -> 0.22 | AC64: 8 | AD64: 1.76
A65: Black Eagle Solar | B65: 2226 | C65: 61336 | E65: PV | F65: Solar | H65: Solar | I65: 3 | L65: Operating | M65: Sep | N65: 2017 | Q65: Cascade | R65: MT | S65: Developed by Cypress Creek Renewables, owned by Enerparc. | T65: Enerparc | U65: PPA w/ Northwestern | Z65: ~35 acres, 10,000-12,000 panels; Northwestern balancing authority | AA65: 2017-11-15 | AB65: 0.22 | AC65: 3 | AD65: 0.66
A66: Black Mesa 1 | B66: 2351 | E66: Battery | F66: Elect. | H66: Energy Storage | I66: 20 | K66: 10 | L66: Proposed | R66: ID | S66: Self-certified with FERC as energy storage QFs. Tied up in litigation w/ Idaho Power re: length of QF contract, QF facility type (is it energy storage, or the original fuel - solar/wind?), and length of contract. | T66: MB MezzDev | AA66: 2021-02-17 | AC66: 20
A67: Black Mesa 2 | B67: 2352 | E67: Battery | F67: Elect. | H67: Energy Storage | I67: 20 | K67: 10 | L67: Proposed | R67: ID | S67: Self-certified with FERC as energy storage QFs. Tied up in litigation w/ Idaho Power re: length of QF contract, QF facility type (is it energy storage, or the original fuel - solar/wind?), and length of contract. | T67: MB MezzDev | AA67: 2021-02-17 | AC67: 20
A68: Black Rock | B68: 1696 | E68: PS | F68: Elect. | H68: Pump Storage | I68: 338 | L68: Suspended | O68: 2008 | P68: Black Rock Valley | Q68: Yakima | R68: WA | S68: Feasibility study authorized by Congress in 2003; Appraisal Assessment of the Black Rock Alternative complete Feb 2005. Feasibility Report and EIS to be complete by end of 2008. Bur of Rec determined in 2008 that project would be too costly - $5.7-7.7B, returning only 13 cents for every dollar spent. News article in 2015 seems to indicate that the door is still open for a project at this site. | T68: Bureau of Reclamation | Z68: (2) 150 MW PTG at Priest Rapids reservior intake; 23 to 38 MW powerhouse at Rosa discharge, 15 to 29.5 MW powerhouse at Sunnyside discharge. Other configurations being studied. | AA68: 2016-08-08 | AB68: 0 | AC68: 338 | AD68: 0
A69: Blue Marmot Solar | B69: 2264 | E69: PV | F69: Solar | H69: Solar | I69: 50 | L69: Proposed | P69: Lakeview | Q69: Lake | R69: OR | S69: EDP filed NOI with OR EFSC 1/18/18. EDP requested to temporarily suspend review of NOI pending submission of amended NOI at later date - issuance of project order is temporarily suspended. Nov 2019 EDP filed for NOI extension. NOI filed 10/27/20, awaiting issuance of project order from OR EFSC. Sept 2021 - EDP now seeking approval from county, rather than OR EFSC. | T69: EDP Renewables | U69: PURPA QF (contract w/ PGE), Small Power Producer status from FERC | Z69: From NOI - " The Facility encompasses up to five separate solar array sites that will generate electricity — Duvaroo, Deniz East, Reish, Parmelee, and Deniz West" | AA69: 2020-04-06 | AB69: 0.22 | AC69: 50 | AD69: 11
A70: Blue River Dam | B70: 2098 | D70: P-14381 | E70: HY | F70: WAT | H70: Hydro | I70: 20.6 | L70: Terminated | P70: Blue River | Q70: Lane | R70: OR | S70: Preliminary permit issued July 2012, expires June 2015. Existing non-powered dam owned and operated by US ACE. Proposed feasibility study. EWEB surrendered its license of project in 2013. Qualified Hydro surrendered preliminary permit in Aug 2015. Blue River Hydro Power LLC filed for a preliminary permit on July 1, 2016. Prelim permit cancelled December 2016. | T70: Blue River Hydro Power LLC | Y70: BPA Blue River substation | Z70: Penstock, powerhouse w/ two generators, tailrace, substation, transmission line | AA70: 2020-04-06 | AB70: 0.5 | AC70: 20.6 | AD70: 10.3
A71: Bly Solar Center | B71: 2163 | E71: PV | F71: Solar | H71: Solar | I71: 8.5 | K71: 1.86 | L71: Operating | M71: Jun | N71: 2018 | P71: Bonzana | Q71: Klamath | R71: OR | S71: 20 yr PPA w/ PAC, signed in 2014. Initial testing scheduled for Oct 2016, commercially operable Apr, 2017. Per PAC press release on 9/12, RECs from project have been purchased. Expected online date Q4 2016. Assumed under construction. PPA expires Oct 2036 | T71: Coronal Group/HelioSage | U71: PAC - PPA as PURPA QF | Z71: http://edocs.puc.state.or.us/efdocs/RPA/re142rpa111351.pdf | AA71: 2018-08-28 | AB71: 0.2188235294 | AC71: 8.5 | AD71: 1.86
A72: Bly Solar Project (OR Solar 4) | B72: 2164 | C72: 62272/BLY | E72: PV | F72: Solar | H72: Solar | I72: 10 | K72: 2.75 | L72: Proposed | P72: Bly, OR | Q72: Klamath | R72: OR | S72: 20 yr PPA w/ PAC, signed in 2015. Initial testing scheduled for Nov 2016, commercially operable Dec, 2016. RECs purchased by PAC. PPA expires Oct 2036. Jan 2019 - under construction, over 50% complete - EIA table 6.05 | T72: Origis Energy | U72: PAC - PPA as PURPA QF | Z72: http://edocs.puc.state.or.us/efdocs/RPA/re142rpa13440.pdf | AA72: 2020-04-06 | AB72: 0.275 | AC72: 10 | AD72: 2.75
A73: Boardman Solar Energy Project | B73: 2219 | E73: PV | F73: Solar | H73: Solar | I73: 75 | L73: Proposed | P73: unincorparated Morrow Cty | Q73: Morrow | R73: OR | S73: August 2016 developer filed for expedited review of small capacity facilities with ODOE; ODOE determined this project qualifies, which means no NOI. Prelim app for site certificate submitted 1/13/17. Draft proposed order recommending approval, issued 11/13/17. SIte certificate issued February 2018. Construction must begin by February 2021. | T73: Invenergy (Boardman Solar Energy, LLC) | U73: Invenergy to secure PPA prior to start of construction | Y73: BPA Boardman-Alkali 115-kV transmission line | Z73: (30) 2.5 MW module blocks, single axis trackers | AA73: 2020-04-06 | AB73: 0.22 | AC73: 75 | AD73: 16.5
A74: Boise City Solar | B74: 1932 | E74: PV | F74: Solar | H74: Solar | I74: 40 | L74: Operating | M74: Jun | N74: 2016 | P74: Boise | Q74: Ada | R74: ID | S74: Announced Jun 2010 for Q4 2010 construction and 2011 operation. Idaho Statesman reported (1/20/11) project doubling from 10 to 20 MW and moving away from airport to location south of Boise near intersection South Cloverdale and East Sand Creek roads. IPC has sent ESA to IPUC in July 2014 for 40 MW solar farm. 9/12/14 - IPUC out for comment on ESA. 11/14/14 - ESA approved by IPUC. | T74: Sunergy World | U74: Idaho Power Co. (20 year energy sales agreement). 50/50 REC sharing agreement. | Z74: Mono crystalline solar modules with Tier 1 inverters and dual axis tracking system. 40 MW AC. | AA74: 2016-07-19 | AB74: 0.22 | AC74: 40 | AD74: 8.8
A75: Bonanza Energy Facility | B75: 2356 | E75: PV | F75: Solar | H75: Solar+ Storage | I75: 300 | L75: Proposed | N75: 2024 | P75: Bonanza | Q75: Klamath | R75: OR | S75: Hecate filed NOI 8/7/20. OR EFSEC issued project order 12/18/20. Expected preliminary application for site certificate late summer 2021. Construction to begin 2023, pending site certification. | T75: Hecate Energy NAF | X75: Malin | Y75: BPA's Captain Jack substation | Z75: Per the NOI, "a flexible power generation and storage center that uses hybrid technologies to provide a consistent source of renewable energy…". 150-300 MW solar, 1,100 MW battery energy storage system. Facility could also incorporate gas peaker (not proposed at this time). | AA75: 2021-02-17 | AB75: =IF(OR(ISBLANK(I75),ISBLANK(K75),I75=0),VLOOKUP(E75,ADftCF,4,FALSE),K75/I75) -> 0.22 | AC75: =IF(ISBLANK(J75),I75,J75) -> 300 | AD75: =AB75*AC75 -> 66
A76: Bonanza Solar (Norwest 4) | B76: 2210 | C76: 62268/NWE4 | E76: PV | F76: Solar | H76: Solar | I76: 6 | L76: Operating | M76: Dec | N76: 2018 | P76: Bonanza | Q76: Klamath | R76: OR | S76: PPA w/ PAC signed 5/29/15. Proposed11/18/2016 test date, 12/18/16 online date. | T76: New Energy Solar Ltd. | U76: PAC - PPA as PURPA QF | Z76: http://edocs.puc.state.or.us/efdocs/RPA/re142rpa125430.pdf | AA76: 2019-02-25 | AB76: 0.22 | AC76: 6 | AD76: 1.32
A77: Boring Solar | B77: 2277 | C77: 62169/BSPV2 | E77: PV | F77: Solar | H77: Solar | I77: 2.2 | K77: 0.2 | L77: Operating | M77: Apr | N77: 2019 | P77: Boring, OR | Q77: Clackamas | R77: OR | S77: 3J Consulting providing civil design and construction permits. Developed by Swinerton Renewables. Per BNRG press release in August 2018, 3/10 projects (total 35MW under PPA to PGE) have begun construction and all will be completed by June 2019. Unsure which three are under construction. | T77: Swinerton/BNRG Renewables | U77: PGE - 20yr QF | Z77: https://edocs.puc.state.or.us/efdocs/RPA/re143rpa154615.pdf | AA77: 2019-07-09 | AB77: 0.09090909091 | AC77: 2.2 | AD77: 0.2
A78: Bowman Dam Hydroelectric Project | B78: 2213 | D78: P-14791 | E78: HY | F78: WAT | H78: Hydro | I78: 4 | L78: Proposed | P78: Existing Arthur R. Bowman Dam | Q78: Crook | R78: OR | S78: Ochoco Irrigation District filed preliminary permit with FERC on 7/1/16. FERC issued notice of competeing permit applications (w/ Prineville Pumped Storage Project) on 9/1/16. | T78: Existing dam owned by US Bur Reclamation for irrigation water and flood control. Proposed hydro project by Ochoco Irrigation District. | Z78: Existing BurREC provides irrigation water and flood control. Proposal to add 3MW and 1MW horizontal Francis turbines. | AA78: 2016-11-16 | AB78: 0.5 | AC78: 4 | AD78: 2
A79: Box Canyon Upgrade | B79: 1964 | C79: 3891 | D79: 2042 | E79: HY | F79: WAT | H79: Hydro | I79: 18 | K79: 2.4 | L79: Upgrade | M79: Jun | N79: 2014 | P79: Pend Oreille R. | Q79: Pend Oreille | R79: WA | S79: New license issued Jul 2005. Upgrade underway 2009. Andritz Hydro is the general contractor. | T79: Pend Oreille Co. PUD | U79: Pend Oreille Co. PUD | Z79: High-efficiency turbines, governors, stator replacement, exciters, controls and other refurbishments. | AA79: 2013-08-20 | AB79: 0.1333333333 | AC79: 18 | AD79: 2.4
A80: BP Cherry Point Cogeneration Project | B80: 1697 | E80: CCCG | F80: NG/RG | H80: Natural gas | I80: 720 | L80: Terminated | N80: 2015 | P80: Blaine (Cherry Point Refinery) | Q80: Whatcom | R80: WA | S80: SC application Jun 02, approved Dec 2004. Per the WA EFSEC website, the SC Agreement was canceled in 2015 and construction never started. | T80: TransCanada | U80: Steam and power for Cherry Point refinery, power sales | V80: BP Cherry Point Refinery | X80: Williams Northwest | Z80: 3x1 CCCG, BPA Custer interconnect;dry cooling; no backup fuel. | AA80: 2016-08-08 | AB80: 0.9 | AC80: 720 | AD80: 648
A81: Bradwood | B81: 1698 | E81: CCCG | F81: NG | H81: Natural gas | I81: 130 | L81: Terminated | O81: 2010 | P81: Bradwood | Q81: Clatsop | R81: OR | S81: Announced Dec 2005. Northern Star suspends development - May 2010. Effectively a termination, given the LNG climate. | T81: Northern Star Natural Gas | V81: Bradwood Landing LNG receiving terminal (regasification) | X81: Williams Northwest | Z81: LNG receiving facility (import terminal), with CCCT for assumed self gen. | AA81: 2016-08-08 | AB81: 0.9 | AC81: 130 | AD81: 117
A82: Bristol Solar | B82: 2363 | E82: PV | F82: Solar | H82: Solar | I82: 3 | L82: Operating | M82: Jan | N82: 2021 | P82: Marion Cty | Q82: Marion | R82: OR | S82: Operational Jan 2021. | T82: Adapture Renewables, Enerparc AG | U82: Portland General Electric | AA82: 2021-05-19 | AB82: =IF(OR(ISBLANK(I82),ISBLANK(K82),I82=0),VLOOKUP(E82,ADftCF,4,FALSE),K82/I82) -> 0.22 | AC82: =IF(ISBLANK(J82),I82,J82) -> 3 | AD82: =AB82*AC82 -> 0.66
A83: Broadview Solar | B83: 2360 | E83: PV | F83: Solar | H83: Solar+ Storage | I83: 160 | L83: Proposed | Q83: Yellowstone | R83: MT | S83: FERC reversed its initial ruling, now approving QF status for Broadview. The production capacity for PURPA is 80MW, and this project is not designed to exceed that as it is combined with a 50MW battery w/ 4hr/200MWh discharge capacity. | T83: Broad Reach Power | U83: NorthWestern PURPA | AA83: 2021-05-19 | AB83: =IF(OR(ISBLANK(I83),ISBLANK(K83),I83=0),VLOOKUP(E83,ADftCF,4,FALSE),K83/I83) -> 0.22 | AC83: =IF(ISBLANK(J83),I83,J83) -> 160 | AD83: =AB83*AC83 -> 35.2
A84: Brush Canyon | B84: 1996 | E84: WT | F84: WND | H84: Wind | I84: 535 | L84: Terminated | O84: 2015 | P84: 7 miles east of Shaniko | Q84: Wasco | R84: OR | S84: Filed Notice of Intent with OR EFSEC November 2011. Filed project order Jan 2012, complete application March 2013. After being issued a draft proposed order in Nov 2013, the applicatant foramlly withdrew their application with ODOE effective immediately in Feb 2015. | T84: EC&R Development, LLC (wholly owned subsidiary of E.ON Climate and Renewable NA) | Z84: Up to (223) WTG, new 32 mile 230kv overhead transmission line to Buckley substation | AA84: 2015-03-03 | AB84: 0.32 | AC84: 535 | AD84: 171.2
A85: Brush Creek | B85: 2328 | C85: 63464/PGR19 | E85: PV | F85: Solar | H85: Solar | I85: 2.2 | L85: Operating | M85: May | N85: 2020 | Q85: Marion | R85: OR | S85: Per EIA, project is under construction, with est COD June 2020. | T85: Pine Gate Renewables | U85: QF w/ PGE | Z85: https://edocs.puc.state.or.us/efdocs/HAQ/re143haq163248.pdf | AA85: 2020-10-26 | AB85: 0.22 | AC85: 2.2 | AD85: 0.484
A86: Brush Solar Center | B86: 2266 | C86: 61844/BRUSH | E86: PV | F86: Solar | H86: Solar | I86: 2.75 | L86: Operating | M86: Dec | N86: 2019 | P86: Unity, OR | Q86: Baker | R86: OR | S86: 20 yr PPA w/ Idaho Power, signed in October 2016 | T86: Enerparc Solar Development | U86: Idaho Power - 20yr PURPA QF | Z86: http://edocs.puc.state.or.us/efdocs/RPA/re141rpa16356.pdf | AA86: 2020-01-13 | AB86: 0.22 | AC86: 2.75 | AD86: 0.605
A87: Bryant Mountain | B87: 2011 | D87: P-13680 | E87: PS | F87: Elect. | H87: Pump Storage | I87: 1250 | L87: Terminated | O87: 2015 | P87: USBR "D" Canal, 5 miles from Malin, OR | Q87: Klamath | R87: OR | S87: Preliminary Application Document filed Feb 16, 2012. Prelim permit expired with no final license application 2015. | T87: Bryant Mountain LLC, Bart O'Keeffe | Y87: Malin 345 or 500 kV | Z87: 30 kaf, 24 hours of storage at expanded Pope Lake. 3X 350 MW PG units plus 2X250 MW variable speed PG units. 42° 3'22.80"N, 121°20'8.88"W | AA87: 2012-02-24 | AB87: 0 | AC87: 1250 | AD87: 0
A88: Burley Butte | B88: 1994 | E88: WT | F88: WND | H88: Wind | I88: 19.5 | L88: Operating | M88: Feb | N88: 2011 | P88: Burley | Q88: Cassia | R88: ID | S88: IPUC approval of QF contract Jul 2005. | T88: Idaho Wind Partners (GE Financial Services, Exergy Development Group, Atlantic Power, Reunion Power) | U88: Idaho Power Co. (QF) | Z88: (7) GE 1.5 MW WTG. | AA88: 2011-02-17 | AB88: 0.32 | AC88: 19.5 | AD88: 6.24
A89: Butler Solar | B89: 2342 | C89: 63694/13501 | E89: PV | F89: Solar | H89: Solar | I89: 4 | L89: Operating | M89: Jan | N89: 2021 | P89: Sheridan, OR | Q89: Yamhill | R89: OR | S89: Per EIA, project is under construction, with est COD Nov 2020. | T89: Pacific Northwest Solar | U89: QF w/ PGE (FERC small power producer status) | AA89: 2021-05-19 | AB89: =IF(OR(ISBLANK(I89),ISBLANK(K89),I89=0),VLOOKUP(E89,ADftCF,4,FALSE),K89/I89) -> 0.22 | AC89: =IF(ISBLANK(J89),I89,J89) -> 4 | AD89: =AB89*AC89 -> 0.88
A90: Calligan Creek | B90: 2128 | C90: 60418/CC6MW | D90: 13948 | E90: HY | F90: WAT | H90: Hydro | I90: 6 | L90: Operating | N90: 2018 | P90: Calligan Creek, above Snoqualmie Falls; near North Bend | Q90: King | R90: WA | S90: Final FERC license approved (6/30/15). SnoPUD issued $40M tax exempt bonds to finance construction of Calligan Creek and Hancock Creek projects (9/28/15). Per email from SnoPUD - construction began October 2015 and estimated completion/operation is late 2017/early 2018. Anticipated owner acceptance/start of operation Nov 2017. | T90: Snohomish Co. PUD | U90: SnoPud | Z90: (1) Pelton turbine. See FERC license for details. Balancing authority - PSE. Per EIA 860 ER (2016) - nameplate, summer, and winter capacity is 6 MW. | AA90: 2018-04-24 | AB90: 0.5 | AC90: 6 | AD90: 3
A91: Camas Project (Columbia Solar) | B91: 2229 | C91: 62071/ | E91: PV | F91: Solar | H91: Solar | I91: 5 | K91: 1.3 | L91: Proposed | M91: Oct | N91: 2020 | P91: Ellensburg | Q91: Kittitas | R91: WA | S91: One of five 5MW solar projects known as the Columbia Solar Projects. Tuussoo applied for permit from Washington EFSEC, circumnavigating the Kittitas County morarotium on solar projects. Initial development work began in mid-2016 and commercial operation is in November 2018. Aug 2018, WA EFSEC finalized recommendation to approve, delivered rec to Governor for final approval. From EIA June 2019 - "Regulatory approvals received. Not under construction." Per WA EFSEC, site certificate was suspended for a few months in Fall 2019 due to failure to make outstanding payments. SCA reinstated in November 2019. | T91: Tuusso Energy | U91: PSE - 15yr PPA (QF, Small Power Producer Status from FERC) | Z91: Polycrystalline solar PV modules on single-axis trackers | AA91: 2020-04-07 | AB91: 0.26 | AC91: =IF(ISBLANK(J91),I91,J91) -> 5 | AD91: =AB91*AC91 -> 1.3
A92: Camp Reed | B92: 1885 | C92: 57125 | E92: WT | F92: WND | H92: Wind | I92: 22.5 | L92: Operating | M92: Dec | N92: 2010 | P92: Hagerman | Q92: Elmore | R92: ID | S92: IPUC approval of QF contract Aug 2009. | T92: Idaho Wind Partners (GE Financial Services, Exergy Development Group, Atlantic Power, Reunion Power) | U92: Idaho Power Co. (QF) | Y92: IPC King-Bliss 138kV line | Z92: (15) GE 1.5 MW WTG. | AA92: 2011-02-17 | AB92: 0.32 | AC92: 22.5 | AD92: 7.2
A93: Carter Solar One | B93: 2238 | C93: 60896/CRTON | E93: PV | F93: Solar | H93: Solar | I93: 20 | L93: Proposed | M93: Dec | N93: 2020 | P93: Twin Falls, ID | Q93: Twin Falls | R93: ID | S93: JRS Properties received conditional use permit from county in October 2016. EIA table 6.5 (Dec 2017) says "Planned for installation, but regulatory approvals not initiated" | T93: Alternative Power Development/JRS Properties | AA93: 2018-01-31 | AB93: 0.22 | AC93: 20 | AD93: 4.4
A94: Carty Generating Station 1 | B94: 1892 | E94: CC | F94: NG | H94: Natural gas | I94: 440 | L94: Operating | M94: Jul | N94: 2016 | P94: Boardman | Q94: Morrow | R94: OR | S94: SC App to EFSC Dec 2009. ODOE issued draft order recommending EFSC issue site certificate 3/13/12. PGE selected Carty in its IRP RFP, however it is being challenged. OPUC has dismissed challenge to RFP. | T94: Portland General Electric (Abengoa S.A. will construct) | U94: Portland General Electric | X94: TransCanada GTN | Y94: PGE Boardman - Slatt 500kV line (preferred option) | Z94: (1) CC w/duct firing, wet mech draft cooling. Mitsbishi G-class turbine. | AA94: 2016-08-16 | AB94: 0.9 | AC94: 440 | AD94: 396
A95: Carty Generating Station 2 | B95: 1893 | E95: CC | F95: NG | H95: Natural gas | I95: 530 | L95: Suspended | O95: 2017 | P95: Boardman | Q95: Morrow | R95: OR | S95: SC App to EFSC Dec 2009. ODOE issued draft order recommending EFSC issue site certificate 3/13/12. Per SC, Construction on Carty 2 must begin by July 2, 2017 and be completed by July 2, 2020.In May 2017 PGE announced they are suspending permitting for Carty 2 and will pursue bilaterals instead | T95: Portland General Electric | U95: PGE | X95: TransCanada GTN | Y95: PGE Boardman - Slatt 500kV line (preferred option) | Z95: (1) CC w/duct firing, wet mech draft cooling. Configuration and model TBD. | AA95: 2016-08-16 | AB95: 0.9 | AC95: 530 | AD95: 477
A96: Carty SCCT | B96: 2196 | E96: GT | F96: NG | H96: Natural gas | I96: 330 | L96: Suspended | O96: 2017 | P96: Boardman | Q96: Morrow | R96: OR | S96: PGE requested an amendment to current Carty site certificate in Aug 2016 to a) increase cap of Carty 2, b) add 330MW SCCT, and c) add 50MW solar PV. In May 2017 PGE announced they are suspending permitting for Carty 2 and will pursue bilaterals instead | T96: Portland General Electric | U96: PGE | AA96: 2016-09-07 | AB96: 0.94 | AC96: 330 | AD96: 310.2
A97: Carty Solar | B97: 2197 | E97: PV | F97: Solar | H97: Solar | I97: 50 | L97: Proposed | M97: Feb | N97: 2025 | P97: Boardman | Q97: Morrow | R97: OR | S97: PGE requested an amendment to current Carty site certificate in Aug 2016 to a) increase cap of Carty 2, b) add 330MW SCCT, and c) add 50MW solar PV. In May 2017 PGE announced they are suspending permitting for Carty 2 and will pursue bilaterals instead. Feb 2018, PGE submitted revised site certificate amendment to only include option for Carty Solar. No devt plans yet, just keeping site certificate available in case. | T97: Portland General Electric | U97: PGE | AA97: 2020-04-07 | AB97: 0.22 | AC97: 50 | AD97: 11
A98: Cascade Energy Storage | B98: 2157 | D98: P-14464 | E98: PS | F98: Elect. | H98: Pump Storage | I98: 600 | L98: Terminated | P98: Mud Lake, near Granite Falls | Q98: Snohomish | R98: WA | S98: FERC issued prelim permit Feb 2013. 36 months have passed - permit may have been terminated? No new submittals to FERC since 1/29/16, no information on GridFlex website, assume project termination. | T98: Gridflex Energy | Z98: Designs in prelim permit still very open. | AA98: 2019-10-09 | AB98: 0 | AC98: 600 | AD98: 0
A99: Cascade Pacific | B99: 1958 | E99: RBCG | F99: BL | H99: Biomass | I99: 10 | L99: Terminated | P99: Halsey | Q99: Lane | R99: OR | S99: BETC award, Sep 2010 | T99: Cascade Pacific Pulp | V99: Cascade Pacific Pulp | Z99: New 10 MW STG w/existing chemical recovery boiler. | AA99: 2016-08-16 | AC99: 10
A100: Cascade Wind | B100: 1702 | E100: WT | F100: WND | H100: Wind | I100: 60 | L100: Terminated | O100: 2009 | P100: The Dalles (vicinity) | Q100: Wasco | R100: OR | S100: SC application withdrawn Jan 2009. | T100: UPC Wind Management | Y100: BPA The Dalles - Hood R. 115kV line @ new sub. | Z100: (40) GE 1.5sle WTG. | AA100: 2009-03-30 | AB100: 0.32 | AC100: 60 | AD100: 19.2
A101: Case Creek Solar | B101: 2330 | C101: 63207/CCPV1 | E101: PV | F101: Solar | H101: Solar | I101: 2.2 | L101: Operating | M101: Oct | N101: 2019 | P101: Marion Cty | Q101: Marion | R101: OR | T101: BNRG | Z101: Crystalline Silicone, 3.2MWdc, Fixed-tilt. 180 azimuth angle, 20 tilt angle | AA101: 2020-10-23 | AB101: =IF(OR(ISBLANK(I101),ISBLANK(K101),I101=0),VLOOKUP(E101,ADftCF,4,FALSE),K101/I101) -> 0.22 | AC101: =IF(ISBLANK(J101),I101,J101) -> 2.2 | AD101: =AB101*AC101 -> 0.484
A102: Cassia | B102: 1871 | E102: WT | F102: WND | H102: Wind | I102: 10.5 | L102: Operating | M102: Feb | N102: 2009 | P102: Hagerman | Q102: Twin Falls | R102: ID | T102: John Deere Renewables/Exelon | U102: Idaho Power Co. (QF) | Y102: IPC Lower Malad/ Mtn Home Jct 138kV | Z102: (5) Suzlon S88-2.1 MW WTG. | AA102: 2010-08-18 | AB102: 0.32 | AC102: 10.5 | AD102: 3.36
A103: Cassia Gulch | B103: 1902 | E103: WT | F103: WND | H103: Wind | I103: 18.9 | L103: Operating | M103: Feb | N103: 2009 | P103: Hagerman | Q103: Twin Falls | R103: ID | T103: John Deere Renewables/Exelon | U103: Idaho Power Co. (QF) | Y103: IPC Lower Malad- Mtn Home Jct 138kV line | Z103: (9) Suzlon S88-2.1 MW WTG. | AA103: 2010-08-18 | AB103: 0.32 | AC103: 18.9 | AD103: 6.048
A104: Cat Creek Energy | B104: 2132 | D104: P-14655 | E104: PS | F104: Elect. | H104: Pump Storage | I104: 720 | L104: Proposed | P104: Anderson Ranch | Q104: Elmore | R104: ID | S104: Granted FERC preliminary permit Nov 2015. April 2018, developer filed for prelim permit extension. FERC granted a 2-yr prelim permit extension, April 2019 (presumably permit is good through April 2021). | T104: Cat Creek Energy; Jon Faulkner | Z104: (39) WTG @ 110MW capacity + 40MW solar PV would power pumping. Project would add 50,000 acre foot upper reservoir and 3.4 mile earthen dam. | AA104: 2019-10-09 | AC104: 720
A105: CCG 500 | B105: 1703 | E105: IGCC | F105: COL | H105: Coal | I105: 520 | L105: Terminated | O105: 2008 | P105: Pocatello | Q105: Power | R105: ID | S105: Announced March 2005 for completion in 2010 or 2011. Proposal amended to polygen concept w/no generation (Sep 2008) | T105: Southeastern Idaho Energy, LLC | AA105: 2008-09-29 | AB105: =IF(OR(ISBLANK(I105),ISBLANK(K105),I105=0),VLOOKUP(E105,ADftCF,4,FALSE),K105/I105) -> 0.83 | AC105: 520 | AD105: =AB105*AC105 -> 431.6
A106: C-Drop | B106: 2100 | E106: HY | F106: WAT | H106: Hydro | I106: 1.1 | L106: Operating | M106: Mar | N106: 2012 | P106: Klamath Irrigation District's C-Canal | Q106: Klamath | R106: OR | S106: Granted LOPP by Bur Rec instead of FERC license in Nov 2011 | T106: C-Drop Hydro, LLC / Klamath Irrigation District | Z106: (1) 1.1 MW vertical kaplan turbine. | AA106: 2015-01-06 | AB106: 0.5 | AC106: 1.1 | AD106: 0.55
A107: Cedar Creek | B107: 1704 | E107: WT | F107: WND | H107: Wind | I107: 198 | L107: Terminated | P107: Firth | Q107: Bingham | R107: ID | S107: County permits secured Aug 2008. Subj to appeal. | T107: Western Energy | Z107: Up to 66 WTG. | AA107: 2016-09-07 | AB107: 0.32 | AC107: 198 | AD107: 63.36
A108: Cedar Hills Landfill | B108: 1705 | C108: 57298 | E108: CC | F108: LFG | H108: Biomass | I108: 26 | L108: Terminated | O108: 2011 | P108: Cedar Hills Regional Landfill | Q108: King | R108: WA | S108: Power generation proposal terminated. Pipeline-quality gas will be produced and marketed to Puget Sound Energy. EIA reports this as a power generator (EIA 57298), with Mwa associated. Not included as a project in existing DB since it only generates NG for PSE to use to power its plants. | T108: Energy Developments, Inc. | Z108: (3) gas turbines, heat recovery steam generators and steam turbine-generator. | AA108: 2011-12-08 | AB108: 0.9 | AC108: 26 | AD108: 23.4
A109: Cedar Springs I | B109: 2319 | E109: WT | F109: WND | H109: Wind | I109: 200 | L109: Operating | M109: Dec | N109: 2020 | P109: Douglas | Q109: Converse | R109: WY | S109: NextEra signed a long-term PPA with PAC for output of phase I and III. | T109: NextEra | U109: PacifiCorp - PPA | Z109: Part of PAC's Energy Vision 2020 | AA109: 2021-09-09 | AB109: =IF(OR(ISBLANK(I109),ISBLANK(K109),I109=0),VLOOKUP(E109,ADftCF,4,FALSE),K109/I109) -> 0.32 | AC109: =IF(ISBLANK(J109),I109,J109) -> 200 | AD109: =AB109*AC109 -> 64
A110: Cedar Springs II | B110: 2320 | E110: WT | F110: WND | H110: Wind | I110: 200 | L110: Operating | M110: Dec | N110: 2020 | P110: Douglas | Q110: Converse | R110: WY | S110: NextEra signed a build-transfer agreement with PAC, NextEra to build both phases and sell Phase II to PAC upon completion. PAC will purchase the output of phase I and III under long-term PPA. | T110: NextEra/PacifiCorp | U110: PacifiCorp | Z110: Part of PAC's Energy Vision 2020 | AA110: 2021-09-09 | AB110: =IF(OR(ISBLANK(I110),ISBLANK(K110),I110=0),VLOOKUP(E110,ADftCF,4,FALSE),K110/I110) -> 0.32 | AC110: =IF(ISBLANK(J110),I110,J110) -> 200 | AD110: =AB110*AC110 -> 64
A111: Cedar Springs III | B111: 2321 | E111: WT | F111: WND | H111: Wind | I111: 120 | L111: Operating | M111: Dec | N111: 2020 | P111: Douglas | Q111: Converse | R111: WY | S111: NextEra signed a long-term PPA with PAC for output of phase I and III. | T111: NextEra | U111: PacifiCorp - PPA | Z111: Part of PAC's Energy Vision 2020 | AA111: 2021-09-09 | AB111: =IF(OR(ISBLANK(I111),ISBLANK(K111),I111=0),VLOOKUP(E111,ADftCF,4,FALSE),K111/I111) -> 0.32 | AC111: =IF(ISBLANK(J111),I111,J111) -> 120 | AD111: =AB111*AC111 -> 38.4
A112: Central Energy Cogen Plant (Brigham Young Univ) | B112: 2183 | E112: STCG | F112: NG | H112: Natural gas | I112: 4.5 | L112: Operating | M112: Jun | N112: 2016 | P112: Brigham Young University - Idaho campus | Q112: Madison | R112: ID | S112: Idaho DEQ approved permit to construct on 11/6/2014. The existing plant remained in operation without interuption while new facility was built. | T112: Big-D Construction developed; BYU-Idaho owns. | U112: PPA w/ PAC for excess after self gen | Z112: (1) 4.5MW GT w/ HRSG. | AA112: 2016-11-09 | AB112: 0.84 | AC112: 4.5 | AD112: 3.78
A113: Chester Diversion | B113: 1706 | C113: 56893/1-3 | D113: P-11879 | E113: ROR | F113: WAT | H113: Hydro | I113: 3.3 | K113: 1.9 | L113: Operating | M113: Mar | N113: 2014 | P113: Henry's Fork | Q113: Fremont | R113: ID | S113: License granted July 2008. | T113: Fall River REA | Z113: (2) turbine-generators. Existing run-of-river dam w/diversion (Chester Dam). | AA113: 2014-04-01 | AB113: 0.5757575758 | AC113: 3.3 | AD113: 1.9
A114: Chiloquin Solar Facility | B114: 2134 | E114: PV | F114: Solar | H114: Solar | I114: 9.9 | K114: 2.39 | L114: Operating | M114: Feb | N114: 2018 | P114: Chiloquin, Klamath Falls | Q114: Klamath | R114: OR | S114: QF with PacifiCorp. RECs to PAC. Scheduled for operation Dec 16, 2016. However, in January 2016, the Klamath Planning Commission denied the conditional use permit. There are other ways to obtain use of land - future for project is uncertain. 20 year PPA. | T114: Saturn Power Inc. | U114: PAC - PPA as PURPA QF | Y114: Chiloquin substation | Z114: 9.9MW AC; Annual degradation rate 0.7%. (165) Danfoss MLX 60 Inverters. Si-poly Trina solar panels. Lat 42.596, Long -121.857. RECs to PacifiCorp. | AA114: 2018-02-28 | AB114: 0.2414141414 | AC114: 9.9 | AD114: 2.39
A115: China Hollow | B115: 1707 | E115: WT | F115: WND | H115: Wind | I115: 1.5 | L115: Terminated | O115: 2006 | P115: Rufus (vicinity) | Q115: Sherman | R115: OR | S115: Short-listed by Oregon Energy Trust June 2006. No new info since 2006, assume terminated. | T115: Sherman County | Z115: (1) GE 1.5 MW WTG | AA115: 2020-04-07 | AB115: 0.32 | AC115: 1.5 | AD115: 0.48
A116: China Mountain 1 | B116: 1708 | E116: WT | F116: WND | H116: Wind | I116: 200 | L116: Terminated | O116: 2014 | P116: Jackpot | Q116: Twin Falls/Elko | R116: ID/NV | S116: Announced Nov 2007. EIS due 2010. Earliest construction 2012. Mar 2012 - BLM defers EIS for two more years as it finishes studies on sage grouse in the Idaho Resource Management Plan revisions. RESA decided in Jul 2014 not to pursue further development - environmental concerns, especially regarding sage grouse and its habitat, were the primary reasons | T116: RES America Development (NV Energy pulled out of its share April 2012) | U116: Nevada Energy | Y116: IPC Valmy/Midpoint 345kV line. | Z116: (~100) WTG | AA116: 2016-08-16 | AB116: 0.32 | AC116: 200 | AD116: 64
A117: China Mountain 2 | B117: 2013 | E117: WT | F117: WND | H117: Wind | I117: 200 | L117: Terminated | O117: 2014 | P117: Jackpot | Q117: Twin Falls/Elko | R117: ID/NV | S117: Announced Nov 2007. EIS due 2010. Earliest construction 2012. Mar 2012 - BLM defers EIS for two more years as it finishes studies on sage grouse in the Idaho Resource Management Plan revisions. RESA decided in Jul 2014 not to pursue further development - environmental concerns, especially regarding sage grouse and its habitat, were the primary reasons | T117: RES America Development (NV Energy pulled out of its share April 2012) | U117: Nevada Energy | Y117: IPC Valmy/Midpoint 345kV line. | Z117: (~100) WTG | AA117: 2016-08-16 | AB117: 0.32 | AC117: 200 | AD117: 64
A118: Chokecherry Wind Farm | B118: 2061 | E118: WT | F118: WND | H118: Wind | L118: Construction | P118: 10 miles South of Rawlins | Q118: Carbon | R118: WY | S118: Announced 2006. ROD on EIS released in Oct 2012. Notice of Availability published Oct 16. To be built with Sierra Madre Wind Farm. BLM approved project in 2012 and March 2016. US FWS released draft EIS in April 2016 for public comment. SNL cites estimated online date of 2019. USFWS released final plan for bald and golden eagle mitigation in Dec. 2016. | T118: Power Company of Wyoming, LLC | U118: Developer hoping to export to Southwest and California. | Z118: Developed with the Sierra Madre Wind Farm. Together will be ~1000 turbines and ~ 3,000 MW. http://www.powercompanyofwyoming.com/index.shtml | AA118: 2018-10-24 | AB118: 0.32 | AC118: 0 | AD118: 0
A119: Chopin Wind Project | B119: 1992 | E119: WT | F119: WND | H119: Wind | I119: 10 | K119: 3.86 | L119: Operating | M119: Sep | N119: 2016 | P119: Halfway between Umapine and Athena, OR | Q119: Umatilla | R119: OR | S119: Conditional Use Permit for original 99 MW project - Feb 2011. County rejected transmission proposal for original 99 MW project in 11/11. Project stalled until August 2015 when developers scaled down project to 10MW and an underground transmission line. Umatilla Cty Planning Commission approved bldg permits in Jan 2016. | T119: BayWa renewable energy | U119: Signed PPA w/ PAC in May 2014 (PURPA QF) | Y119: Pacificorp 230 kV Weston substation | Z119: (6) GE 103, hub height 80m, rotor diameter 103m | AA119: 2016-11-08 | AB119: 0.386 | AC119: 10 | AD119: 3.86
A120: Christmas Valley | B120: 1968 | E120: PV | F120: Solar | H120: Solar | I120: 20 | L120: Terminated | O120: 2016 | P120: Christmas Valley | Q120: Lake | R120: OR | S120: CUP granted Oct 2010. Sept 2016 - No PPA yet, no new info. Project still listed as under development per developer website. Project terminated, per SNL. | T120: Element Power | Y120: BPA LaPine - Ft Rock 115kV | AA120: 2020-04-07 | AB120: 0.22 | AC120: 20 | AD120: 4.4
A121: Clark Canyon | B121: 1710 | D121: P-12429 | E121: HY | F121: WAT | H121: Hydro | I121: 7.55 | L121: Terminated | O121: 2015 | P121: Beaverhead R. | Q121: Beaverhead | R121: MT | S121: License granted Aug 2009. 4.7MW project had PPA w/ IPC, however it did not meet its Dec 2013 operation date. Larger version of project (7.55 MW) now proposed and attempted PPA w/ IPC in 2014. IPC suspended negotiations due to discrepancies in FERC license and proposed PPA. FERC issued an order terminating license, effective April 2015, for failure to meet construction deadlines. | T121: Clark Canyon Hydro, LLC | Z121: Existing dam. | AA121: 2011-06-28 | AB121: 0.5 | AC121: 7.55 | AD121: 3.775
A122: Clark Solar 1 | B122: 2107 | E122: PV | F122: Solar | H122: Solar | I122: 70.98 | L122: Terminated | O122: 2015 | P122: Mountain Home, ID | Q122: Elmore | R122: ID | S122: ESA submitted by IPC and Intermountain Energy Partners on 10/13/14. IPUC approved ESA on 1/8/15. IPC will be granted 50% ownership of RECs, seller to have remaining 50%. IPUC terminated PURPA agreement April 2015 due to failure to meet financial deadlines. | T122: Intermountain Energy Partners | U122: Idaho Power Company (20-year ESA); QF project | Z122: Expected to use mono crystalline solar modules with Tier 1 inverters and utilize single axis tracking system. | AA122: 2016-08-17 | AB122: 0.22 | AC122: 70.98 | AD122: 15.6156
A123: Clark Solar 2 | B123: 2108 | E123: PV | F123: Solar | H123: Solar | I123: 19.98 | L123: Terminated | O123: 2015 | P123: Mountain Home, ID | Q123: Elmore | R123: ID | S123: ESA submitted by IPC and Intermountain Energy Partners on 10/13/14. IPUC approved ESA on 1/8/15. IPC will be granted 50% ownership of RECs, seller to have remaining 50%. IPUC terminated PURPA agreement April 2015 due to failure to meet financial deadlines. | T123: Intermountain Energy Partners | U123: Idaho Power Company (20-year ESA); QF project | Z123: Expected to use mono crystalline solar modules with Tier 1 inverters and utilize single axis tracking system. | AA123: 2016-08-17 | AB123: 0.22 | AC123: 19.98 | AD123: 4.3956
A124: Clark Solar 3 | B124: 2109 | E124: PV | F124: Solar | H124: Solar | I124: 29.98 | L124: Terminated | O124: 2015 | P124: Mountain Home, ID | Q124: Elmore | R124: ID | S124: ESA submitted by IPC and Intermountain Energy Partners on 10/13/14. IPUC approved ESA on 1/8/15. IPC will be granted 50% ownership of RECs, seller to have remaining 50%. IPUC terminated PURPA agreement April 2015 due to failure to meet financial deadlines. | T124: Intermountain Energy Partners | U124: Idaho Power Company (20-year ESA); QF project | Z124: Expected to use mono crystalline solar modules with Tier 1 inverters and utilize single axis tracking system. | AA124: 2016-08-17 | AB124: 0.22 | AC124: 29.98 | AD124: 6.5956
A125: Clark Solar 4 | B125: 2110 | E125: PV | F125: Solar | H125: Solar | I125: 19.98 | L125: Terminated | O125: 2015 | P125: Mountain Home, ID | Q125: Elmore | R125: ID | S125: ESA submitted by IPC and Intermountain Energy Partners on 10/13/14. IPUC approved ESA on 1/8/15. IPC will be granted 50% ownership of RECs, seller to have remaining 50%. IPUC terminated PURPA agreement April 2015 due to failure to meet financial deadlines. | T125: Intermountain Energy Partners | U125: Idaho Power Company (20-year ESA); QF project | Z125: Expected to use mono crystalline solar modules with Tier 1 inverters and utilize single axis tracking system. | AA125: 2016-08-17 | AB125: 0.22 | AC125: 19.98 | AD125: 4.3956
A126: Clearwater Windfarm | B126: 2188 | E126: WT | F126: WND | H126: Wind | I126: 750 | L126: Proposed | N126: 2022 | P126: 60 miles north of Colstrip | Q126: Rosebud | R126: MT | S126: Orion has been plnning wind farm since 2012, originally at twice the capacity (~700MW). Developer willing to build 70-90 miles of transmission lines to connect to Colstrip. Now owned by NextEra, PPA for 350MW w/ PSE. Construction expected o start summer 2021. | T126: NextEra | U126: Puget Sound Energy (20 yr PPA for 350MW) | Y126: PSE's transmission capacity freed up by Colstrip 1 and 2 retirements. | Z126: http://billingsgazette.com/news/state-and-regional/montana/montana-s-largest-wind-farm-quietly-develops-northeast-of-colstrip/article_35f5dee1-175c-57f6-b778-dd9054bb8238.html | AA126: 2016-09-07 | AB126: 0.32 | AC126: 750 | AD126: 240
A127: Clif Bar Bakery of Twin Falls Solar Project | B127: 2291 | C127: 62151/PV1 | E127: PV | F127: Solar | H127: Solar | I127: 2 | L127: Operating | M127: Jun | N127: 2019 | P127: Twin Falls, ID | Q127: Twin Falls | R127: ID | S127: On-site solar PV, BTM, system to serve 30% of the bakery's power. Developed by Borrego Solar. Under construction, with onsite pollinator habitat. | T127: Clif Bar, Borrego Solar | U127: Industrial; on-site load | Z127: https://www.borregosolar.com/press/clif-bar-borrego-install-largest-onsite-solar-system | AA127: 2019-09-09 | AB127: =IF(OR(ISBLANK(I127),ISBLANK(K127),I127=0),VLOOKUP(E127,ADftCF,4,FALSE),K127/I127) -> 0.22 | AC127: =IF(ISBLANK(J127),I127,J127) -> 2 | AD127: =AB127*AC127 -> 0.44
A128: Coastal Energy | B128: 1917 | E128: WT | F128: WND | H128: Wind | I128: 6 | L128: Operating | M128: Jun | N128: 2010 | P128: Grayland | Q128: Grays Harbor | R128: WA | T128: Coastal Commumity Action Program | U128: Grays Harbor PUD | Z128: (4) GE 1.5 MW WTG | AB128: 0.32 | AC128: =IF(ISBLANK(J128),I128,J128) -> 6 | AD128: 1.92
A129: COB Energy Facility | B129: 1713 | E129: CC | F129: NG | H129: Natural gas | I129: 1150 | J129: 1150 | L129: Terminated | O129: 2007 | P129: Bonanza | Q129: Klamath | R129: OR | S129: SC approved Jan 2005. Development rights sold by People's Energy to J-Power Sep 2006. SC terminated on request of the developer May 2007. | T129: J-Power USA | AA129: 2007-08-06 | AB129: 0.9 | AC129: 1150 | AD129: 1035
A130: Coffin Butte Pumped Storage | B130: 2158 | D130: P-14568 | E130: PS | F130: Elect. | H130: Pump Storage | I130: 250 | L130: Terminated | P130: near Two Dot | Q130: Wheatland | R130: MT | S130: FERC issued prelim permit June 2014. CB Energy Park submitted notice of decision not to proceed and surrendered the prelim permit on 3/28/18. | T130: Absaroka Energy | Z130: May not be in PNW footprint, but in NorthWestern's service area. | AA130: 2018-04-25 | AB130: 0 | AC130: 250 | AD130: 0
A131: Cold Springs Windfarm (Mountain Air) | B131: 2044 | E131: WT | F131: WND | H131: Wind | I131: 23 | L131: Operating | M131: Dec | N131: 2012 | P131: Mountain Home | Q131: Elmore | R131: ID | S131: Developed by TERNA; Part of the 138 Mountain Air Wind Park (six projects @ 23 MW each). | T131: Terna Energy | U131: QF PPA with Idaho Power | Y131: IPC | Z131: (10) Siemens SWT 2.3-101 MW. Mtn Air Wind Park started testing operation in September 2012. | AA131: 2013-04-22 | AB131: 0.32 | AC131: 23 | AD131: 7.36
A132: Collier Solar | B132: 2177 | C132: 60976 | E132: PV | F132: Solar | H132: Solar | I132: 9.9 | L132: Operating | M132: Dec | N132: 2016 | P132: Bend, OR | Q132: Deschutes | R132: OR | S132: 20 yr PPA w/ PAC, signed in 2015. Initial testing scheduled for Nov 2016, commercially operable Dec 31, 2016. | T132: Pine Gate Renewables | U132: PPA w/ PAC | Z132: http://edocs.puc.state.or.us/efdocs/RPA/re142rpa114740.pdf | AA132: 2017-01-16 | AB132: 0.22 | AC132: 9.9 | AD132: 2.178
A133: Collins Pine | B133: 1715 | E133: STCG | F133: WW | H133: Biomass | I133: 13 | L133: Terminated | P133: Lakeview | Q133: Lake | R133: OR | S133: MOU between Collins & DG Energy 2006. Proposed service late 2008. | T133: DG Energy | V133: Fremont Sawmill (kilns) | AA133: 2016-08-17 | AB133: 0.84 | AC133: 13 | AD133: 10.92
A134: Colton (SP Solar 6) | B134: 2278 | C134: 61831/PGRC2 | E134: PV | F134: Solar | H134: Solar | I134: 2.2 | L134: Operating | M134: Dec | N134: 2017 | P134: N or Hwy 211 and W of Colton | Q134: Clackamas | R134: OR | S134: Pine Gate Renewables | T134: Pine Gate Renewables | U134: 20 yr PPA w/ PGE (PURPA QF) | Z134: https://edocs.puc.state.or.us/efdocs/RPA/re143rpa13724.pdf | AA134: 2018-10-22 | AB134: 0.22 | AC134: 2.2 | AD134: 0.484
A135: Columbia Biogas | B135: 2042 | E135: BGICCG | F135: REF | H135: Biomass | I135: 3 | L135: Terminated | O135: 2015 | P135: Northeast Portland | Q135: Multnomah | R135: OR | S135: Signed 20 yr PPA with PacifiCorp. Expect construction to take a year. Commercial ops expected in mid 2013. Initially scheduled to generate 3 MW, ultimately ramp up to 5 MW. Columbia Biogas "will no longer maintain the option to lease the property" and is seeking development opportunities elsewhere. | T135: Columbia Biogas | U135: 20 yr PPA with PacifiCorp | Z135: Convert commercial food waste to renewable energy through anaerobic digestion. | AA135: 2016-08-17 | AB135: 0.9 | AC135: 3 | AD135: 2.7
A136: Columbia Ridge Landfill | B136: 1716 | E136: IC | F136: LFG | H136: Biomass | I136: 7 | K136: 6 | L136: Operating | M136: Dec | N136: 2009 | P136: Columbia Ridge Landfill | Q136: Gilliam | R136: OR | T136: Waste Management, Inc. | U136: Seattle City Light | AA136: 2010-02-24 | AB136: 0.8571428571 | AC136: 7 | AD136: 6
A137: Columbia River Energy | B137: 1717 | E137: GT | F137: NG | H137: Natural gas | I137: 42.7 | L137: Terminated | O137: 2005 | P137: Goble | Q137: Columbia | R137: OR | S137: Temporary exemption granted Sep 2001. Good through Dec 2005. | T137: Oregon Energy | Z137: (1) LM6000. | AA137: 2006-07-17 | AB137: 0.94 | AC137: 42.7 | AD137: 40.138
A138: Columbia River Landfill Expansion | B138: 2039 | E138: IC | F138: LFG | H138: Biomass | I138: 6 | L138: Operating | M138: Aug | N138: 2014 | P138: Columbia Ridge Landfill | Q138: Gilliam | R138: OR | T138: Waste Management, Inc. | U138: Seattle City Light | Z138: SCL authorized purchase of 6MW starting in 2013. | AA138: 2014-10-24 | AB138: 0.91 | AC138: 6 | AD138: 5.46
A139: Columbia Tidal Energy Project | B139: 1718 | D139: P-12672 | E139: TISEC | F139: Tidal current | H139: Hydrokinetic | I139: 163 | L139: Terminated | O139: 2008 | P139: Columbia R. estuary | Q139: Clatsop, Wahkiakum, Pacific | R139: OR/WA | S139: Preliminary permit granted Mar 2007. It appears the preliminary permit was surrendered in 2008 due to "insufficienct development potential" | T139: Oregon Tidal Energy Co. | Z139: 50 - 150 TISEC units of 0.5 to 2.0 MW ea. | AA139: 2016-08-17 | AB139: 0.3 | AC139: 163 | AD139: 48.9
A140: Combine Hills II | B140: 1719 | E140: WT | F140: WND | H140: Wind | I140: 63 | K140: 21.42 | L140: Operating | M140: Jan | N140: 2010 | P140: Milton Freewater (vicinity) | Q140: Umatilla | R140: OR | S140: Permits secured. PSA w/Clark PUD Mar 2009. Planned service Dec 2009 | T140: Eurus Energy America, Inc. | U140: Clark PUD; RECs to PG&E 2010 & 2011 | Y140: BPA 69kV Walla Walla - Pendleton line via tap | Z140: (63) Mitsubishi MWT 1000-A turbines | AA140: 2010-05-07 | AB140: 0.34 | AC140: 63 | AD140: 21.42
A141: Connell's Prairie (White River Project) | B141: 1720 | D141: P-13804 | E141: HY | F141: WAT | H141: Hydro | I141: 63 | K141: =100000/8760 -> 11.41552511 | L141: Terminated | O141: 2013 | P141: Lake Tapps flume | Q141: King | R141: WA | S141: FERC issued prelim permit Jan 2011. After failure to submit progress reports, FERC canceled permit Spet 2013. | T141: Puget Sound Energy | U141: Utility resource | AA141: 2016-08-17 | AB141: 0.1811988113 | AC141: 63 | AD141: 11.41552511
A142: Coos Bay OPT Wave Park | B142: 1721 | D142: P-12749 | E142: WEC | F142: Wave | H142: Hydrokinetic | I142: 100 | K142: 35 | L142: Terminated | O142: 2013 | P142: Coos Bay | Q142: Coos | R142: OR | S142: FERC prelim. permit issued Mar 2007; expired Feb 2010; renewal pending Apr 2010. FERC issued permit on Aug 2010. Developer issued notice of surrender of prelim license in June 2013. FERC terminated license July 2013. | T142: Oregon Wave Energy Partners, LLC. | Z142: (200) - (400) wave power bouys. | AA142: 2016-08-17 | AB142: 0.35 | AC142: 100 | AD142: 35
A143: Coos County Wave Energy Project | B143: 1722 | D143: P-12752 | E143: WEC | F143: Wave | H143: Hydrokinetic | I143: 100 | K143: 20 | L143: Terminated | O143: 2008 | P143: Bandon | Q143: Coos | R143: OR | S143: FERC prelim. permit for 100 MW Apr 2007; cancelled Jun 2008. | T143: Finavera Renewable, Ltd., dba AquaEnergy Group, Ltd. | Z143: AquabuOY heaving buoy hose pump units | AA143: 2016-08-17 | AB143: 0.2 | AC143: 100 | AD143: 20
A144: Cotterel | B144: 1723 | E144: WT | F144: WND | H144: Wind | I144: 200 | L144: Terminated | O144: 2012 | P144: Cotterel Mountain | Q144: Power | R144: ID | S144: EIS ROD & ROW grant Aug 2006. Developer terminated ROW in Mar 2012 and told IPUC they were abondoning future plans to pursue project. | T144: Windland-Shell | Z144: (81 - 98) 1.5 MW WTG | AA144: 2016-08-17 | AB144: 0.32 | AC144: 200 | AD144: 64
A145: Cottonwood Wind Park | B145: 2057 | E145: WT | F145: WND | H145: Wind | I145: 20 | L145: Terminated | O145: 2012 | P145: Rogerson | Q145: Twin Falls | R145: ID | S145: PURPA. 20 yr PPA w/ Idaho Power was terminated 8/14/12. Project behind schedule - was supposed to be operating June 2012. With dissolution of PPA and Exergy giving up contract rights to build, project is effectively terminated. | T145: Exergy Development Group | U145: 20 yr PPA w/ Idaho Power terminated. | Z145: (13) 1.6 MW turbines. | AA145: 2013-04-23 | AB145: 0.32 | AC145: 20 | AD145: 6.4
A146: County Line | B146: 1724 | D146: P-12071 | E146: HY | F146: WAT | H146: Hydro | I146: 0.95 | K146: 0.08631278539 | L146: Terminated | O146: 2007 | P146: N. Gooding Main Canal | Q146: Lincoln | R146: ID | S146: Exemption revoked Jun 2007. | T146: American Falls Reservoir Dist. #2 | Z146: Existing canal. | AA146: 2008-04-22 | AB146: 0.09085556357 | AC146: 0.95 | AD146: 0.08631278539
A147: Coutts Wind | B147: 2031 | E147: WT | F147: WND | H147: Wind | I147: 29.9 | L147: Terminated | Q147: Toole | R147: MT | S147: One of several Gaelelectric MT wind projects proposed; no new information availble since 2012, assuming terminated. | T147: Gaelectric | AA147: 2012-08-17 | AC147: 29.9
A148: Cove Mountain Solar 1 | B148: 2286 | C148: 62469/GEN01 | E148: PV | F148: Solar | H148: Solar | I148: 58 | L148: Operating | M148: Nov | N148: 2020 | P148: Enterprise, UT | R148: UT | S148: Announced Oct 2018. PPA through PacifiCorp to support Facebook's Prineville data center. Estimated construction to start in late 2019 and commissioning in late 2020. | T148: D.E. Shaw (sold in Oct 2019, by First Solar) | U148: PPA w/ PacifiCorp (for Facebook Prineville data center) | Z148: First Solar’s Series 6 thin film modules mounted on single-axis trackers | AA148: 2021-09-09 | AB148: =IF(OR(ISBLANK(I148),ISBLANK(K148),I148=0),VLOOKUP(E148,ADftCF,4,FALSE),K148/I148) -> 0.22 | AC148: =IF(ISBLANK(J148),I148,J148) -> 58 | AD148: =AB148*AC148 -> 12.76
A149: Cove Mountain Solar 2 | B149: 2313 | C149: 62470/GEN01 | E149: PV | F149: Solar | H149: Solar | L149: Operating | M149: Oct | N149: 2020 | P149: Iron County, UT | Q149: Iron County | R149: UT | S149: Announced May 2019. PPA w/ Facebook, though PacifiCorp.Expected online in 2020. | T149: D.E. Shaw (sold in Oct 2019, by First Solar) | U149: PPA w/ PacifiCorp (for Facebook UT Eagle Mountain data center) | AA149: 2021-09-09 | AC149: =IF(ISBLANK(J149),I149,J149) -> 0
A150: Coyote Crest | B150: 1894 | C150: 58778/1 | E150: WT | F150: WND | H150: Wind | I150: 120 | L150: Proposed | N150: 2020 | P150: Doty | Q150: Lewis/Pacific | R150: WA | S150: Announced Sep 2009. All county permits approved and now construction-ready (March 2011). Nov 2012, Evergreen said it would postpone building because it can't secure buyers. Per SNL, EIA - project is pending regulatory approvals (Apr 2020). | T150: Innogy Renewables | U150: Awaiting PPA to begin construction | Y150: BPA South Elma substation | Z150: (47) WTG. Located on Weyerhaeuser McDonald tree farm. 150 MW request for interconnection. Winter-peaking resource due to its location west of the Cascades. | AA150: 2020-04-10 | AB150: =IF(OR(ISBLANK(I150),ISBLANK(K150),I150=0),VLOOKUP(E150,ADftCF,4,FALSE),K150/I150) -> 0.32 | AC150: 120 | AD150: =AB150*AC150 -> 38.4
A151: Coyote Wind Project | B151: 2072 | E151: WT | F151: WND | H151: Wind | I151: 79.2 | L151: Terminated | O151: 2012 | P151: Springdale, MT | Q151: Sweet Grass | R151: MT | S151: EIS and ROD granted 2009. Scheduled for commissioning in 2012, but has since been terminated. | T151: Enerfin | Z151: (8) 1.8 MW WTG on state land and (36) 1.8 MW WTG on adjacent private land. | AA151: 2013-04-23 | AB151: 0.32 | AC151: 79.2 | AD151: 25.344
A152: Crazy Mountain Wind | B152: 2253 | E152: WT | F152: WND | H152: Wind | I152: 79.5 | K152: =260547/8760 -> 29.74280822 | L152: Suspended | N152: 2019 | P152: Sweet Grass | Q152: Sweet Grass | R152: MT | S152: According to NorthWestern QF list (from 1/6/18 email), this project is under construction and estimated to be completed by EOY 2018 or mid-2019. Project suspended March 2019 due to lawsuit. | T152: Pattern Energy Group | U152: Northwestern Energy (25yr PPA) (QF, FERC Small Power Producer status) | AA152: 2020-04-07 | AB152: 0.3741233738 | AC152: 79.5 | AD152: 29.74280822
A153: Crump Geyser I | B153: 1929 | E153: GE | F153: GST | H153: Geothermal | I153: 10 | L153: Proposed | P153: Adel | Q153: Lake | R153: OR | S153: Exploration completed. Production well drilling planned (Dec 2009). U.S. GEA Phase III status Apr 2010. Target plant service 2013. Amendment to development expenditure commitments extendd to June 2014. No new info since 2014 - project status uncertain (Sep 2016). | T153: Nevada Geothermal Power and Ormat Nevada dba Crump Geothermal Co. | Z153: Est. 40 - 80 MW capacity. | AA153: 2020-04-07 | AB153: 0.92 | AC153: 10 | AD153: 9.2
A154: Culbertson Generating Station | B154: 1897 | E154: GT | F154: NG | H154: Natural gas | I154: 91 | L154: Operating | M154: Aug | N154: 2010 | P154: Culbertson | Q154: Roosevelt | R154: MT | S154: Construction June 2009. | T154: Basin Electric Power Cooperative | U154: Basin Electric Power Cooperative | Y154: WAPA | Z154: (1) GE LMS100 GTG | AA154: 2010-08-16 | AB154: 0.94 | AC154: 91 | AD154: 85.54
A155: Cushman New Powerhouse | B155: 2004 | E155: HY | F155: WAT | H155: Hydro | I155: 3.6 | K155: 2.682648402 | L155: Operating | M155: Aug | N155: 2013 | P155: Skokomish R. N. Fk. | Q155: Mason | R155: WA | S155: U.S. DOE matching grant Nov 2009. | T155: City of Tacoma | U155: Utility resource | Z155: New powerhouse and (2) 1.8 MW Francis turbines to capture instream flow. | AA155: 2014-01-30 | AB155: 0.7451801116 | AC155: 3.6 | AD155: 2.682648402
A156: Cut Bank | B156: 1727 | E156: WT | F156: WND | H156: Wind | I156: 180 | L156: Terminated | P156: Cut Bank (vicinity) | R156: MT | T156: Invenergy | Z156: Would interconnect w/proposed MATL transmission line for export. | AA156: 2016-08-17 | AB156: 0.32 | AC156: 180 | AD156: 57.6
A157: Dairy Solar Project (OR Solar 8) | B157: 2165 | C157: 61424/PV1 | E157: PV | F157: Solar | H157: Solar | I157: 10 | K157: 2.14 | L157: Operating | M157: Mar | N157: 2018 | P157: Dairy | Q157: Klamath | R157: OR | S157: 20 yr PPA w/ PAC, signed in 2015. Initial testing scheduled for Nov 2016, commercially operable Dec, 2016. 20 year PPA thru 2036. Per EIA table 6.5 Monthly generation (Dec 2017), construction underway - more than 50% complete | T157: Origis Energy | U157: PAC - PPA as PURPA QF | Z157: http://edocs.puc.state.or.us/efdocs/RPA/re142rpa14433.pdf | AA157: 2018-08-01 | AB157: 0.214 | AC157: 10 | AD157: 2.14
A158: Day Hill Solar Project | B158: 2366 | E158: PV | F158: Solar | H158: Solar | I158: 2.2 | L158: Operating | M158: Oct | N158: 2020 | Q158: Clackamas | R158: OR | T158: Greenbacker Renewable Energy | U158: PGE - 20yr PURPA QF | Z158: https://edocs.puc.state.or.us/efdocs/RPA/re143rpa141832.pdf | AA158: 2021-07-14 | AB158: =IF(OR(ISBLANK(I158),ISBLANK(K158),I158=0),VLOOKUP(E158,ADftCF,4,FALSE),K158/I158) -> 0.22 | AC158: =IF(ISBLANK(J158),I158,J158) -> 2.2 | AD158: =AB158*AC158 -> 0.484
A159: Daybreak Solar | B159: 2347 | E159: PV | F159: Solar | H159: Solar | I159: 138 | L159: Proposed | N159: 2022 | Q159: Wasco | R159: OR | S159: Part of PGE's Green Future Impact Program. Customer is Intel. PGE made announcement 2/11/21. Estimated online 2022. | T159: Avangrid | U159: PGE - 15 yr PPA; customer = Intel (thru PGE's Green Power Program) | Z159: RECs for Intel. | AA159: 2021-02-17 | AB159: =IF(OR(ISBLANK(I159),ISBLANK(K159),I159=0),VLOOKUP(E159,ADftCF,4,FALSE),K159/I159) -> 0.22 | AC159: =IF(ISBLANK(J159),I159,J159) -> 138 | AD159: =AB159*AC159 -> 30.36
A160: Dayton Cutoff (SP Solar 7) | B160: 2279 | C160: 61827/PGRC3 | E160: PV | F160: Solar | H160: Solar | I160: 2.2 | L160: Operating | M160: Jun | N160: 2018 | P160: McMinnville, OR | Q160: Yamhill | R160: OR | S160: Operating date per WREGIS certification application | T160: Pine Gate Renewables | U160: PGE - 20yr PURPA QF | Z160: https://edocs.puc.state.or.us/efdocs/RPA/re143rpa1399.pdf | AA160: 2018-10-22 | AB160: 0.22 | AC160: 2.2 | AD160: 0.484
A161: DB Bull Run Facility (Sulus Solar 29) | B161: 2367 | E161: PV | F161: Solar | H161: Solar | I161: 2.6 | L161: Operating | M161: Dec | N161: 2020 | P161: Clackamas Cty | Q161: Clackamas | R161: OR | T161: Sulus Solar | U161: PGE - 20yr PURPA QF | Z161: https://edocs.puc.state.or.us/efdocs/RPA/re143rpa155244.pdf | AA161: 2021-07-14 | AB161: =IF(OR(ISBLANK(I161),ISBLANK(K161),I161=0),VLOOKUP(E161,ADftCF,4,FALSE),K161/I161) -> 0.22 | AC161: =IF(ISBLANK(J161),I161,J161) -> 2.6 | AD161: =AB161*AC161 -> 0.572
